Workbook

Sheet Nucor Comparison
B3: Nucor Ratespread
B4: Revenue Requirement Allocated to Each Customer Class
B5: GS | C5: FS | D5: IS | E5: TSS | F5: TSM | G5: TSL | H5: TBF | I5: NGV | J5: Total
A6: Enbridge Proposed | B6: ='COS Sum'!G103 -> 566512816.2 | C6: ='COS Sum'!K103 -> 4299447.874 | D6: ='COS Sum'!L103 -> 327075.9691 | E6: ='COS Sum'!M103 -> 18853431.18 | F6: ='COS Sum'!N103 -> 23410351.59 | G6: ='COS Sum'!O103 -> 27876422.45 | H6: ='COS Sum'!P103 -> 13762947.54 | I6: ='COS Sum'!Q103 -> 1602463.907 | J6: ='COS Sum'!R103 -> 656644956.7
A7: Nucor Proposed | B7: ='COS Sum'!G95 -> 577334395.2 | C7: ='COS Sum'!K95 -> 4019576.95 | D7: ='COS Sum'!L95 -> 325328.6004 | E7: ='COS Sum'!M95 -> 18953977.98 | F7: ='COS Sum'!N95 -> 21109586.07 | G7: ='COS Sum'!O95 -> 22369315.16 | H7: ='COS Sum'!P95 -> 10949431.36 | I7: ='COS Sum'!Q95 -> 1583345.478 | J7: ='COS Sum'!R95 -> 656644956.7
A8: Change | B8: =B7-B6 -> 10821578.93 | C8: -279870.9236 | D8: -1747.368703 | E8: 100546.8029 | F8: -2300765.524 | G8: -5507107.298 | H8: -2813516.185 | I8: -19118.42901 | J8: 0
B10: Class Share of Revenue Requirement Allocation
B11: GS | C11: FS | D11: IS | E11: TSS | F11: TSM | G11: TSL | H11: TBF | I11: NGV | J11: Total
A12: Enbridge Proposed | B12: =B6/$J6 -> 0.8627383952 | C12: 0.006547599018 | D12: 0.0004981016997 | E12: 0.02871175813 | F12: 0.03565146028 | G12: 0.04245280828 | H12: 0.0209594963 | I12: 0.002440381047 | J12: 1
A13: Nucor Proposed | B13: =B7/$J7 -> 0.8792185019 | C13: 0.006121385551 | D13: 0.0004954406442 | E13: 0.02886488015 | F13: 0.0321476406 | G13: 0.03406607319 | H13: 0.01667481224 | I13: 0.002411265725 | J13: 1
A14: Change | B14: =B13-B12 -> 0.01648010666 | C14: -0.000426213467 | D14: -2.661055545e-06 | E14: 0.0001531220211 | F14: -0.003503819682 | G14: -0.008386735087 | H14: -0.004284684068 | I14: -2.911532148e-05 | J14: 0

Sheet Monthly Use Table
A3: Sum of total_dth | B3: Column Labels
A4: Row Labels | B4: 1 | C4: 2 | D4: 3 | E4: 4 | F4: 5 | G4: 6 | H4: 7 | I4: 8 | J4: 9 | K4: 10 | L4: 11 | M4: 12 | N4: (blank) | O4: Grand Total
A5: UTFS | B5: 249682 | C5: 221977 | D5: 203586 | E5: 177326 | F5: 164871 | G5: 141570 | H5: 139418 | I5: 131084 | J5: 150860 | K5: 209973 | L5: 210373 | M5: 237044 | O5: 2237764
A6: UTFT1 | B6: 804329 | C6: 732505 | D6: 746393 | E6: 665297 | F6: 718181 | G6: 1925405 | H6: 2156629 | I6: 2199062 | J6: 2065929 | K6: 2204773 | L6: 2074420 | M6: 2129979 | O6: 18422902
A7: UTFT1C | B7: 4483894 | C7: 4068671 | D7: 3843295 | E7: 2967197 | F7: 3574691 | G7: 3723257 | H7: 4153120 | I7: 4321657 | J7: 3823681 | K7: 3084746 | L7: 3198979 | M7: 4324084 | O7: 45567272
A8: UTGS | B8: 21267214 | C8: 17374562 | D8: 13834282 | E8: 9531772 | F8: 5474098 | G8: 3013097 | H8: 2763562 | I8: 2514371 | J8: 2768711 | K8: 6042450 | L8: 12980877 | M8: 20141912 | O8: 117706908
A9: UTGSL | B9: 0 | C9: 0 | D9: 0 | E9: 0 | F9: 0 | G9: 0 | H9: 0 | I9: 0 | J9: 0 | K9: 0 | L9: 0 | M9: 0 | O9: 0
A10: UTGSM | B10: 0 | C10: 0 | D10: 0 | E10: 0 | F10: 0 | G10: 0 | H10: 0 | I10: 0 | J10: 0 | K10: 0 | L10: 0 | M10: 0 | O10: 0
A11: UTGSS | B11: 0 | C11: 0 | D11: 0 | E11: 0 | F11: 0 | G11: 0 | H11: 0 | I11: 0 | J11: 0 | K11: 0 | L11: 0 | M11: 0 | O11: 0
A12: UTIS | B12: 32734 | C12: 29634 | D12: 28577 | E12: 20662 | F12: 14873 | G12: 10104 | H12: 7789 | I12: 8138 | J12: 9973 | K12: 12718 | L12: 20143 | M12: 24365 | O12: 219710
A13: UTMT | B13: 8769 | C13: 6953 | D13: 5792 | E13: 3324 | F13: 1916 | G13: 1194 | H13: 1115 | I13: 1275 | J13: 1441 | K13: 2210 | L13: 6288 | M13: 7297 | O13: 47574
A14: UTNGV | B14: 14998 | C14: 12295 | D14: 10748 | E14: 11906 | F14: 11756 | G14: 10389 | H14: 12129 | I14: 13968 | J14: 12182 | K14: 11487 | L14: 11907 | M14: 12053 | O14: 145818
A15: UTTSL | B15: 2550719 | C15: 2196771 | D15: 2230049 | E15: 2240824 | F15: 2281927 | G15: 2303339 | H15: 2434691 | I15: 2288960 | J15: 2137117 | K15: 2243906 | L15: 2270309 | M15: 2500102 | O15: 27678714
A16: UTTSM | B16: 1623411 | C16: 1487650 | D16: 1506028 | E16: 1271625 | F16: 1135325 | G16: 1063906 | H16: 1169036 | I16: 1199248 | J16: 1135891 | K16: 1301428 | L16: 1521458 | M16: 1537351 | O16: 15952357
A17: UTTSS | B17: 1241112 | C17: 1106385 | D17: 1045441 | E17: 716209 | F17: 483308 | G17: 343731 | H17: 298819 | I17: 299876 | J17: 321900 | K17: 540483 | L17: 933672 | M17: 1116089 | O17: 8447025
A18: (blank)
A19: Grand Total | B19: 32276862 | C19: 27237403 | D19: 23454191 | E19: 17606142 | F19: 13860946 | G19: 12535992 | H19: 13136308 | I19: 12977639 | J19: 12427685 | K19: 15654174 | L19: 23228426 | M19: 32030276 | O19: 236426044
A23: Sch. | B23: January | C23: February | D23: March | E23: April | F23: May | G23: June | H23: July | I23: August | J23: September | K23: October | L23: November | M23: December | N23: Total
A24: FS | B24: 249682 | C24: 221977 | D24: 203586 | E24: 177326 | F24: 164871 | G24: 141570 | H24: 139418 | I24: 131084 | J24: 150860 | K24: 209973 | L24: 210373 | M24: 237044 | N24: 2237764
A25: FT1 | B25: 804329 | C25: 732505 | D25: 746393 | E25: 665297 | F25: 718181 | G25: 1925405 | H25: 2156629 | I25: 2199062 | J25: 2065929 | K25: 2204773 | L25: 2074420 | M25: 2129979 | N25: 18422902
A26: FT1C | B26: 4483894 | C26: 4068671 | D26: 3843295 | E26: 2967197 | F26: 3574691 | G26: 3723257 | H26: 4153120 | I26: 4321657 | J26: 3823681 | K26: 3084746 | L26: 3198979 | M26: 4324084 | N26: 45567272
A27: GS | B27: 21267214 | C27: 17374562 | D27: 13834282 | E27: 9531772 | F27: 5474098 | G27: 3013097 | H27: 2763562 | I27: 2514371 | J27: 2768711 | K27: 6042450 | L27: 12980877 | M27: 20141912 | N27: 117706908
A28: IS | B28: 32734 | C28: 29634 | D28: 28577 | E28: 20662 | F28: 14873 | G28: 10104 | H28: 7789 | I28: 8138 | J28: 9973 | K28: 12718 | L28: 20143 | M28: 24365 | N28: 219710
A29: MT | B29: 8769 | C29: 6953 | D29: 5792 | E29: 3324 | F29: 1916 | G29: 1194 | H29: 1115 | I29: 1275 | J29: 1441 | K29: 2210 | L29: 6288 | M29: 7297 | N29: 47574
A30: NGV | B30: 14998 | C30: 12295 | D30: 10748 | E30: 11906 | F30: 11756 | G30: 10389 | H30: 12129 | I30: 13968 | J30: 12182 | K30: 11487 | L30: 11907 | M30: 12053 | N30: 145818
A31: TSL | B31: 2550719 | C31: 2196771 | D31: 2230049 | E31: 2240824 | F31: 2281927 | G31: 2303339 | H31: 2434691 | I31: 2288960 | J31: 2137117 | K31: 2243906 | L31: 2270309 | M31: 2500102 | N31: 27678714
A32: TSM | B32: 1623411 | C32: 1487650 | D32: 1506028 | E32: 1271625 | F32: 1135325 | G32: 1063906 | H32: 1169036 | I32: 1199248 | J32: 1135891 | K32: 1301428 | L32: 1521458 | M32: 1537351 | N32: 15952357
A33: TSS | B33: 1241112 | C33: 1106385 | D33: 1045441 | E33: 716209 | F33: 483308 | G33: 343731 | H33: 298819 | I33: 299876 | J33: 321900 | K33: 540483 | L33: 933672 | M33: 1116089 | N33: 8447025
A34: Total | B34: 32276862 | C34: 27237403 | D34: 23454191 | E34: 17606142 | F34: 13860946 | G34: 12535992 | H34: 13136308 | I34: 12977639 | J34: 12427685 | K34: 15654174 | L34: 23228426 | M34: 32030276 | N34: 236426044
A36: Sch. | B36: FS | C36: FT1 | D36: FT1C | E36: GS | F36: IS | G36: MT | H36: NGV | I36: TSL | J36: TSM | K36: TSS | L36: Total
A37: January | B37: 249682 | C37: 804329 | D37: 4483894 | E37: 21267214 | F37: 32734 | G37: 8769 | H37: 14998 | I37: 2550719 | J37: 1623411 | K37: 1241112 | L37: 32276862
A38: February | B38: 221977 | C38: 732505 | D38: 4068671 | E38: 17374562 | F38: 29634 | G38: 6953 | H38: 12295 | I38: 2196771 | J38: 1487650 | K38: 1106385 | L38: 27237403
A39: March | B39: 203586 | C39: 746393 | D39: 3843295 | E39: 13834282 | F39: 28577 | G39: 5792 | H39: 10748 | I39: 2230049 | J39: 1506028 | K39: 1045441 | L39: 23454191
A40: April | B40: 177326 | C40: 665297 | D40: 2967197 | E40: 9531772 | F40: 20662 | G40: 3324 | H40: 11906 | I40: 2240824 | J40: 1271625 | K40: 716209 | L40: 17606142
A41: May | B41: 164871 | C41: 718181 | D41: 3574691 | E41: 5474098 | F41: 14873 | G41: 1916 | H41: 11756 | I41: 2281927 | J41: 1135325 | K41: 483308 | L41: 13860946
A42: June | B42: 141570 | C42: 1925405 | D42: 3723257 | E42: 3013097 | F42: 10104 | G42: 1194 | H42: 10389 | I42: 2303339 | J42: 1063906 | K42: 343731 | L42: 12535992
A43: July | B43: 139418 | C43: 2156629 | D43: 4153120 | E43: 2763562 | F43: 7789 | G43: 1115 | H43: 12129 | I43: 2434691 | J43: 1169036 | K43: 298819 | L43: 13136308
A44: August | B44: 131084 | C44: 2199062 | D44: 4321657 | E44: 2514371 | F44: 8138 | G44: 1275 | H44: 13968 | I44: 2288960 | J44: 1199248 | K44: 299876 | L44: 12977639
A45: September | B45: 150860 | C45: 2065929 | D45: 3823681 | E45: 2768711 | F45: 9973 | G45: 1441 | H45: 12182 | I45: 2137117 | J45: 1135891 | K45: 321900 | L45: 12427685
A46: October | B46: 209973 | C46: 2204773 | D46: 3084746 | E46: 6042450 | F46: 12718 | G46: 2210 | H46: 11487 | I46: 2243906 | J46: 1301428 | K46: 540483 | L46: 15654174
A47: November | B47: 210373 | C47: 2074420 | D47: 3198979 | E47: 12980877 | F47: 20143 | G47: 6288 | H47: 11907 | I47: 2270309 | J47: 1521458 | K47: 933672 | L47: 23228426
A48: December | B48: 237044 | C48: 2129979 | D48: 4324084 | E48: 20141912 | F48: 24365 | G48: 7297 | H48: 12053 | I48: 2500102 | J48: 1537351 | K48: 1116089 | L48: 32030276
A49: Total | B49: 2237764 | C49: 18422902 | D49: 45567272 | E49: 117706908 | F49: 219710 | G49: 47574 | H49: 145818 | I49: 27678714 | J49: 15952357 | K49: 8447025 | L49: 236426044

Sheet COS Sum
Q1: Enbridge Gas Utah
Q2: Docket No. 25-057-06
A3: ='Control Panel'!$B$1 -> Enbridge Gas Utah | Q3: EGU Exhibit 4.07
A4: ='Control Panel'!$B$2 -> Utah - DEC 2026 Adjusted Avg Results CET | Q4: Page 1 of 2
A5: ='Control Panel'!$B$3 -> 12 Months Ended : Dec-2026
F6: COST OF SERVICE SUMMARY AND ALLOCATIONS TO RATE CLASSES
E8: (A) | F8: (B) | G8: (C) | H8: (C) | I8: (D) | J8: (E) | K8: (D) | L8: (E) | M8: (F) | N8: (G) | O8: (H) | P8: (I) | Q8: (J) | R8: (K)
F9: =+Report!J6 -> Utah | T9: Check with Report
F10: =+Report!J7 -> Jurisdiction | G10: Allocations to Rate Classes
B11: Description | F11: =+Report!J8 -> DNG Related | G11: ='COS Detail'!H9 -> GS | H11: ='COS Detail'!I9 -> GSS | I11: ='COS Detail'!J9 -> GSM | J11: ='COS Detail'!K9 -> GSL | K11: ='COS Detail'!L9 -> FS | L11: ='COS Detail'!M9 -> IS | M11: ='COS Detail'!N9 -> TSS | N11: ='COS Detail'!O9 -> TSM | O11: ='COS Detail'!P9 -> TSL | P11: ='COS Detail'!Q9 -> TBF | Q11: ='COS Detail'!R9 -> NGV | R11: ='COS Detail'!S9 -> Total | T11: COS Sum | U11: Report | V11: Difference
A13: 1 | B13: NET INCOME SUMMARY
A15: =+A13+1 -> 2 | B15: Utility Operating Revenue
A16: =+A15+1 -> 3 | D16: Average Projected Revenue 2026 | F16: =SUM(G16,K16:Q16) -> 541975207.8 | G16: ='COS Detail'!H363 -> 474738408 | H16: ='COS Detail'!I363 -> 0 | I16: ='COS Detail'!J363 -> 0 | J16: ='COS Detail'!K363 -> 0 | K16: ='COS Detail'!L363 -> 3667113.75 | L16: ='COS Detail'!M363 -> 195670.8274 | M16: ='COS Detail'!N363 -> 13435599.44 | N16: ='COS Detail'!O363 -> 17653553.24 | O16: ='COS Detail'!P363 -> 21241706.78 | P16: ='COS Detail'!Q363 -> 9383721.984 | Q16: ='COS Detail'!R363 -> 1659433.86 | R16: ='COS Detail'!S363 -> 541975207.8 | T16: =SUM(K16:Q16)+G16 -> 541975207.8 | U16: =Report!J13 -> 541975207.8 | V16: =U16-T16 -> 0 | W16: System Distribution Non-Gas Revenue
A17: 4 | D17: System Supplier Non-Gas Revenue | F17: =SUM(G17,K17:Q17) -> 0 | G17: ='COS Detail'!H364 -> 0 | H17: ='COS Detail'!I364 -> 0 | I17: ='COS Detail'!J364 -> 0 | J17: ='COS Detail'!K364 -> 0 | K17: ='COS Detail'!L364 -> 0 | L17: ='COS Detail'!M364 -> 0 | M17: ='COS Detail'!N364 -> 0 | N17: ='COS Detail'!O364 -> 0 | O17: ='COS Detail'!P364 -> 0 | P17: ='COS Detail'!Q364 -> 0 | Q17: ='COS Detail'!R364 -> 0 | R17: ='COS Detail'!S364 -> 0 | T17: =SUM(K17:Q17)+G17 -> 0 | U17: =Report!J14 -> 0 | V17: =U17-T17 -> 0
A18: 5 | D18: System Commodity Revenue | F18: 0 | G18: =+'COS Detail'!H366 -> 0 | H18: =+'COS Detail'!I366 -> 0 | I18: =+'COS Detail'!J366 -> 0 | J18: =+'COS Detail'!K366 -> 0 | K18: =+'COS Detail'!L366 -> 0 | L18: =+'COS Detail'!M366 -> 0 | M18: =+'COS Detail'!N366 -> 0 | N18: =+'COS Detail'!O366 -> 0 | O18: =+'COS Detail'!P366 -> 0 | P18: =+'COS Detail'!Q366 -> 0 | Q18: =+'COS Detail'!R366 -> 0 | R18: ='COS Detail'!S365 -> 0 | T18: =SUM(K18:Q18)+G18 -> 0 | U18: =Report!J15 -> 0 | V18: =U18-T18 -> 0
A19: 6 | D19: Pass-Through Related Other Revenue | F19: 0 | G19: ='COS Detail'!H501 -> 0 | H19: ='COS Detail'!I501 -> 0 | I19: ='COS Detail'!J501 -> 0 | J19: ='COS Detail'!K501 -> 0 | K19: ='COS Detail'!L501 -> 0 | L19: ='COS Detail'!M501 -> 0 | M19: ='COS Detail'!N501 -> 0 | N19: ='COS Detail'!O501 -> 0 | O19: ='COS Detail'!P501 -> 0 | P19: ='COS Detail'!Q501 -> 0 | Q19: ='COS Detail'!R501 -> 0 | R19: ='COS Detail'!S501 -> 0 | T19: =SUM(K19:Q19)+G19 -> 0 | U19: =Report!J16 -> 0 | V19: =U19-T19 -> 0
A20: 7 | D20: General Related Other Revenue | F20: 12504032.64 | G20: ='COS Detail'!H502 -> 11243907.68 | H20: ='COS Detail'!I502 -> 0 | I20: ='COS Detail'!J502 -> 0 | J20: ='COS Detail'!K502 -> 0 | K20: ='COS Detail'!L502 -> 60510.43075 | L20: ='COS Detail'!M502 -> 3981.692517 | M20: ='COS Detail'!N502 -> 265112.2165 | N20: ='COS Detail'!O502 -> 317576.6538 | O20: ='COS Detail'!P502 -> 354992.3973 | P20: ='COS Detail'!Q502 -> 243833.0014 | Q20: ='COS Detail'!R502 -> 14118.56678 | R20: ='COS Detail'!S502 -> 12504032.64 | T20: =SUM(K20:Q20)+G20 -> 12504032.64 | U20: =Report!J17 -> 12504032.64 | V20: =U20-T20 -> 0
A21: 8 | C21: Total Utility Operating Revenue | F21: =SUM(F16:F20) -> 554479240.5 | G21: =SUM(G16:G20) -> 485982315.6 | H21: =SUM(H16:H20) -> 0 | I21: 0 | J21: 0 | K21: 3727624.181 | L21: =SUM(L16:L20) -> 199652.5199 | M21: =SUM(M16:M20) -> 13700711.66 | N21: 17971129.9 | O21: 21596699.18 | P21: 9627554.985 | Q21: 1673552.427 | R21: =SUM(R16:R20) -> 554479240.5 | T21: =SUM(T16:T20) -> 554479240.5 | U21: =SUM(U16:U20) -> 554479240.5 | V21: =SUM(V16:V20) -> 0
A23: =+A21+1 -> 9 | B23: Utility Operating Expenses
A24: =+A23+1 -> 10 | C24: Gas Purchase Expenses
A25: =+A24+1 -> 11 | D25: Utah | E25: Value of Peaking Supply | F25: ='COS Detail'!G629 -> 0 | G25: ='COS Detail'!H629 -> 0 | H25: ='COS Detail'!I629 -> 0 | I25: ='COS Detail'!J629 -> 0 | J25: ='COS Detail'!K629 -> 0 | K25: ='COS Detail'!L629 -> 0 | L25: ='COS Detail'!M629 -> 0 | M25: ='COS Detail'!N629 -> 0 | N25: ='COS Detail'!O629 -> 0 | O25: ='COS Detail'!P629 -> 0 | P25: ='COS Detail'!Q629 -> 0 | Q25: ='COS Detail'!R629 -> 0 | R25: ='COS Detail'!S629 -> 0 | T25: =SUM(K25:Q25)+G25 -> 0 | U25: =Report!J24 -> 0 | V25: =U25-T25 -> 0
A26: =+A25+1 -> 12 | D26: Total Gas Purchase Expenses | F26: =SUM(F24:F25) -> 0 | G26: =SUM(G24:G25) -> 0 | H26: =SUM(H24:H25) -> 0 | I26: 0 | J26: 0 | K26: 0 | L26: 0 | M26: =SUM(M24:M25) -> 0 | N26: =SUM(N24:N25) -> 0 | O26: =SUM(O24:O25) -> 0 | P26: 0 | Q26: 0 | R26: =SUM(R24:R25) -> 0 | T26: =T25 -> 0 | U26: =U25 -> 0 | V26: =V25 -> 0
A28: =+A26+1 -> 13 | C28: O&M Expenses
A29: =+A28+1 -> 14 | D29: Production | F29: =SUM(G29,K29:Q29) -> -502193.8192 | G29: ='COS Detail'!H650 -> -430031.5626 | H29: ='COS Detail'!I650 -> 0 | I29: ='COS Detail'!J650 -> 0 | J29: ='COS Detail'!K650 -> 0 | K29: ='COS Detail'!L650 -> -2784.168742 | L29: ='COS Detail'!M650 -> -236.1652391 | M29: ='COS Detail'!N650 -> -14411.33738 | N29: ='COS Detail'!O650 -> -16946.07844 | O29: ='COS Detail'!P650 -> -18987.79189 | P29: ='COS Detail'!Q650 -> -15902.77941 | Q29: ='COS Detail'!R650 -> -2893.935466 | R29: ='COS Detail'!S650 -> -502193.8192 | T29: =SUM(K29:Q29)+G29 -> -502193.8192 | U29: =Report!J27 -> -502193.8192 | V29: =U29-T29 -> 0
A30: 15 | D30: Distribution | F30: 84124137.96 | G30: ='COS Detail'!H778 -> 72036001.08 | H30: ='COS Detail'!I778 -> 0 | I30: ='COS Detail'!J778 -> 0 | J30: ='COS Detail'!K778 -> 0 | K30: ='COS Detail'!L778 -> 466385.2609 | L30: ='COS Detail'!M778 -> 39560.81575 | M30: ='COS Detail'!N778 -> 2414090.511 | N30: ='COS Detail'!O778 -> 2838693.321 | O30: ='COS Detail'!P778 -> 3180707.454 | P30: ='COS Detail'!Q778 -> 2663926.87 | Q30: ='COS Detail'!R778 -> 484772.6457 | R30: ='COS Detail'!S778 -> 84124137.96 | T30: 84124137.96 | U30: =Report!J29 -> 84124137.96 | V30: 0
D31: Storage | F31: 1971514.522 | G31: ='COS Detail'!H670 -> 1934732.695 | H31: ='COS Detail'!I670 -> 0 | I31: ='COS Detail'!J670 -> 0 | J31: ='COS Detail'!K670 -> 0 | K31: ='COS Detail'!L670 -> 36781.8274 | L31: ='COS Detail'!M670 -> 0 | M31: ='COS Detail'!N670 -> 0 | N31: ='COS Detail'!O670 -> 0 | O31: ='COS Detail'!P670 -> 0 | P31: ='COS Detail'!Q670 -> 0 | Q31: ='COS Detail'!R670 -> 0 | R31: ='COS Detail'!S670 -> 1971514.522 | T31: 1971514.522 | U31: =Report!J28 -> 1971514.522 | V31: 0
A32: =+A30+1 -> 16 | D32: Customer Accounts | F32: 21197740.14 | G32: ='COS Detail'!H831 -> 20330456.29 | H32: ='COS Detail'!I831 -> 0 | I32: ='COS Detail'!J831 -> 0 | J32: ='COS Detail'!K831 -> 0 | K32: ='COS Detail'!L831 -> 51449.70802 | L32: ='COS Detail'!M831 -> 2647.949351 | M32: ='COS Detail'!N831 -> 180730.6334 | N32: ='COS Detail'!O831 -> 225474.4028 | O32: ='COS Detail'!P831 -> 268208.1884 | P32: ='COS Detail'!Q831 -> 117465.621 | Q32: ='COS Detail'!R831 -> 21307.34601 | R32: ='COS Detail'!S831 -> 21197740.14 | T32: 21197740.14 | U32: =Report!J30 -> 21197740.14 | V32: 0
A33: 17 | D33: Customer Service & Information | F33: 3531755.186 | G33: ='COS Detail'!H859 -> 2024168.925 | H33: ='COS Detail'!I859 -> 0 | I33: ='COS Detail'!J859 -> 0 | J33: ='COS Detail'!K859 -> 0 | K33: ='COS Detail'!L859 -> 48271.78893 | L33: ='COS Detail'!M859 -> 25164.61815 | M33: ='COS Detail'!N859 -> 1010047.097 | N33: ='COS Detail'!O859 -> 246037.899 | O33: ='COS Detail'!P859 -> 38845.60885 | P33: ='COS Detail'!Q859 -> 20664.14756 | Q33: ='COS Detail'!R859 -> 118555.1009 | R33: ='COS Detail'!S859 -> 3531755.186 | T33: 3531755.186 | U33: =Report!J31 -> 3531755.186 | V33: 0
A34: 18 | D34: Administrative & General | F34: 60364028.28 | G34: ='COS Detail'!H927 -> 52421874.66 | H34: ='COS Detail'!I927 -> 0 | I34: ='COS Detail'!J927 -> 0 | J34: ='COS Detail'!K927 -> 0 | K34: ='COS Detail'!L927 -> 343188.0549 | L34: ='COS Detail'!M927 -> 28900.3729 | M34: ='COS Detail'!N927 -> 1705818.009 | N34: ='COS Detail'!O927 -> 1982162.049 | O34: ='COS Detail'!P927 -> 2094048.576 | P34: ='COS Detail'!Q927 -> 1772817.088 | Q34: ='COS Detail'!R927 -> 15219.47473 | R34: ='COS Detail'!S927 -> 60364028.28 | T34: 60364028.28 | U34: =Report!J32 -> 60364028.28 | V34: 0
A35: 19 | D35: Total O&M Expense | F35: =SUM(F29:F34) -> 170686982.3 | G35: =SUM(G29:G34) -> 148317202.1 | H35: =SUM(H29:H34) -> 0 | I35: 0 | J35: 0 | K35: 943292.4714 | L35: 96037.59091 | M35: 5296274.914 | N35: 5275421.593 | O35: 5562822.035 | P35: 4558970.947 | Q35: 636960.6319 | R35: =SUM(R29:R34) -> 170686982.3 | T35: =SUM(T29:T34) -> 170686982.3 | U35: =SUM(U29:U34) -> 170686982.3 | V35: 0
A37: =+A35+1 -> 20 | C37: Other Operating Expenses
A38: =+A37+1 -> 21 | D38: Depreciation, Depletion, Amortization | F38: =SUM(G38,K38:Q38) -> 156963213.9 | G38: ='COS Detail'!H953 -> 136850242.6 | H38: ='COS Detail'!I953 -> 0 | I38: ='COS Detail'!J953 -> 0 | J38: ='COS Detail'!K953 -> 0 | K38: ='COS Detail'!L953 -> 954102.0181 | L38: ='COS Detail'!M953 -> 72872.32338 | M38: ='COS Detail'!N953 -> 4301222.064 | N38: ='COS Detail'!O953 -> 4998023.878 | O38: ='COS Detail'!P953 -> 5280145.882 | P38: ='COS Detail'!Q953 -> 4470160.318 | Q38: ='COS Detail'!R953 -> 36444.82983 | R38: ='COS Detail'!S953 -> 156963213.9 | T38: =SUM(K38:Q38)+G38 -> 156963213.9 | U38: =Report!J36 -> 156963213.9 | V38: =U38-T38 -> 0
A39: =+A38+1 -> 22 | D39: Taxes Other Than Income Taxes | F39: 36797614.97 | G39: ='COS Detail'!H962 -> 31907747.17 | H39: ='COS Detail'!I962 -> 0 | I39: ='COS Detail'!J962 -> 0 | J39: ='COS Detail'!K962 -> 0 | K39: ='COS Detail'!L962 -> 203587.8673 | L39: ='COS Detail'!M962 -> 17825.32822 | M39: ='COS Detail'!N962 -> 1052123.652 | N39: ='COS Detail'!O962 -> 1222568.623 | O39: ='COS Detail'!P962 -> 1291578.6 | P39: ='COS Detail'!Q962 -> 1093447.706 | Q39: ='COS Detail'!R962 -> 8736.017511 | R39: ='COS Detail'!S962 -> 36797614.97 | T39: =SUM(K39:Q39)+G39 -> 36797614.97 | U39: =Report!J37 -> 36797614.97 | V39: =U39-T39 -> 0
A40: =+A39+1 -> 23 | D40: Income Taxes | F40: 30718557.95 | G40: =SUM('COS Detail'!H964:H972) -> 27621559.97 | H40: =SUM('COS Detail'!I964:I972) -> 0 | I40: =SUM('COS Detail'!J964:J972) -> 0 | J40: =SUM('COS Detail'!K964:K972) -> 0 | K40: =SUM('COS Detail'!L964:L972) -> 299017.7464 | L40: =SUM('COS Detail'!M964:M972) -> -3991.417891 | M40: =SUM('COS Detail'!N964:N972) -> 323990.4475 | N40: =SUM('COS Detail'!O964:O972) -> 1092787.933 | O40: =SUM('COS Detail'!P964:P972) -> 1795436.468 | P40: =SUM('COS Detail'!Q964:Q972) -> -559627.0863 | Q40: =SUM('COS Detail'!R964:R972) -> 149383.888 | R40: =SUM('COS Detail'!S964:S972) -> 30718557.95 | T40: =SUM(K40:Q40)+G40 -> 30718557.95 | U40: =Report!J38 -> 30718557.95 | V40: =U40-T40 -> 0
A41: =+A40+1 -> 24 | D41: Total Other Operating Expenses | F41: =SUM(F38:F40) -> 224479386.8 | G41: =SUM(G38:G40) -> 196379549.7 | H41: =SUM(H38:H40) -> 0 | I41: 0 | J41: 0 | K41: 1456707.632 | L41: 86706.23371 | M41: 5677336.164 | N41: 7313380.433 | O41: 8367160.95 | P41: 5003980.938 | Q41: 194564.7354 | R41: =SUM(R38:R40) -> 224479386.8 | T41: =SUM(T38:T40) -> 224479386.8 | U41: =SUM(U38:U40) -> 224479386.8 | V41: =U41-T41 -> 0
A44: =+A41+1 -> 25 | C44: Total Utility Operating Expenses | F44: =SUM(G44,K44:Q44) -> 395166369.1 | G44: =G26+G35+G41 -> 344696751.8 | H44: =H26+H35+H41 -> 0 | I44: =I26+I35+I41 -> 0 | J44: 0 | K44: 2400000.103 | L44: 182743.8246 | M44: =M26+M35+M41 -> 10973611.08 | N44: =N26+N35+N41 -> 12588802.03 | O44: =O26+O35+O41 -> 13929982.98 | P44: 9562951.886 | Q44: =Q26+Q35+Q41 -> 831525.3673 | R44: =R26+R35+R41 -> 395166369.1 | T44: =T26+T35+T41 -> 395166369.1 | U44: =U26+U35+U41 -> 395166369.1 | V44: =U44-T44 -> 0
A47: =+A44+1 -> 26 | B47: NET OPERATING INCOME | F47: =+F21-F44 -> 159312871.4 | G47: =+G21-G44 -> 141285563.8 | H47: =+H21-H44 -> 0 | I47: =+I21-I44 -> 0 | J47: 0 | K47: 1327624.078 | L47: =+L21-L44 -> 16908.69524 | M47: =+M21-M44 -> 2727100.578 | N47: =+N21-N44 -> 5382327.871 | O47: =+O21-O44 -> 7666716.195 | P47: =+P21-P44 -> 64603.09936 | Q47: 842027.0599 | R47: =+R21-R44 -> 159312871.4 | T47: =+T21-T44 -> 159312871.4 | U47: =+U21-U44 -> 159312871.4 | V47: =U47-T47 -> 0
A50: =+A47+1 -> 27 | B50: RATE BASE SUMMARY
A52: =+A50+1 -> 28 | B52: Net Utility Plant
A53: =+A52+1 -> 29 | C53: 101 | D53: Gas Plant In Service | F53: =SUM(G53,K53:Q53) -> 5160274005 | G53: ='COS Detail'!H1149 -> 4490861595 | H53: ='COS Detail'!I1149 -> 0 | I53: ='COS Detail'!J1149 -> 0 | J53: ='COS Detail'!K1149 -> 0 | K53: ='COS Detail'!L1149 -> 32159207.43 | L53: ='COS Detail'!M1149 -> 2353796.548 | M53: ='COS Detail'!N1149 -> 138930682.8 | N53: ='COS Detail'!O1149 -> 161437577.5 | O53: ='COS Detail'!P1149 -> 170550197.6 | P53: ='COS Detail'!Q1149 -> 144387436 | Q53: ='COS Detail'!R1149 -> 19593512.26 | R53: ='COS Detail'!S1149 -> 5160274005 | T53: =SUM(K53:Q53)+G53 -> 5160274005 | U53: =Report!J51 -> 5160274005 | V53: =U53-T53 -> 0
A54: 30 | C54: 105 | D54: Gas Plant Held For Future Use | F54: 0 | G54: ='COS Detail'!H1153 -> 0 | H54: ='COS Detail'!I1153 -> 0 | I54: ='COS Detail'!J1153 -> 0 | J54: ='COS Detail'!K1153 -> 0 | K54: ='COS Detail'!L1153 -> 0 | L54: ='COS Detail'!M1153 -> 0 | M54: ='COS Detail'!N1153 -> 0 | N54: ='COS Detail'!O1153 -> 0 | O54: ='COS Detail'!P1153 -> 0 | P54: ='COS Detail'!Q1153 -> 0 | Q54: ='COS Detail'!R1153 -> 0 | R54: ='COS Detail'!S1153 -> 0 | T54: 0 | U54: =Report!J52 -> 0 | V54: 0
A55: 31 | C55: 106 | D55: Completed Construction Not Classified | F55: 0 | G55: ='COS Detail'!H1160 -> 0 | H55: ='COS Detail'!I1160 -> 0 | I55: ='COS Detail'!J1160 -> 0 | J55: ='COS Detail'!K1160 -> 0 | K55: ='COS Detail'!L1160 -> 0 | L55: ='COS Detail'!M1160 -> 0 | M55: ='COS Detail'!N1160 -> 0 | N55: ='COS Detail'!O1160 -> 0 | O55: ='COS Detail'!P1160 -> 0 | P55: ='COS Detail'!Q1160 -> 0 | Q55: ='COS Detail'!R1160 -> 0 | R55: ='COS Detail'!S1160 -> 0 | T55: 0 | U55: =Report!J53 -> 0 | V55: 0
A56: 32 | C56: 108 | D56: Accumulated Depreciation | F56: -1253240257 | G56: ='COS Detail'!H1168 -> -1095332071 | H56: ='COS Detail'!I1168 -> 0 | I56: ='COS Detail'!J1168 -> 0 | J56: ='COS Detail'!K1168 -> 0 | K56: ='COS Detail'!L1168 -> -7932831.98 | L56: ='COS Detail'!M1168 -> -570154.8545 | M56: ='COS Detail'!N1168 -> -33652867.46 | N56: ='COS Detail'!O1168 -> -39104662.02 | O56: ='COS Detail'!P1168 -> -41311991.54 | P56: ='COS Detail'!Q1168 -> -34974644.52 | Q56: ='COS Detail'!R1168 -> -361033.3753 | R56: ='COS Detail'!S1168 -> -1253240257 | T56: -1253240257 | U56: =Report!J54 -> -1253240257 | V56: 0
A57: =+A56+1 -> 33 | C57: 111 | D57: Accumulated Amort & Depletion | F57: -25100020.32 | G57: ='COS Detail'!H1175 -> -22424733.44 | H57: ='COS Detail'!I1175 -> 0 | I57: ='COS Detail'!J1175 -> 0 | J57: ='COS Detail'!K1175 -> 0 | K57: ='COS Detail'!L1175 -> -215387.7191 | L57: ='COS Detail'!M1175 -> -9329.561678 | M57: ='COS Detail'!N1175 -> -550668.8229 | N57: ='COS Detail'!O1175 -> -639877.6637 | O57: ='COS Detail'!P1175 -> -675996.6526 | P57: ='COS Detail'!Q1175 -> -572297.3341 | Q57: ='COS Detail'!R1175 -> -11729.13211 | R57: ='COS Detail'!S1175 -> -25100020.32 | T57: -25100020.32 | U57: =Report!J55 -> -25100020.32 | V57: 0
A58: 34 | C58: 254 | D58: Other Regulatory Liabilities | F58: -432939410.5 | G58: ='COS Detail'!H1182 -> -375581084.9 | H58: ='COS Detail'!I1182 -> 0 | I58: ='COS Detail'!J1182 -> 0 | J58: ='COS Detail'!K1182 -> 0 | K58: ='COS Detail'!L1182 -> -2415489.224 | L58: ='COS Detail'!M1182 -> -208974.8749 | M58: ='COS Detail'!N1182 -> -12334550.36 | N58: ='COS Detail'!O1182 -> -14332758.53 | O58: ='COS Detail'!P1182 -> -15141795.6 | P58: ='COS Detail'!Q1182 -> -12819012.08 | Q58: ='COS Detail'!R1182 -> -105744.9074 | R58: ='COS Detail'!S1182 -> -432939410.5 | T58: -432939410.5 | U58: =Report!J56 -> -432939410.5 | V58: 0
A59: =+A58+1 -> 35 | C59: Total Net Utility Plant | F59: =SUM(F53:F58) -> 3448994317 | G59: =SUM(G53:G58) -> 2997523706 | H59: =SUM(H53:H58) -> 0 | I59: =SUM(I53:I58) -> 0 | J59: =SUM(J53:J58) -> 0 | K59: =SUM(K53:K58) -> 21595498.5 | L59: 1565337.257 | M59: 92392596.2 | N59: 107360279.2 | O59: 113420413.8 | P59: 96021482.05 | Q59: 19115004.85 | R59: 3448994317 | T59: =SUM(T53:T58) -> 3448994317 | U59: =SUM(U53:U58) -> 3448994317 | V59: =U59-T59 -> 0
A61: =+A59+1 -> 36 | B61: Other Rate Base Accounts
A62: =+A61+1 -> 37 | C62: 154 | D62: Materials & Supplies | F62: =SUM(G62,K62:Q62) -> 39098520.36 | G62: ='COS Detail'!H1201 -> 33954290.2 | H62: ='COS Detail'!I1201 -> 0 | I62: ='COS Detail'!J1201 -> 0 | J62: ='COS Detail'!K1201 -> 0 | K62: ='COS Detail'!L1201 -> 222287.106 | L62: ='COS Detail'!M1201 -> 18719.12546 | M62: ='COS Detail'!N1201 -> 1104879.215 | N62: ='COS Detail'!O1201 -> 1283870.634 | O62: ='COS Detail'!P1201 -> 1356340.907 | P62: ='COS Detail'!Q1201 -> 1148275.339 | Q62: ='COS Detail'!R1201 -> 9857.840166 | R62: ='COS Detail'!S1201 -> 39098520.36 | T62: =SUM(K62:Q62)+G62 -> 39098520.36 | U62: =Report!J60 -> 39098520.36 | V62: =U62-T62 -> 0
A63: 38 | C63: 164-1 | D63: Gas Stored Underground | F63: 0 | G63: ='COS Detail'!H1205 -> 0 | H63: ='COS Detail'!I1205 -> 0 | I63: ='COS Detail'!J1205 -> 0 | J63: ='COS Detail'!K1205 -> 0 | K63: ='COS Detail'!L1205 -> 0 | L63: ='COS Detail'!M1205 -> 0 | M63: ='COS Detail'!N1205 -> 0 | N63: ='COS Detail'!O1205 -> 0 | O63: ='COS Detail'!P1205 -> 0 | P63: ='COS Detail'!Q1205 -> 0 | Q63: ='COS Detail'!R1205 -> 0 | R63: ='COS Detail'!S1205 -> 0 | T63: 0 | U63: =Report!J61 -> 0 | V63: 0
A64: 39 | C64: 165 | D64: Prepayments | F64: 4829118.133 | G64: ='COS Detail'!H1209 -> 4193746.386 | H64: ='COS Detail'!I1209 -> 0 | I64: ='COS Detail'!J1209 -> 0 | J64: ='COS Detail'!K1209 -> 0 | K64: ='COS Detail'!L1209 -> 27455.02092 | L64: ='COS Detail'!M1209 -> 2312.027855 | M64: ='COS Detail'!N1209 -> 136465.324 | N64: ='COS Detail'!O1209 -> 158572.8283 | O64: ='COS Detail'!P1209 -> 167523.7428 | P64: ='COS Detail'!Q1209 -> 141825.2458 | Q64: ='COS Detail'!R1209 -> 1217.556937 | R64: ='COS Detail'!S1209 -> 4829118.133 | T64: 4829118.133 | U64: =Report!J62 -> 4829118.133 | V64: 0
A65: 40 | C65: 190008 | D65: Accum Deferred Income Tax Federal | F65: 49358107.74 | G65: ='COS Detail'!H1216 -> 42864013.74 | H65: ='COS Detail'!I1216 -> 0 | I65: ='COS Detail'!J1216 -> 0 | J65: ='COS Detail'!K1216 -> 0 | K65: ='COS Detail'!L1216 -> 280616.0138 | L65: ='COS Detail'!M1216 -> 23631.08892 | M65: ='COS Detail'!N1216 -> 1394803.354 | N65: ='COS Detail'!O1216 -> 1620762.742 | O65: ='COS Detail'!P1216 -> 1712249.466 | P65: ='COS Detail'!Q1216 -> 1449586.771 | Q65: ='COS Detail'!R1216 -> 12444.57162 | R65: ='COS Detail'!S1216 -> 49358107.74 | T65: 49358107.74 | U65: =Report!J63 -> 49358107.74 | V65: 0
A66: 41 | C66: 190008 | D66: Accum Deferred Income Tax State | F66: 10735309.66 | G66: ='COS Detail'!H1223 -> 9322854.574 | H66: ='COS Detail'!I1223 -> 0 | I66: ='COS Detail'!J1223 -> 0 | J66: ='COS Detail'!K1223 -> 0 | K66: ='COS Detail'!L1223 -> 61033.53512 | L66: ='COS Detail'!M1223 -> 5139.724123 | M66: ='COS Detail'!N1223 -> 303367.5033 | N66: ='COS Detail'!O1223 -> 352513.3095 | O66: ='COS Detail'!P1223 -> 372411.5261 | P66: ='COS Detail'!Q1223 -> 315282.8091 | Q66: ='COS Detail'!R1223 -> 2706.674466 | R66: ='COS Detail'!S1223 -> 10735309.66 | T66: 10735309.66 | U66: =Report!J64 -> 10735309.66 | V66: 0
A67: 42 | C67: 235-1 | D67: Customer Deposits | F67: -3704161.943 | G67: ='COS Detail'!H1228 -> -3698912.595 | H67: ='COS Detail'!I1228 -> 0 | I67: ='COS Detail'!J1228 -> 0 | J67: ='COS Detail'!K1228 -> 0 | K67: ='COS Detail'!L1228 -> -1321.450318 | L67: ='COS Detail'!M1228 -> -45.56725234 | M67: ='COS Detail'!N1228 -> -2961.871402 | N67: ='COS Detail'!O1228 -> -723.0004038 | O67: ='COS Detail'!P1228 -> -109.3614056 | P67: ='COS Detail'!Q1228 -> -24.30253458 | Q67: ='COS Detail'!R1228 -> -63.79415327 | R67: ='COS Detail'!S1228 -> -3704161.943 | T67: -3704161.943 | U67: =Report!J65 -> -3704161.943 | V67: 0
A68: 43 | C68: 252 | D68: Misc Customer Credits | F68: 0 | G68: ='COS Detail'!H1233 -> 0 | H68: ='COS Detail'!I1233 -> 0 | I68: ='COS Detail'!J1233 -> 0 | J68: ='COS Detail'!K1233 -> 0 | K68: ='COS Detail'!L1233 -> 0 | L68: ='COS Detail'!M1233 -> 0 | M68: ='COS Detail'!N1233 -> 0 | N68: ='COS Detail'!O1233 -> 0 | O68: ='COS Detail'!P1233 -> 0 | P68: ='COS Detail'!Q1233 -> 0 | Q68: ='COS Detail'!R1233 -> 0 | R68: ='COS Detail'!S1233 -> 0 | T68: 0 | U68: =Report!J66 -> 0 | V68: =U68-T68 -> 0
A69: 44 | C69: 253-1 | D69: Unclaimed Customer Deposits | F69: -122891.161 | G69: ='COS Detail'!H1237 -> -122717.006 | H69: ='COS Detail'!I1237 -> 0 | I69: ='COS Detail'!J1237 -> 0 | J69: ='COS Detail'!K1237 -> 0 | K69: ='COS Detail'!L1237 -> -43.84110799 | L69: ='COS Detail'!M1237 -> -1.511762345 | M69: ='COS Detail'!N1237 -> -98.2645524 | N69: ='COS Detail'!O1237 -> -23.9866292 | O69: ='COS Detail'!P1237 -> -3.628229627 | P69: ='COS Detail'!Q1237 -> -0.8062732504 | Q69: ='COS Detail'!R1237 -> -2.116467282 | R69: ='COS Detail'!S1237 -> -122891.161 | T69: -122891.161 | U69: =Report!J67 -> -122891.161 | V69: =U69-T69 -> 0
A70: 45 | C70: 255 | D70: Deferred Investment Tax Credits | F70: 0 | G70: ='COS Detail'!H1244 -> 0 | H70: ='COS Detail'!I1244 -> 0 | I70: ='COS Detail'!J1244 -> 0 | J70: ='COS Detail'!K1244 -> 0 | K70: ='COS Detail'!L1244 -> 0 | L70: ='COS Detail'!M1244 -> 0 | M70: ='COS Detail'!N1244 -> 0 | N70: ='COS Detail'!O1244 -> 0 | O70: ='COS Detail'!P1244 -> 0 | P70: ='COS Detail'!Q1244 -> 0 | Q70: ='COS Detail'!R1244 -> 0 | R70: ='COS Detail'!S1244 -> 0 | T70: 0 | U70: =Report!J68 -> 0 | V70: =U70-T70 -> 0
A71: 46 | C71: 282 | D71: Accum Deferred Income Taxes | F71: -346626799 | G71: ='COS Detail'!H1252+'COS Detail'!H1260+'COS Detail'!H1264 -> -302106425.7 | H71: ='COS Detail'!I1252+'COS Detail'!I1260+'COS Detail'!I1264 -> 0 | I71: ='COS Detail'!J1252+'COS Detail'!J1260+'COS Detail'!J1264 -> 0 | J71: ='COS Detail'!K1252+'COS Detail'!K1260+'COS Detail'!K1264 -> 0 | K71: ='COS Detail'!L1252+'COS Detail'!L1260+'COS Detail'!L1264 -> -2095396.779 | L71: ='COS Detail'!M1252+'COS Detail'!M1260+'COS Detail'!M1264 -> -161350.5984 | M71: ='COS Detail'!N1252+'COS Detail'!N1260+'COS Detail'!N1264 -> -9523571.116 | N71: ='COS Detail'!O1252+'COS Detail'!O1260+'COS Detail'!O1264 -> -11066398.14 | O71: ='COS Detail'!P1252+'COS Detail'!P1260+'COS Detail'!P1264 -> -11691059.9 | P71: ='COS Detail'!Q1252+'COS Detail'!Q1260+'COS Detail'!Q1264 -> -9897626.548 | Q71: ='COS Detail'!R1252+'COS Detail'!R1260+'COS Detail'!R1264 -> -84970.23078 | R71: ='COS Detail'!S1252+'COS Detail'!S1260+'COS Detail'!S1264 -> -346626799 | T71: -346626799 | U71: =Report!J69 -> -346626799 | V71: =U71-T71 -> 0
A72: 47 | D72: Working Capital - Cash | F72: 23961097.31 | G72: ='COS Detail'!H1306 -> 20808512.55 | H72: ='COS Detail'!I1306 -> 0 | I72: ='COS Detail'!J1306 -> 0 | J72: ='COS Detail'!K1306 -> 0 | K72: ='COS Detail'!L1306 -> 136226.2032 | L72: ='COS Detail'!M1306 -> 11471.80974 | M72: ='COS Detail'!N1306 -> 677113.0503 | N72: ='COS Detail'!O1306 -> 786805.9687 | O72: ='COS Detail'!P1306 -> 831218.5771 | P72: ='COS Detail'!Q1306 -> 703707.8865 | Q72: ='COS Detail'!R1306 -> 6041.268706 | R72: ='COS Detail'!S1306 -> 23961097.31 | T72: 23961097.31 | U72: =Report!J71 -> 23961097.31 | V72: =U72-T72 -> 0
A73: 48 | C73: Total Other Rate Base Accounts | F73: =SUM(F62:F72) -> -222471698.9 | G73: =SUM(G62:G72) -> -194784637.8 | H73: =SUM(H62:H72) -> 0 | I73: 0 | J73: 0 | K73: -1369144.191 | L73: -100123.9014 | M73: -5910002.806 | N73: -6864619.641 | O73: -7251428.673 | P73: -6138973.606 | Q73: -52768.22951 | R73: =SUM(R62:R72) -> -222471698.9 | T73: =SUM(T62:T72) -> -222471698.9 | U73: =SUM(U62:U72) -> -222471698.9 | V73: =SUM(V62:V72) -> 0
A76: =+A73+1 -> 49 | B76: TOTAL RATE BASE | F76: =F59+F73 -> 3226522619 | G76: =G59+G73 -> 2802739068 | H76: =H59+H73 -> 0 | I76: 0 | J76: 0 | K76: 20226354.31 | L76: 1465213.356 | M76: 86482593.4 | N76: 100495659.6 | O76: 106168985.1 | P76: 89882508.44 | Q76: 19062236.62 | R76: =R59+R73 -> 3226522619 | T76: =T59+T73 -> 3226522619 | U76: =U59+U73 -> 3226522619 | V76: =U76-T76 -> 0
A79: =A76+1 -> 50 | B79: Return On Rate Base- Actual | F79: =Report!J78 -> 0.04937602808 | G79: =IF(G76=0,0,G47/G76) -> 0.05040981712 | H79: =IF(H76=0,0,H47/H76) -> 0 | I79: 0 | J79: 0 | K79: 0.06563832796 | L79: =IF(L76=0,0,L47/L76) -> 0.01154009085 | M79: =IF(M76=0,0,M47/M76) -> 0.03153351988 | N79: =IF(N76=0,0,N47/N76) -> 0.05355781426 | O79: =IF(O76=0,0,O47/O76) -> 0.07221239034 | P79: =IF(P76=0," ",P47/P76) -> 0.0007187505164 | Q79: =IF(Q76=0," ",Q47/Q76) -> 0.04417252166 | R79: =IF(R76=0," ",R47/R76) -> 0.04937602808 | T79: =IF(T76=0," ",T47/T76) -> 0.04937602808 | U79: =IF(U76=0," ",U47/U76) -> 0.04937602808 | V79: =IF(V76=0," ",V47/V76) -> 
A81: =+A79+1 -> 51 | B81: Return On Equity - Actual | F81: =Report!J80 -> 0.05550684268 | G81: =IF(G79=" "," ",((G79-'Capital Str'!$F$7)/'Capital Str'!$D$9)) -> 0.05745739729 | H81: =IF(H79=" "," ",((H79-'Capital Str'!$F$7)/'Capital Str'!$D$9)) -> -0.03765591644 | I81: =IF(I79=" "," ",((I79-'Capital Str'!$F$7)/'Capital Str'!$D$9)) -> -0.03765591644 | J81: =IF(J79=" "," ",((J79-'Capital Str'!$F$7)/'Capital Str'!$D$9)) -> -0.03765591644 | K81: =IF(K79=" "," ",((K79-'Capital Str'!$F$7)/'Capital Str'!$D$9)) -> 0.08619057292 | L81: =IF(L79=" "," ",((L79-'Capital Str'!$F$7)/'Capital Str'!$D$9)) -> -0.01588205681 | M81: =IF(M79=" "," ",((M79-'Capital Str'!$F$7)/'Capital Str'!$D$9)) -> 0.02184157315 | N81: =IF(N79=" "," ",((N79-'Capital Str'!$F$7)/'Capital Str'!$D$9)) -> 0.06339704271 | O81: =IF(O79=" "," ",((O79-'Capital Str'!$F$7)/'Capital Str'!$D$9)) -> 0.09859452305 | P81: =IF(P79=" "," ",((P79-'Capital Str'!$F$7)/'Capital Str'!$D$9)) -> -0.03629977695 | Q81: =IF(Q79=" "," ",((Q79-'Capital Str'!$F$7)/'Capital Str'!$D$9)) -> 0.04568885946 | R81: =IF(R79=" "," ",((R79-'Capital Str'!$F$7)/'Capital Str'!$D$9)) -> 0.05550684268 | T81: =IF(T79=" "," ",((T79-'Capital Str'!$F$7)/'Capital Str'!$D$9)) -> 0.05550684268 | U81: =IF(U79=" "," ",((U79-'Capital Str'!$F$7)/'Capital Str'!$D$9)) -> 0.05550684268 | V81: =IF(V79=" "," ",((V79-'Capital Str'!$F$7)/'Capital Str'!$D$9)) -> 
A84: =A81+1 -> 52 | B84: Cost of Service (Line 25 + Line 26) | F84: =F44+F47 -> 554479240.5 | G84: =G44+G47 -> 485982315.6 | H84: =H44+H47 -> 0 | I84: 0 | J84: 0 | K84: =K44+K47 -> 3727624.181 | L84: 199652.5199 | M84: 13700711.66 | N84: 17971129.9 | O84: 21596699.18 | P84: 9627554.985 | Q84: 1673552.427 | R84: 554479240.5 | T84: =SUM(K84:Q84)+G84 -> 554479240.5 | U84: =Report!J42+Report!J45 -> 554479240.5 | V84: =U84-T84 -> 0
A86: =A84+1 -> 53 | B86: Deficiency (((Line 49 * Line 59) - Line 26) * Tax Factor) | F86: =(($F96*F76)-F47)*-'ROR-Model'!$F$1394 -> 114669748.9 | G86: =(($F96*G76)-G47)*-'ROR-Model'!$F$1394 -> 95760707.3 | H86: =(($F96*H76)-H47)*-'ROR-Model'!$F$1394 -> 0 | I86: =(($F96*I76)-I47)*-'ROR-Model'!$F$1394 -> 0 | J86: =(($F96*J76)-J47)*-'ROR-Model'!$F$1394 -> 0 | K86: =(($F96*K76)-K47)*-'ROR-Model'!$F$1394 -> 282014.3098 | L86: =(($F96*L76)-L47)*-'ROR-Model'!$F$1394 -> 125696.2331 | M86: =(($F96*M76)-M47)*-'ROR-Model'!$F$1394 -> 5122806.277 | N86: =(($F96*N76)-N47)*-'ROR-Model'!$F$1394 -> 3013482.484 | O86: =(($F96*O76)-O47)*-'ROR-Model'!$F$1394 -> 553391.291 | P86: =(($F96*P76)-P47)*-'ROR-Model'!$F$1394 -> 9002456.329 | Q86: =(($F96*Q76)-Q47)*-'ROR-Model'!$F$1394 -> 809194.6769 | R86: =SUM(G86,K86:Q86) -> 114669748.9 | T86: =(($F96*T76)-T47)*-'ROR-Model'!$F$1394 -> 114669748.9 | U86: =Report!K13 -> 114669748.9 | V86: =U86-T86 -> 0
A88: =A86+1 -> 54 | B88: TBF Subsidy COS Adjustment | F88: =SUM(G88,K88:Q88) -> 6.029949873e-10 | G88: ='COS Input'!D51 -> 6054499.457 | H88: ='COS Input'!E51 -> 0 | I88: ='COS Input'!F51 -> 0 | J88: ='COS Input'!G51 -> 0 | K88: ='COS Input'!H51 -> 64425.97065 | L88: ='COS Input'!I51 -> 3640.261596 | M88: ='COS Input'!J51 -> 373569.4175 | N88: ='COS Input'!K51 -> 413604.0211 | O88: ='COS Input'!L51 -> 539406.7226 | P88: ='COS Input'!M51 -> -7452004.525 | Q88: ='COS Input'!N51 -> 2858.674704 | R88: =SUM(G88,K88:Q88) -> 6.029949873e-10
A90: =A88+1 -> 55 | B90: NGV Subsidy COS Adjustment | F90: =SUM(G90,K90:Q90) -> 0 | G90: ='COS Input'!D55 -> 780780.4381 | H90: ='COS Input'!E55 -> 0 | I90: ='COS Input'!F55 -> 0 | J90: ='COS Input'!G55 -> 0 | K90: ='COS Input'!H55 -> 6022.919446 | L90: ='COS Input'!I55 -> 321.278287 | M90: ='COS Input'!J55 -> 22002.8459 | N90: ='COS Input'!K55 -> 28946.32063 | O90: ='COS Input'!L55 -> 34810.35882 | P90: ='COS Input'!M55 -> 15257.57295 | Q90: ='COS Input'!N55 -> -888141.7342 | R90: =SUM(G90,K90:Q90) -> 0
A93: =+A90+1 -> 56 | B93: Total Cost Of Service incl./Deficiency | F93: =F84+F86+F88 -> 669148989.4 | G93: =G84+G86+G88+G90 -> 588578302.8 | H93: =H84+H86+H88+H90 -> 0 | I93: =I84+I86+I88+I90 -> 0 | J93: 0 | K93: 4080087.381 | L93: 329310.2929 | M93: 19219090.2 | N93: 21427162.72 | O93: 22724307.55 | P93: 11193264.36 | Q93: =Q84+Q86+Q88+Q90 -> 1597464.045 | R93: =R84+R86+R88+R90 -> 669148989.4 | T93: =T86+T47+T44 -> 669148989.4 | U93: =U86+U47+U44 -> 669148989.4 | V93: =U93-T93 -> 0
A94: =A93+1 -> 57 | B94: General Related Revenue Class Allocation | F94: =F20 -> 12504032.64 | G94: =G20 -> 11243907.68 | H94: 0 | I94: 0 | J94: 0 | K94: 60510.43075 | L94: 3981.692517 | M94: 265112.2165 | N94: 317576.6538 | O94: 354992.3973 | P94: 243833.0014 | Q94: 14118.56678 | R94: 12504032.64
A95: =A94+1 -> 58 | B95: Revenue Requirement | F95: =F93-F94 -> 656644956.7 | G95: =G93-G94 -> 577334395.2 | H95: =H93-H94 -> 0 | I95: 0 | J95: 0 | K95: 4019576.95 | L95: 325328.6004 | M95: 18953977.98 | N95: 21109586.07 | O95: 22369315.16 | P95: =P93-P94 -> 10949431.36 | Q95: 1583345.478 | R95: 656644956.7 | W95: Net Cost of Service Collected in Rates
A96: =A95+1 -> 59 | B96: Return On Rate Base - Allowed | F96: =Report!$L$78 -> 0.0761372745 | G96: =$F$96 -> 0.0761372745 | H96: =$F$96 -> 0.0761372745 | I96: 0.0761372745 | J96: 0.0761372745 | K96: 0.0761372745 | L96: 0.0761372745 | M96: 0.0761372745 | N96: 0.0761372745 | O96: 0.0761372745 | P96: 0.0761372745 | Q96: 0.0761372745 | R96: 0.0761372745
A97: =A96+1 -> 60 | B97: Return On Equity - Allowed | F97: =Report!$L$80 -> 0.106 | G97: =$F$97 -> 0.106 | H97: 0.106 | I97: 0.106 | J97: 0.106 | K97: 0.106 | L97: 0.106 | M97: 0.106 | N97: 0.106 | O97: 0.106 | P97: 0.106 | Q97: 0.106 | R97: 0.106
B102: Description | F102: DNG Related | G102: GS | H102: GSS | I102: GSM | J102: GSL | K102: FS | L102: IS | M102: TSS | N102: TSM | O102: TSL | P102: TBF | Q102: NGV | R102: Total
B103: Enbridge Revenue Requirement | F103: 656644956.7 | G103: 566512816.2 | H103: 0 | I103: 0 | J103: 0 | K103: 4299447.874 | L103: 327075.9691 | M103: 18853431.18 | N103: 23410351.59 | O103: 27876422.45 | P103: 13762947.54 | Q103: 1602463.907 | R103: 656644956.7
B104: Nucor Revenue Requirement | F104: =F95 -> 656644956.7 | G104: =G95 -> 577334395.2 | H104: 0 | I104: 0 | J104: 0 | K104: 4019576.95 | L104: 325328.6004 | M104: 18953977.98 | N104: 21109586.07 | O104: 22369315.16 | P104: 10949431.36 | Q104: 1583345.478 | R104: 656644956.7
B105: Difference | F105: =F104-F103 -> 0 | G105: =G104-G103 -> 10821578.93 | H105: 0 | I105: 0 | J105: 0 | K105: -279870.9236 | L105: -1747.368703 | M105: 100546.8029 | N105: -2300765.524 | O105: -5507107.298 | P105: -2813516.185 | Q105: -19118.42901 | R105: 0
N118: 0
N120: =N118-N117 -> 0
N122: =N117/$F$117 -> 
N123: =N118/$F$118 -> 

Sheet COS Input
A1: ='Control Panel'!$B$1 -> Enbridge Gas Utah
A2: Avg Proj Rev 2023
A3: ='Control Panel'!$B$3 -> 12 Months Ended : Dec-2026
A4: ='Control Panel'!$B$4 -> Capital Structure : AVG CAP STR DEC 26 | D4: TBF (N)
B8: % Breakdown in "Design Day-Throughput" allocation factor | M8: Design Day | N8: Throughput
M9: 0.6 | N9: =1-M9 -> 0.4
M10: =ROUND(M9*100,0)&"%" -> 60% | N10: =ROUND(N9*100,0)&"%" -> 40%
B11: % Breakdown in "Customer-DNG Revenue" allocation factor | M11: Customers | N11: DNG Revenue
L12: =L15*30 -> 2227830 | M12: 0.75 | N12: =1-M12 -> 0.25
A13: Allocation Factor | M13: =M12*100&"%" -> 75% | N13: =N12*100&"%" -> 25%
A14: # | B14: Data Description | D14: GS | E14: GSS | F14: GSM | G14: GSL | H14: FS | I14: IS | J14: TSS | K14: TSM | L14: TSL | M14: TBF | N14: NGV | O14: Total
A15: ='COS Alloc Factors'!B30 -> 210 | B15: ='COS Alloc Factors'!C30 -> Design Day | D15: =VLOOKUP($D$4,Alloc_Design_Day,D67,FALSE) -> 1246311.866 | E15: 0 | F15: 0 | G15: 0 | H15: 11372.26275 | I15: 0 | J15: 75461 | K15: 68514 | L15: 74261 | M15: 107032 | N15: 395.8709677 | O15: =SUM(H15:N15)+D15 -> 1583348
B17: ='COS Alloc Factors'!C32 -> Peak Day | D17: =VLOOKUP($D$4,Alloc_Peak_Day,D67,FALSE) -> 766845.5918 | E17: 0 | F17: 0 | G17: 0 | H17: 11316.50687 | I17: 1622 | J17: 41430 | K17: 57406 | L17: 79796 | M17: 27609 | N17: 596.7039032 | O17: =SUM(H17:N17)+D17 -> 986621.8025
A19: 220 | B19: Throughput | D19: =SUMIFS('Proposed Block Out 10yr'!$F:$F,'Proposed Block Out 10yr'!$D:$D,"UTGS") -> 117706908 | E19: =SUMIFS('Proposed Block Out 10yr'!$F:$F,'Proposed Block Out 10yr'!$D:$D,"UTGSS") -> 0 | F19: =SUMIFS('Proposed Block Out 10yr'!$F:$F,'Proposed Block Out 10yr'!$D:$D,"UTGSM") -> 0 | G19: =SUMIFS('Proposed Block Out 10yr'!$F:$F,'Proposed Block Out 10yr'!$D:$D,"UTGSL") -> 0 | H19: =SUMIFS('Proposed Block Out 10yr'!$F:$F,'Proposed Block Out 10yr'!$D:$D,"UTFS") -> 2237764 | I19: =SUMIFS('Proposed Block Out 10yr'!$F:$F,'Proposed Block Out 10yr'!$D:$D,"UTIS") -> 219710 | J19: =SUMIFS('Proposed Block Out 10yr'!$F:$F,'Proposed Block Out 10yr'!$D:$D,"UTTSS") -> 8447025 | K19: =SUMIFS('Proposed Block Out 10yr'!$F:$F,'Proposed Block Out 10yr'!$D:$D,"UTTSM")+SUMIFS('Proposed Block Out 10yr'!$F:$F,'Proposed Block Out 10yr'!$D:$D,"UTMT") -> 15999931 | L19: =SUMIFS('Proposed Block Out 10yr'!$F:$F,'Proposed Block Out 10yr'!$D:$D,"UTTSL") -> 27678714 | M19: =SUMIFS('Proposed Block Out 10yr'!$F:$F,'Proposed Block Out 10yr'!$D:$D,"UTFT1") -> 18422902 | N19: =SUMIFS('Proposed Block Out 10yr'!$F:$F,'Proposed Block Out 10yr'!$D:$D,"UTNGV") -> 145818 | O19: =SUM(H19:N19)+D19 -> 190858772
B20: Winter Throughput | D20: =SUMIFS('Proposed Block Out 10yr'!$F:$F,'Proposed Block Out 10yr'!$D:$D,"UTGS",'Proposed Block Out 10yr'!$R:$R,1) -> 85598847 | E20: =SUMIFS('Proposed Block Out 10yr'!$F:$F,'Proposed Block Out 10yr'!$D:$D,"UTGSS") -> 0 | F20: =SUMIFS('Proposed Block Out 10yr'!$F:$F,'Proposed Block Out 10yr'!$D:$D,"UTGSM") -> 0 | G20: =SUMIFS('Proposed Block Out 10yr'!$F:$F,'Proposed Block Out 10yr'!$D:$D,"UTGSL") -> 0 | H20: =SUMIFS('Proposed Block Out 10yr'!$F:$F,'Proposed Block Out 10yr'!$D:$D,"UTFS",'Proposed Block Out 10yr'!$R:$R,1) -> 1122662 | I20: =SUMIFS('Proposed Block Out 10yr'!$F:$F,'Proposed Block Out 10yr'!$D:$D,"UTIS",'Proposed Block Out 10yr'!$R:$R,1) -> 135453 | J20: =SUMIFS('Proposed Block Out 10yr'!$F:$F,'Proposed Block Out 10yr'!$D:$D,"UTTSS",'Proposed Block Out 10yr'!$R:$R,1) -> 5442699 | K20: =SUMIFS('Proposed Block Out 10yr'!$F:$F,'Proposed Block Out 10yr'!$D:$D,"UTTSM",'Proposed Block Out 10yr'!$R:$R,1)+SUMIFS('Proposed Block Out 10yr'!$F:$F,'Proposed Block Out 10yr'!$D:$D,"UTMT",'Proposed Block Out 10yr'!$R:$R,1) -> 7710997 | L20: =SUMIFS('Proposed Block Out 10yr'!$F:$F,'Proposed Block Out 10yr'!$D:$D,"UTTSL",'Proposed Block Out 10yr'!$R:$R,1) -> 11747950 | M20: =SUMIFS('Proposed Block Out 10yr'!$F:$F,'Proposed Block Out 10yr'!$D:$D,"UTFT1",'Proposed Block Out 10yr'!$R:$R,1) -> 6487626 | N20: =SUMIFS('Proposed Block Out 10yr'!$F:$F,'Proposed Block Out 10yr'!$D:$D,"UTNGV",'Proposed Block Out 10yr'!$R:$R,1) -> 62001 | O20: =SUM(H20:N20)+D20 -> 118308235
A22: 250 | B22: Distribution Throughput | D22: =VLOOKUP($D$4,Alloc_Dist_Throu,D67,FALSE) -> 117381146.8 | E22: 0 | F22: 0 | G22: 0 | H22: 2206320 | I22: 207683 | J22: 8204982 | K22: 9386684 | L22: 4933988 | M22: 1089577 | N22: 145818 | O22: =SUM(H22:N22)+D22 -> 143556198.8
A24: 310 | B24: DNG Revenue | D24: ='ROR-Model'!W16 -> 473032123.8 | E24: 0 | F24: 0 | G24: 0 | H24: ='ROR-Model'!W43 -> 3648957.169 | I24: ='ROR-Model'!W97 -> 194644.9258 | J24: =+'ROR-Model'!W169 -> 13330319.79 | K24: ='ROR-Model'!W142+'ROR-Model'!W178 -> 17536991.01 | L24: =+'ROR-Model'!W187 -> 21089690.73 | M24: ='ROR-Model'!W124 -> 9243728.179 | N24: ='ROR-Model'!W61 -> 1658628.226 | O24: =SUM(H24:N24)+D24 -> 539735083.8
A26: 410 | B26: Customers | D26: =ROUND((SUMIFS('Proposed Block Out 10yr'!$E:$E,'Proposed Block Out 10yr'!$D:$D,"UTGS")/12),0) -> 1217622 | E26: =ROUND((SUMIFS('Proposed Block Out 10yr'!$E:$E,'Proposed Block Out 10yr'!$D:$D,"UTGSS")/12),0) -> 0 | F26: =ROUND((SUMIFS('Proposed Block Out 10yr'!$E:$E,'Proposed Block Out 10yr'!$D:$D,"UTGSM")/12),0) -> 0 | G26: =ROUND((SUMIFS('Proposed Block Out 10yr'!$E:$E,'Proposed Block Out 10yr'!$D:$D,"UTGSL")/12),0) -> 0 | H26: =ROUND((SUMIFS('Proposed Block Out 10yr'!$E:$E,'Proposed Block Out 10yr'!$D:$D,"UTFS")/12),0) -> 435 | I26: =ROUND((SUMIFS('Proposed Block Out 10yr'!$E:$E,'Proposed Block Out 10yr'!$D:$D,"UTIS")/12),0) -> 15 | J26: =ROUND((SUMIFS('Proposed Block Out 10yr'!$E:$E,'Proposed Block Out 10yr'!$D:$D,"UTTSS")/12),0) -> 975 | K26: =ROUND((SUMIFS('Proposed Block Out 10yr'!$E:$E,'Proposed Block Out 10yr'!$D:$D,"UTTSM")/12)+(SUMIFS('Proposed Block Out 10yr'!$E:$E,'Proposed Block Out 10yr'!$D:$D,"UTMT")/12),0) -> 238 | L26: =ROUND((SUMIFS('Proposed Block Out 10yr'!$E:$E,'Proposed Block Out 10yr'!$D:$D,"UTTSL")/12),0) -> 36 | M26: =ROUND((SUMIFS('Proposed Block Out 10yr'!$E:$E,'Proposed Block Out 10yr'!$D:$D,"UTFT1")/12),0) -> 8 | N26: 21 | O26: =SUM(H26:N26)+D26 -> 1219350
A29: ='COS Alloc Factors'!B54 -> 510 | B29: ='COS Alloc Factors'!C54 -> Customer Assistance Expense | D29: =VLOOKUP($D$4,Alloc_Cust_Assist,D67,FALSE) -> 906041.8506 | E29: 0 | F29: 0 | G29: 0 | H29: 52002.30799 | I29: 27334.42304 | J29: 1096741.523 | K29: 267155.3086 | L29: 42181.39917 | M29: 22450.48993 | N29: 128830.228 | O29: =SUM(H29:N29)+D29 -> 2542737.53
A31: 605 | B31: Tools, Shop & Garage Equipment | D31: =D63 -> 24590976.23 | E31: =E63 -> 0 | F31: =F63 -> 0 | G31: 0 | H31: 160988.6971 | I31: =I63 -> 13557.09592 | J31: =J63 -> 800195.155 | K31: 929827.4843 | L31: 982313.1867 | M31: 831624.2629 | N31: 18193957.5 | O31: ='ROR-Model'!W1101 -> 46503439.61
A33: 645 | B33: SD Mains | D33: =VLOOKUP($D$4,Alloc_SD_Mains,D67,FALSE) -> 962560403 | E33: 0 | F33: 0 | G33: 0 | H33: 1272460.61 | I33: 80476.75567 | J33: 3462867.532 | K33: 1321255.488 | L33: 160497.8731 | M33: 42559.66426 | N33: 67610.79373 | O33: =SUM(H33:N33)+D33 -> 968968131.7
A35: ='COS Alloc Factors'!B80 -> 660 | B35: ='COS Alloc Factors'!C80 -> Service Lines | D35: =VLOOKUP($D$4,Alloc_Serv_Lines,D67,FALSE) -> 492049493 | E35: 0 | F35: 0 | G35: 0 | H35: 761424.9845 | I35: 73572.53092 | J35: 2343735.224 | K35: 4529444.801 | L35: 3187937.511 | M35: 348414.183 | N35: 41493.96729 | O35: =SUM(H35:N35)+D35 -> 503335516.2
A37: ='COS Alloc Factors'!B82 -> 670 | B37: ='COS Alloc Factors'!C82 -> Meters & Regulators | D37: =VLOOKUP($D$4,Alloc_Meters_Regs,D67,FALSE) -> 480274624.2 | E37: 0 | F37: 0 | G37: 0 | H37: 2439114.104 | I37: 758748.5436 | J37: 13325866.22 | K37: 21929782.1 | L37: 6588338.66 | M37: 1910535.977 | N37: 0 | O37: =SUM(H37:N37)+D37 -> 527227009.8
H40: Small Diam. | I40: Lg. Diam. | J40: Feeders | K40: Storage | O40: Total
B41: Utah Distribution Mains | D41: =H41+I41+J41 -> 2654337842 | H41: =O33 -> 968968131.7 | I41: 161088665.3 | J41: 1524281045 | K41: ='ROR-Model'!W1032 -> 948673.62 | L41: =SUM(H41:J41) -> 2654337842 | O41: =SUM(H41:J41) -> 2654337842
B42: Ratio to Total | H42: =H41/D41 -> 0.3650507921 | I42: =I41/$O$41 -> 0.06068883274 | J42: =J41/$O$41 -> 0.5742603752
B43: Allocated to total | H43: =H42*$O$43 -> 1100605060 | I43: =I42*$O$43 -> 182972994 | J43: =J42*$O$43 -> 1731358727 | K43: =K41 -> 948673.62 | O43: ='ROR-Model'!W1033 -> 3014936780
B45: Value of TS Peaking Supply | E45: 0
B46: Value of IS Peaking Supply | E46: 0
R47: % of TBF subsidy | S47: 0.4
B48: TBF Subsidy COS Adjustment | R48: % of NGV subsidy | S48: 0.3577254134
C49: ='COS Input'!$M$10&" Design Day "&'COS Input'!$N$10&" Throughput Less TBF" -> 60% Design Day 40% Throughput Less TBF | D49: =-VLOOKUP($C49,range,'COS Alloc Factors'!D$9,FALSE)*$N49 -> 0 | E49: =-VLOOKUP($C49,range,'COS Alloc Factors'!E$9,FALSE)*$N49 -> 0 | F49: =-VLOOKUP($C49,range,'COS Alloc Factors'!F$9,FALSE)*$N49 -> 0 | G49: =-VLOOKUP($C49,range,'COS Alloc Factors'!G$9,FALSE)*$N49 -> 0 | H49: =-VLOOKUP($C49,range,'COS Alloc Factors'!H$9,FALSE)*$N49 -> 0 | I49: =-VLOOKUP($C49,range,'COS Alloc Factors'!I$9,FALSE)*$N49 -> 0 | J49: =-VLOOKUP($C49,range,'COS Alloc Factors'!J$9,FALSE)*$N49 -> 0 | K49: =-VLOOKUP($C49,range,'COS Alloc Factors'!K$9,FALSE)*$N49 -> 0 | L49: =-VLOOKUP($C49,range,'COS Alloc Factors'!L$9,FALSE)*$N49 -> 0 | M49: =-VLOOKUP($C49,range,'COS Alloc Factors'!M$9,FALSE)*$N49 -> 0 | N49: 0 | O49: =SUM(H49:N49,D49) -> 0
B50: % Cost of Service | C50: ='COS Input'!$M$10&" Design Day "&'COS Input'!$N$10&" Throughput Less TBF" -> 60% Design Day 40% Throughput Less TBF | D50: =-VLOOKUP($C50,range,'COS Alloc Factors'!D$9,FALSE)*$M50 -> 6054499.457 | E50: =-VLOOKUP($C50,range,'COS Alloc Factors'!E$9,FALSE)*$M50 -> 0 | F50: =-VLOOKUP($C50,range,'COS Alloc Factors'!F$9,FALSE)*$M50 -> 0 | G50: =-VLOOKUP($C50,range,'COS Alloc Factors'!G$9,FALSE)*$M50 -> 0 | H50: =-VLOOKUP($C50,range,'COS Alloc Factors'!H$9,FALSE)*$M50 -> 64425.97065 | I50: =-VLOOKUP($C50,range,'COS Alloc Factors'!I$9,FALSE)*$M50 -> 3640.261596 | J50: =-VLOOKUP($C50,range,'COS Alloc Factors'!J$9,FALSE)*$M50 -> 373569.4175 | K50: =-VLOOKUP($C50,range,'COS Alloc Factors'!K$9,FALSE)*$M50 -> 413604.0211 | L50: =-VLOOKUP($C50,range,'COS Alloc Factors'!L$9,FALSE)*$M50 -> 539406.7226 | M50: =Q50 -> -7452004.525 | N50: =-VLOOKUP($C50,range,'COS Alloc Factors'!N$9,FALSE)*$M50 -> 2858.674704 | O50: =SUM(H50:N50,D50) -> 0 | Q50: =-S47*SUM('COS Sum'!P84,'COS Sum'!P86) -> -7452004.525
B51: Gradualism Adjustment | C51: ='COS Input'!$M$10&" Design Day "&'COS Input'!$N$10&" Throughput Less TBF" -> 60% Design Day 40% Throughput Less TBF | D51: =SUM(D49:D50) -> 6054499.457 | E51: =SUM(E49:E50) -> 0 | F51: 0 | G51: 0 | H51: 64425.97065 | I51: =SUM(I49:I50) -> 3640.261596 | J51: =SUM(J49:J50) -> 373569.4175 | K51: =SUM(K49:K50) -> 413604.0211 | L51: =SUM(L49:L50) -> 539406.7226 | M51: =SUM(M49:M50) -> -7452004.525 | N51: =SUM(N49:N50) -> 2858.674704 | O51: 0 | S51: 10.98248
O53: Total
B54: NGV Subsidy COS Adjustment
B55: % Cost of Service | C55: DNG Revenue Less NGV | D55: =-VLOOKUP($C55,range,'COS Alloc Factors'!D$9,FALSE)*$N55 -> 780780.4381 | E55: =-VLOOKUP($C55,range,'COS Alloc Factors'!E$9,FALSE)*$N55 -> 0 | F55: =-VLOOKUP($C55,range,'COS Alloc Factors'!F$9,FALSE)*$N55 -> 0 | G55: =-VLOOKUP($C55,range,'COS Alloc Factors'!G$9,FALSE)*$N55 -> 0 | H55: =-VLOOKUP($C55,range,'COS Alloc Factors'!H$9,FALSE)*$N55 -> 6022.919446 | I55: =-VLOOKUP($C55,range,'COS Alloc Factors'!I$9,FALSE)*$N55 -> 321.278287 | J55: =-VLOOKUP($C55,range,'COS Alloc Factors'!J$9,FALSE)*$N55 -> 22002.8459 | K55: =-VLOOKUP($C55,range,'COS Alloc Factors'!K$9,FALSE)*$N55 -> 28946.32063 | L55: =-VLOOKUP($C55,range,'COS Alloc Factors'!L$9,FALSE)*$N55 -> 34810.35882 | M55: =-VLOOKUP($C55,range,'COS Alloc Factors'!M$9,FALSE)*$N55 -> 15257.57295 | N55: =Q55 -> -888141.7342 | O55: =SUM(H55:N55,D55) -> 0 | Q55: =-S48*SUM('COS Sum'!Q84+'COS Sum'!Q86) -> -888141.7342
D59: GS | E59: GSS | F59: GSM | G59: GSL | H59: FS | I59: IS | J59: TSS | K59: TSM | L59: TSL | M59: TBF | N59: NGV
B60: Gross Plant Allocation Percentages | D60: ='COS Alloc Factors'!D68 -> 0.8684290321 | E60: ='COS Alloc Factors'!E68 -> 0 | F60: ='COS Alloc Factors'!F68 -> 0 | G60: ='COS Alloc Factors'!G68 -> 0 | H60: ='COS Alloc Factors'!H68 -> 0.005685307371 | I60: ='COS Alloc Factors'!I68 -> 0.0004787681294 | J60: ='COS Alloc Factors'!J68 -> 0.02825884981 | K60: ='COS Alloc Factors'!K68 -> 0.0328368087 | L60: ='COS Alloc Factors'!L68 -> 0.03469033852 | M60: ='COS Alloc Factors'!M68 -> 0.0293687671 | N60: ='COS Alloc Factors'!N68 -> 0.0002521282154 | O60: =SUM(D60:N60) -> 1
B61: Total Tools and Work allocated on Gross Plant | D61: =D60*$O$61 -> 24590976.23 | E61: 0 | F61: 0 | G61: 0 | H61: 160988.6971 | I61: 13557.09592 | J61: 800195.155 | K61: 929827.4843 | L61: =L60*$O$61 -> 982313.1867 | M61: =M60*$O$61 -> 831624.2629 | N61: =N60*$O$61 -> 7139.419254 | O61: =O63-O62 -> 28316621.53
B62: NGV Direct Assignment | N62: 18186818.08 | O62: =SUM(D62:N62) -> 18186818.08 | P62: 18186818
B63: Total | D63: =SUM(D61:D62) -> 24590976.23 | E63: =SUM(E61:E62) -> 0 | F63: =SUM(F61:F62) -> 0 | G63: 0 | H63: 160988.6971 | I63: =SUM(I61:I62) -> 13557.09592 | J63: =SUM(J61:J62) -> 800195.155 | K63: =SUM(K61:K62) -> 929827.4843 | L63: =SUM(L61:L62) -> 982313.1867 | M63: 831624.2629 | N63: =SUM(N61:N62) -> 18193957.5 | O63: ='ROR-Model'!W1099 -> 46503439.61
B64: NGV Plant Allocation Percentages
C67: 1 | D67: =C67+1 -> 2 | E67: =D67+1 -> 3 | F67: 4 | G67: =F67+1 -> 5 | H67: =G67+1 -> 6 | I67: =H67+1 -> 7 | J67: =I67+1 -> 8 | K67: 9 | L67: 10 | M67: 11 | N67: 12
B68: Allocation Matrix
D69: GS | E69: GSS | F69: GSM | G69: GSL | H69: FS | I69: IS | J69: TSS | K69: TSM | L69: TSL | M69: TBF | N69: NGV
A70: ='COS Alloc Factors'!$B$44 -> 250 | B70: ='COS Alloc Factors'!$C$44 -> Distribution Throughput | C70: TBF (E) | D70: 117381146.8 | E70: 0 | F70: 0 | G70: 0 | H70: 2206320 | I70: 207683 | J70: 8204982 | K70: 9386684 | L70: 4933988 | M70: 1089577 | N70: 145818
A71: ='COS Alloc Factors'!$B$44 -> 250 | B71: ='COS Alloc Factors'!$C$44 -> Distribution Throughput | C71: TBF (N) | D71: 117381146.8 | E71: 0 | F71: 0 | G71: 0 | H71: 2206320 | I71: 207683 | J71: 8204982 | K71: 9386684 | L71: 4933988 | M71: 1089577 | N71: 145818
A73: ='COS Alloc Factors'!$B$30 -> 210 | B73: ='COS Alloc Factors'!$C$30 -> Design Day | C73: TBF (E) | D73: 1246311.866 | E73: 0 | F73: 0 | G73: 0 | H73: 11372.26275 | I73: 0 | J73: 75461 | K73: 68514 | L73: 74261 | M73: 107032 | N73: 395.8709677
A74: ='COS Alloc Factors'!$B$30 -> 210 | B74: ='COS Alloc Factors'!$C$30 -> Design Day | C74: TBF (N) | D74: 1246311.866 | E74: 0 | F74: 0 | G74: 0 | H74: 11372.26275 | I74: 0 | J74: 75461 | K74: 68514 | L74: 74261 | M74: 107032 | N74: 395.8709677
B76: ='COS Alloc Factors'!$C$32 -> Peak Day | C76: TBF (E) | D76: 766845.5918 | H76: 11316.50687 | I76: 1622 | J76: 41430 | K76: 57406 | L76: 79796 | M76: 27609 | N76: 596.7039032
B77: ='COS Alloc Factors'!$C$32 -> Peak Day | C77: TBF (N) | D77: 766845.5918 | H77: 11316.50687 | I77: 1622 | J77: 41430 | K77: 57406 | L77: 79796 | M77: 27609 | N77: 596.7039032
A79: ='COS Alloc Factors'!$B$76 -> 645 | B79: ='COS Alloc Factors'!$C$76 -> SD Mains | C79: TBF (E) | D79: 962560403 | E79: 0 | F79: 0 | G79: 0 | H79: 1272460.61 | I79: 80476.75567 | J79: 3462867.532 | K79: 1321255.488 | L79: 160497.8731 | M79: 42559.66426 | N79: 67610.79373
A80: ='COS Alloc Factors'!$B$76 -> 645 | B80: ='COS Alloc Factors'!$C$76 -> SD Mains | C80: TBF (N) | D80: 962560403 | E80: 0 | F80: 0 | G80: 0 | H80: 1272460.61 | I80: 80476.75567 | J80: 3462867.532 | K80: 1321255.488 | L80: 160497.8731 | M80: 42559.66426 | N80: 67610.79373
A82: ='COS Alloc Factors'!$B$80 -> 660 | B82: ='COS Alloc Factors'!$C$80 -> Service Lines | C82: TBF (E) | D82: 492049493 | E82: 0 | F82: 0 | G82: 0 | H82: 761424.9845 | I82: 73572.53092 | J82: 2343735.224 | K82: 4529444.801 | L82: 3187937.511 | M82: 348414.183 | N82: 41493.96729
A83: ='COS Alloc Factors'!$B$80 -> 660 | B83: ='COS Alloc Factors'!$C$80 -> Service Lines | C83: TBF (N) | D83: 492049493 | E83: 0 | F83: 0 | G83: 0 | H83: 761424.9845 | I83: 73572.53092 | J83: 2343735.224 | K83: 4529444.801 | L83: 3187937.511 | M83: 348414.183 | N83: 41493.96729
A85: ='COS Alloc Factors'!$B$82 -> 670 | B85: ='COS Alloc Factors'!$C$82 -> Meters & Regulators | C85: TBF (E) | D85: 480274624.2 | E85: 0 | F85: 0 | G85: 0 | H85: 2439114.104 | I85: 758748.5436 | J85: 13325866.22 | K85: 21929782.1 | L85: 6588338.66 | M85: 1910535.977 | N85: 0
A86: ='COS Alloc Factors'!$B$82 -> 670 | B86: ='COS Alloc Factors'!$C$82 -> Meters & Regulators | C86: TBF (N) | D86: 480274624.2 | E86: 0 | F86: 0 | G86: 0 | H86: 2439114.104 | I86: 758748.5436 | J86: 13325866.22 | K86: 21929782.1 | L86: 6588338.66 | M86: 1910535.977 | N86: 0
A88: ='COS Alloc Factors'!$B$54 -> 510 | B88: ='COS Alloc Factors'!$C$54 -> Customer Assistance Expense | C88: TBF (E) | D88: 906041.8506 | E88: 0 | F88: 0 | G88: 0 | H88: 52002.30799 | I88: 27334.42304 | J88: 1096741.523 | K88: 267155.3086 | L88: 42181.39917 | M88: 22450.48993 | N88: 128830.228
A89: ='COS Alloc Factors'!$B$54 -> 510 | B89: ='COS Alloc Factors'!$C$54 -> Customer Assistance Expense | C89: TBF (N) | D89: 906041.8506 | E89: 0 | F89: 0 | G89: 0 | H89: 52002.30799 | I89: 27334.42304 | J89: 1096741.523 | K89: 267155.3086 | L89: 42181.39917 | M89: 22450.48993 | N89: 128830.228

Sheet Dist Plant
B2: Production Allocation Factors
B3: Distribution Plant | D3: Amount | E3: % | F3: 108 | G3: 111 | H3: 254 | I3: 282 | J3: 283
B4: 302 | C4: Intangible Plant | D4: ='COS Detail'!G999 -> 55933716.07 | E4: =D4/$D$18 -> 0.01231169871 | F4: =$F$18*E4 -> -12551647.08 | G4: =$G$18*E4 -> -723.2247628 | H4: =$H$18*E4 -> -2584097.447 | I4: =$I$18*E4 -> 0 | J4: =$J$18*E4 -> 0
B5: 374 | C5: Land & Land Rights | D5: ='COS Detail'!G1030 -> 37403782.53 | E5: 0.008233032479 | F5: -8393489.847 | G5: -483.6321213 | H5: -1728027.847 | I5: 0 | J5: 0
B6: 375 | C6: Structures & Improvements | D6: ='COS Detail'!G1035 -> 23388187.34 | E6: 0.005148027631 | F6: -5248359.916 | G6: -302.4100208 | H6: -1080517.431 | I6: 0 | J6: 0
B7: 376 | C7: Mains - SD | D7: ='COS Detail'!G1042 -> 1100605060 | E7: 0.2422567075 | F7: -246978160.2 | G7: -14230.85912 | H7: -50847162.05 | I7: 0 | J7: 0
B8: 376 | C8: Mains - LD | D8: ='COS Detail'!G1043 -> 182972994 | E8: 0.04027460594 | F8: -41059536.31 | G8: -2365.846746 | H8: -8453220.702 | I8: 0 | J8: 0
B9: 376 | C9: Mains - Feeders | D9: ='COS Detail'!G1044 -> 1731358727 | E9: 0.3810933457 | F9: -388520649.7 | G9: -22386.52449 | H9: -79987527.74 | I9: 0 | J9: 0
B10: 377 | C10: Compressor Station Equipment | D10: ='COS Detail'!G1051 -> 16011972.85 | E10: 0.003524432119 | F10: -3593121.402 | G10: -207.0353283 | H10: -739741.6276 | I10: 0 | J10: 0
B11: 378 | C11: Measuring & Regulation Station Equip | D11: ='COS Detail'!G1056 -> 301702437.4 | E11: 0.06640841642 | F11: -67702680.68 | G11: -3901.022301 | H11: -13938435.58 | I11: 0 | J11: 0
B12: 380 | C12: Services | D12: ='COS Detail'!G1061 -> 545786234.7 | E12: 0.1201342616 | F12: -122475613.7 | G12: -7057.033716 | H12: -25214931.44 | I12: 0 | J12: 0
B13: 381.2 | C13: Meters & Meter Installation | D13: ='COS Detail'!G1066 -> 486190173.5 | E13: 0.1070164357 | F13: -109102128.4 | G13: -6286.454712 | H13: -22461636.28 | I13: 0 | J13: 0
B14: 383.4 | C14: House Regulators & Reg Installations | D14: ='COS Detail'!G1071 -> 52062918.32 | E14: 0.01145968852 | F14: -11683031.68 | G14: -673.1752224 | H14: -2405269.375 | I14: 0 | J14: 0
B15: 387 | C15: Other Equipment | D15: ='COS Detail'!G1076 -> 9719346.305 | E15: 0.002139347638 | F15: -2181042.371 | G15: -125.671463 | H15: -449026.8078 | I15: 0 | J15: 0
B18: Total Distribution Plant | D18: =SUM(D4:D15) -> 4543135549 | E18: =SUM(E4:E15) -> 1 | F18: ='COS Detail'!G1166 -> -1019489461 | G18: ='COS Detail'!G1173 -> -58742.89 | H18: ='COS Detail'!G1180 -> -209889594.3 | I18: ='COS Detail'!G1249 -> 0 | J18: ='COS Detail'!G1257 -> 0
A20: FERC | E20: Jurisdiction
A21: Account | C21: Description | D21: Allocation Factor | E21: DNG Related | F21: GS | G21: GSS | H21: GSM | I21: GSL | J21: FS | K21: IS | L21: TSS | M21: TSM | N21: TSL | O21: TBF | P21: NGV | Q21: Total
A22: 108 Allocation to Categories
A24: Distribution Plant
A25: 108 | B25: =B4 -> 302 | C25: Intangible Plant | D25: ='COS Detail'!F997 -> Direct Distribution Gross Plant | E25: =F$4 -> -12551647.08 | F25: =VLOOKUP($D25,range,'COS Alloc Factors'!D$9,FALSE)*$E25 -> -10877746.13 | G25: =VLOOKUP($D25,range,'COS Alloc Factors'!E$9,FALSE)*$E25 -> 0 | H25: =VLOOKUP($D25,range,'COS Alloc Factors'!F$9,FALSE)*$E25 -> 0 | I25: =VLOOKUP($D25,range,'COS Alloc Factors'!G$9,FALSE)*$E25 -> 0 | J25: =VLOOKUP($D25,range,'COS Alloc Factors'!H$9,FALSE)*$E25 -> -68755.55375 | K25: =VLOOKUP($D25,range,'COS Alloc Factors'!I$9,FALSE)*$E25 -> -6105.627334 | L25: =VLOOKUP($D25,range,'COS Alloc Factors'!J$9,FALSE)*$E25 -> -360379.0546 | M25: =VLOOKUP($D25,range,'COS Alloc Factors'!K$9,FALSE)*$E25 -> -418760.783 | N25: =VLOOKUP($D25,range,'COS Alloc Factors'!L$9,FALSE)*$E25 -> -442398.4515 | O25: =VLOOKUP($D25,range,'COS Alloc Factors'!M$9,FALSE)*$E25 -> -374533.5919 | P25: =VLOOKUP($D25,range,'COS Alloc Factors'!N$9,FALSE)*$E25 -> -2967.892048 | Q25: =SUM(F25,J25:P25) -> -12551647.08
A26: 108 | B26: 374 | C26: Land & Land Rights | D26: ='COS Detail'!F1029 -> Direct Distribution Gross Plant | E26: =F$5 -> -8393489.847 | F26: =VLOOKUP($D26,range,'COS Alloc Factors'!D$9,FALSE)*$E26 -> -7274125.147 | G26: =VLOOKUP($D26,range,'COS Alloc Factors'!E$9,FALSE)*$E26 -> 0 | H26: =VLOOKUP($D26,range,'COS Alloc Factors'!F$9,FALSE)*$E26 -> 0 | I26: =VLOOKUP($D26,range,'COS Alloc Factors'!G$9,FALSE)*$E26 -> 0 | J26: =VLOOKUP($D26,range,'COS Alloc Factors'!H$9,FALSE)*$E26 -> -45977.95322 | K26: =VLOOKUP($D26,range,'COS Alloc Factors'!I$9,FALSE)*$E26 -> -4082.931961 | L26: =VLOOKUP($D26,range,'COS Alloc Factors'!J$9,FALSE)*$E26 -> -240991.315 | M26: =VLOOKUP($D26,range,'COS Alloc Factors'!K$9,FALSE)*$E26 -> -280032.1231 | N26: =VLOOKUP($D26,range,'COS Alloc Factors'!L$9,FALSE)*$E26 -> -295839.0151 | O26: =VLOOKUP($D26,range,'COS Alloc Factors'!M$9,FALSE)*$E26 -> -250456.6835 | P26: =VLOOKUP($D26,range,'COS Alloc Factors'!N$9,FALSE)*$E26 -> -1984.677517 | Q26: =SUM(F26,J26:P26) -> -8393489.847
A27: 108 | B27: 375 | C27: Structures & Improvements | D27: ='COS Detail'!F1034 -> Direct Distribution Gross Plant | E27: =F$6 -> -5248359.916 | F27: =VLOOKUP($D27,range,'COS Alloc Factors'!D$9,FALSE)*$E27 -> -4548433.077 | G27: =VLOOKUP($D27,range,'COS Alloc Factors'!E$9,FALSE)*$E27 -> 0 | H27: =VLOOKUP($D27,range,'COS Alloc Factors'!F$9,FALSE)*$E27 -> 0 | I27: =VLOOKUP($D27,range,'COS Alloc Factors'!G$9,FALSE)*$E27 -> 0 | J27: =VLOOKUP($D27,range,'COS Alloc Factors'!H$9,FALSE)*$E27 -> -28749.52506 | K27: =VLOOKUP($D27,range,'COS Alloc Factors'!I$9,FALSE)*$E27 -> -2553.013923 | L27: =VLOOKUP($D27,range,'COS Alloc Factors'!J$9,FALSE)*$E27 -> -150689.3057 | M27: =VLOOKUP($D27,range,'COS Alloc Factors'!K$9,FALSE)*$E27 -> -175101.1077 | N27: =VLOOKUP($D27,range,'COS Alloc Factors'!L$9,FALSE)*$E27 -> -184984.9892 | O27: =VLOOKUP($D27,range,'COS Alloc Factors'!M$9,FALSE)*$E27 -> -156607.9 | P27: =VLOOKUP($D27,range,'COS Alloc Factors'!N$9,FALSE)*$E27 -> -1240.99774 | Q27: -5248359.916
A28: 108 | B28: =$B$7 -> 376 | C28: =$C$7 -> Mains - SD | D28: ='COS Detail'!$F$1042 -> SD Mains | E28: =F$7 -> -246978160.2 | F28: =VLOOKUP($D28,range,'COS Alloc Factors'!D$9,FALSE)*$E28 -> -245344908.3 | G28: =VLOOKUP($D28,range,'COS Alloc Factors'!E$9,FALSE)*$E28 -> 0 | H28: =VLOOKUP($D28,range,'COS Alloc Factors'!F$9,FALSE)*$E28 -> 0 | I28: =VLOOKUP($D28,range,'COS Alloc Factors'!G$9,FALSE)*$E28 -> 0 | J28: =VLOOKUP($D28,range,'COS Alloc Factors'!H$9,FALSE)*$E28 -> -324334.6919 | K28: =VLOOKUP($D28,range,'COS Alloc Factors'!I$9,FALSE)*$E28 -> -20512.5436 | L28: =VLOOKUP($D28,range,'COS Alloc Factors'!J$9,FALSE)*$E28 -> -882642.7042 | M28: =VLOOKUP($D28,range,'COS Alloc Factors'!K$9,FALSE)*$E28 -> -336771.9111 | N28: =VLOOKUP($D28,range,'COS Alloc Factors'!L$9,FALSE)*$E28 -> -40908.95059 | O28: =VLOOKUP($D28,range,'COS Alloc Factors'!M$9,FALSE)*$E28 -> -10847.9394 | P28: =VLOOKUP($D28,range,'COS Alloc Factors'!N$9,FALSE)*$E28 -> -17233.16681 | Q28: -246978160.2
A29: 108 | B29: =B12 -> 380 | C29: Services | D29: ='COS Detail'!F1061 -> Service Lines | E29: =F$12 -> -122475613.7 | F29: =VLOOKUP($D29,range,'COS Alloc Factors'!D$9,FALSE)*$E29 -> -119729408.5 | G29: =VLOOKUP($D29,range,'COS Alloc Factors'!E$9,FALSE)*$E29 -> 0 | H29: =VLOOKUP($D29,range,'COS Alloc Factors'!F$9,FALSE)*$E29 -> 0 | I29: =VLOOKUP($D29,range,'COS Alloc Factors'!G$9,FALSE)*$E29 -> 0 | J29: =VLOOKUP($D29,range,'COS Alloc Factors'!H$9,FALSE)*$E29 -> -185276.0023 | K29: =VLOOKUP($D29,range,'COS Alloc Factors'!I$9,FALSE)*$E29 -> -17902.25522 | L29: =VLOOKUP($D29,range,'COS Alloc Factors'!J$9,FALSE)*$E29 -> -570296.3542 | M29: =VLOOKUP($D29,range,'COS Alloc Factors'!K$9,FALSE)*$E29 -> -1102140.647 | N29: =VLOOKUP($D29,range,'COS Alloc Factors'!L$9,FALSE)*$E29 -> -775714.3903 | O29: =VLOOKUP($D29,range,'COS Alloc Factors'!M$9,FALSE)*$E29 -> -84778.91884 | P29: =VLOOKUP($D29,range,'COS Alloc Factors'!N$9,FALSE)*$E29 -> -10096.64318 | Q29: -122475613.7
A30: 108 | B30: 381.2 | C30: Meters & Meter Installation | D30: ='COS Detail'!F1066 -> Meters & Regulators | E30: =F$13 -> -109102128.4 | F30: =VLOOKUP($D30,range,'COS Alloc Factors'!D$9,FALSE)*$E30 -> -99386000.23 | G30: =VLOOKUP($D30,range,'COS Alloc Factors'!E$9,FALSE)*$E30 -> 0 | H30: =VLOOKUP($D30,range,'COS Alloc Factors'!F$9,FALSE)*$E30 -> 0 | I30: =VLOOKUP($D30,range,'COS Alloc Factors'!G$9,FALSE)*$E30 -> 0 | J30: =VLOOKUP($D30,range,'COS Alloc Factors'!H$9,FALSE)*$E30 -> -504739.9605 | K30: =VLOOKUP($D30,range,'COS Alloc Factors'!I$9,FALSE)*$E30 -> -157012.2158 | L30: =VLOOKUP($D30,range,'COS Alloc Factors'!J$9,FALSE)*$E30 -> -2757598.416 | M30: =VLOOKUP($D30,range,'COS Alloc Factors'!K$9,FALSE)*$E30 -> -4538056.392 | N30: =VLOOKUP($D30,range,'COS Alloc Factors'!L$9,FALSE)*$E30 -> -1363362.948 | O30: =VLOOKUP($D30,range,'COS Alloc Factors'!M$9,FALSE)*$E30 -> -395358.2378 | P30: =VLOOKUP($D30,range,'COS Alloc Factors'!N$9,FALSE)*$E30 -> 0 | Q30: -109102128.4
A31: 108 | B31: 383.4 | C31: House Regulators & Reg Installations | D31: ='COS Detail'!F1071 -> Meters & Regulators | E31: =F$14 -> -11683031.68 | F31: =VLOOKUP($D31,range,'COS Alloc Factors'!D$9,FALSE)*$E31 -> -10642595.21 | G31: =VLOOKUP($D31,range,'COS Alloc Factors'!E$9,FALSE)*$E31 -> 0 | H31: =VLOOKUP($D31,range,'COS Alloc Factors'!F$9,FALSE)*$E31 -> 0 | I31: =VLOOKUP($D31,range,'COS Alloc Factors'!G$9,FALSE)*$E31 -> 0 | J31: =VLOOKUP($D31,range,'COS Alloc Factors'!H$9,FALSE)*$E31 -> -54049.2934 | K31: =VLOOKUP($D31,range,'COS Alloc Factors'!I$9,FALSE)*$E31 -> -16813.40885 | L31: =VLOOKUP($D31,range,'COS Alloc Factors'!J$9,FALSE)*$E31 -> -295293.1361 | M31: =VLOOKUP($D31,range,'COS Alloc Factors'!K$9,FALSE)*$E31 -> -485950.7085 | N31: =VLOOKUP($D31,range,'COS Alloc Factors'!L$9,FALSE)*$E31 -> -145993.6002 | O31: =VLOOKUP($D31,range,'COS Alloc Factors'!M$9,FALSE)*$E31 -> -42336.3218 | P31: =VLOOKUP($D31,range,'COS Alloc Factors'!N$9,FALSE)*$E31 -> 0 | Q31: -11683031.68
A32: 108 | B32: 387 | C32: Other Equipment | D32: ='COS Detail'!F1076 -> Direct Distribution Gross Plant | E32: =F$15 -> -2181042.371 | F32: =VLOOKUP($D32,range,'COS Alloc Factors'!D$9,FALSE)*$E32 -> -1890176.249 | G32: =VLOOKUP($D32,range,'COS Alloc Factors'!E$9,FALSE)*$E32 -> 0 | H32: =VLOOKUP($D32,range,'COS Alloc Factors'!F$9,FALSE)*$E32 -> 0 | I32: =VLOOKUP($D32,range,'COS Alloc Factors'!G$9,FALSE)*$E32 -> 0 | J32: =VLOOKUP($D32,range,'COS Alloc Factors'!H$9,FALSE)*$E32 -> -11947.33846 | K32: =VLOOKUP($D32,range,'COS Alloc Factors'!I$9,FALSE)*$E32 -> -1060.946968 | L32: =VLOOKUP($D32,range,'COS Alloc Factors'!J$9,FALSE)*$E32 -> -62621.4219 | M32: =VLOOKUP($D32,range,'COS Alloc Factors'!K$9,FALSE)*$E32 -> -72766.14814 | N32: =VLOOKUP($D32,range,'COS Alloc Factors'!L$9,FALSE)*$E32 -> -76873.5578 | O32: =VLOOKUP($D32,range,'COS Alloc Factors'!M$9,FALSE)*$E32 -> -65080.99119 | P32: =VLOOKUP($D32,range,'COS Alloc Factors'!N$9,FALSE)*$E32 -> -515.7170422 | Q32: -2181042.371
E33: =SUM(E25:E32) -> -518613473.1 | F33: -499693392.8 | G33: 0 | H33: 0 | I33: 0 | J33: -1223830.319 | K33: -226042.9436 | L33: -5320511.708 | M33: -7409579.821 | N33: -3326075.903 | O33: -1380000.584 | P33: -34039.09433 | Q33: -518613473.1
A34: Throughput
A35: 108 | B35: =B8 -> 376 | C35: =C8 -> Mains - LD | D35: Distribution Throughput | E35: =F$8 -> -41059536.31 | F35: =VLOOKUP($D35,range,'COS Alloc Factors'!D$9,FALSE)*$E35 -> -33573022.27 | G35: =VLOOKUP($D35,range,'COS Alloc Factors'!E$9,FALSE)*$E35 -> 0 | H35: =VLOOKUP($D35,range,'COS Alloc Factors'!F$9,FALSE)*$E35 -> 0 | I35: =VLOOKUP($D35,range,'COS Alloc Factors'!G$9,FALSE)*$E35 -> 0 | J35: =VLOOKUP($D35,range,'COS Alloc Factors'!H$9,FALSE)*$E35 -> -631045.3808 | K35: =VLOOKUP($D35,range,'COS Alloc Factors'!I$9,FALSE)*$E35 -> -59400.90187 | L35: =VLOOKUP($D35,range,'COS Alloc Factors'!J$9,FALSE)*$E35 -> -2346765.651 | M35: =VLOOKUP($D35,range,'COS Alloc Factors'!K$9,FALSE)*$E35 -> -2684752.701 | N35: =VLOOKUP($D35,range,'COS Alloc Factors'!L$9,FALSE)*$E35 -> -1411205.236 | O35: =VLOOKUP($D35,range,'COS Alloc Factors'!M$9,FALSE)*$E35 -> -311637.7193 | P35: =VLOOKUP($D35,range,'COS Alloc Factors'!N$9,FALSE)*$E35 -> -41706.45026 | Q35: =SUM(F35,J35:P35) -> -41059536.31
A36: 108 | B36: =$B$9 -> 376 | C36: =$C$9 -> Mains - Feeders | D36: Winter Throughput | E36: =F$9*'COS Input'!N$9 -> -155408259.9 | F36: =VLOOKUP($D36,range,'COS Alloc Factors'!D$9,FALSE)*$E36 -> -112441605.3 | G36: =VLOOKUP($D36,range,'COS Alloc Factors'!E$9,FALSE)*$E36 -> 0 | H36: =VLOOKUP($D36,range,'COS Alloc Factors'!F$9,FALSE)*$E36 -> 0 | I36: =VLOOKUP($D36,range,'COS Alloc Factors'!G$9,FALSE)*$E36 -> 0 | J36: =VLOOKUP($D36,range,'COS Alloc Factors'!H$9,FALSE)*$E36 -> -1474715.161 | K36: =VLOOKUP($D36,range,'COS Alloc Factors'!I$9,FALSE)*$E36 -> -177929.4149 | L36: =VLOOKUP($D36,range,'COS Alloc Factors'!J$9,FALSE)*$E36 -> -7149463.271 | M36: =VLOOKUP($D36,range,'COS Alloc Factors'!K$9,FALSE)*$E36 -> -10129071.96 | N36: =VLOOKUP($D36,range,'COS Alloc Factors'!L$9,FALSE)*$E36 -> -15431964.37 | O36: =VLOOKUP($D36,range,'COS Alloc Factors'!M$9,FALSE)*$E36 -> -8522066.681 | P36: =VLOOKUP($D36,range,'COS Alloc Factors'!N$9,FALSE)*$E36 -> -81443.76021 | Q36: =SUM(F36,J36:P36) -> -155408259.9
A37: 108 | B37: =$B$10 -> 377 | C37: =$C$10 -> Compressor Station Equipment | D37: Winter Throughput | E37: =F$10*'COS Input'!N$9 -> -1437248.561 | F37: =VLOOKUP($D37,range,'COS Alloc Factors'!D$9,FALSE)*$E37 -> -1039883.823 | G37: =VLOOKUP($D37,range,'COS Alloc Factors'!E$9,FALSE)*$E37 -> 0 | H37: =VLOOKUP($D37,range,'COS Alloc Factors'!F$9,FALSE)*$E37 -> 0 | I37: =VLOOKUP($D37,range,'COS Alloc Factors'!G$9,FALSE)*$E37 -> 0 | J37: =VLOOKUP($D37,range,'COS Alloc Factors'!H$9,FALSE)*$E37 -> -13638.47871 | K37: =VLOOKUP($D37,range,'COS Alloc Factors'!I$9,FALSE)*$E37 -> -1645.52898 | L37: =VLOOKUP($D37,range,'COS Alloc Factors'!J$9,FALSE)*$E37 -> -66119.75325 | M37: =VLOOKUP($D37,range,'COS Alloc Factors'!K$9,FALSE)*$E37 -> -93675.8066 | N37: =VLOOKUP($D37,range,'COS Alloc Factors'!L$9,FALSE)*$E37 -> -142718.0807 | O37: =VLOOKUP($D37,range,'COS Alloc Factors'!M$9,FALSE)*$E37 -> -78813.88081 | P37: =VLOOKUP($D37,range,'COS Alloc Factors'!N$9,FALSE)*$E37 -> -753.2091745 | Q37: =SUM(F37,J37:P37) -> -1437248.561
A38: 108 | B38: =$B$11 -> 378 | C38: =$C$11 -> Measuring & Regulation Station Equip | D38: Winter Throughput | E38: =F$11*'COS Input'!N$9 -> -27081072.27 | F38: =VLOOKUP($D38,range,'COS Alloc Factors'!D$9,FALSE)*$E38 -> -19593805.64 | G38: =VLOOKUP($D38,range,'COS Alloc Factors'!E$9,FALSE)*$E38 -> 0 | H38: =VLOOKUP($D38,range,'COS Alloc Factors'!F$9,FALSE)*$E38 -> 0 | I38: =VLOOKUP($D38,range,'COS Alloc Factors'!G$9,FALSE)*$E38 -> 0 | J38: =VLOOKUP($D38,range,'COS Alloc Factors'!H$9,FALSE)*$E38 -> -256980.3426 | K38: =VLOOKUP($D38,range,'COS Alloc Factors'!I$9,FALSE)*$E38 -> -31005.55496 | L38: =VLOOKUP($D38,range,'COS Alloc Factors'!J$9,FALSE)*$E38 -> -1245848.397 | M38: =VLOOKUP($D38,range,'COS Alloc Factors'!K$9,FALSE)*$E38 -> -1765067.893 | N38: =VLOOKUP($D38,range,'COS Alloc Factors'!L$9,FALSE)*$E38 -> -2689137.261 | O38: =VLOOKUP($D38,range,'COS Alloc Factors'!M$9,FALSE)*$E38 -> -1485034.99 | P38: =VLOOKUP($D38,range,'COS Alloc Factors'!N$9,FALSE)*$E38 -> -14192.19518 | Q38: =SUM(F38,J38:P38) -> -27081072.27
E39: =SUM(E35:E38) -> -224986117 | F39: =SUM(F35:F38) -> -166648317 | G39: 0 | H39: 0 | I39: 0 | J39: -2376379.364 | K39: -269981.4007 | L39: =SUM(L35:L38) -> -10808197.07 | M39: =SUM(M35:M38) -> -14672568.36 | N39: -19675024.95 | O39: -10397553.27 | P39: -138095.6148 | Q39: =SUM(Q35:Q38) -> -224986117
A40: Demand
A41: 108 | B41: =$B$9 -> 376 | C41: =$C$9 -> Mains - Feeders | D41: Design Day | E41: =F$9*'COS Input'!M$9 -> -233112389.8 | F41: =VLOOKUP($D41,range,'COS Alloc Factors'!D$9,FALSE)*$E41 -> -183491397.8 | G41: =VLOOKUP($D41,range,'COS Alloc Factors'!E$9,FALSE)*$E41 -> 0 | H41: =VLOOKUP($D41,range,'COS Alloc Factors'!F$9,FALSE)*$E41 -> 0 | I41: =VLOOKUP($D41,range,'COS Alloc Factors'!G$9,FALSE)*$E41 -> 0 | J41: =VLOOKUP($D41,range,'COS Alloc Factors'!H$9,FALSE)*$E41 -> -1674309.973 | K41: =VLOOKUP($D41,range,'COS Alloc Factors'!I$9,FALSE)*$E41 -> 0 | L41: =VLOOKUP($D41,range,'COS Alloc Factors'!J$9,FALSE)*$E41 -> -11109935.43 | M41: =VLOOKUP($D41,range,'COS Alloc Factors'!K$9,FALSE)*$E41 -> -10087145.89 | N41: =VLOOKUP($D41,range,'COS Alloc Factors'!L$9,FALSE)*$E41 -> -10933262.42 | O41: =VLOOKUP($D41,range,'COS Alloc Factors'!M$9,FALSE)*$E41 -> -15758055.28 | P41: =VLOOKUP($D41,range,'COS Alloc Factors'!N$9,FALSE)*$E41 -> -58283.09845 | Q41: =SUM(F41,J41:P41) -> -233112389.8
A42: 108 | B42: =$B$10 -> 377 | C42: =$C$10 -> Compressor Station Equipment | D42: Design Day | E42: =F$10*'COS Input'!M$9 -> -2155872.841 | F42: =VLOOKUP($D42,range,'COS Alloc Factors'!D$9,FALSE)*$E42 -> -1696967.378 | G42: =VLOOKUP($D42,range,'COS Alloc Factors'!E$9,FALSE)*$E42 -> 0 | H42: =VLOOKUP($D42,range,'COS Alloc Factors'!F$9,FALSE)*$E42 -> 0 | I42: =VLOOKUP($D42,range,'COS Alloc Factors'!G$9,FALSE)*$E42 -> 0 | J42: =VLOOKUP($D42,range,'COS Alloc Factors'!H$9,FALSE)*$E42 -> -15484.37387 | K42: =VLOOKUP($D42,range,'COS Alloc Factors'!I$9,FALSE)*$E42 -> 0 | L42: =VLOOKUP($D42,range,'COS Alloc Factors'!J$9,FALSE)*$E42 -> -102747.0401 | M42: =VLOOKUP($D42,range,'COS Alloc Factors'!K$9,FALSE)*$E42 -> -93288.06545 | N42: =VLOOKUP($D42,range,'COS Alloc Factors'!L$9,FALSE)*$E42 -> -101113.1306 | O42: =VLOOKUP($D42,range,'COS Alloc Factors'!M$9,FALSE)*$E42 -> -145733.8386 | P42: =VLOOKUP($D42,range,'COS Alloc Factors'!N$9,FALSE)*$E42 -> -539.0144605 | Q42: =SUM(F42,J42:P42) -> -2155872.841
A43: 108 | B43: =$B$11 -> 378 | C43: =$C$11 -> Measuring & Regulation Station Equip | D43: Design Day | E43: =F$11*'COS Input'!M$9 -> -40621608.41 | F43: =VLOOKUP($D43,range,'COS Alloc Factors'!D$9,FALSE)*$E43 -> -31974772.82 | G43: =VLOOKUP($D43,range,'COS Alloc Factors'!E$9,FALSE)*$E43 -> 0 | H43: =VLOOKUP($D43,range,'COS Alloc Factors'!F$9,FALSE)*$E43 -> 0 | I43: =VLOOKUP($D43,range,'COS Alloc Factors'!G$9,FALSE)*$E43 -> 0 | J43: =VLOOKUP($D43,range,'COS Alloc Factors'!H$9,FALSE)*$E43 -> -291761.2579 | K43: =VLOOKUP($D43,range,'COS Alloc Factors'!I$9,FALSE)*$E43 -> 0 | L43: =VLOOKUP($D43,range,'COS Alloc Factors'!J$9,FALSE)*$E43 -> -1935990.82 | M43: =VLOOKUP($D43,range,'COS Alloc Factors'!K$9,FALSE)*$E43 -> -1757761.957 | N43: =VLOOKUP($D43,range,'COS Alloc Factors'!L$9,FALSE)*$E43 -> -1905204.202 | O43: =VLOOKUP($D43,range,'COS Alloc Factors'!M$9,FALSE)*$E43 -> -2745961.085 | P43: =VLOOKUP($D43,range,'COS Alloc Factors'!N$9,FALSE)*$E43 -> -10156.27356 | Q43: =SUM(F43,J43:P43) -> -40621608.41
E44: =SUM(E41:E43) -> -275889871.1 | F44: =SUM(F41:F43) -> -217163137.9 | G44: =SUM(G41:G43) -> 0 | H44: =SUM(H41:H43) -> 0 | I44: 0 | J44: -1981555.605 | K44: 0 | L44: =SUM(L41:L43) -> -13148673.29 | M44: =SUM(M41:M43) -> -11938195.92 | N44: -12939579.75 | O44: -18649750.2 | P44: -68978.38647 | Q44: =SUM(Q41:Q43) -> -275889871.1
A46: 108 | B46: Accum Prov For Deprec - Distribution Utah | E46: =E33+E39+E44 -> -1019489461 | F46: =F33+F39+F44 -> -883504847.7 | G46: 0 | H46: 0 | I46: 0 | J46: -5581765.287 | K46: -496024.3443 | L46: =L33+L39+L44 -> -29277382.07 | M46: =M33+M39+M44 -> -34020344.1 | N46: -35940680.6 | O46: -30427304.06 | P46: -241113.0956 | Q46: -1019489461
F47: =F46/$E$46 -> 0.8666149885 | G47: =G46/$E$46 -> 0 | H47: =H46/$E$46 -> 0 | I47: 0 | J47: 0.00547505933 | K47: 0.0004865419047 | L47: =L46/$E$46 -> 0.02871768977 | M47: =M46/$E$46 -> 0.03336998114 | N47: 0.03525360679 | O47: 0.02984562883 | P47: 0.0002365037647 | Q47: =SUM(F47,J47:P47) -> 1
A51: 111 Allocation to Categories
A53: Distribution Plant
A54: 111 | B54: =B4 -> 302 | C54: Intangible Plant | D54: =D25 -> Direct Distribution Gross Plant | E54: =G4 -> -723.2247628 | F54: =VLOOKUP($D54,range,'COS Alloc Factors'!D$9,FALSE)*$E54 -> -626.7747422 | G54: =VLOOKUP($D54,range,'COS Alloc Factors'!E$9,FALSE)*$E54 -> 0 | H54: =VLOOKUP($D54,range,'COS Alloc Factors'!F$9,FALSE)*$E54 -> 0 | I54: =VLOOKUP($D54,range,'COS Alloc Factors'!G$9,FALSE)*$E54 -> 0 | J54: =VLOOKUP($D54,range,'COS Alloc Factors'!H$9,FALSE)*$E54 -> -3.961688751 | K54: =VLOOKUP($D54,range,'COS Alloc Factors'!I$9,FALSE)*$E54 -> -0.3518056914 | L54: =VLOOKUP($D54,range,'COS Alloc Factors'!J$9,FALSE)*$E54 -> -20.76500833 | M54: =VLOOKUP($D54,range,'COS Alloc Factors'!K$9,FALSE)*$E54 -> -24.12895822 | N54: =VLOOKUP($D54,range,'COS Alloc Factors'!L$9,FALSE)*$E54 -> -25.49095852 | O54: =VLOOKUP($D54,range,'COS Alloc Factors'!M$9,FALSE)*$E54 -> -21.58059149 | P54: =VLOOKUP($D54,range,'COS Alloc Factors'!N$9,FALSE)*$E54 -> -0.1710096698 | Q54: =SUM(F54,J54:P54) -> -723.2247628
A55: 111 | B55: 374 | C55: Land & Land Rights | D55: Direct Distribution Gross Plant | E55: =G5 -> -483.6321213 | F55: =VLOOKUP($D55,range,'COS Alloc Factors'!D$9,FALSE)*$E55 -> -419.1344291 | G55: =VLOOKUP($D55,range,'COS Alloc Factors'!E$9,FALSE)*$E55 -> 0 | H55: =VLOOKUP($D55,range,'COS Alloc Factors'!F$9,FALSE)*$E55 -> 0 | I55: =VLOOKUP($D55,range,'COS Alloc Factors'!G$9,FALSE)*$E55 -> 0 | J55: =VLOOKUP($D55,range,'COS Alloc Factors'!H$9,FALSE)*$E55 -> -2.649245481 | K55: =VLOOKUP($D55,range,'COS Alloc Factors'!I$9,FALSE)*$E55 -> -0.2352581681 | L55: =VLOOKUP($D55,range,'COS Alloc Factors'!J$9,FALSE)*$E55 -> -13.88589764 | M55: =VLOOKUP($D55,range,'COS Alloc Factors'!K$9,FALSE)*$E55 -> -16.13542545 | N55: =VLOOKUP($D55,range,'COS Alloc Factors'!L$9,FALSE)*$E55 -> -17.04621714 | O55: =VLOOKUP($D55,range,'COS Alloc Factors'!M$9,FALSE)*$E55 -> -14.43129132 | P55: =VLOOKUP($D55,range,'COS Alloc Factors'!N$9,FALSE)*$E55 -> -0.114356938 | Q55: -483.6321213
A56: 111 | B56: 375 | C56: Structures & Improvements | D56: Direct Distribution Gross Plant | E56: =G6 -> -302.4100208 | F56: =VLOOKUP($D56,range,'COS Alloc Factors'!D$9,FALSE)*$E56 -> -262.0803 | G56: =VLOOKUP($D56,range,'COS Alloc Factors'!E$9,FALSE)*$E56 -> 0 | H56: =VLOOKUP($D56,range,'COS Alloc Factors'!F$9,FALSE)*$E56 -> 0 | I56: =VLOOKUP($D56,range,'COS Alloc Factors'!G$9,FALSE)*$E56 -> 0 | J56: =VLOOKUP($D56,range,'COS Alloc Factors'!H$9,FALSE)*$E56 -> -1.656545018 | K56: =VLOOKUP($D56,range,'COS Alloc Factors'!I$9,FALSE)*$E56 -> -0.14710443 | L56: =VLOOKUP($D56,range,'COS Alloc Factors'!J$9,FALSE)*$E56 -> -8.682704085 | M56: =VLOOKUP($D56,range,'COS Alloc Factors'!K$9,FALSE)*$E56 -> -10.0893099 | N56: =VLOOKUP($D56,range,'COS Alloc Factors'!L$9,FALSE)*$E56 -> -10.65881825 | O56: =VLOOKUP($D56,range,'COS Alloc Factors'!M$9,FALSE)*$E56 -> -9.023732948 | P56: =VLOOKUP($D56,range,'COS Alloc Factors'!N$9,FALSE)*$E56 -> -0.07150617685 | Q56: -302.4100208
A57: 111 | B57: =$B$7 -> 376 | C57: =$C$7 -> Mains - SD | D57: SD Mains | E57: =G7 -> -14230.85912 | F57: =VLOOKUP($D57,range,'COS Alloc Factors'!D$9,FALSE)*$E57 -> -14136.75129 | G57: =VLOOKUP($D57,range,'COS Alloc Factors'!E$9,FALSE)*$E57 -> 0 | H57: =VLOOKUP($D57,range,'COS Alloc Factors'!F$9,FALSE)*$E57 -> 0 | I57: =VLOOKUP($D57,range,'COS Alloc Factors'!G$9,FALSE)*$E57 -> 0 | J57: =VLOOKUP($D57,range,'COS Alloc Factors'!H$9,FALSE)*$E57 -> -18.68813544 | K57: =VLOOKUP($D57,range,'COS Alloc Factors'!I$9,FALSE)*$E57 -> -1.181930896 | L57: =VLOOKUP($D57,range,'COS Alloc Factors'!J$9,FALSE)*$E57 -> -50.85779231 | M57: =VLOOKUP($D57,range,'COS Alloc Factors'!K$9,FALSE)*$E57 -> -19.40476688 | N57: =VLOOKUP($D57,range,'COS Alloc Factors'!L$9,FALSE)*$E57 -> -2.357170011 | O57: =VLOOKUP($D57,range,'COS Alloc Factors'!M$9,FALSE)*$E57 -> -0.6250572815 | P57: =VLOOKUP($D57,range,'COS Alloc Factors'!N$9,FALSE)*$E57 -> -0.9929735033 | Q57: -14230.85912
A58: 111 | B58: =B12 -> 380 | C58: Services | D58: Service Lines | E58: =G12 -> -7057.033716 | F58: =VLOOKUP($D58,range,'COS Alloc Factors'!D$9,FALSE)*$E58 -> -6898.797622 | G58: =VLOOKUP($D58,range,'COS Alloc Factors'!E$9,FALSE)*$E58 -> 0 | H58: =VLOOKUP($D58,range,'COS Alloc Factors'!F$9,FALSE)*$E58 -> 0 | I58: =VLOOKUP($D58,range,'COS Alloc Factors'!G$9,FALSE)*$E58 -> 0 | J58: =VLOOKUP($D58,range,'COS Alloc Factors'!H$9,FALSE)*$E58 -> -10.67558639 | K58: =VLOOKUP($D58,range,'COS Alloc Factors'!I$9,FALSE)*$E58 -> -1.031526317 | L58: =VLOOKUP($D58,range,'COS Alloc Factors'!J$9,FALSE)*$E58 -> -32.86042404 | M58: =VLOOKUP($D58,range,'COS Alloc Factors'!K$9,FALSE)*$E58 -> -63.50524382 | N58: =VLOOKUP($D58,range,'COS Alloc Factors'!L$9,FALSE)*$E58 -> -44.69659259 | O58: =VLOOKUP($D58,range,'COS Alloc Factors'!M$9,FALSE)*$E58 -> -4.88495359 | P58: =VLOOKUP($D58,range,'COS Alloc Factors'!N$9,FALSE)*$E58 -> -0.5817676614 | Q58: -7057.033716
A59: 111 | B59: 381.2 | C59: Meters & Meter Installation | D59: Meters & Regulators | E59: =G13 -> -6286.454712 | F59: =VLOOKUP($D59,range,'COS Alloc Factors'!D$9,FALSE)*$E59 -> -5726.61229 | G59: =VLOOKUP($D59,range,'COS Alloc Factors'!E$9,FALSE)*$E59 -> 0 | H59: =VLOOKUP($D59,range,'COS Alloc Factors'!F$9,FALSE)*$E59 -> 0 | I59: =VLOOKUP($D59,range,'COS Alloc Factors'!G$9,FALSE)*$E59 -> 0 | J59: =VLOOKUP($D59,range,'COS Alloc Factors'!H$9,FALSE)*$E59 -> -29.0830706 | K59: =VLOOKUP($D59,range,'COS Alloc Factors'!I$9,FALSE)*$E59 -> -9.047029588 | L59: =VLOOKUP($D59,range,'COS Alloc Factors'!J$9,FALSE)*$E59 -> -158.8925698 | M59: =VLOOKUP($D59,range,'COS Alloc Factors'!K$9,FALSE)*$E59 -> -261.4823964 | N59: =VLOOKUP($D59,range,'COS Alloc Factors'!L$9,FALSE)*$E59 -> -78.55684903 | O59: =VLOOKUP($D59,range,'COS Alloc Factors'!M$9,FALSE)*$E59 -> -22.78050569 | P59: =VLOOKUP($D59,range,'COS Alloc Factors'!N$9,FALSE)*$E59 -> 0 | Q59: -6286.454712
A60: 111 | B60: 383.4 | C60: House Regulators & Reg Installations | D60: Meters & Regulators | E60: =G14 -> -673.1752224 | F60: =VLOOKUP($D60,range,'COS Alloc Factors'!D$9,FALSE)*$E60 -> -613.2253677 | G60: =VLOOKUP($D60,range,'COS Alloc Factors'!E$9,FALSE)*$E60 -> 0 | H60: =VLOOKUP($D60,range,'COS Alloc Factors'!F$9,FALSE)*$E60 -> 0 | I60: =VLOOKUP($D60,range,'COS Alloc Factors'!G$9,FALSE)*$E60 -> 0 | J60: =VLOOKUP($D60,range,'COS Alloc Factors'!H$9,FALSE)*$E60 -> -3.114315368 | K60: =VLOOKUP($D60,range,'COS Alloc Factors'!I$9,FALSE)*$E60 -> -0.9687870881 | L60: =VLOOKUP($D60,range,'COS Alloc Factors'!J$9,FALSE)*$E60 -> -17.01476364 | M60: =VLOOKUP($D60,range,'COS Alloc Factors'!K$9,FALSE)*$E60 -> -28.00043561 | N60: =VLOOKUP($D60,range,'COS Alloc Factors'!L$9,FALSE)*$E60 -> -8.412137961 | O60: =VLOOKUP($D60,range,'COS Alloc Factors'!M$9,FALSE)*$E60 -> -2.43941501 | P60: =VLOOKUP($D60,range,'COS Alloc Factors'!N$9,FALSE)*$E60 -> 0 | Q60: -673.1752224
A61: 111 | B61: 387 | C61: Other Equipment | D61: Direct Distribution Gross Plant | E61: =G15 -> -125.671463 | F61: =VLOOKUP($D61,range,'COS Alloc Factors'!D$9,FALSE)*$E61 -> -108.9117835 | G61: =VLOOKUP($D61,range,'COS Alloc Factors'!E$9,FALSE)*$E61 -> 0 | H61: =VLOOKUP($D61,range,'COS Alloc Factors'!F$9,FALSE)*$E61 -> 0 | I61: =VLOOKUP($D61,range,'COS Alloc Factors'!G$9,FALSE)*$E61 -> 0 | J61: =VLOOKUP($D61,range,'COS Alloc Factors'!H$9,FALSE)*$E61 -> -0.6884045552 | K61: =VLOOKUP($D61,range,'COS Alloc Factors'!I$9,FALSE)*$E61 -> -0.06113166776 | L61: =VLOOKUP($D61,range,'COS Alloc Factors'!J$9,FALSE)*$E61 -> -3.608240632 | M61: =VLOOKUP($D61,range,'COS Alloc Factors'!K$9,FALSE)*$E61 -> -4.192778835 | N61: =VLOOKUP($D61,range,'COS Alloc Factors'!L$9,FALSE)*$E61 -> -4.429447406 | O61: =VLOOKUP($D61,range,'COS Alloc Factors'!M$9,FALSE)*$E61 -> -3.749960791 | P61: =VLOOKUP($D61,range,'COS Alloc Factors'!N$9,FALSE)*$E61 -> -0.02971556905 | Q61: -125.671463
E62: =SUM(E54:E61) -> -29882.46114 | F62: -28792.28783 | G62: 0 | H62: 0 | I62: 0 | J62: -70.5169916 | K62: -13.02457385 | L62: -306.5674005 | M62: -426.9393151 | N62: -191.6481909 | O62: -79.51550811 | P62: -1.961329518 | Q62: -29882.46114
A64: Throughput
A65: 111 | B65: =$B$8 -> 376 | C65: =$C$8 -> Mains - LD | D65: =$D$35 -> Distribution Throughput | E65: =G8 -> -2365.846746 | F65: =VLOOKUP($D65,range,'COS Alloc Factors'!D$9,FALSE)*$E65 -> -1934.474489 | G65: =VLOOKUP($D65,range,'COS Alloc Factors'!E$9,FALSE)*$E65 -> 0 | H65: =VLOOKUP($D65,range,'COS Alloc Factors'!F$9,FALSE)*$E65 -> 0 | I65: =VLOOKUP($D65,range,'COS Alloc Factors'!G$9,FALSE)*$E65 -> 0 | J65: =VLOOKUP($D65,range,'COS Alloc Factors'!H$9,FALSE)*$E65 -> -36.36077743 | K65: =VLOOKUP($D65,range,'COS Alloc Factors'!I$9,FALSE)*$E65 -> -3.422674561 | L65: =VLOOKUP($D65,range,'COS Alloc Factors'!J$9,FALSE)*$E65 -> -135.2204233 | M65: =VLOOKUP($D65,range,'COS Alloc Factors'!K$9,FALSE)*$E65 -> -154.6952064 | N65: =VLOOKUP($D65,range,'COS Alloc Factors'!L$9,FALSE)*$E65 -> -81.3135173 | O65: =VLOOKUP($D65,range,'COS Alloc Factors'!M$9,FALSE)*$E65 -> -17.95653703 | P65: =VLOOKUP($D65,range,'COS Alloc Factors'!N$9,FALSE)*$E65 -> -2.403121869 | Q65: =SUM(F65,J65:P65) -> -2365.846746
A66: 111 | B66: =$B$9 -> 376 | C66: =$C$9 -> Mains - Feeders | D66: =$D$36 -> Winter Throughput | E66: =G9*'COS Input'!N9 -> -8954.609796 | F66: =VLOOKUP($D66,range,'COS Alloc Factors'!D$9,FALSE)*$E66 -> -6478.875066 | G66: =VLOOKUP($D66,range,'COS Alloc Factors'!E$9,FALSE)*$E66 -> 0 | H66: =VLOOKUP($D66,range,'COS Alloc Factors'!F$9,FALSE)*$E66 -> 0 | I66: =VLOOKUP($D66,range,'COS Alloc Factors'!G$9,FALSE)*$E66 -> 0 | J66: =VLOOKUP($D66,range,'COS Alloc Factors'!H$9,FALSE)*$E66 -> -84.97295342 | K66: =VLOOKUP($D66,range,'COS Alloc Factors'!I$9,FALSE)*$E66 -> -10.2522767 | L66: =VLOOKUP($D66,range,'COS Alloc Factors'!J$9,FALSE)*$E66 -> -411.9514232 | M66: =VLOOKUP($D66,range,'COS Alloc Factors'!K$9,FALSE)*$E66 -> -583.6362048 | N66: =VLOOKUP($D66,range,'COS Alloc Factors'!L$9,FALSE)*$E66 -> -889.1883828 | O66: =VLOOKUP($D66,range,'COS Alloc Factors'!M$9,FALSE)*$E66 -> -491.0407068 | P66: =VLOOKUP($D66,range,'COS Alloc Factors'!N$9,FALSE)*$E66 -> -4.692782053 | Q66: =SUM(F66,J66:P66) -> -8954.609796
A67: 111 | B67: =$B$10 -> 377 | C67: =$C$10 -> Compressor Station Equipment | D67: =$D$37 -> Winter Throughput | E67: =G10*'COS Input'!N9 -> -82.81413131 | F67: =VLOOKUP($D67,range,'COS Alloc Factors'!D$9,FALSE)*$E67 -> -59.91801125 | G67: =VLOOKUP($D67,range,'COS Alloc Factors'!E$9,FALSE)*$E67 -> 0 | H67: =VLOOKUP($D67,range,'COS Alloc Factors'!F$9,FALSE)*$E67 -> 0 | I67: =VLOOKUP($D67,range,'COS Alloc Factors'!G$9,FALSE)*$E67 -> 0 | J67: =VLOOKUP($D67,range,'COS Alloc Factors'!H$9,FALSE)*$E67 -> -0.7858479022 | K67: =VLOOKUP($D67,range,'COS Alloc Factors'!I$9,FALSE)*$E67 -> -0.09481523013 | L67: =VLOOKUP($D67,range,'COS Alloc Factors'!J$9,FALSE)*$E67 -> -3.809814166 | M67: =VLOOKUP($D67,range,'COS Alloc Factors'!K$9,FALSE)*$E67 -> -5.397591453 | N67: =VLOOKUP($D67,range,'COS Alloc Factors'!L$9,FALSE)*$E67 -> -8.223402825 | O67: =VLOOKUP($D67,range,'COS Alloc Factors'!M$9,FALSE)*$E67 -> -4.541248641 | P67: =VLOOKUP($D67,range,'COS Alloc Factors'!N$9,FALSE)*$E67 -> -0.0433998441 | Q67: =SUM(F67,J67:P67) -> -82.81413131
A68: 111 | B68: =$B$11 -> 378 | C68: =$C$11 -> Measuring & Regulation Station Equip | D68: =$D$38 -> Winter Throughput | E68: =G11*'COS Input'!N9 -> -1560.40892 | F68: =VLOOKUP($D68,range,'COS Alloc Factors'!D$9,FALSE)*$E68 -> -1128.993298 | G68: =VLOOKUP($D68,range,'COS Alloc Factors'!E$9,FALSE)*$E68 -> 0 | H68: =VLOOKUP($D68,range,'COS Alloc Factors'!F$9,FALSE)*$E68 -> 0 | I68: =VLOOKUP($D68,range,'COS Alloc Factors'!G$9,FALSE)*$E68 -> 0 | J68: =VLOOKUP($D68,range,'COS Alloc Factors'!H$9,FALSE)*$E68 -> -14.80718396 | K68: =VLOOKUP($D68,range,'COS Alloc Factors'!I$9,FALSE)*$E68 -> -1.786537256 | L68: =VLOOKUP($D68,range,'COS Alloc Factors'!J$9,FALSE)*$E68 -> -71.78567131 | M68: =VLOOKUP($D68,range,'COS Alloc Factors'!K$9,FALSE)*$E68 -> -101.7030514 | N68: =VLOOKUP($D68,range,'COS Alloc Factors'!L$9,FALSE)*$E68 -> -154.9478443 | O68: =VLOOKUP($D68,range,'COS Alloc Factors'!M$9,FALSE)*$E68 -> -85.56758101 | P68: =VLOOKUP($D68,range,'COS Alloc Factors'!N$9,FALSE)*$E68 -> -0.8177529947 | Q68: =SUM(F68,J68:P68) -> -1560.40892
E69: =SUM(E65:E68) -> -12963.67959 | F69: =SUM(F65:F68) -> -9602.260864 | G69: 0 | H69: 0 | I69: 0 | J69: -136.9267627 | K69: -15.55630374 | L69: =SUM(L65:L68) -> -622.7673319 | M69: =SUM(M65:M68) -> -845.432054 | N69: -1133.673147 | O69: -599.1060734 | P69: -7.957056761 | Q69: -12963.67959
A70: Demand
A71: 111 | B71: =$B$9 -> 376 | C71: =$C$9 -> Mains - Feeders | D71: Design Day | E71: =G9*'COS Input'!M9 -> -13431.91469 | F71: =VLOOKUP($D71,range,'COS Alloc Factors'!D$9,FALSE)*$E71 -> -10572.75764 | G71: =VLOOKUP($D71,range,'COS Alloc Factors'!E$9,FALSE)*$E71 -> 0 | H71: =VLOOKUP($D71,range,'COS Alloc Factors'!F$9,FALSE)*$E71 -> 0 | I71: =VLOOKUP($D71,range,'COS Alloc Factors'!G$9,FALSE)*$E71 -> 0 | J71: =VLOOKUP($D71,range,'COS Alloc Factors'!H$9,FALSE)*$E71 -> -96.47358831 | K71: =VLOOKUP($D71,range,'COS Alloc Factors'!I$9,FALSE)*$E71 -> 0 | L71: =VLOOKUP($D71,range,'COS Alloc Factors'!J$9,FALSE)*$E71 -> -640.1534689 | M71: =VLOOKUP($D71,range,'COS Alloc Factors'!K$9,FALSE)*$E71 -> -581.2204287 | N71: =VLOOKUP($D71,range,'COS Alloc Factors'!L$9,FALSE)*$E71 -> -629.9735857 | O71: =VLOOKUP($D71,range,'COS Alloc Factors'!M$9,FALSE)*$E71 -> -907.9777114 | P71: =VLOOKUP($D71,range,'COS Alloc Factors'!N$9,FALSE)*$E71 -> -3.35826683 | Q71: =SUM(F71,J71:P71) -> -13431.91469
A72: 111 | B72: =$B$10 -> 377 | C72: =$C$10 -> Compressor Station Equipment | D72: Design Day | E72: =G10*'COS Input'!M9 -> -124.221197 | F72: =VLOOKUP($D72,range,'COS Alloc Factors'!D$9,FALSE)*$E72 -> -97.77910593 | G72: =VLOOKUP($D72,range,'COS Alloc Factors'!E$9,FALSE)*$E72 -> 0 | H72: =VLOOKUP($D72,range,'COS Alloc Factors'!F$9,FALSE)*$E72 -> 0 | I72: =VLOOKUP($D72,range,'COS Alloc Factors'!G$9,FALSE)*$E72 -> 0 | J72: =VLOOKUP($D72,range,'COS Alloc Factors'!H$9,FALSE)*$E72 -> -0.8922082138 | K72: =VLOOKUP($D72,range,'COS Alloc Factors'!I$9,FALSE)*$E72 -> 0 | L72: =VLOOKUP($D72,range,'COS Alloc Factors'!J$9,FALSE)*$E72 -> -5.920275103 | M72: =VLOOKUP($D72,range,'COS Alloc Factors'!K$9,FALSE)*$E72 -> -5.375249843 | N72: =VLOOKUP($D72,range,'COS Alloc Factors'!L$9,FALSE)*$E72 -> -5.826129384 | O72: =VLOOKUP($D72,range,'COS Alloc Factors'!M$9,FALSE)*$E72 -> -8.397170523 | P72: =VLOOKUP($D72,range,'COS Alloc Factors'!N$9,FALSE)*$E72 -> -0.03105796417 | Q72: =SUM(F72,J72:P72) -> -124.221197
A73: 111 | B73: =$B$11 -> 378 | C73: =$C$11 -> Measuring & Regulation Station Equip | D73: Design Day | E73: =G11*'COS Input'!M9 -> -2340.613381 | F73: =VLOOKUP($D73,range,'COS Alloc Factors'!D$9,FALSE)*$E73 -> -1842.3835 | G73: =VLOOKUP($D73,range,'COS Alloc Factors'!E$9,FALSE)*$E73 -> 0 | H73: =VLOOKUP($D73,range,'COS Alloc Factors'!F$9,FALSE)*$E73 -> 0 | I73: =VLOOKUP($D73,range,'COS Alloc Factors'!G$9,FALSE)*$E73 -> 0 | J73: =VLOOKUP($D73,range,'COS Alloc Factors'!H$9,FALSE)*$E73 -> -16.81125713 | K73: =VLOOKUP($D73,range,'COS Alloc Factors'!I$9,FALSE)*$E73 -> 0 | L73: =VLOOKUP($D73,range,'COS Alloc Factors'!J$9,FALSE)*$E73 -> -111.5516149 | M73: =VLOOKUP($D73,range,'COS Alloc Factors'!K$9,FALSE)*$E73 -> -101.282084 | N73: =VLOOKUP($D73,range,'COS Alloc Factors'!L$9,FALSE)*$E73 -> -109.7776927 | O73: =VLOOKUP($D73,range,'COS Alloc Factors'!M$9,FALSE)*$E73 -> -158.2220278 | P73: =VLOOKUP($D73,range,'COS Alloc Factors'!N$9,FALSE)*$E73 -> -0.5852035586 | Q73: =SUM(F73,J73:P73) -> -2340.613381
E74: =SUM(E71:E73) -> -15896.74927 | F74: =SUM(F71:F73) -> -12512.92025 | G74: 0 | H74: 0 | I74: 0 | J74: -114.1770537 | K74: 0 | L74: =SUM(L71:L73) -> -757.6253589 | M74: =SUM(M71:M73) -> -687.8777625 | N74: -745.5774079 | O74: -1074.59691 | P74: -3.974528352 | Q74: -15896.74927
A76: 111 | B76: Accum Prov For Deprec - Distribution Utah | E76: =E62+E69+E74 -> -58742.89 | F76: =F62+F69+F74 -> -50907.46894 | G76: 0 | H76: 0 | I76: 0 | J76: -321.620808 | K76: =K62+K69+K74 -> -28.58087759 | L76: =L62+L69+L74 -> -1686.960091 | M76: =M62+M69+M74 -> -1960.249132 | N76: -2070.898746 | O76: -1753.218491 | P76: -13.89291463 | Q76: -58742.89
F77: =F76/$E$76 -> 0.8666149885 | G77: =G76/$E$76 -> 0 | H77: 0 | I77: 0 | J77: 0.00547505933 | K77: 0.0004865419047 | L77: =L76/$E$76 -> 0.02871768977 | M77: =M76/$E$76 -> 0.03336998114 | N77: 0.03525360679 | O77: 0.02984562883 | P77: 0.0002365037647 | Q77: =SUM(F77,J77:P77) -> 1
A79: 254 Allocation to Categories
A81: Distribution Plant
A82: 254 | B82: =B4 -> 302 | C82: Intangible Plant | D82: =D25 -> Direct Distribution Gross Plant | E82: =H4 -> -2584097.447 | F82: =VLOOKUP($D82,range,'COS Alloc Factors'!D$9,FALSE)*$E82 -> -2239479.473 | G82: =VLOOKUP($D82,range,'COS Alloc Factors'!E$9,FALSE)*$E82 -> 0 | H82: =VLOOKUP($D82,range,'COS Alloc Factors'!F$9,FALSE)*$E82 -> 0 | I82: =VLOOKUP($D82,range,'COS Alloc Factors'!G$9,FALSE)*$E82 -> 0 | J82: =VLOOKUP($D82,range,'COS Alloc Factors'!H$9,FALSE)*$E82 -> -14155.1981 | K82: =VLOOKUP($D82,range,'COS Alloc Factors'!I$9,FALSE)*$E82 -> -1257.009212 | L82: =VLOOKUP($D82,range,'COS Alloc Factors'!J$9,FALSE)*$E82 -> -74193.81606 | M82: =VLOOKUP($D82,range,'COS Alloc Factors'!K$9,FALSE)*$E82 -> -86213.28047 | N82: =VLOOKUP($D82,range,'COS Alloc Factors'!L$9,FALSE)*$E82 -> -91079.73652 | O82: =VLOOKUP($D82,range,'COS Alloc Factors'!M$9,FALSE)*$E82 -> -77107.91199 | P82: =VLOOKUP($D82,range,'COS Alloc Factors'!N$9,FALSE)*$E82 -> -611.0211842 | Q82: =SUM(F82,J82:P82) -> -2584097.447
A83: 254 | B83: 374 | C83: Land & Land Rights | D83: Direct Distribution Gross Plant | E83: =H5 -> -1728027.847 | F83: =VLOOKUP($D83,range,'COS Alloc Factors'!D$9,FALSE)*$E83 -> -1497576.222 | G83: =VLOOKUP($D83,range,'COS Alloc Factors'!E$9,FALSE)*$E83 -> 0 | H83: =VLOOKUP($D83,range,'COS Alloc Factors'!F$9,FALSE)*$E83 -> 0 | I83: =VLOOKUP($D83,range,'COS Alloc Factors'!G$9,FALSE)*$E83 -> 0 | J83: =VLOOKUP($D83,range,'COS Alloc Factors'!H$9,FALSE)*$E83 -> -9465.810403 | K83: =VLOOKUP($D83,range,'COS Alloc Factors'!I$9,FALSE)*$E83 -> -840.5824341 | L83: =VLOOKUP($D83,range,'COS Alloc Factors'!J$9,FALSE)*$E83 -> -49614.60737 | M83: =VLOOKUP($D83,range,'COS Alloc Factors'!K$9,FALSE)*$E83 -> -57652.21804 | N83: =VLOOKUP($D83,range,'COS Alloc Factors'!L$9,FALSE)*$E83 -> -60906.49607 | O83: =VLOOKUP($D83,range,'COS Alloc Factors'!M$9,FALSE)*$E83 -> -51563.31055 | P83: =VLOOKUP($D83,range,'COS Alloc Factors'!N$9,FALSE)*$E83 -> -408.5997696 | Q83: -1728027.847
A84: 254 | B84: 375 | C84: Structures & Improvements | D84: Direct Distribution Gross Plant | E84: =H6 -> -1080517.431 | F84: =VLOOKUP($D84,range,'COS Alloc Factors'!D$9,FALSE)*$E84 -> -936418.4815 | G84: =VLOOKUP($D84,range,'COS Alloc Factors'!E$9,FALSE)*$E84 -> 0 | H84: =VLOOKUP($D84,range,'COS Alloc Factors'!F$9,FALSE)*$E84 -> 0 | I84: =VLOOKUP($D84,range,'COS Alloc Factors'!G$9,FALSE)*$E84 -> 0 | J84: =VLOOKUP($D84,range,'COS Alloc Factors'!H$9,FALSE)*$E84 -> -5918.870553 | K84: =VLOOKUP($D84,range,'COS Alloc Factors'!I$9,FALSE)*$E84 -> -525.6072544 | L84: =VLOOKUP($D84,range,'COS Alloc Factors'!J$9,FALSE)*$E84 -> -31023.48621 | M84: =VLOOKUP($D84,range,'COS Alloc Factors'!K$9,FALSE)*$E84 -> -36049.31867 | N84: =VLOOKUP($D84,range,'COS Alloc Factors'!L$9,FALSE)*$E84 -> -38084.18411 | O84: =VLOOKUP($D84,range,'COS Alloc Factors'!M$9,FALSE)*$E84 -> -32241.98959 | P84: =VLOOKUP($D84,range,'COS Alloc Factors'!N$9,FALSE)*$E84 -> -255.4930895 | Q84: -1080517.431
A85: 254 | B85: =$B$7 -> 376 | C85: =$C$7 -> Mains - SD | D85: SD Mains | E85: =H7 -> -50847162.05 | F85: =VLOOKUP($D85,range,'COS Alloc Factors'!D$9,FALSE)*$E85 -> -50510912.79 | G85: =VLOOKUP($D85,range,'COS Alloc Factors'!E$9,FALSE)*$E85 -> 0 | H85: =VLOOKUP($D85,range,'COS Alloc Factors'!F$9,FALSE)*$E85 -> 0 | I85: =VLOOKUP($D85,range,'COS Alloc Factors'!G$9,FALSE)*$E85 -> 0 | J85: =VLOOKUP($D85,range,'COS Alloc Factors'!H$9,FALSE)*$E85 -> -66773.10505 | K85: =VLOOKUP($D85,range,'COS Alloc Factors'!I$9,FALSE)*$E85 -> -4223.064209 | L85: =VLOOKUP($D85,range,'COS Alloc Factors'!J$9,FALSE)*$E85 -> -181715.9727 | M85: =VLOOKUP($D85,range,'COS Alloc Factors'!K$9,FALSE)*$E85 -> -69333.64442 | N85: =VLOOKUP($D85,range,'COS Alloc Factors'!L$9,FALSE)*$E85 -> -8422.218541 | O85: =VLOOKUP($D85,range,'COS Alloc Factors'!M$9,FALSE)*$E85 -> -2233.34295 | P85: =VLOOKUP($D85,range,'COS Alloc Factors'!N$9,FALSE)*$E85 -> -3547.915429 | Q85: -50847162.05
A86: 254 | B86: =B12 -> 380 | C86: Services | D86: Service Lines | E86: =H12 -> -25214931.44 | F86: =VLOOKUP($D86,range,'COS Alloc Factors'!D$9,FALSE)*$E86 -> -24649550.51 | G86: =VLOOKUP($D86,range,'COS Alloc Factors'!E$9,FALSE)*$E86 -> 0 | H86: =VLOOKUP($D86,range,'COS Alloc Factors'!F$9,FALSE)*$E86 -> 0 | I86: =VLOOKUP($D86,range,'COS Alloc Factors'!G$9,FALSE)*$E86 -> 0 | J86: =VLOOKUP($D86,range,'COS Alloc Factors'!H$9,FALSE)*$E86 -> -38144.09705 | K86: =VLOOKUP($D86,range,'COS Alloc Factors'!I$9,FALSE)*$E86 -> -3685.665452 | L86: =VLOOKUP($D86,range,'COS Alloc Factors'!J$9,FALSE)*$E86 -> -117410.9934 | M86: =VLOOKUP($D86,range,'COS Alloc Factors'!K$9,FALSE)*$E86 -> -226905.5857 | N86: =VLOOKUP($D86,range,'COS Alloc Factors'!L$9,FALSE)*$E86 -> -159701.8752 | O86: =VLOOKUP($D86,range,'COS Alloc Factors'!M$9,FALSE)*$E86 -> -17454.04299 | P86: =VLOOKUP($D86,range,'COS Alloc Factors'!N$9,FALSE)*$E86 -> -2078.668217 | Q86: -25214931.44
A87: 254 | B87: 381.2 | C87: Meters & Meter Installation | D87: Meters & Regulators | E87: =H13 -> -22461636.28 | F87: =VLOOKUP($D87,range,'COS Alloc Factors'!D$9,FALSE)*$E87 -> -20461307.41 | G87: =VLOOKUP($D87,range,'COS Alloc Factors'!E$9,FALSE)*$E87 -> 0 | H87: =VLOOKUP($D87,range,'COS Alloc Factors'!F$9,FALSE)*$E87 -> 0 | I87: =VLOOKUP($D87,range,'COS Alloc Factors'!G$9,FALSE)*$E87 -> 0 | J87: =VLOOKUP($D87,range,'COS Alloc Factors'!H$9,FALSE)*$E87 -> -103914.4293 | K87: =VLOOKUP($D87,range,'COS Alloc Factors'!I$9,FALSE)*$E87 -> -32325.22898 | L87: =VLOOKUP($D87,range,'COS Alloc Factors'!J$9,FALSE)*$E87 -> -567726.5287 | M87: =VLOOKUP($D87,range,'COS Alloc Factors'!K$9,FALSE)*$E87 -> -934282.1592 | N87: =VLOOKUP($D87,range,'COS Alloc Factors'!L$9,FALSE)*$E87 -> -280685.291 | O87: =VLOOKUP($D87,range,'COS Alloc Factors'!M$9,FALSE)*$E87 -> -81395.23094 | P87: =VLOOKUP($D87,range,'COS Alloc Factors'!N$9,FALSE)*$E87 -> 0 | Q87: -22461636.28
A88: 254 | B88: 383.4 | C88: House Regulators & Reg Installations | D88: Meters & Regulators | E88: =H14 -> -2405269.375 | F88: =VLOOKUP($D88,range,'COS Alloc Factors'!D$9,FALSE)*$E88 -> -2191067.271 | G88: =VLOOKUP($D88,range,'COS Alloc Factors'!E$9,FALSE)*$E88 -> 0 | H88: =VLOOKUP($D88,range,'COS Alloc Factors'!F$9,FALSE)*$E88 -> 0 | I88: =VLOOKUP($D88,range,'COS Alloc Factors'!G$9,FALSE)*$E88 -> 0 | J88: =VLOOKUP($D88,range,'COS Alloc Factors'!H$9,FALSE)*$E88 -> -11127.51499 | K88: =VLOOKUP($D88,range,'COS Alloc Factors'!I$9,FALSE)*$E88 -> -3461.496854 | L88: =VLOOKUP($D88,range,'COS Alloc Factors'!J$9,FALSE)*$E88 -> -60794.11206 | M88: =VLOOKUP($D88,range,'COS Alloc Factors'!K$9,FALSE)*$E88 -> -100046.1515 | N88: =VLOOKUP($D88,range,'COS Alloc Factors'!L$9,FALSE)*$E88 -> -30056.7477 | O88: =VLOOKUP($D88,range,'COS Alloc Factors'!M$9,FALSE)*$E88 -> -8716.081671 | P88: =VLOOKUP($D88,range,'COS Alloc Factors'!N$9,FALSE)*$E88 -> 0 | Q88: -2405269.375
A89: 254 | B89: 387 | C89: Other Equipment | D89: Direct Distribution Gross Plant | E89: =H15 -> -449026.8078 | F89: =VLOOKUP($D89,range,'COS Alloc Factors'!D$9,FALSE)*$E89 -> -389144.1169 | G89: =VLOOKUP($D89,range,'COS Alloc Factors'!E$9,FALSE)*$E89 -> 0 | H89: =VLOOKUP($D89,range,'COS Alloc Factors'!F$9,FALSE)*$E89 -> 0 | I89: =VLOOKUP($D89,range,'COS Alloc Factors'!G$9,FALSE)*$E89 -> 0 | J89: =VLOOKUP($D89,range,'COS Alloc Factors'!H$9,FALSE)*$E89 -> -2459.684105 | K89: =VLOOKUP($D89,range,'COS Alloc Factors'!I$9,FALSE)*$E89 -> -218.424748 | L89: =VLOOKUP($D89,range,'COS Alloc Factors'!J$9,FALSE)*$E89 -> -12892.32046 | M89: =VLOOKUP($D89,range,'COS Alloc Factors'!K$9,FALSE)*$E89 -> -14980.88788 | N89: =VLOOKUP($D89,range,'COS Alloc Factors'!L$9,FALSE)*$E89 -> -15826.50971 | O89: =VLOOKUP($D89,range,'COS Alloc Factors'!M$9,FALSE)*$E89 -> -13398.6896 | P89: =VLOOKUP($D89,range,'COS Alloc Factors'!N$9,FALSE)*$E89 -> -106.1743597 | Q89: -449026.8078
E90: =SUM(E82:E89) -> -106770668.7 | F90: -102875456.3 | G90: 0 | H90: 0 | I90: 0 | J90: -251958.7096 | K90: -46537.07914 | L90: -1095371.837 | M90: -1525463.246 | N90: -684763.0588 | O90: -284110.6003 | P90: -7007.87205 | Q90: -106770668.7
A92: Throughput
A93: 254 | B93: =$B$8 -> 376 | C93: =$C$8 -> Mains - LD | D93: =$D$35 -> Distribution Throughput | E93: =H8 -> -8453220.702 | F93: =VLOOKUP($D93,range,'COS Alloc Factors'!D$9,FALSE)*$E93 -> -6911918.457 | G93: =VLOOKUP($D93,range,'COS Alloc Factors'!E$9,FALSE)*$E93 -> 0 | H93: =VLOOKUP($D93,range,'COS Alloc Factors'!F$9,FALSE)*$E93 -> 0 | I93: =VLOOKUP($D93,range,'COS Alloc Factors'!G$9,FALSE)*$E93 -> 0 | J93: =VLOOKUP($D93,range,'COS Alloc Factors'!H$9,FALSE)*$E93 -> -129917.8304 | K93: =VLOOKUP($D93,range,'COS Alloc Factors'!I$9,FALSE)*$E93 -> -12229.28894 | L93: =VLOOKUP($D93,range,'COS Alloc Factors'!J$9,FALSE)*$E93 -> -483145.446 | M93: =VLOOKUP($D93,range,'COS Alloc Factors'!K$9,FALSE)*$E93 -> -552729.2598 | N93: =VLOOKUP($D93,range,'COS Alloc Factors'!L$9,FALSE)*$E93 -> -290534.9253 | O93: =VLOOKUP($D93,range,'COS Alloc Factors'!M$9,FALSE)*$E93 -> -64159.08841 | P93: =VLOOKUP($D93,range,'COS Alloc Factors'!N$9,FALSE)*$E93 -> -8586.405508 | Q93: =SUM(F93,J93:P93) -> -8453220.702
A94: 254 | B94: =$B$9 -> 376 | C94: =$C$9 -> Mains - Feeders | D94: =$D$36 -> Winter Throughput | E94: =H9*'COS Input'!N9 -> -31995011.09 | F94: =VLOOKUP($D94,range,'COS Alloc Factors'!D$9,FALSE)*$E94 -> -23149158.29 | G94: =VLOOKUP($D94,range,'COS Alloc Factors'!E$9,FALSE)*$E94 -> 0 | H94: =VLOOKUP($D94,range,'COS Alloc Factors'!F$9,FALSE)*$E94 -> 0 | I94: =VLOOKUP($D94,range,'COS Alloc Factors'!G$9,FALSE)*$E94 -> 0 | J94: =VLOOKUP($D94,range,'COS Alloc Factors'!H$9,FALSE)*$E94 -> -303610.1683 | K94: =VLOOKUP($D94,range,'COS Alloc Factors'!I$9,FALSE)*$E94 -> -36631.60251 | L94: =VLOOKUP($D94,range,'COS Alloc Factors'!J$9,FALSE)*$E94 -> -1471911.189 | M94: =VLOOKUP($D94,range,'COS Alloc Factors'!K$9,FALSE)*$E94 -> -2085344.563 | N94: =VLOOKUP($D94,range,'COS Alloc Factors'!L$9,FALSE)*$E94 -> -3177088.988 | O94: =VLOOKUP($D94,range,'COS Alloc Factors'!M$9,FALSE)*$E94 -> -1754498.88 | P94: =VLOOKUP($D94,range,'COS Alloc Factors'!N$9,FALSE)*$E94 -> -16767.41 | Q94: =SUM(F94,J94:P94) -> -31995011.09
A95: 254 | B95: =$B$10 -> 377 | C95: =$C$10 -> Compressor Station Equipment | D95: =$D$37 -> Winter Throughput | E95: =H10*'COS Input'!N9 -> -295896.6511 | F95: =VLOOKUP($D95,range,'COS Alloc Factors'!D$9,FALSE)*$E95 -> -214088.3275 | G95: =VLOOKUP($D95,range,'COS Alloc Factors'!E$9,FALSE)*$E95 -> 0 | H95: =VLOOKUP($D95,range,'COS Alloc Factors'!F$9,FALSE)*$E95 -> 0 | I95: =VLOOKUP($D95,range,'COS Alloc Factors'!G$9,FALSE)*$E95 -> 0 | J95: =VLOOKUP($D95,range,'COS Alloc Factors'!H$9,FALSE)*$E95 -> -2807.851255 | K95: =VLOOKUP($D95,range,'COS Alloc Factors'!I$9,FALSE)*$E95 -> -338.7768322 | L95: =VLOOKUP($D95,range,'COS Alloc Factors'!J$9,FALSE)*$E95 -> -13612.54698 | M95: =VLOOKUP($D95,range,'COS Alloc Factors'!K$9,FALSE)*$E95 -> -19285.70897 | N95: =VLOOKUP($D95,range,'COS Alloc Factors'!L$9,FALSE)*$E95 -> -29382.39305 | O95: =VLOOKUP($D95,range,'COS Alloc Factors'!M$9,FALSE)*$E95 -> -16225.9779 | P95: =VLOOKUP($D95,range,'COS Alloc Factors'!N$9,FALSE)*$E95 -> -155.0685653 | Q95: =SUM(F95,J95:P95) -> -295896.6511
A96: 254 | B96: =$B$11 -> 378 | C96: =$C$11 -> Measuring & Regulation Station Equip | D96: =$D$38 -> Winter Throughput | E96: =H11*'COS Input'!N9 -> -5575374.233 | F96: =VLOOKUP($D96,range,'COS Alloc Factors'!D$9,FALSE)*$E96 -> -4033917.047 | G96: =VLOOKUP($D96,range,'COS Alloc Factors'!E$9,FALSE)*$E96 -> 0 | H96: =VLOOKUP($D96,range,'COS Alloc Factors'!F$9,FALSE)*$E96 -> 0 | I96: =VLOOKUP($D96,range,'COS Alloc Factors'!G$9,FALSE)*$E96 -> 0 | J96: =VLOOKUP($D96,range,'COS Alloc Factors'!H$9,FALSE)*$E96 -> -52906.38295 | K96: =VLOOKUP($D96,range,'COS Alloc Factors'!I$9,FALSE)*$E96 -> -6383.335581 | L96: =VLOOKUP($D96,range,'COS Alloc Factors'!J$9,FALSE)*$E96 -> -256491.7291 | M96: =VLOOKUP($D96,range,'COS Alloc Factors'!K$9,FALSE)*$E96 -> -363387.1639 | N96: =VLOOKUP($D96,range,'COS Alloc Factors'!L$9,FALSE)*$E96 -> -553631.9405 | O96: =VLOOKUP($D96,range,'COS Alloc Factors'!M$9,FALSE)*$E96 -> -305734.7854 | P96: =VLOOKUP($D96,range,'COS Alloc Factors'!N$9,FALSE)*$E96 -> -2921.848828 | Q96: =SUM(F96,J96:P96) -> -5575374.233
E97: =SUM(E93:E96) -> -46319502.68 | F97: =SUM(F93:F96) -> -34309082.13 | G97: 0 | H97: 0 | I97: 0 | J97: -489242.233 | K97: -55583.00386 | L97: =SUM(L93:L96) -> -2225160.911 | M97: =SUM(M93:M96) -> -3020746.695 | N97: -4050638.247 | O97: -2140618.732 | P97: -28430.7329 | Q97: -46319502.68
A98: Demand
A99: 254 | B99: =$B$9 -> 376 | C99: =$C$9 -> Mains - Feeders | D99: Design Day | E99: =H9*'COS Input'!M9 -> -47992516.64 | F99: =VLOOKUP($D99,range,'COS Alloc Factors'!D$9,FALSE)*$E99 -> -37776687.74 | G99: =VLOOKUP($D99,range,'COS Alloc Factors'!E$9,FALSE)*$E99 -> 0 | H99: =VLOOKUP($D99,range,'COS Alloc Factors'!F$9,FALSE)*$E99 -> 0 | I99: =VLOOKUP($D99,range,'COS Alloc Factors'!G$9,FALSE)*$E99 -> 0 | J99: =VLOOKUP($D99,range,'COS Alloc Factors'!H$9,FALSE)*$E99 -> -344702.1812 | K99: =VLOOKUP($D99,range,'COS Alloc Factors'!I$9,FALSE)*$E99 -> 0 | L99: =VLOOKUP($D99,range,'COS Alloc Factors'!J$9,FALSE)*$E99 -> -2287281.948 | M99: =VLOOKUP($D99,range,'COS Alloc Factors'!K$9,FALSE)*$E99 -> -2076712.943 | N99: =VLOOKUP($D99,range,'COS Alloc Factors'!L$9,FALSE)*$E99 -> -2250909.009 | O99: =VLOOKUP($D99,range,'COS Alloc Factors'!M$9,FALSE)*$E99 -> -3244223.658 | P99: =VLOOKUP($D99,range,'COS Alloc Factors'!N$9,FALSE)*$E99 -> -11999.15875 | Q99: =SUM(F99,J99:P99) -> -47992516.64
A100: 254 | B100: =$B$10 -> 377 | C100: =$C$10 -> Compressor Station Equipment | D100: Design Day | E100: =H10*'COS Input'!M9 -> -443844.9766 | F100: =VLOOKUP($D100,range,'COS Alloc Factors'!D$9,FALSE)*$E100 -> -349366.8234 | G100: =VLOOKUP($D100,range,'COS Alloc Factors'!E$9,FALSE)*$E100 -> 0 | H100: =VLOOKUP($D100,range,'COS Alloc Factors'!F$9,FALSE)*$E100 -> 0 | I100: =VLOOKUP($D100,range,'COS Alloc Factors'!G$9,FALSE)*$E100 -> 0 | J100: =VLOOKUP($D100,range,'COS Alloc Factors'!H$9,FALSE)*$E100 -> -3187.878908 | K100: =VLOOKUP($D100,range,'COS Alloc Factors'!I$9,FALSE)*$E100 -> 0 | L100: =VLOOKUP($D100,range,'COS Alloc Factors'!J$9,FALSE)*$E100 -> -21153.26876 | M100: =VLOOKUP($D100,range,'COS Alloc Factors'!K$9,FALSE)*$E100 -> -19205.88192 | N100: =VLOOKUP($D100,range,'COS Alloc Factors'!L$9,FALSE)*$E100 -> -20816.8841 | O100: =VLOOKUP($D100,range,'COS Alloc Factors'!M$9,FALSE)*$E100 -> -30003.26873 | P100: =VLOOKUP($D100,range,'COS Alloc Factors'!N$9,FALSE)*$E100 -> -110.970766 | Q100: =SUM(F100,J100:P100) -> -443844.9766
A101: 254 | B101: =$B$11 -> 378 | C101: =$C$11 -> Measuring & Regulation Station Equip | D101: Design Day | E101: =H11*'COS Input'!M9 -> -8363061.349 | F101: =VLOOKUP($D101,range,'COS Alloc Factors'!D$9,FALSE)*$E101 -> -6582875.4 | G101: =VLOOKUP($D101,range,'COS Alloc Factors'!E$9,FALSE)*$E101 -> 0 | H101: =VLOOKUP($D101,range,'COS Alloc Factors'!F$9,FALSE)*$E101 -> 0 | I101: =VLOOKUP($D101,range,'COS Alloc Factors'!G$9,FALSE)*$E101 -> 0 | J101: =VLOOKUP($D101,range,'COS Alloc Factors'!H$9,FALSE)*$E101 -> -60066.97899 | K101: =VLOOKUP($D101,range,'COS Alloc Factors'!I$9,FALSE)*$E101 -> 0 | L101: =VLOOKUP($D101,range,'COS Alloc Factors'!J$9,FALSE)*$E101 -> -398576.2905 | M101: =VLOOKUP($D101,range,'COS Alloc Factors'!K$9,FALSE)*$E101 -> -361883.0385 | N101: =VLOOKUP($D101,range,'COS Alloc Factors'!L$9,FALSE)*$E101 -> -392238.0291 | O101: =VLOOKUP($D101,range,'COS Alloc Factors'!M$9,FALSE)*$E101 -> -565330.6679 | P101: =VLOOKUP($D101,range,'COS Alloc Factors'!N$9,FALSE)*$E101 -> -2090.944751 | Q101: =SUM(F101,J101:P101) -> -8363061.349
E102: =SUM(E99:E101) -> -56799422.97 | F102: =SUM(F99:F101) -> -44708929.97 | G102: 0 | H102: 0 | I102: 0 | J102: -407957.0391 | K102: 0 | L102: =SUM(L99:L101) -> -2707011.508 | M102: =SUM(M99:M101) -> -2457801.864 | N102: -2663963.923 | O102: -3839557.595 | P102: -14201.07427 | Q102: -56799422.97
A104: 254 | B104: Accum Prov For Deprec - Distribution Utah | E104: =E90+E97+E102 -> -209889594.3 | F104: =F90+F97+F102 -> -181893468.4 | G104: 0 | H104: 0 | I104: =I90+I97+I102 -> 0 | J104: -1149157.982 | K104: -102120.083 | L104: =L90+L97+L102 -> -6027544.256 | M104: =M90+M97+M102 -> -7004011.805 | N104: -7399365.228 | O104: -6264286.927 | P104: -49639.67922 | Q104: -209889594.3
F105: =F104/$E$104 -> 0.8666149885 | G105: =G104/$E$104 -> 0 | H105: =H104/$E$104 -> 0 | I105: =I104/$E$104 -> 0 | J105: =J104/$E$104 -> 0.00547505933 | K105: 0.0004865419047 | L105: =L104/$E$104 -> 0.02871768977 | M105: =M104/$E$104 -> 0.03336998114 | N105: 0.03525360679 | O105: 0.02984562883 | P105: 0.0002365037647 | Q105: =SUM(F105,J105:P105) -> 1
A108: 282 Allocation to Categories | E108: Jurisdiction
E109: DNG Related | F109: GS | G109: GSS | H109: GSM | I109: GSL | J109: FS | K109: IS | L109: TSS | M109: TSM | N109: TSL | O109: TBF | P109: NGV | Q109: Total
A110: Distribution Plant
A111: 282 | B111: =B4 -> 302 | C111: Intangible Plant | D111: =D25 -> Direct Distribution Gross Plant | E111: =I$4 -> 0 | F111: =VLOOKUP($D111,range,'COS Alloc Factors'!D$9,FALSE)*$E111 -> 0 | G111: =VLOOKUP($D111,range,'COS Alloc Factors'!E$9,FALSE)*$E111 -> 0 | H111: =VLOOKUP($D111,range,'COS Alloc Factors'!F$9,FALSE)*$E111 -> 0 | I111: =VLOOKUP($D111,range,'COS Alloc Factors'!G$9,FALSE)*$E111 -> 0 | J111: =VLOOKUP($D111,range,'COS Alloc Factors'!H$9,FALSE)*$E111 -> 0 | K111: =VLOOKUP($D111,range,'COS Alloc Factors'!I$9,FALSE)*$E111 -> 0 | L111: =VLOOKUP($D111,range,'COS Alloc Factors'!J$9,FALSE)*$E111 -> 0 | M111: =VLOOKUP($D111,range,'COS Alloc Factors'!K$9,FALSE)*$E111 -> 0 | N111: =VLOOKUP($D111,range,'COS Alloc Factors'!L$9,FALSE)*$E111 -> 0 | O111: =VLOOKUP($D111,range,'COS Alloc Factors'!M$9,FALSE)*$E111 -> 0 | P111: =VLOOKUP($D111,range,'COS Alloc Factors'!N$9,FALSE)*$E111 -> 0 | Q111: =SUM(F111,J111:P111) -> 0
A112: 282 | B112: 374 | C112: Land & Land Rights | D112: Direct Distribution Gross Plant | E112: =I$5 -> 0 | F112: =VLOOKUP($D112,range,'COS Alloc Factors'!D$9,FALSE)*$E112 -> 0 | G112: =VLOOKUP($D112,range,'COS Alloc Factors'!E$9,FALSE)*$E112 -> 0 | H112: =VLOOKUP($D112,range,'COS Alloc Factors'!F$9,FALSE)*$E112 -> 0 | I112: =VLOOKUP($D112,range,'COS Alloc Factors'!G$9,FALSE)*$E112 -> 0 | J112: =VLOOKUP($D112,range,'COS Alloc Factors'!H$9,FALSE)*$E112 -> 0 | K112: =VLOOKUP($D112,range,'COS Alloc Factors'!I$9,FALSE)*$E112 -> 0 | L112: =VLOOKUP($D112,range,'COS Alloc Factors'!J$9,FALSE)*$E112 -> 0 | M112: =VLOOKUP($D112,range,'COS Alloc Factors'!K$9,FALSE)*$E112 -> 0 | N112: =VLOOKUP($D112,range,'COS Alloc Factors'!L$9,FALSE)*$E112 -> 0 | O112: =VLOOKUP($D112,range,'COS Alloc Factors'!M$9,FALSE)*$E112 -> 0 | P112: =VLOOKUP($D112,range,'COS Alloc Factors'!N$9,FALSE)*$E112 -> 0 | Q112: 0
A113: 282 | B113: 375 | C113: Structures & Improvements | D113: Direct Distribution Gross Plant | E113: =I$6 -> 0 | F113: =VLOOKUP($D113,range,'COS Alloc Factors'!D$9,FALSE)*$E113 -> 0 | G113: =VLOOKUP($D113,range,'COS Alloc Factors'!E$9,FALSE)*$E113 -> 0 | H113: =VLOOKUP($D113,range,'COS Alloc Factors'!F$9,FALSE)*$E113 -> 0 | I113: =VLOOKUP($D113,range,'COS Alloc Factors'!G$9,FALSE)*$E113 -> 0 | J113: =VLOOKUP($D113,range,'COS Alloc Factors'!H$9,FALSE)*$E113 -> 0 | K113: =VLOOKUP($D113,range,'COS Alloc Factors'!I$9,FALSE)*$E113 -> 0 | L113: =VLOOKUP($D113,range,'COS Alloc Factors'!J$9,FALSE)*$E113 -> 0 | M113: =VLOOKUP($D113,range,'COS Alloc Factors'!K$9,FALSE)*$E113 -> 0 | N113: =VLOOKUP($D113,range,'COS Alloc Factors'!L$9,FALSE)*$E113 -> 0 | O113: =VLOOKUP($D113,range,'COS Alloc Factors'!M$9,FALSE)*$E113 -> 0 | P113: =VLOOKUP($D113,range,'COS Alloc Factors'!N$9,FALSE)*$E113 -> 0 | Q113: 0
A114: 282 | B114: 376 | C114: Mains - SD | D114: SD Mains | E114: =I$7 -> 0 | F114: =VLOOKUP($D114,range,'COS Alloc Factors'!D$9,FALSE)*$E114 -> 0 | G114: =VLOOKUP($D114,range,'COS Alloc Factors'!E$9,FALSE)*$E114 -> 0 | H114: =VLOOKUP($D114,range,'COS Alloc Factors'!F$9,FALSE)*$E114 -> 0 | I114: =VLOOKUP($D114,range,'COS Alloc Factors'!G$9,FALSE)*$E114 -> 0 | J114: =VLOOKUP($D114,range,'COS Alloc Factors'!H$9,FALSE)*$E114 -> 0 | K114: =VLOOKUP($D114,range,'COS Alloc Factors'!I$9,FALSE)*$E114 -> 0 | L114: =VLOOKUP($D114,range,'COS Alloc Factors'!J$9,FALSE)*$E114 -> 0 | M114: =VLOOKUP($D114,range,'COS Alloc Factors'!K$9,FALSE)*$E114 -> 0 | N114: =VLOOKUP($D114,range,'COS Alloc Factors'!L$9,FALSE)*$E114 -> 0 | O114: =VLOOKUP($D114,range,'COS Alloc Factors'!M$9,FALSE)*$E114 -> 0 | P114: =VLOOKUP($D114,range,'COS Alloc Factors'!N$9,FALSE)*$E114 -> 0 | Q114: 0
A115: 282 | B115: 376 | C115: Mains - LD | D115: Service Lines | E115: =I$12 -> 0 | F115: =VLOOKUP($D115,range,'COS Alloc Factors'!D$9,FALSE)*$E115 -> 0 | G115: =VLOOKUP($D115,range,'COS Alloc Factors'!E$9,FALSE)*$E115 -> 0 | H115: =VLOOKUP($D115,range,'COS Alloc Factors'!F$9,FALSE)*$E115 -> 0 | I115: =VLOOKUP($D115,range,'COS Alloc Factors'!G$9,FALSE)*$E115 -> 0 | J115: =VLOOKUP($D115,range,'COS Alloc Factors'!H$9,FALSE)*$E115 -> 0 | K115: =VLOOKUP($D115,range,'COS Alloc Factors'!I$9,FALSE)*$E115 -> 0 | L115: =VLOOKUP($D115,range,'COS Alloc Factors'!J$9,FALSE)*$E115 -> 0 | M115: =VLOOKUP($D115,range,'COS Alloc Factors'!K$9,FALSE)*$E115 -> 0 | N115: =VLOOKUP($D115,range,'COS Alloc Factors'!L$9,FALSE)*$E115 -> 0 | O115: =VLOOKUP($D115,range,'COS Alloc Factors'!M$9,FALSE)*$E115 -> 0 | P115: =VLOOKUP($D115,range,'COS Alloc Factors'!N$9,FALSE)*$E115 -> 0 | Q115: 0
A116: 282 | B116: 376 | C116: Mains - Feeders | D116: Meters & Regulators | E116: =I$13 -> 0 | F116: =VLOOKUP($D116,range,'COS Alloc Factors'!D$9,FALSE)*$E116 -> 0 | G116: =VLOOKUP($D116,range,'COS Alloc Factors'!E$9,FALSE)*$E116 -> 0 | H116: =VLOOKUP($D116,range,'COS Alloc Factors'!F$9,FALSE)*$E116 -> 0 | I116: =VLOOKUP($D116,range,'COS Alloc Factors'!G$9,FALSE)*$E116 -> 0 | J116: =VLOOKUP($D116,range,'COS Alloc Factors'!H$9,FALSE)*$E116 -> 0 | K116: =VLOOKUP($D116,range,'COS Alloc Factors'!I$9,FALSE)*$E116 -> 0 | L116: =VLOOKUP($D116,range,'COS Alloc Factors'!J$9,FALSE)*$E116 -> 0 | M116: =VLOOKUP($D116,range,'COS Alloc Factors'!K$9,FALSE)*$E116 -> 0 | N116: =VLOOKUP($D116,range,'COS Alloc Factors'!L$9,FALSE)*$E116 -> 0 | O116: =VLOOKUP($D116,range,'COS Alloc Factors'!M$9,FALSE)*$E116 -> 0 | P116: =VLOOKUP($D116,range,'COS Alloc Factors'!N$9,FALSE)*$E116 -> 0 | Q116: 0
A117: 282 | B117: 377 | C117: Compressor Station Equipment | D117: Meters & Regulators | E117: =I$14 -> 0 | F117: =VLOOKUP($D117,range,'COS Alloc Factors'!D$9,FALSE)*$E117 -> 0 | G117: =VLOOKUP($D117,range,'COS Alloc Factors'!E$9,FALSE)*$E117 -> 0 | H117: =VLOOKUP($D117,range,'COS Alloc Factors'!F$9,FALSE)*$E117 -> 0 | I117: =VLOOKUP($D117,range,'COS Alloc Factors'!G$9,FALSE)*$E117 -> 0 | J117: =VLOOKUP($D117,range,'COS Alloc Factors'!H$9,FALSE)*$E117 -> 0 | K117: =VLOOKUP($D117,range,'COS Alloc Factors'!I$9,FALSE)*$E117 -> 0 | L117: =VLOOKUP($D117,range,'COS Alloc Factors'!J$9,FALSE)*$E117 -> 0 | M117: =VLOOKUP($D117,range,'COS Alloc Factors'!K$9,FALSE)*$E117 -> 0 | N117: =VLOOKUP($D117,range,'COS Alloc Factors'!L$9,FALSE)*$E117 -> 0 | O117: =VLOOKUP($D117,range,'COS Alloc Factors'!M$9,FALSE)*$E117 -> 0 | P117: =VLOOKUP($D117,range,'COS Alloc Factors'!N$9,FALSE)*$E117 -> 0 | Q117: 0
A118: 282 | B118: 378 | C118: Measuring & Regulation Station Equip | D118: Direct Distribution Gross Plant | E118: =I$15 -> 0 | F118: =VLOOKUP($D118,range,'COS Alloc Factors'!D$9,FALSE)*$E118 -> 0 | G118: =VLOOKUP($D118,range,'COS Alloc Factors'!E$9,FALSE)*$E118 -> 0 | H118: =VLOOKUP($D118,range,'COS Alloc Factors'!F$9,FALSE)*$E118 -> 0 | I118: =VLOOKUP($D118,range,'COS Alloc Factors'!G$9,FALSE)*$E118 -> 0 | J118: =VLOOKUP($D118,range,'COS Alloc Factors'!H$9,FALSE)*$E118 -> 0 | K118: =VLOOKUP($D118,range,'COS Alloc Factors'!I$9,FALSE)*$E118 -> 0 | L118: =VLOOKUP($D118,range,'COS Alloc Factors'!J$9,FALSE)*$E118 -> 0 | M118: =VLOOKUP($D118,range,'COS Alloc Factors'!K$9,FALSE)*$E118 -> 0 | N118: =VLOOKUP($D118,range,'COS Alloc Factors'!L$9,FALSE)*$E118 -> 0 | O118: =VLOOKUP($D118,range,'COS Alloc Factors'!M$9,FALSE)*$E118 -> 0 | P118: =VLOOKUP($D118,range,'COS Alloc Factors'!N$9,FALSE)*$E118 -> 0 | Q118: 0
E119: =SUM(E111:E118) -> 0 | F119: 0 | G119: 0 | H119: 0 | I119: 0 | J119: 0 | K119: 0 | L119: 0 | M119: 0 | N119: 0 | O119: 0 | P119: 0 | Q119: 0
A120: Throughput
A121: 282 | B121: =B93 -> 376 | C121: =C93 -> Mains - LD | D121: Distribution Throughput | E121: =I$8 -> 0 | F121: =VLOOKUP($D121,range,'COS Alloc Factors'!D$9,FALSE)*$E121 -> 0 | G121: =VLOOKUP($D121,range,'COS Alloc Factors'!E$9,FALSE)*$E121 -> 0 | H121: =VLOOKUP($D121,range,'COS Alloc Factors'!F$9,FALSE)*$E121 -> 0 | I121: =VLOOKUP($D121,range,'COS Alloc Factors'!G$9,FALSE)*$E121 -> 0 | J121: =VLOOKUP($D121,range,'COS Alloc Factors'!H$9,FALSE)*$E121 -> 0 | K121: =VLOOKUP($D121,range,'COS Alloc Factors'!I$9,FALSE)*$E121 -> 0 | L121: =VLOOKUP($D121,range,'COS Alloc Factors'!J$9,FALSE)*$E121 -> 0 | M121: =VLOOKUP($D121,range,'COS Alloc Factors'!K$9,FALSE)*$E121 -> 0 | N121: =VLOOKUP($D121,range,'COS Alloc Factors'!L$9,FALSE)*$E121 -> 0 | O121: =VLOOKUP($D121,range,'COS Alloc Factors'!M$9,FALSE)*$E121 -> 0 | P121: =VLOOKUP($D121,range,'COS Alloc Factors'!N$9,FALSE)*$E121 -> 0 | Q121: =SUM(F121,J121:P121) -> 0
A122: 282 | B122: =$B$9 -> 376 | C122: =$C$9 -> Mains - Feeders | D122: Throughput | E122: =I$9*'COS Input'!N$9 -> 0 | F122: =VLOOKUP($D122,range,'COS Alloc Factors'!D$9,FALSE)*$E122 -> 0 | G122: =VLOOKUP($D122,range,'COS Alloc Factors'!E$9,FALSE)*$E122 -> 0 | H122: =VLOOKUP($D122,range,'COS Alloc Factors'!F$9,FALSE)*$E122 -> 0 | I122: =VLOOKUP($D122,range,'COS Alloc Factors'!G$9,FALSE)*$E122 -> 0 | J122: =VLOOKUP($D122,range,'COS Alloc Factors'!H$9,FALSE)*$E122 -> 0 | K122: =VLOOKUP($D122,range,'COS Alloc Factors'!I$9,FALSE)*$E122 -> 0 | L122: =VLOOKUP($D122,range,'COS Alloc Factors'!J$9,FALSE)*$E122 -> 0 | M122: =VLOOKUP($D122,range,'COS Alloc Factors'!K$9,FALSE)*$E122 -> 0 | N122: =VLOOKUP($D122,range,'COS Alloc Factors'!L$9,FALSE)*$E122 -> 0 | O122: =VLOOKUP($D122,range,'COS Alloc Factors'!M$9,FALSE)*$E122 -> 0 | P122: =VLOOKUP($D122,range,'COS Alloc Factors'!N$9,FALSE)*$E122 -> 0 | Q122: =SUM(F122,J122:P122) -> 0
A123: 282 | B123: =$B$10 -> 377 | C123: =$C$10 -> Compressor Station Equipment | D123: Throughput | E123: =I$10*'COS Input'!N$9 -> 0 | F123: =VLOOKUP($D123,range,'COS Alloc Factors'!D$9,FALSE)*$E123 -> 0 | G123: =VLOOKUP($D123,range,'COS Alloc Factors'!E$9,FALSE)*$E123 -> 0 | H123: =VLOOKUP($D123,range,'COS Alloc Factors'!F$9,FALSE)*$E123 -> 0 | I123: =VLOOKUP($D123,range,'COS Alloc Factors'!G$9,FALSE)*$E123 -> 0 | J123: =VLOOKUP($D123,range,'COS Alloc Factors'!H$9,FALSE)*$E123 -> 0 | K123: =VLOOKUP($D123,range,'COS Alloc Factors'!I$9,FALSE)*$E123 -> 0 | L123: =VLOOKUP($D123,range,'COS Alloc Factors'!J$9,FALSE)*$E123 -> 0 | M123: =VLOOKUP($D123,range,'COS Alloc Factors'!K$9,FALSE)*$E123 -> 0 | N123: =VLOOKUP($D123,range,'COS Alloc Factors'!L$9,FALSE)*$E123 -> 0 | O123: =VLOOKUP($D123,range,'COS Alloc Factors'!M$9,FALSE)*$E123 -> 0 | P123: =VLOOKUP($D123,range,'COS Alloc Factors'!N$9,FALSE)*$E123 -> 0 | Q123: =SUM(F123,J123:P123) -> 0
A124: 282 | B124: =$B$11 -> 378 | C124: =$C$11 -> Measuring & Regulation Station Equip | D124: Throughput | E124: =I$11*'COS Input'!N$9 -> 0 | F124: =VLOOKUP($D124,range,'COS Alloc Factors'!D$9,FALSE)*$E124 -> 0 | G124: =VLOOKUP($D124,range,'COS Alloc Factors'!E$9,FALSE)*$E124 -> 0 | H124: =VLOOKUP($D124,range,'COS Alloc Factors'!F$9,FALSE)*$E124 -> 0 | I124: =VLOOKUP($D124,range,'COS Alloc Factors'!G$9,FALSE)*$E124 -> 0 | J124: =VLOOKUP($D124,range,'COS Alloc Factors'!H$9,FALSE)*$E124 -> 0 | K124: =VLOOKUP($D124,range,'COS Alloc Factors'!I$9,FALSE)*$E124 -> 0 | L124: =VLOOKUP($D124,range,'COS Alloc Factors'!J$9,FALSE)*$E124 -> 0 | M124: =VLOOKUP($D124,range,'COS Alloc Factors'!K$9,FALSE)*$E124 -> 0 | N124: =VLOOKUP($D124,range,'COS Alloc Factors'!L$9,FALSE)*$E124 -> 0 | O124: =VLOOKUP($D124,range,'COS Alloc Factors'!M$9,FALSE)*$E124 -> 0 | P124: =VLOOKUP($D124,range,'COS Alloc Factors'!N$9,FALSE)*$E124 -> 0 | Q124: =SUM(F124,J124:P124) -> 0
E125: =SUM(E121:E124) -> 0 | F125: =SUM(F121:F124) -> 0 | G125: 0 | H125: 0 | I125: 0 | J125: 0 | K125: 0 | L125: 0 | M125: =SUM(M121:M124) -> 0 | N125: 0 | O125: 0 | P125: 0 | Q125: =SUM(Q121:Q124) -> 0
A126: Demand
A127: 282 | B127: =$B$9 -> 376 | C127: =$C$9 -> Mains - Feeders | D127: Design Day | E127: =I$9*'COS Input'!M$9 -> 0 | F127: =VLOOKUP($D127,range,'COS Alloc Factors'!D$9,FALSE)*$E127 -> 0 | G127: =VLOOKUP($D127,range,'COS Alloc Factors'!E$9,FALSE)*$E127 -> 0 | H127: =VLOOKUP($D127,range,'COS Alloc Factors'!F$9,FALSE)*$E127 -> 0 | I127: =VLOOKUP($D127,range,'COS Alloc Factors'!G$9,FALSE)*$E127 -> 0 | J127: =VLOOKUP($D127,range,'COS Alloc Factors'!H$9,FALSE)*$E127 -> 0 | K127: =VLOOKUP($D127,range,'COS Alloc Factors'!I$9,FALSE)*$E127 -> 0 | L127: =VLOOKUP($D127,range,'COS Alloc Factors'!J$9,FALSE)*$E127 -> 0 | M127: =VLOOKUP($D127,range,'COS Alloc Factors'!K$9,FALSE)*$E127 -> 0 | N127: =VLOOKUP($D127,range,'COS Alloc Factors'!L$9,FALSE)*$E127 -> 0 | O127: =VLOOKUP($D127,range,'COS Alloc Factors'!M$9,FALSE)*$E127 -> 0 | P127: =VLOOKUP($D127,range,'COS Alloc Factors'!N$9,FALSE)*$E127 -> 0 | Q127: =SUM(F127,J127:P127) -> 0
A128: 282 | B128: =$B$10 -> 377 | C128: =$C$10 -> Compressor Station Equipment | D128: Design Day | E128: =I$10*'COS Input'!M$9 -> 0 | F128: =VLOOKUP($D128,range,'COS Alloc Factors'!D$9,FALSE)*$E128 -> 0 | G128: =VLOOKUP($D128,range,'COS Alloc Factors'!E$9,FALSE)*$E128 -> 0 | H128: =VLOOKUP($D128,range,'COS Alloc Factors'!F$9,FALSE)*$E128 -> 0 | I128: =VLOOKUP($D128,range,'COS Alloc Factors'!G$9,FALSE)*$E128 -> 0 | J128: =VLOOKUP($D128,range,'COS Alloc Factors'!H$9,FALSE)*$E128 -> 0 | K128: =VLOOKUP($D128,range,'COS Alloc Factors'!I$9,FALSE)*$E128 -> 0 | L128: =VLOOKUP($D128,range,'COS Alloc Factors'!J$9,FALSE)*$E128 -> 0 | M128: =VLOOKUP($D128,range,'COS Alloc Factors'!K$9,FALSE)*$E128 -> 0 | N128: =VLOOKUP($D128,range,'COS Alloc Factors'!L$9,FALSE)*$E128 -> 0 | O128: =VLOOKUP($D128,range,'COS Alloc Factors'!M$9,FALSE)*$E128 -> 0 | P128: =VLOOKUP($D128,range,'COS Alloc Factors'!N$9,FALSE)*$E128 -> 0 | Q128: =SUM(F128,J128:P128) -> 0
A129: 282 | B129: =$B$11 -> 378 | C129: =$C$11 -> Measuring & Regulation Station Equip | D129: Design Day | E129: =I$11*'COS Input'!M$9 -> 0 | F129: =VLOOKUP($D129,range,'COS Alloc Factors'!D$9,FALSE)*$E129 -> 0 | G129: =VLOOKUP($D129,range,'COS Alloc Factors'!E$9,FALSE)*$E129 -> 0 | H129: =VLOOKUP($D129,range,'COS Alloc Factors'!F$9,FALSE)*$E129 -> 0 | I129: =VLOOKUP($D129,range,'COS Alloc Factors'!G$9,FALSE)*$E129 -> 0 | J129: =VLOOKUP($D129,range,'COS Alloc Factors'!H$9,FALSE)*$E129 -> 0 | K129: =VLOOKUP($D129,range,'COS Alloc Factors'!I$9,FALSE)*$E129 -> 0 | L129: =VLOOKUP($D129,range,'COS Alloc Factors'!J$9,FALSE)*$E129 -> 0 | M129: =VLOOKUP($D129,range,'COS Alloc Factors'!K$9,FALSE)*$E129 -> 0 | N129: =VLOOKUP($D129,range,'COS Alloc Factors'!L$9,FALSE)*$E129 -> 0 | O129: =VLOOKUP($D129,range,'COS Alloc Factors'!M$9,FALSE)*$E129 -> 0 | P129: =VLOOKUP($D129,range,'COS Alloc Factors'!N$9,FALSE)*$E129 -> 0 | Q129: =SUM(F129,J129:P129) -> 0
E130: =SUM(E127:E129) -> 0 | F130: =SUM(F127:F129) -> 0 | G130: =SUM(G127:G129) -> 0 | H130: =SUM(H127:H129) -> 0 | I130: 0 | J130: 0 | K130: 0 | L130: 0 | M130: =SUM(M127:M129) -> 0 | N130: 0 | O130: 0 | P130: 0 | Q130: =SUM(Q127:Q129) -> 0
A132: 282 | B132: Accum Prov For Deprec - Distribution Utah | E132: =E119+E125+E130 -> 0 | F132: =F119+F125+F130 -> 0 | G132: 0 | H132: 0 | I132: 0 | J132: 0 | K132: 0 | L132: 0 | M132: =M119+M125+M130 -> 0 | N132: 0 | O132: 0 | P132: 0 | Q132: =Q119+Q125+Q130 -> 0
F133: =IFERROR(F132/$E$132,0) -> 0 | G133: 0 | H133: 0 | I133: 0 | J133: 0 | K133: 0 | L133: 0 | M133: 0 | N133: 0 | O133: 0 | P133: 0 | Q133: =SUM(F133,J133:P133) -> 0
A136: 283 Allocation to Categories
A138: Distribution Plant
A139: 283 | B139: =B4 -> 302 | C139: Intangible Plant | D139: =D25 -> Direct Distribution Gross Plant | E139: =J$4 -> 0 | F139: =VLOOKUP($D139,range,'COS Alloc Factors'!D$9,FALSE)*$E139 -> 0 | G139: =VLOOKUP($D139,range,'COS Alloc Factors'!E$9,FALSE)*$E139 -> 0 | H139: =VLOOKUP($D139,range,'COS Alloc Factors'!F$9,FALSE)*$E139 -> 0 | I139: =VLOOKUP($D139,range,'COS Alloc Factors'!G$9,FALSE)*$E139 -> 0 | J139: =VLOOKUP($D139,range,'COS Alloc Factors'!H$9,FALSE)*$E139 -> 0 | K139: =VLOOKUP($D139,range,'COS Alloc Factors'!I$9,FALSE)*$E139 -> 0 | L139: =VLOOKUP($D139,range,'COS Alloc Factors'!J$9,FALSE)*$E139 -> 0 | M139: =VLOOKUP($D139,range,'COS Alloc Factors'!K$9,FALSE)*$E139 -> 0 | N139: =VLOOKUP($D139,range,'COS Alloc Factors'!L$9,FALSE)*$E139 -> 0 | O139: =VLOOKUP($D139,range,'COS Alloc Factors'!M$9,FALSE)*$E139 -> 0 | P139: =VLOOKUP($D139,range,'COS Alloc Factors'!N$9,FALSE)*$E139 -> 0 | Q139: =SUM(F139,J139:P139) -> 0
A140: 283 | B140: 374 | C140: Land & Land Rights | D140: Direct Distribution Gross Plant | E140: =J$5 -> 0 | F140: =VLOOKUP($D140,range,'COS Alloc Factors'!D$9,FALSE)*$E140 -> 0 | G140: =VLOOKUP($D140,range,'COS Alloc Factors'!E$9,FALSE)*$E140 -> 0 | H140: =VLOOKUP($D140,range,'COS Alloc Factors'!F$9,FALSE)*$E140 -> 0 | I140: =VLOOKUP($D140,range,'COS Alloc Factors'!G$9,FALSE)*$E140 -> 0 | J140: =VLOOKUP($D140,range,'COS Alloc Factors'!H$9,FALSE)*$E140 -> 0 | K140: =VLOOKUP($D140,range,'COS Alloc Factors'!I$9,FALSE)*$E140 -> 0 | L140: =VLOOKUP($D140,range,'COS Alloc Factors'!J$9,FALSE)*$E140 -> 0 | M140: =VLOOKUP($D140,range,'COS Alloc Factors'!K$9,FALSE)*$E140 -> 0 | N140: =VLOOKUP($D140,range,'COS Alloc Factors'!L$9,FALSE)*$E140 -> 0 | O140: =VLOOKUP($D140,range,'COS Alloc Factors'!M$9,FALSE)*$E140 -> 0 | P140: =VLOOKUP($D140,range,'COS Alloc Factors'!N$9,FALSE)*$E140 -> 0 | Q140: 0
A141: 283 | B141: 375 | C141: Structures & Improvements | D141: Direct Distribution Gross Plant | E141: =J$6 -> 0 | F141: =VLOOKUP($D141,range,'COS Alloc Factors'!D$9,FALSE)*$E141 -> 0 | G141: =VLOOKUP($D141,range,'COS Alloc Factors'!E$9,FALSE)*$E141 -> 0 | H141: =VLOOKUP($D141,range,'COS Alloc Factors'!F$9,FALSE)*$E141 -> 0 | I141: =VLOOKUP($D141,range,'COS Alloc Factors'!G$9,FALSE)*$E141 -> 0 | J141: =VLOOKUP($D141,range,'COS Alloc Factors'!H$9,FALSE)*$E141 -> 0 | K141: =VLOOKUP($D141,range,'COS Alloc Factors'!I$9,FALSE)*$E141 -> 0 | L141: =VLOOKUP($D141,range,'COS Alloc Factors'!J$9,FALSE)*$E141 -> 0 | M141: =VLOOKUP($D141,range,'COS Alloc Factors'!K$9,FALSE)*$E141 -> 0 | N141: =VLOOKUP($D141,range,'COS Alloc Factors'!L$9,FALSE)*$E141 -> 0 | O141: =VLOOKUP($D141,range,'COS Alloc Factors'!M$9,FALSE)*$E141 -> 0 | P141: =VLOOKUP($D141,range,'COS Alloc Factors'!N$9,FALSE)*$E141 -> 0 | Q141: 0
A142: 283 | B142: 376 | C142: Mains - SD | D142: SD Mains | E142: =J$7 -> 0 | F142: =VLOOKUP($D142,range,'COS Alloc Factors'!D$9,FALSE)*$E142 -> 0 | G142: =VLOOKUP($D142,range,'COS Alloc Factors'!E$9,FALSE)*$E142 -> 0 | H142: =VLOOKUP($D142,range,'COS Alloc Factors'!F$9,FALSE)*$E142 -> 0 | I142: =VLOOKUP($D142,range,'COS Alloc Factors'!G$9,FALSE)*$E142 -> 0 | J142: =VLOOKUP($D142,range,'COS Alloc Factors'!H$9,FALSE)*$E142 -> 0 | K142: =VLOOKUP($D142,range,'COS Alloc Factors'!I$9,FALSE)*$E142 -> 0 | L142: =VLOOKUP($D142,range,'COS Alloc Factors'!J$9,FALSE)*$E142 -> 0 | M142: =VLOOKUP($D142,range,'COS Alloc Factors'!K$9,FALSE)*$E142 -> 0 | N142: =VLOOKUP($D142,range,'COS Alloc Factors'!L$9,FALSE)*$E142 -> 0 | O142: =VLOOKUP($D142,range,'COS Alloc Factors'!M$9,FALSE)*$E142 -> 0 | P142: =VLOOKUP($D142,range,'COS Alloc Factors'!N$9,FALSE)*$E142 -> 0 | Q142: 0
A143: 283 | B143: 376 | C143: Mains - LD | D143: Service Lines | E143: =J$12 -> 0 | F143: =VLOOKUP($D143,range,'COS Alloc Factors'!D$9,FALSE)*$E143 -> 0 | G143: =VLOOKUP($D143,range,'COS Alloc Factors'!E$9,FALSE)*$E143 -> 0 | H143: =VLOOKUP($D143,range,'COS Alloc Factors'!F$9,FALSE)*$E143 -> 0 | I143: =VLOOKUP($D143,range,'COS Alloc Factors'!G$9,FALSE)*$E143 -> 0 | J143: =VLOOKUP($D143,range,'COS Alloc Factors'!H$9,FALSE)*$E143 -> 0 | K143: =VLOOKUP($D143,range,'COS Alloc Factors'!I$9,FALSE)*$E143 -> 0 | L143: =VLOOKUP($D143,range,'COS Alloc Factors'!J$9,FALSE)*$E143 -> 0 | M143: =VLOOKUP($D143,range,'COS Alloc Factors'!K$9,FALSE)*$E143 -> 0 | N143: =VLOOKUP($D143,range,'COS Alloc Factors'!L$9,FALSE)*$E143 -> 0 | O143: =VLOOKUP($D143,range,'COS Alloc Factors'!M$9,FALSE)*$E143 -> 0 | P143: =VLOOKUP($D143,range,'COS Alloc Factors'!N$9,FALSE)*$E143 -> 0 | Q143: 0
A144: 283 | B144: 376 | C144: Mains - Feeders | D144: Meters & Regulators | E144: =J$13 -> 0 | F144: =VLOOKUP($D144,range,'COS Alloc Factors'!D$9,FALSE)*$E144 -> 0 | G144: =VLOOKUP($D144,range,'COS Alloc Factors'!E$9,FALSE)*$E144 -> 0 | H144: =VLOOKUP($D144,range,'COS Alloc Factors'!F$9,FALSE)*$E144 -> 0 | I144: =VLOOKUP($D144,range,'COS Alloc Factors'!G$9,FALSE)*$E144 -> 0 | J144: =VLOOKUP($D144,range,'COS Alloc Factors'!H$9,FALSE)*$E144 -> 0 | K144: =VLOOKUP($D144,range,'COS Alloc Factors'!I$9,FALSE)*$E144 -> 0 | L144: =VLOOKUP($D144,range,'COS Alloc Factors'!J$9,FALSE)*$E144 -> 0 | M144: =VLOOKUP($D144,range,'COS Alloc Factors'!K$9,FALSE)*$E144 -> 0 | N144: =VLOOKUP($D144,range,'COS Alloc Factors'!L$9,FALSE)*$E144 -> 0 | O144: =VLOOKUP($D144,range,'COS Alloc Factors'!M$9,FALSE)*$E144 -> 0 | P144: =VLOOKUP($D144,range,'COS Alloc Factors'!N$9,FALSE)*$E144 -> 0 | Q144: 0
A145: 283 | B145: 377 | C145: Compressor Station Equipment | D145: Meters & Regulators | E145: =J$14 -> 0 | F145: =VLOOKUP($D145,range,'COS Alloc Factors'!D$9,FALSE)*$E145 -> 0 | G145: =VLOOKUP($D145,range,'COS Alloc Factors'!E$9,FALSE)*$E145 -> 0 | H145: =VLOOKUP($D145,range,'COS Alloc Factors'!F$9,FALSE)*$E145 -> 0 | I145: =VLOOKUP($D145,range,'COS Alloc Factors'!G$9,FALSE)*$E145 -> 0 | J145: =VLOOKUP($D145,range,'COS Alloc Factors'!H$9,FALSE)*$E145 -> 0 | K145: =VLOOKUP($D145,range,'COS Alloc Factors'!I$9,FALSE)*$E145 -> 0 | L145: =VLOOKUP($D145,range,'COS Alloc Factors'!J$9,FALSE)*$E145 -> 0 | M145: =VLOOKUP($D145,range,'COS Alloc Factors'!K$9,FALSE)*$E145 -> 0 | N145: =VLOOKUP($D145,range,'COS Alloc Factors'!L$9,FALSE)*$E145 -> 0 | O145: =VLOOKUP($D145,range,'COS Alloc Factors'!M$9,FALSE)*$E145 -> 0 | P145: =VLOOKUP($D145,range,'COS Alloc Factors'!N$9,FALSE)*$E145 -> 0 | Q145: 0
A146: 283 | B146: 378 | C146: Measuring & Regulation Station Equip | D146: Direct Distribution Gross Plant | E146: =J$15 -> 0 | F146: =VLOOKUP($D146,range,'COS Alloc Factors'!D$9,FALSE)*$E146 -> 0 | G146: =VLOOKUP($D146,range,'COS Alloc Factors'!E$9,FALSE)*$E146 -> 0 | H146: =VLOOKUP($D146,range,'COS Alloc Factors'!F$9,FALSE)*$E146 -> 0 | I146: =VLOOKUP($D146,range,'COS Alloc Factors'!G$9,FALSE)*$E146 -> 0 | J146: =VLOOKUP($D146,range,'COS Alloc Factors'!H$9,FALSE)*$E146 -> 0 | K146: =VLOOKUP($D146,range,'COS Alloc Factors'!I$9,FALSE)*$E146 -> 0 | L146: =VLOOKUP($D146,range,'COS Alloc Factors'!J$9,FALSE)*$E146 -> 0 | M146: =VLOOKUP($D146,range,'COS Alloc Factors'!K$9,FALSE)*$E146 -> 0 | N146: =VLOOKUP($D146,range,'COS Alloc Factors'!L$9,FALSE)*$E146 -> 0 | O146: =VLOOKUP($D146,range,'COS Alloc Factors'!M$9,FALSE)*$E146 -> 0 | P146: =VLOOKUP($D146,range,'COS Alloc Factors'!N$9,FALSE)*$E146 -> 0 | Q146: 0
E147: =SUM(E139:E146) -> 0 | F147: 0 | G147: 0 | H147: 0 | I147: 0 | J147: 0 | K147: 0 | L147: 0 | M147: 0 | N147: 0 | O147: 0 | P147: 0 | Q147: 0
A148: Throughput
A149: 283 | B149: =B121 -> 376 | C149: =C121 -> Mains - LD | D149: Distribution Throughput | E149: =J$8 -> 0 | F149: =VLOOKUP($D149,range,'COS Alloc Factors'!D$9,FALSE)*$E149 -> 0 | G149: =VLOOKUP($D149,range,'COS Alloc Factors'!E$9,FALSE)*$E149 -> 0 | H149: =VLOOKUP($D149,range,'COS Alloc Factors'!F$9,FALSE)*$E149 -> 0 | I149: =VLOOKUP($D149,range,'COS Alloc Factors'!G$9,FALSE)*$E149 -> 0 | J149: =VLOOKUP($D149,range,'COS Alloc Factors'!H$9,FALSE)*$E149 -> 0 | K149: =VLOOKUP($D149,range,'COS Alloc Factors'!I$9,FALSE)*$E149 -> 0 | L149: =VLOOKUP($D149,range,'COS Alloc Factors'!J$9,FALSE)*$E149 -> 0 | M149: =VLOOKUP($D149,range,'COS Alloc Factors'!K$9,FALSE)*$E149 -> 0 | N149: =VLOOKUP($D149,range,'COS Alloc Factors'!L$9,FALSE)*$E149 -> 0 | O149: =VLOOKUP($D149,range,'COS Alloc Factors'!M$9,FALSE)*$E149 -> 0 | P149: =VLOOKUP($D149,range,'COS Alloc Factors'!N$9,FALSE)*$E149 -> 0 | Q149: =SUM(F149,J149:P149) -> 0
A150: 283 | B150: =$B$9 -> 376 | C150: =$C$9 -> Mains - Feeders | D150: Throughput | E150: =J$9*'COS Input'!N$9 -> 0 | F150: =VLOOKUP($D150,range,'COS Alloc Factors'!D$9,FALSE)*$E150 -> 0 | G150: =VLOOKUP($D150,range,'COS Alloc Factors'!E$9,FALSE)*$E150 -> 0 | H150: =VLOOKUP($D150,range,'COS Alloc Factors'!F$9,FALSE)*$E150 -> 0 | I150: =VLOOKUP($D150,range,'COS Alloc Factors'!G$9,FALSE)*$E150 -> 0 | J150: =VLOOKUP($D150,range,'COS Alloc Factors'!H$9,FALSE)*$E150 -> 0 | K150: =VLOOKUP($D150,range,'COS Alloc Factors'!I$9,FALSE)*$E150 -> 0 | L150: =VLOOKUP($D150,range,'COS Alloc Factors'!J$9,FALSE)*$E150 -> 0 | M150: =VLOOKUP($D150,range,'COS Alloc Factors'!K$9,FALSE)*$E150 -> 0 | N150: =VLOOKUP($D150,range,'COS Alloc Factors'!L$9,FALSE)*$E150 -> 0 | O150: =VLOOKUP($D150,range,'COS Alloc Factors'!M$9,FALSE)*$E150 -> 0 | P150: =VLOOKUP($D150,range,'COS Alloc Factors'!N$9,FALSE)*$E150 -> 0 | Q150: =SUM(F150,J150:P150) -> 0
A151: 283 | B151: =$B$10 -> 377 | C151: =$C$10 -> Compressor Station Equipment | D151: Throughput | E151: =J$10*'COS Input'!N$9 -> 0 | F151: =VLOOKUP($D151,range,'COS Alloc Factors'!D$9,FALSE)*$E151 -> 0 | G151: =VLOOKUP($D151,range,'COS Alloc Factors'!E$9,FALSE)*$E151 -> 0 | H151: =VLOOKUP($D151,range,'COS Alloc Factors'!F$9,FALSE)*$E151 -> 0 | I151: =VLOOKUP($D151,range,'COS Alloc Factors'!G$9,FALSE)*$E151 -> 0 | J151: =VLOOKUP($D151,range,'COS Alloc Factors'!H$9,FALSE)*$E151 -> 0 | K151: =VLOOKUP($D151,range,'COS Alloc Factors'!I$9,FALSE)*$E151 -> 0 | L151: =VLOOKUP($D151,range,'COS Alloc Factors'!J$9,FALSE)*$E151 -> 0 | M151: =VLOOKUP($D151,range,'COS Alloc Factors'!K$9,FALSE)*$E151 -> 0 | N151: =VLOOKUP($D151,range,'COS Alloc Factors'!L$9,FALSE)*$E151 -> 0 | O151: =VLOOKUP($D151,range,'COS Alloc Factors'!M$9,FALSE)*$E151 -> 0 | P151: =VLOOKUP($D151,range,'COS Alloc Factors'!N$9,FALSE)*$E151 -> 0 | Q151: =SUM(F151,J151:P151) -> 0
A152: 283 | B152: =$B$11 -> 378 | C152: =$C$11 -> Measuring & Regulation Station Equip | D152: Throughput | E152: =J$11*'COS Input'!N$9 -> 0 | F152: =VLOOKUP($D152,range,'COS Alloc Factors'!D$9,FALSE)*$E152 -> 0 | G152: =VLOOKUP($D152,range,'COS Alloc Factors'!E$9,FALSE)*$E152 -> 0 | H152: =VLOOKUP($D152,range,'COS Alloc Factors'!F$9,FALSE)*$E152 -> 0 | I152: =VLOOKUP($D152,range,'COS Alloc Factors'!G$9,FALSE)*$E152 -> 0 | J152: =VLOOKUP($D152,range,'COS Alloc Factors'!H$9,FALSE)*$E152 -> 0 | K152: =VLOOKUP($D152,range,'COS Alloc Factors'!I$9,FALSE)*$E152 -> 0 | L152: =VLOOKUP($D152,range,'COS Alloc Factors'!J$9,FALSE)*$E152 -> 0 | M152: =VLOOKUP($D152,range,'COS Alloc Factors'!K$9,FALSE)*$E152 -> 0 | N152: =VLOOKUP($D152,range,'COS Alloc Factors'!L$9,FALSE)*$E152 -> 0 | O152: =VLOOKUP($D152,range,'COS Alloc Factors'!M$9,FALSE)*$E152 -> 0 | P152: =VLOOKUP($D152,range,'COS Alloc Factors'!N$9,FALSE)*$E152 -> 0 | Q152: =SUM(F152,J152:P152) -> 0
E153: =SUM(E149:E152) -> 0 | F153: =SUM(F149:F152) -> 0 | G153: 0 | H153: 0 | I153: 0 | J153: 0 | K153: 0 | L153: 0 | M153: =SUM(M149:M152) -> 0 | N153: 0 | O153: 0 | P153: 0 | Q153: 0
A154: Demand
A155: 283 | B155: =$B$9 -> 376 | C155: =$C$9 -> Mains - Feeders | D155: Design Day | E155: =J$9*'COS Input'!M$9 -> 0 | F155: =VLOOKUP($D155,range,'COS Alloc Factors'!D$9,FALSE)*$E155 -> 0 | G155: =VLOOKUP($D155,range,'COS Alloc Factors'!E$9,FALSE)*$E155 -> 0 | H155: =VLOOKUP($D155,range,'COS Alloc Factors'!F$9,FALSE)*$E155 -> 0 | I155: =VLOOKUP($D155,range,'COS Alloc Factors'!G$9,FALSE)*$E155 -> 0 | J155: =VLOOKUP($D155,range,'COS Alloc Factors'!H$9,FALSE)*$E155 -> 0 | K155: =VLOOKUP($D155,range,'COS Alloc Factors'!I$9,FALSE)*$E155 -> 0 | L155: =VLOOKUP($D155,range,'COS Alloc Factors'!J$9,FALSE)*$E155 -> 0 | M155: =VLOOKUP($D155,range,'COS Alloc Factors'!K$9,FALSE)*$E155 -> 0 | N155: =VLOOKUP($D155,range,'COS Alloc Factors'!L$9,FALSE)*$E155 -> 0 | O155: =VLOOKUP($D155,range,'COS Alloc Factors'!M$9,FALSE)*$E155 -> 0 | P155: =VLOOKUP($D155,range,'COS Alloc Factors'!N$9,FALSE)*$E155 -> 0 | Q155: =SUM(F155,J155:P155) -> 0
A156: 283 | B156: =$B$10 -> 377 | C156: =$C$10 -> Compressor Station Equipment | D156: Design Day | E156: =J$10*'COS Input'!M$9 -> 0 | F156: =VLOOKUP($D156,range,'COS Alloc Factors'!D$9,FALSE)*$E156 -> 0 | G156: =VLOOKUP($D156,range,'COS Alloc Factors'!E$9,FALSE)*$E156 -> 0 | H156: =VLOOKUP($D156,range,'COS Alloc Factors'!F$9,FALSE)*$E156 -> 0 | I156: =VLOOKUP($D156,range,'COS Alloc Factors'!G$9,FALSE)*$E156 -> 0 | J156: =VLOOKUP($D156,range,'COS Alloc Factors'!H$9,FALSE)*$E156 -> 0 | K156: =VLOOKUP($D156,range,'COS Alloc Factors'!I$9,FALSE)*$E156 -> 0 | L156: =VLOOKUP($D156,range,'COS Alloc Factors'!J$9,FALSE)*$E156 -> 0 | M156: =VLOOKUP($D156,range,'COS Alloc Factors'!K$9,FALSE)*$E156 -> 0 | N156: =VLOOKUP($D156,range,'COS Alloc Factors'!L$9,FALSE)*$E156 -> 0 | O156: =VLOOKUP($D156,range,'COS Alloc Factors'!M$9,FALSE)*$E156 -> 0 | P156: =VLOOKUP($D156,range,'COS Alloc Factors'!N$9,FALSE)*$E156 -> 0 | Q156: =SUM(F156,J156:P156) -> 0
A157: 283 | B157: =$B$11 -> 378 | C157: =$C$11 -> Measuring & Regulation Station Equip | D157: Design Day | E157: =J$11*'COS Input'!M$9 -> 0 | F157: =VLOOKUP($D157,range,'COS Alloc Factors'!D$9,FALSE)*$E157 -> 0 | G157: =VLOOKUP($D157,range,'COS Alloc Factors'!E$9,FALSE)*$E157 -> 0 | H157: =VLOOKUP($D157,range,'COS Alloc Factors'!F$9,FALSE)*$E157 -> 0 | I157: =VLOOKUP($D157,range,'COS Alloc Factors'!G$9,FALSE)*$E157 -> 0 | J157: =VLOOKUP($D157,range,'COS Alloc Factors'!H$9,FALSE)*$E157 -> 0 | K157: =VLOOKUP($D157,range,'COS Alloc Factors'!I$9,FALSE)*$E157 -> 0 | L157: =VLOOKUP($D157,range,'COS Alloc Factors'!J$9,FALSE)*$E157 -> 0 | M157: =VLOOKUP($D157,range,'COS Alloc Factors'!K$9,FALSE)*$E157 -> 0 | N157: =VLOOKUP($D157,range,'COS Alloc Factors'!L$9,FALSE)*$E157 -> 0 | O157: =VLOOKUP($D157,range,'COS Alloc Factors'!M$9,FALSE)*$E157 -> 0 | P157: =VLOOKUP($D157,range,'COS Alloc Factors'!N$9,FALSE)*$E157 -> 0 | Q157: =SUM(F157,J157:P157) -> 0
E158: =SUM(E155:E157) -> 0 | F158: =SUM(F155:F157) -> 0 | G158: =SUM(G155:G157) -> 0 | H158: =SUM(H155:H157) -> 0 | I158: 0 | J158: 0 | K158: 0 | L158: 0 | M158: =SUM(M155:M157) -> 0 | N158: 0 | O158: 0 | P158: 0 | Q158: =SUM(Q155:Q157) -> 0
A160: 283 | B160: Accum Prov For Deprec - Distribution Utah | E160: =E147+E153+E158 -> 0 | F160: =F147+F153+F158 -> 0 | G160: 0 | H160: 0 | I160: 0 | J160: 0 | K160: 0 | L160: 0 | M160: =M147+M153+M158 -> 0 | N160: 0 | O160: 0 | P160: 0 | Q160: =Q147+Q153+Q158 -> 0
F161: =IFERROR(F160/$E$160,0) -> 0 | G161: 0 | H161: 0 | I161: 0 | J161: 0 | K161: 0 | L161: 0 | M161: 0 | N161: 0 | O161: 0 | P161: 0 | Q161: =SUM(F161,J161:P161) -> 0

Sheet COS Alloc Factors
A1: ='Control Panel'!$B$1 -> Enbridge Gas Utah
A2: ='Control Panel'!$B$2 -> Utah - DEC 2026 Adjusted Avg Results CET
A3: ='Control Panel'!$B$3 -> 12 Months Ended : Dec-2026
A4: ='Control Panel'!$B$4 -> Capital Structure : AVG CAP STR DEC 26
A5: Hot Input | B5: 1
A6: GS Only | B6: 1
A7: GS Split | B7: 2 | E7: Allocation Factors | R7: Allocation Factor Base Data
D8: =IF($B$5=1,1,0) -> 1 | E8: 1 | F8: 1 | G8: 1 | H8: 1 | I8: 1 | J8: 1 | K8: 1 | L8: 1 | M8: 1 | N8: 1 | Q8: =IF($B$5=1,1,0) -> 1 | R8: 1 | S8: 1 | T8: 1 | U8: 1 | V8: 1 | W8: 1 | X8: 1 | Y8: 1 | Z8: 1 | AA8: 1
D9: 2 | E9: 3 | F9: 4 | G9: 5 | H9: 6 | I9: 7 | J9: 8 | K9: 9 | L9: 10 | M9: 11 | N9: 12 | O9: 13 | Q9: 16 | R9: 17 | S9: 18 | T9: 30 | U9: 31 | V9: 32 | W9: 33 | X9: 34 | Y9: 35 | Z9: 36 | AA9: 37 | AB9: 38
A10: Category | B10: # | C10: Factor Name | D10: GS | E10: GSS | F10: GSM | G10: GSL | H10: FS | I10: IS | J10: TSS | K10: TSM | L10: TSL | M10: TBF | N10: NGV | O10: Total | Q10: GS | R10: GSS | S10: GSM | T10: GSL | U10: FS | V10: IS | W10: TSS | X10: TSM | Y10: TSL | Z10: TBF | AA10: NGV | AB10: Total
A12: Direct Assignment | B12: 100 | C12: No Allocation | D12: =Q12 -> 0 | E12: =R12 -> 0 | F12: 0 | G12: 0 | H12: 0 | I12: =V12*I$8 -> 0 | J12: =W12*J$8 -> 0 | K12: =X12*K$8 -> 0 | L12: =Y12*L$8 -> 0 | M12: =Z12 -> 0 | N12: 0 | O12: =SUM(H12:N12)+D12 -> 0 | P12: OK | Q12: 0 | R12: 0 | S12: 0 | T12: 0 | U12: 0 | V12: 0 | W12: 0 | X12: 0 | Y12: 0 | Z12: 0 | AA12: 0 | AB12: =SUM(U12:AA12)+Q12 -> 0
B14: 110 | C14: GS | D14: =(Q14/$AB14)*D$8 -> 1 | E14: =(R14/$AB14)*E$8 -> 0 | F14: =(S14/$AB14)*F$8 -> 0 | G14: =(T14/$AB14) -> 0 | H14: =(U14/$AB14) -> 0 | I14: =(V14/$AB14)*I$8 -> 0 | J14: =(W14/$AB14)*J$8 -> 0 | K14: =(X14/$AB14)*K$8 -> 0 | L14: =(Y14/$AB14)*L$8 -> 0 | M14: =(Z14/$AB14) -> 0 | N14: =(AA14/$AB14) -> 0 | O14: =SUM(H14:N14)+D14 -> 1 | P14: =IF(O14=1,"OK","NO MATCH!!!") -> OK | Q14: 1 | R14: 0 | S14: 0 | T14: 0 | U14: 0 | V14: 0 | W14: 0 | X14: 0 | Y14: 0 | Z14: 0 | AA14: 0 | AB14: =SUM(U14:AA14)+Q14 -> 1
B16: 120 | C16: FS | D16: =(Q16/$AB16)*D$8 -> 0 | E16: =(R16/$AB16)*E$8 -> 0 | F16: =(S16/$AB16)*F$8 -> 0 | G16: =(T16/$AB16) -> 0 | H16: =(U16/$AB16) -> 1 | I16: =(V16/$AB16)*I$8 -> 0 | J16: =(W16/$AB16)*J$8 -> 0 | K16: =(X16/$AB16)*K$8 -> 0 | L16: =(Y16/$AB16)*L$8 -> 0 | M16: =(Z16/$AB16) -> 0 | N16: =(AA16/$AB16) -> 0 | O16: 1 | P16: =IF(O16=1,"OK","NO MATCH!!!") -> OK | Q16: 0 | R16: 0 | S16: 0 | T16: 0 | U16: 1 | V16: 0 | W16: 0 | X16: 0 | Y16: 0 | Z16: 0 | AA16: 0 | AB16: =SUM(U16:AA16)+Q16 -> 1
B18: 130 | C18: IS | D18: =(Q18/$AB18)*D$8 -> 0 | E18: =(R18/$AB18)*E$8 -> 0 | F18: =(S18/$AB18)*F$8 -> 0 | G18: =(T18/$AB18) -> 0 | H18: =(U18/$AB18) -> 0 | I18: =(V18/$AB18)*I$8 -> 1 | J18: =(W18/$AB18)*J$8 -> 0 | K18: =(X18/$AB18)*K$8 -> 0 | L18: =(Y18/$AB18)*L$8 -> 0 | M18: =(Z18/$AB18) -> 0 | N18: =(AA18/$AB18) -> 0 | O18: 1 | P18: =IF(O18=1,"OK","NO MATCH!!!") -> OK | Q18: 0 | R18: 0 | S18: 0 | T18: 0 | U18: 0 | V18: 1 | W18: 0 | X18: 0 | Y18: 0 | Z18: 0 | AA18: 0 | AB18: =SUM(U18:AA18)+Q18 -> 1
B20: 140 | C20: TSS | D20: =(Q20/$AB20)*D$8 -> 0 | E20: =(R20/$AB20)*E$8 -> 0 | F20: =(S20/$AB20)*F$8 -> 0 | G20: =(T20/$AB20) -> 0 | H20: =(U20/$AB20) -> 0 | I20: =(V20/$AB20)*I$8 -> 0 | J20: =(W20/$AB20)*J$8 -> 1 | K20: =(X20/$AB20)*K$8 -> 0 | L20: =(Y20/$AB20)*L$8 -> 0 | M20: =(Z20/$AB20) -> 0 | N20: =(AA20/$AB20) -> 0 | O20: 1 | P20: =IF(O20=1,"OK","NO MATCH!!!") -> OK | Q20: 0 | R20: 0 | S20: 0 | T20: 0 | U20: 0 | V20: 0 | W20: 1 | X20: 0 | Y20: 0 | Z20: 0 | AA20: 0 | AB20: =SUM(U20:AA20)+Q20 -> 1
B22: 150 | C22: TSM | D22: =(Q22/$AB22)*D$8 -> 0 | E22: =(R22/$AB22)*E$8 -> 0 | F22: =(S22/$AB22)*F$8 -> 0 | G22: =(T22/$AB22) -> 0 | H22: =(U22/$AB22) -> 0 | I22: =(V22/$AB22)*I$8 -> 0 | J22: =(W22/$AB22)*J$8 -> 0 | K22: =(X22/$AB22)*K$8 -> 1 | L22: =(Y22/$AB22)*L$8 -> 0 | M22: =(Z22/$AB22) -> 0 | N22: =(AA22/$AB22) -> 0 | O22: 1 | P22: =IF(O22=1,"OK","NO MATCH!!!") -> OK | Q22: 0 | R22: 0 | S22: 0 | T22: 0 | U22: 0 | V22: 0 | W22: 0 | X22: 1 | Y22: 0 | Z22: 0 | AA22: 0 | AB22: =SUM(U22:AA22)+Q22 -> 1
B24: 160 | C24: TSL | D24: =(Q24/$AB24)*D$8 -> 0 | E24: =(R24/$AB24)*E$8 -> 0 | F24: =(S24/$AB24)*F$8 -> 0 | G24: =(T24/$AB24) -> 0 | H24: =(U24/$AB24) -> 0 | I24: =(V24/$AB24)*I$8 -> 0 | J24: =(W24/$AB24)*J$8 -> 0 | K24: =(X24/$AB24)*K$8 -> 0 | L24: =(Y24/$AB24)*L$8 -> 1 | M24: =(Z24/$AB24) -> 0 | N24: =(AA24/$AB24) -> 0 | O24: 1 | P24: =IF(O24=1,"OK","NO MATCH!!!") -> OK | Q24: 0 | R24: 0 | S24: 0 | T24: 0 | U24: 0 | V24: 0 | W24: 0 | X24: 0 | Y24: 1 | Z24: 0 | AA24: 0 | AB24: =SUM(U24:AA24)+Q24 -> 1
B26: 170 | C26: TBF | D26: =(Q26/$AB26)*D$8 -> 0 | E26: =(R26/$AB26)*E$8 -> 0 | F26: =(S26/$AB26)*F$8 -> 0 | G26: =(T26/$AB26) -> 0 | H26: =(U26/$AB26) -> 0 | I26: =(V26/$AB26)*I$8 -> 0 | J26: =(W26/$AB26)*J$8 -> 0 | K26: =(X26/$AB26)*K$8 -> 0 | L26: =(Y26/$AB26)*L$8 -> 0 | M26: =(Z26/$AB26) -> 1 | N26: =(AA26/$AB26) -> 0 | O26: 1 | P26: =IF(O26=1,"OK","NO MATCH!!!") -> OK | Q26: 0 | R26: 0 | S26: 0 | T26: 0 | U26: 0 | V26: 0 | W26: 0 | X26: 0 | Y26: 0 | Z26: 1 | AA26: 0 | AB26: =SUM(U26:AA26)+Q26 -> 1
B28: 180 | C28: NGV | D28: =(Q28/$AB28)*D$8 -> 0 | E28: =(R28/$AB28)*E$8 -> 0 | F28: =(S28/$AB28)*F$8 -> 0 | G28: =(T28/$AB28) -> 0 | H28: =(U28/$AB28) -> 0 | I28: =(V28/$AB28)*I$8 -> 0 | J28: =(W28/$AB28)*J$8 -> 0 | K28: =(X28/$AB28)*K$8 -> 0 | L28: =(Y28/$AB28)*L$8 -> 0 | M28: =(Z28/$AB28) -> 0 | N28: =(AA28/$AB28) -> 1 | O28: 1 | P28: =IF(O28=1,"OK","NO MATCH!!!") -> OK | Q28: 0 | R28: 0 | S28: 0 | T28: 0 | U28: 0 | V28: 0 | W28: 0 | X28: 0 | Y28: 0 | Z28: 0 | AA28: 1 | AB28: =SUM(U28:AA28)+Q28 -> 1
A30: Volumetric Factors | B30: 210 | C30: Design Day | D30: =(Q30/$AB30)*D$8 -> 0.7871370452 | E30: =(R30/$AB30)*E$8 -> 0 | F30: =(S30/$AB30)*F$8 -> 0 | G30: =(T30/$AB30) -> 0 | H30: =(U30/$AB30) -> 0.007182415204 | I30: =(V30/$AB30)*I$8 -> 0 | J30: =(W30/$AB30)*J$8 -> 0.04765913747 | K30: =(X30/$AB30)*K$8 -> 0.04327159917 | L30: =(Y30/$AB30)*L$8 -> 0.04690124976 | M30: =(Z30/$AB30) -> 0.06759853172 | N30: =(AA30/$AB30) -> 0.0002500214531 | O30: 1 | P30: =IF(O30=1,"OK","NO MATCH!!!") -> OK | Q30: ='COS Input'!D15*Q8 -> 1246311.866 | R30: ='COS Input'!E15*R8 -> 0 | S30: ='COS Input'!F15*S8 -> 0 | T30: ='COS Input'!G15*T8 -> 0 | U30: ='COS Input'!H15*U8 -> 11372.26275 | V30: ='COS Input'!I15*V8 -> 0 | W30: ='COS Input'!J15*W8 -> 75461 | X30: ='COS Input'!K15*X8 -> 68514 | Y30: ='COS Input'!L15*Y8 -> 74261 | Z30: ='COS Input'!M15 -> 107032 | AA30: ='COS Input'!N15 -> 395.8709677 | AB30: =SUM(U30:AA30)+Q30 -> 1583348
C32: Peak Day | D32: =(Q32/$AB32)*D$8 -> 0.7772437116 | E32: =(R32/$AB32)*E$8 -> 0 | F32: =(S32/$AB32)*F$8 -> 0 | G32: =(T32/$AB32) -> 0 | H32: =(U32/$AB32) -> 0.01146995419 | I32: =(V32/$AB32)*I$8 -> 0.001643993672 | J32: =(W32/$AB32)*J$8 -> 0.04199177425 | K32: =(X32/$AB32)*K$8 -> 0.05818440243 | L32: =(Y32/$AB32)*L$8 -> 0.08087800188 | M32: =(Z32/$AB32) -> 0.02798336701 | N32: =(AA32/$AB32) -> 0.0006047949698 | O32: 1 | P32: OK | Q32: ='COS Input'!D17*Q8 -> 766845.5918 | R32: ='COS Input'!E17*R8 -> 0 | S32: ='COS Input'!F17*S8 -> 0 | T32: ='COS Input'!G17*T8 -> 0 | U32: ='COS Input'!H17*U8 -> 11316.50687 | V32: ='COS Input'!I17*V8 -> 1622 | W32: ='COS Input'!J17*W8 -> 41430 | X32: ='COS Input'!K17*X8 -> 57406 | Y32: ='COS Input'!L17*Y8 -> 79796 | Z32: ='COS Input'!M17*Z8 -> 27609 | AA32: ='COS Input'!N17*AA8 -> 596.7039032 | AB32: =SUM(U32:AA32)+Q32 -> 986621.8025
B34: 220 | C34: Throughput | D34: =(Q34/$AB34)*D$8 -> 0.6167225471 | E34: 0 | F34: 0 | G34: =(T34/$AB34) -> 0 | H34: 0.0117247113 | I34: =(V34/$AB34)*I$8 -> 0.001151165323 | J34: 0.04425798674 | K34: 0.08383125822 | L34: 0.1450219642 | M34: =(Z34/$AB34) -> 0.0965263572 | N34: 0.0007640099455 | O34: 1 | P34: =IF(O34=1,"OK","NO MATCH!!!") -> OK | Q34: ='COS Input'!D19*Q8 -> 117706908 | R34: ='COS Input'!E19*R8 -> 0 | S34: ='COS Input'!F19*S8 -> 0 | T34: ='COS Input'!G19*T8 -> 0 | U34: ='COS Input'!H19*U8 -> 2237764 | V34: ='COS Input'!I19*V8 -> 219710 | W34: ='COS Input'!J19*W8 -> 8447025 | X34: ='COS Input'!K19*X8 -> 15999931 | Y34: ='COS Input'!L19*Y8 -> 27678714 | Z34: ='COS Input'!M19*Z8 -> 18422902 | AA34: ='COS Input'!N19*AA8 -> 145818 | AB34: =SUM(U34:AA34)+Q34 -> 190858772
B35: 221 | C35: Winter Throughput | D35: 0.7235239964 | E35: 0 | F35: 0 | G35: 0 | H35: 0.009489297174 | I35: 0.001144916075 | J35: 0.0460043969 | K35: 0.06517717892 | L35: 0.09929951199 | M35: 0.05483663922 | N35: 0.0005240632658 | O35: =SUM(H35:N35)+D35 -> 1 | Q35: ='COS Input'!D20 -> 85598847 | U35: ='COS Input'!H20 -> 1122662 | V35: ='COS Input'!I20 -> 135453 | W35: ='COS Input'!J20 -> 5442699 | X35: ='COS Input'!K20 -> 7710997 | Y35: ='COS Input'!L20 -> 11747950 | Z35: ='COS Input'!M20 -> 6487626 | AA35: ='COS Input'!N20 -> 62001 | AB35: =SUM(U35:AA35)+Q35 -> 118308235
B36: 230 | C36: ='COS Input'!$M$10&" Design Day "&'COS Input'!$N$10&" Throughput" -> 60% Design Day 40% Throughput | D36: 0.7616918257 | E36: 0 | F36: 0 | G36: 0 | H36: 0.008105167992 | I36: 0.0004579664298 | J36: 0.04699724125 | K36: 0.05203383107 | L36: 0.06786055465 | M36: 0.06249377472 | N36: 0.0003596381782 | O36: 1 | P36: =IF(O36=1,"OK","NO MATCH!!!") -> OK | Q36: =(D30*'COS Input'!$M$9)+(D35*'COS Input'!$N$9) -> 0.7616918257 | R36: =(E30*'COS Input'!$M$9)+(E35*'COS Input'!$N$9) -> 0 | S36: =(F30*'COS Input'!$M$9)+(F35*'COS Input'!$N$9) -> 0 | T36: =(G30*'COS Input'!$M$9)+(G35*'COS Input'!$N$9) -> 0 | U36: =(H30*'COS Input'!$M$9)+(H35*'COS Input'!$N$9) -> 0.008105167992 | V36: =(I30*'COS Input'!$M$9)+(I35*'COS Input'!$N$9) -> 0.0004579664298 | W36: =(J30*'COS Input'!$M$9)+(J35*'COS Input'!$N$9) -> 0.04699724125 | X36: =(K30*'COS Input'!$M$9)+(K35*'COS Input'!$N$9) -> 0.05203383107 | Y36: =(L30*'COS Input'!$M$9)+(L35*'COS Input'!$N$9) -> 0.06786055465 | Z36: =(M30*'COS Input'!$M$9)+(M35*'COS Input'!$N$9) -> 0.06249377472 | AA36: =(N30*'COS Input'!$M$9)+(N35*'COS Input'!$N$9) -> 0.0003596381782 | AB36: =(O30*'COS Input'!$M$9)+(O35*'COS Input'!$N$9) -> 1
B38: 235 | C38: ='COS Input'!$M$10&" Design Day "&'COS Input'!$N$10&" Throughput Less TBF" -> 60% Design Day 40% Throughput Less TBF | D38: =(Q38/$AB38)*D$8 -> 0.8124658857 | E38: =(R38/$AB38)*E$8 -> 0 | F38: =(S38/$AB38)*F$8 -> 0 | G38: =(T38/$AB38) -> 0 | H38: =(U38/$AB38) -> 0.008645455116 | I38: =(V38/$AB38)*I$8 -> 0.0004884942814 | J38: =(W38/$AB38)*J$8 -> 0.05013005778 | K38: =(X38/$AB38)*K$8 -> 0.05550238459 | L38: =(Y38/$AB38)*L$8 -> 0.07238411098 | M38: =(Z38/$AB38) -> 0 | N38: =(AA38/$AB38) -> 0.0003836115094 | O38: 1 | P38: =IF(O38=1,"OK","NO MATCH!!!") -> OK | Q38: =Q36/SUM($U$36:$Y$36,$AA$36,$Q$36) -> 0.8124658857 | R38: =R36/SUM($U$36:$Y$36,$AA$36,$Q$36) -> 0 | S38: 0 | T38: 0 | U38: 0.008645455116 | V38: 0.0004884942814 | W38: 0.05013005778 | X38: 0.05550238459 | Y38: 0.07238411098 | AA38: 0.0003836115094 | AB38: =SUM(U38:AA38)+Q38 -> 1
B40: 240 | C40: Firm Sales | D40: =(Q40/$AB40)*D$8 -> 0.9801517839 | E40: =(R40/$AB40)*E$8 -> 0 | F40: =(S40/$AB40)*F$8 -> 0 | G40: =(T40/$AB40) -> 0 | H40: =(U40/$AB40) -> 0.01863398176 | I40: =(V40/$AB40)*I$8 -> 0 | J40: =(W40/$AB40)*J$8 -> 0 | K40: =(X40/$AB40)*K$8 -> 0 | L40: =(Y40/$AB40)*L$8 -> 0 | M40: =(Z40/$AB40) -> 0 | N40: =(AA40/$AB40) -> 0.001214234366 | O40: 1 | P40: =IF(O40=1,"OK","NO MATCH!!!") -> OK | Q40: =Q34 -> 117706908 | R40: =R34 -> 0 | S40: =S34 -> 0 | T40: =T34 -> 0 | U40: =U34 -> 2237764 | V40: 0 | W40: 0 | X40: 0 | Y40: 0 | Z40: 0 | AA40: =AA34 -> 145818 | AB40: =SUM(U40:AA40)+Q40 -> 120090490
B42: 245 | C42: Firm Sales less NGV | D42: =(Q42/$AB42)*D$8 -> 0.9813433647 | E42: =(R42/$AB42)*E$8 -> 0 | F42: =(S42/$AB42)*F$8 -> 0 | G42: =(T42/$AB42) -> 0 | H42: =(U42/$AB42) -> 0.01865663529 | I42: =(V42/$AB42)*I$8 -> 0 | J42: =(W42/$AB42)*J$8 -> 0 | K42: =(X42/$AB42)*K$8 -> 0 | L42: =(Y42/$AB42)*L$8 -> 0 | M42: =(Z42/$AB42) -> 0 | N42: =(AA42/$AB42) -> 0 | O42: 1 | P42: =IF(O42=1,"OK","NO MATCH!!!") -> OK | Q42: =+Q34 -> 117706908 | R42: =+R34 -> 0 | S42: 0 | T42: =+T34 -> 0 | U42: =U40 -> 2237764 | V42: 0 | W42: 0 | X42: 0 | Y42: 0 | Z42: 0 | AA42: 0 | AB42: =SUM(U42:AA42)+Q42 -> 119944672
B44: 250 | C44: Distribution Throughput | D44: =(Q44/$AB44)*D$8 -> 0.8176668635 | E44: =(R44/$AB44)*E$8 -> 0 | F44: =(S44/$AB44)*F$8 -> 0 | G44: =(T44/$AB44) -> 0 | H44: =(U44/$AB44) -> 0.0153690333 | I44: =(V44/$AB44)*I$8 -> 0.001446701722 | J44: =(W44/$AB44)*J$8 -> 0.05715519126 | K44: =(X44/$AB44)*K$8 -> 0.06538682465 | L44: =(Y44/$AB44)*L$8 -> 0.03436973144 | M44: =(Z44/$AB44) -> 0.007589898652 | N44: =(AA44/$AB44) -> 0.00101575551 | O44: 1 | P44: =IF(O44=1,"OK","NO MATCH!!!") -> OK | Q44: ='COS Input'!D22*Q8 -> 117381146.8 | R44: ='COS Input'!E22*R$8 -> 0 | S44: ='COS Input'!F22*S$8 -> 0 | T44: ='COS Input'!G22*T8 -> 0 | U44: ='COS Input'!H22*U8 -> 2206320 | V44: ='COS Input'!I22*V8 -> 207683 | W44: ='COS Input'!J22*W8 -> 8204982 | X44: ='COS Input'!K22*X8 -> 9386684 | Y44: ='COS Input'!L22*Y8 -> 4933988 | Z44: ='COS Input'!M22*Z8 -> 1089577 | AA44: ='COS Input'!N22*AA8 -> 145818 | AB44: =SUM(U44:AA44)+Q44 -> 143556198.8
A46: Revenue Factors | B46: 310 | C46: DNG Revenue | D46: =(Q46/$AB46)*D$8 -> 0.8764153711 | E46: =(R46/$AB46)*E$8 -> 0 | F46: =(S46/$AB46)*F$8 -> 0 | G46: =(T46/$AB46) -> 0 | H46: =(U46/$AB46) -> 0.006760644765 | I46: =(V46/$AB46)*I$8 -> 0.0003606304863 | J46: =(W46/$AB46)*J$8 -> 0.02469789382 | K46: =(X46/$AB46)*K$8 -> 0.03249184931 | L46: =(Y46/$AB46)*L$8 -> 0.03907415204 | M46: =(Z46/$AB46) -> 0.01712641712 | N46: =(AA46/$AB46) -> 0.003073041342 | O46: 1 | P46: =IF(O46=1,"OK","NO MATCH!!!") -> OK | Q46: ='COS Input'!D24*Q8 -> 473032123.8 | R46: ='COS Input'!E24*R8 -> 0 | S46: ='COS Input'!F24*S8 -> 0 | T46: ='COS Input'!G24*T8 -> 0 | U46: ='COS Input'!H24*U8 -> 3648957.169 | V46: ='COS Input'!I24*V8 -> 194644.9258 | W46: =+W8*'COS Input'!J24 -> 13330319.79 | X46: =+X8*'COS Input'!K24 -> 17536991.01 | Y46: =+Y8*'COS Input'!L24 -> 21089690.73 | Z46: ='COS Input'!M24 -> 9243728.179 | AA46: ='COS Input'!N24 -> 1658628.226 | AB46: =SUM(U46:AA46)+Q46 -> 539735083.8
B48: 315 | C48: DNG Revenue Less NGV | D48: =(Q48/$AB48)*D$8 -> 0.8791169338 | E48: =(R48/$AB48)*E$8 -> 0 | F48: =(S48/$AB48)*F$8 -> 0 | G48: =(T48/$AB48) -> 0 | H48: =(U48/$AB48) -> 0.006781484547 | I48: =(V48/$AB48)*I$8 -> 0.0003617421348 | J48: =(W48/$AB48)*J$8 -> 0.02477402542 | K48: =(X48/$AB48)*K$8 -> 0.03259200589 | L48: =(Y48/$AB48)*L$8 -> 0.03919459866 | M48: =(Z48/$AB48) -> 0.01717920954 | N48: =(AA48/$AB48) -> 0 | O48: 1 | P48: =IF(O48=1,"OK","NO MATCH!!!") -> OK | Q48: ='COS Input'!D24*Q8 -> 473032123.8 | R48: ='COS Input'!E24*R8 -> 0 | S48: ='COS Input'!F24*S8 -> 0 | T48: ='COS Input'!G24*T8 -> 0 | U48: ='COS Input'!H24*U8 -> 3648957.169 | V48: ='COS Input'!I24*V8 -> 194644.9258 | W48: ='COS Input'!J24*W8 -> 13330319.79 | X48: ='COS Input'!K24*X8 -> 17536991.01 | Y48: ='COS Input'!L24*Y8 -> 21089690.73 | Z48: ='COS Input'!M24*Z8 -> 9243728.179 | AA48: 0 | AB48: =SUM(Q48:AA48) -> 538076455.6
A50: Customer Factors | B50: 410 | C50: Customers | D50: =(Q50/$AB50)*D$8 -> 0.9985828515 | E50: =(R50/$AB50)*E$8 -> 0 | F50: =(S50/$AB50)*F$8 -> 0 | G50: =(T50/$AB50) -> 0 | H50: =(U50/$AB50) -> 0.0003567474474 | I50: =(V50/$AB50)*I$8 -> 1.230163612e-05 | J50: =(W50/$AB50)*J$8 -> 0.0007996063476 | K50: =(X50/$AB50)*K$8 -> 0.0001951859597 | L50: =(Y50/$AB50)*L$8 -> 2.952392668e-05 | M50: =(Z50/$AB50) -> 6.560872596e-06 | N50: =(AA50/$AB50) -> 1.722229056e-05 | O50: 1 | P50: =IF(O50=1,"OK","NO MATCH!!!") -> OK | Q50: ='COS Input'!D26*Q8 -> 1217622 | R50: ='COS Input'!E26*R8 -> 0 | S50: ='COS Input'!F26*S8 -> 0 | T50: ='COS Input'!G26*T8 -> 0 | U50: ='COS Input'!H26*U8 -> 435 | V50: ='COS Input'!I26*V8 -> 15 | W50: =+W8*'COS Input'!J26 -> 975 | X50: =+X8*'COS Input'!K26 -> 238 | Y50: =+Y8*'COS Input'!L26 -> 36 | Z50: ='COS Input'!M26 -> 8 | AA50: ='COS Input'!N26 -> 21 | AB50: =SUM(U50:AA50)+Q50 -> 1219350
B52: 420 | C52: ='COS Input'!$M$13&" Customers "&'COS Input'!$N$13&" DNG Rev" -> 75% Customers 25% DNG Rev | D52: =(Q52/$AB52)*D$8 -> 0.9680409814 | E52: =(R52/$AB52)*E$8 -> 0 | F52: =(S52/$AB52)*F$8 -> 0 | G52: =(T52/$AB52) -> 0 | H52: =(U52/$AB52) -> 0.001957721777 | I52: =(V52/$AB52)*I$8 -> 9.938384866e-05 | J52: =(W52/$AB52)*J$8 -> 0.006774178216 | K52: =(X52/$AB52)*K$8 -> 0.008269351796 | L52: =(Y52/$AB52)*L$8 -> 0.009790680954 | M52: =(Z52/$AB52) -> 0.004286524934 | N52: =(AA52/$AB52) -> 0.0007811770534 | O52: 1 | P52: =IF(O52=1,"OK","NO MATCH!!!") -> OK | Q52: =(D50*'COS Input'!$M$12)+(D46*'COS Input'!$N$12) -> 0.9680409814 | R52: =(E50*'COS Input'!$M$12)+(E46*'COS Input'!$N$12) -> 0 | S52: =(F50*'COS Input'!$M$12)+(F46*'COS Input'!$N$12) -> 0 | T52: =(G50*'COS Input'!$M$12)+(G46*'COS Input'!$N$12) -> 0 | U52: =(H50*'COS Input'!$M$12)+(H46*'COS Input'!$N$12) -> 0.001957721777 | V52: =(I50*'COS Input'!$M$12)+(I46*'COS Input'!$N$12) -> 9.938384866e-05 | W52: =(J50*'COS Input'!$M$12)+(J46*'COS Input'!$N$12) -> 0.006774178216 | X52: =(K50*'COS Input'!$M$12)+(K46*'COS Input'!$N$12) -> 0.008269351796 | Y52: =(L50*'COS Input'!$M$12)+(L46*'COS Input'!$N$12) -> 0.009790680954 | Z52: =(M50*'COS Input'!$M$12)+(M46*'COS Input'!$N$12) -> 0.004286524934 | AA52: =(N50*'COS Input'!$M$12)+(N46*'COS Input'!$N$12) -> 0.0007811770534 | AB52: =SUM(U52:AA52)+Q52 -> 1
A54: Expense Factors | B54: 510 | C54: Customer Assistance Expense | D54: =(Q54/$AB54)*D$8 -> 0.356325354 | E54: =(R54/$AB54)*E$8 -> 0 | F54: =(S54/$AB54)*F$8 -> 0 | G54: =(T54/$AB54) -> 0 | H54: =(U54/$AB54) -> 0.02045130784 | I54: =(V54/$AB54)*I$8 -> 0.01074999787 | J54: =(W54/$AB54)*J$8 -> 0.4313231349 | K54: =(X54/$AB54)*K$8 -> 0.1050660186 | L54: =(Y54/$AB54)*L$8 -> 0.01658897101 | M54: =(Z54/$AB54) -> 0.008829259673 | N54: =(AA54/$AB54) -> 0.05066595606 | O54: 1 | P54: =IF(O54=1,"OK","NO MATCH!!!") -> OK | Q54: ='COS Input'!D29*Q8 -> 906041.8506 | R54: ='COS Input'!E29*R8 -> 0 | S54: ='COS Input'!F29*S8 -> 0 | T54: ='COS Input'!G29*T8 -> 0 | U54: ='COS Input'!H29*U8 -> 52002.30799 | V54: ='COS Input'!I29*V8 -> 27334.42304 | W54: ='COS Input'!J29*W8 -> 1096741.523 | X54: ='COS Input'!K29*X8 -> 267155.3086 | Y54: ='COS Input'!L29*Y8 -> 42181.39917 | Z54: ='COS Input'!M29*Z8 -> 22450.48993 | AA54: ='COS Input'!N29*AA8 -> 128830.228 | AB54: =SUM(U54:AA54)+Q54 -> 2542737.53
B56: 520 | C56: Blank | O56: 0 | P56: =IF(O56=1,"OK","NO MATCH!!!") -> NO MATCH!!!
O57: 0
B58: 530 | D58: =Q58 -> 0 | E58: 0 | F58: 0 | G58: 0 | H58: 0 | I58: =V58*I$8 -> 0 | J58: =W58*J$8 -> 0 | K58: =X58*K$8 -> 0 | L58: =Y58*L$8 -> 0 | M58: =Z58 -> 0 | N58: 0 | O58: 0 | P58: =IF(O58=1,"OK","NO MATCH!!!") -> NO MATCH!!! | Q58: 0 | R58: 0 | S58: 0 | T58: 0 | U58: 0 | V58: 0 | W58: 0 | X58: 0 | Y58: 0 | Z58: 0 | AA58: 0 | AB58: =SUM(R58:AA58) -> 0
O59: 0
B60: 540 | D60: =Q60 -> 0 | E60: 0 | F60: 0 | G60: 0 | H60: 0 | I60: =V60*I$8 -> 0 | J60: =W60*J$8 -> 0 | K60: =X60*K$8 -> 0 | L60: =Y60*L$8 -> 0 | M60: =Z60 -> 0 | N60: 0 | O60: 0 | P60: =IF(O60=1,"OK","NO MATCH!!!") -> NO MATCH!!! | Q60: 0 | R60: 0 | S60: 0 | T60: 0 | U60: 0 | V60: 0 | W60: 0 | X60: 0 | Y60: 0 | Z60: 0 | AA60: 0 | AB60: =SUM(R60:AA60) -> 0
O61: 0
B62: 550 | C62: Distribution O&M Expense | D62: =(Q62/$AB62)*D$8 -> 0.8563059644 | E62: =(R62/$AB62)*E$8 -> 0 | F62: =(S62/$AB62)*F$8 -> 0 | G62: =(T62/$AB62) -> 0 | H62: =(U62/$AB62) -> 0.005544012363 | I62: =(V62/$AB62)*I$8 -> 0.0004702671161 | J62: =(W62/$AB62)*J$8 -> 0.02869676373 | K62: =(X62/$AB62)*K$8 -> 0.03374409996 | L62: =(Y62/$AB62)*L$8 -> 0.03780968853 | M62: =(Z62/$AB62) -> 0.03166661715 | N62: =(AA62/$AB62) -> 0.005762586785 | O62: 1 | P62: =IF(O62=1,"OK","NO MATCH!!!") -> OK | Q62: ='COS Detail'!H775*Q8 -> 72036001.08 | R62: ='COS Detail'!I775*R8 -> 0 | S62: ='COS Detail'!J775*S8 -> 0 | T62: ='COS Detail'!K775*T8 -> 0 | U62: ='COS Detail'!L775*U8 -> 466385.2609 | V62: ='COS Detail'!M775*V8 -> 39560.81575 | W62: ='COS Detail'!N775*W8 -> 2414090.511 | X62: ='COS Detail'!O775*X8 -> 2838693.321 | Y62: ='COS Detail'!P775*Y8 -> 3180707.454 | Z62: ='COS Detail'!Q775 -> 2663926.87 | AA62: ='COS Detail'!R775 -> 484772.6457 | AB62: =SUM(U62:AA62)+Q62 -> 84124137.96
A64: Plant Factors | B64: 605 | C64: Tools, Shop & Garage Equipment | D64: =Q64/$AB$64 -> 0.5287990832 | E64: =R64/$AB$64 -> 0 | F64: =S64/$AB$64 -> 0 | G64: =T64/$AB$64 -> 0 | H64: =U64/$AB$64 -> 0.003461866444 | I64: =V64/$AB$64*I$8 -> 0.0002915288855 | J64: =(W64/$AB$64)*J$8 -> 0.01720722514 | K64: =(X64/$AB$64)*K$8 -> 0.01999481097 | L64: =(Y64/$AB$64)*L$8 -> 0.02112345226 | M64: =Z64/$AB$64 -> 0.01788306994 | N64: =AA64/$AB$64 -> 0.3912389632 | O64: 1 | P64: =IF(O64=1,"OK","NO MATCH!!!") -> OK | Q64: ='COS Input'!D31*Q8 -> 24590976.23 | R64: ='COS Input'!E31*R8 -> 0 | S64: ='COS Input'!F31*S8 -> 0 | T64: ='COS Input'!G31*T8 -> 0 | U64: ='COS Input'!H31*U8 -> 160988.6971 | V64: ='COS Input'!I31*V8 -> 13557.09592 | W64: ='COS Input'!J31*W8 -> 800195.155 | X64: ='COS Input'!K31*X8 -> 929827.4843 | Y64: ='COS Input'!L31*Y8 -> 982313.1867 | Z64: ='COS Input'!M31*Z8 -> 831624.2629 | AA64: ='COS Input'!N31*AA8 -> 18193957.5 | AB64: =SUM(U64:AA64)+Q64 -> 46503439.61
B66: 610 | C66: Rate Base | D66: =(Q66/$AB66)*D$8 -> 0.8686562591 | E66: =(R66/$AB66)*E$8 -> 0 | F66: =(S66/$AB66)*F$8 -> 0 | G66: =(T66/$AB66) -> 0 | H66: =(U66/$AB66) -> 0.006268778095 | I66: =(V66/$AB66)*I$8 -> 0.0004541153213 | J66: =(W66/$AB66)*J$8 -> 0.02680365323 | K66: =(X66/$AB66)*K$8 -> 0.03114673953 | L66: =(Y66/$AB66)*L$8 -> 0.03290508007 | M66: =(Z66/$AB66) -> 0.02785739295 | N66: =(AA66/$AB66) -> 0.00590798171 | O66: 1 | P66: =IF(O66=1,"OK","NO MATCH!!!") -> OK | Q66: ='COS Detail'!H1317*Q8 -> 2802739068 | R66: ='COS Detail'!I1317*R8 -> 0 | S66: ='COS Detail'!J1317*S8 -> 0 | T66: ='COS Detail'!K1317 -> 0 | U66: ='COS Detail'!L1317 -> 20226354.31 | V66: ='COS Detail'!M1317*V8 -> 1465213.356 | W66: ='COS Detail'!N1317*W8 -> 86482593.4 | X66: ='COS Detail'!O1317*X8 -> 100495659.6 | Y66: ='COS Detail'!P1317*Y8 -> 106168985.1 | Z66: ='COS Detail'!Q1317 -> 89882508.44 | AA66: ='COS Detail'!R1317 -> 19062236.62 | AB66: =SUM(U66:AA66)+Q66 -> 3226522619
B68: 620 | C68: Gross Plant | D68: =(Q68/$AB68)*D$8 -> 0.8684290321 | E68: =(R68/$AB68)*E$8 -> 0 | F68: =(S68/$AB68)*F$8 -> 0 | G68: =(T68/$AB68) -> 0 | H68: =(U68/$AB68) -> 0.005685307371 | I68: =(V68/$AB68)*I$8 -> 0.0004787681294 | J68: =(W68/$AB68)*J$8 -> 0.02825884981 | K68: =(X68/$AB68)*K$8 -> 0.0328368087 | L68: =(Y68/$AB68)*L$8 -> 0.03469033852 | M68: =(Z68/$AB68) -> 0.0293687671 | N68: =(AA68/$AB68) -> 0.0002521282154 | O68: 1 | P68: =IF(O68=1,"OK","NO MATCH!!!") -> OK | Q68: ='COS Detail'!H1144+'COS Detail'!H1146+'COS Detail'!H1147+'COS Detail'!H1156+'COS Detail'!H1157+'COS Detail'!H1158 -> 3967226971 | R68: ='COS Detail'!I1144+'COS Detail'!I1146+'COS Detail'!I1147+'COS Detail'!I1156+'COS Detail'!I1157+'COS Detail'!I1158 -> 0 | S68: ='COS Detail'!J1144+'COS Detail'!J1146+'COS Detail'!J1147+'COS Detail'!J1156+'COS Detail'!J1157+'COS Detail'!J1158 -> 0 | T68: ='COS Detail'!K1144+'COS Detail'!K1146+'COS Detail'!K1147+'COS Detail'!K1156+'COS Detail'!K1157+'COS Detail'!K1158 -> 0 | U68: ='COS Detail'!L1144+'COS Detail'!L1146+'COS Detail'!L1147+'COS Detail'!L1156+'COS Detail'!L1157+'COS Detail'!L1158 -> 25972075.91 | V68: ='COS Detail'!M1144+'COS Detail'!M1146+'COS Detail'!M1147+'COS Detail'!M1156+'COS Detail'!M1157+'COS Detail'!M1158 -> 2187146.866 | W68: ='COS Detail'!N1144+'COS Detail'!N1146+'COS Detail'!N1147+'COS Detail'!N1156+'COS Detail'!N1157+'COS Detail'!N1158 -> 129094338.2 | X68: ='COS Detail'!O1144+'COS Detail'!O1146+'COS Detail'!O1147+'COS Detail'!O1156+'COS Detail'!O1157+'COS Detail'!O1158 -> 150007736.2 | Y68: ='COS Detail'!P1144+'COS Detail'!P1146+'COS Detail'!P1147+'COS Detail'!P1156+'COS Detail'!P1157+'COS Detail'!P1158 -> 158475179.4 | Z68: ='COS Detail'!Q1144+'COS Detail'!Q1146+'COS Detail'!Q1147+'COS Detail'!Q1156+'COS Detail'!Q1157+'COS Detail'!Q1158 -> 134164751.1 | AA68: ='COS Detail'!R1144+'COS Detail'!R1146+'COS Detail'!R1147+'COS Detail'!R1156+'COS Detail'!R1157+'COS Detail'!R1158 -> 1151792.282 | AB68: =SUM(U68:AA68)+Q68 -> 4568279991
B70: 625 | C70: Gross Plant less NGV | D70: =(Q70/$AB70)*D$8 -> 0.8686480428 | E70: =(R70/$AB70)*E$8 -> 0 | F70: 0 | G70: 0 | H70: 0.005686741159 | I70: 0.0004788888708 | J70: 0.02826597646 | K70: 0.03284508988 | L70: 0.03469908714 | M70: 0.02937617367 | N70: 0 | O70: 1 | P70: OK | Q70: =Q68 -> 3967226971 | R70: =R68 -> 0 | S70: 0 | T70: 0 | U70: 25972075.91 | V70: 2187146.866 | W70: 129094338.2 | X70: 150007736.2 | Y70: 158475179.4 | Z70: 134164751.1 | AA70: 0 | AB70: =SUM(U70:AA70)+Q70 -> 4567128199
B72: 630 | C72: Distribution Gross Plant | D72: =(Q72/$AB72)*D$8 -> 0.8666389404 | E72: =(R72/$AB72)*E$8 -> 0 | F72: =(S72/$AB72)*F$8 -> 0 | G72: =(T72/$AB72) -> 0 | H72: =(U72/$AB72) -> 0.005477811263 | I72: =(V72/$AB72)*I$8 -> 0.0004864403288 | J72: =(W72/$AB72)*J$8 -> 0.02871169435 | K72: =(X72/$AB72)*K$8 -> 0.03336301445 | L72: =(Y72/$AB72)*L$8 -> 0.03524624686 | M72: =(Z72/$AB72) -> 0.02983939792 | N72: =(AA72/$AB72) -> 0.0002364543895 | O72: 1 | P72: =IF(O72=1,"OK","NO MATCH!!!") -> OK | Q72: ='COS Detail'!H1079 -> 3889606000 | R72: ='COS Detail'!I1079 -> 0 | S72: ='COS Detail'!J1079 -> 0 | T72: ='COS Detail'!K1079 -> 0 | U72: ='COS Detail'!L1079 -> 24585241.39 | V72: ='COS Detail'!M1079 -> 2183217.408 | W72: ='COS Detail'!N1079 -> 128862405.5 | X72: ='COS Detail'!O1079 -> 149738230.2 | Y72: ='COS Detail'!P1079 -> 158190460.7 | Z72: ='COS Detail'!Q1079 -> 133923708.9 | AA72: ='COS Detail'!R1079 -> 1061242.888 | AB72: =SUM(U72:AA72)+Q72 -> 4488150507
B74: 640 | C74: Direct Distribution Gross Plant | D74: =(Q74/$AB74)*D$8 -> 0.8666389404 | E74: =(R74/$AB74)*E$8 -> 0 | F74: =(S74/$AB74)*F$8 -> 0 | G74: =(T74/$AB74) -> 0 | H74: =(U74/$AB74) -> 0.005477811263 | I74: =(V74/$AB74)*I$8 -> 0.0004864403288 | J74: =(W74/$AB74)*J$8 -> 0.02871169435 | K74: =(X74/$AB74)*K$8 -> 0.03336301445 | L74: =(Y74/$AB74)*L$8 -> 0.03524624686 | M74: =(Z74/$AB74) -> 0.02983939792 | N74: =(AA74/$AB74) -> 0.0002364543895 | O74: 1 | P74: =IF(O74=1,"OK","NO MATCH!!!") -> OK | Q74: =('COS Detail'!H1047+'COS Detail'!H1052+'COS Detail'!H1057+'COS Detail'!H1062+'COS Detail'!H1067+'COS Detail'!H1072) -> 3828498147 | R74: =('COS Detail'!I1047+'COS Detail'!I1052+'COS Detail'!I1057+'COS Detail'!I1062+'COS Detail'!I1067+'COS Detail'!I1072) -> 0 | S74: =('COS Detail'!J1047+'COS Detail'!J1052+'COS Detail'!J1057+'COS Detail'!J1062+'COS Detail'!J1067+'COS Detail'!J1072) -> 0 | T74: =('COS Detail'!K1047+'COS Detail'!K1052+'COS Detail'!K1057+'COS Detail'!K1062+'COS Detail'!K1067+'COS Detail'!K1072) -> 0 | U74: =('COS Detail'!L1047+'COS Detail'!L1052+'COS Detail'!L1057+'COS Detail'!L1062+'COS Detail'!L1067+'COS Detail'!L1072) -> 24198993.71 | V74: =('COS Detail'!M1047+'COS Detail'!M1052+'COS Detail'!M1057+'COS Detail'!M1062+'COS Detail'!M1067+'COS Detail'!M1072) -> 2148917.86 | W74: =('COS Detail'!N1047+'COS Detail'!N1052+'COS Detail'!N1057+'COS Detail'!N1062+'COS Detail'!N1067+'COS Detail'!N1072) -> 126837906.2 | X74: =('COS Detail'!O1047+'COS Detail'!O1052+'COS Detail'!O1057+'COS Detail'!O1062+'COS Detail'!O1067+'COS Detail'!O1072) -> 147385760.2 | Y74: =('COS Detail'!P1047+'COS Detail'!P1052+'COS Detail'!P1057+'COS Detail'!P1062+'COS Detail'!P1067+'COS Detail'!P1072) -> 155705201.4 | Z74: =('COS Detail'!Q1047+'COS Detail'!Q1052+'COS Detail'!Q1057+'COS Detail'!Q1062+'COS Detail'!Q1067+'COS Detail'!Q1072) -> 131819693.7 | AA74: =('COS Detail'!R1047+'COS Detail'!R1052+'COS Detail'!R1057+'COS Detail'!R1062+'COS Detail'!R1067+'COS Detail'!R1072) -> 1044570.178 | AB74: =SUM(U74:AA74)+Q74 -> 4417639191
B76: 645 | C76: SD Mains | D76: =(Q76/$AB76)*D$8 -> 0.9933870594 | E76: =(R76/$AB76)*E$8 -> 0 | F76: =(S76/$AB76)*F$8 -> 0 | G76: =(T76/$AB76) -> 0 | H76: =(U76/$AB76) -> 0.001313212033 | I76: =(V76/$AB76)*I$8 -> 8.305407891e-05 | J76: =(W76/$AB76)*J$8 -> 0.003573768237 | K76: =(X76/$AB76)*K$8 -> 0.0013635696 | L76: =(Y76/$AB76)*L$8 -> 0.0001656379275 | M76: =(Z76/$AB76) -> 4.392266667e-05 | N76: =(AA76/$AB76) -> 6.977607572e-05 | O76: 1 | P76: =IF(O76=1,"OK","NO MATCH!!!") -> OK | Q76: ='COS Input'!D33*Q8 -> 962560403 | R76: ='COS Input'!E33*R8 -> 0 | S76: ='COS Input'!F33*S8 -> 0 | T76: ='COS Input'!G33*T8 -> 0 | U76: ='COS Input'!H33*U8 -> 1272460.61 | V76: ='COS Input'!I33*V8 -> 80476.75567 | W76: ='COS Input'!J33*W8 -> 3462867.532 | X76: ='COS Input'!K33*X8 -> 1321255.488 | Y76: ='COS Input'!L33*Y8 -> 160497.8731 | Z76: ='COS Input'!M33 -> 42559.66426 | AA76: ='COS Input'!N33 -> 67610.79373 | AB76: =SUM(U76:AA76)+Q76 -> 968968131.7
B78: 650 | C78: Mains | D78: =(Q78/$AB78)*D$8 -> 0.8497108332 | E78: =(R78/$AB78)*E$8 -> 0 | F78: =(S78/$AB78)*F$8 -> 0 | G78: =(T78/$AB78) -> 0 | H78: =(U78/$AB78) -> 0.006070554906 | I78: =(V78/$AB78)*I$8 -> 0.0003809896885 | J78: =(W78/$AB78)*J$8 -> 0.03175195116 | K78: =(X78/$AB78)*K$8 -> 0.03433618543 | L78: =(Y78/$AB78)*L$8 -> 0.04110301932 | M78: =(Z78/$AB78) -> 0.03635291588 | N78: =(AA78/$AB78) -> 0.0002935504152 | O78: 1 | P78: =IF(O78=1,"OK","NO MATCH!!!") -> OK | Q78: ='COS Detail'!H1046*Q8 -> 2562630542 | R78: ='COS Detail'!I1046*R8 -> 0 | S78: ='COS Detail'!J1046*S8 -> 0 | T78: ='COS Detail'!K1046 -> 0 | U78: ='COS Detail'!L1046 -> 18308098.24 | V78: ='COS Detail'!M1046*V8 -> 1149021.26 | W78: ='COS Detail'!N1046*W8 -> 95760247.63 | X78: ='COS Detail'!O1046*X8 -> 103554002.2 | Y78: ='COS Detail'!P1046*Y8 -> 123961998.1 | Z78: ='COS Detail'!Q1046 -> 109636230.2 | AA78: ='COS Detail'!R1046 -> 885314.4271 | AB78: =SUM(U78:AA78)+Q78 -> 3015885454
B80: 660 | C80: Service Lines | D80: =(Q80/$AB80)*D$8 -> 0.9775775346 | E80: =(R80/$AB80)*E$8 -> 0 | F80: =(S80/$AB80)*F$8 -> 0 | G80: =(T80/$AB80) -> 0 | H80: =(U80/$AB80) -> 0.001512758309 | I80: =(V80/$AB80)*I$8 -> 0.0001461699573 | J80: =(W80/$AB80)*J$8 -> 0.004656407403 | K80: =(X80/$AB80)*K$8 -> 0.00899885793 | L80: =(Y80/$AB80)*L$8 -> 0.006333623217 | M80: =(Z80/$AB80) -> 0.0006922106067 | N80: =(AA80/$AB80) -> 8.243798809e-05 | O80: =SUM(H80:N80)+D80 -> 1 | P80: =IF(O80=1,"OK","NO MATCH!!!") -> OK | Q80: ='COS Input'!D35*Q8 -> 492049493 | R80: ='COS Input'!E35*R8 -> 0 | S80: ='COS Input'!F35*S8 -> 0 | T80: ='COS Input'!G35*T8 -> 0 | U80: ='COS Input'!H35*U8 -> 761424.9845 | V80: ='COS Input'!I35*V8 -> 73572.53092 | W80: ='COS Input'!J35*W8 -> 2343735.224 | X80: ='COS Input'!K35*X8 -> 4529444.801 | Y80: ='COS Input'!L35*Y8 -> 3187937.511 | Z80: ='COS Input'!M35 -> 348414.183 | AA80: ='COS Input'!N35 -> 41493.96729 | AB80: =SUM(U80:AA80)+Q80 -> 503335516.2
B82: 670 | C82: Meters & Regulators | D82: =(Q82/$AB82)*D$8 -> 0.9109446505 | E82: =(R82/$AB82)*E$8 -> 0 | F82: =(S82/$AB82)*F$8 -> 0 | G82: =(T82/$AB82) -> 0 | H82: =(U82/$AB82) -> 0.004626307185 | I82: =(V82/$AB82)*I$8 -> 0.001439130639 | J82: =(W82/$AB82)*J$8 -> 0.02527538607 | K82: =(X82/$AB82)*K$8 -> 0.04159457253 | L82: =(Y82/$AB82)*L$8 -> 0.01249620854 | M82: =(Z82/$AB82) -> 0.003623744501 | N82: =(AA82/$AB82) -> 0 | O82: 1 | P82: =IF(O82=1,"OK","NO MATCH!!!") -> OK | Q82: =+'COS Input'!D37*Q8 -> 480274624.2 | R82: =+'COS Input'!E37*R8 -> 0 | S82: =+'COS Input'!F37*S8 -> 0 | T82: =+'COS Input'!G37*T8 -> 0 | U82: =+'COS Input'!H37*U8 -> 2439114.104 | V82: =+'COS Input'!I37*V8 -> 758748.5436 | W82: =+'COS Input'!J37*W8 -> 13325866.22 | X82: =+'COS Input'!K37*X8 -> 21929782.1 | Y82: =+'COS Input'!L37*Y8 -> 6588338.66 | Z82: =+'COS Input'!M37 -> 1910535.977 | AA82: =+'COS Input'!N37 -> 0 | AB82: =SUM(U82:AA82)+Q82 -> 527227009.8
B84: 680 | C84: Mains & Service Lines | D84: =(Q84/$AB84)*D$8 -> 0.8679989295 | E84: =(R84/$AB84)*E$8 -> 0 | F84: =(S84/$AB84)*F$8 -> 0 | G84: =(T84/$AB84) -> 0 | H84: =(U84/$AB84) -> 0.005418677424 | I84: =(V84/$AB84)*I$8 -> 0.0003474046674 | J84: =(W84/$AB84)*J$8 -> 0.0278766192 | K84: =(X84/$AB84)*K$8 -> 0.03071232182 | L84: =(Y84/$AB84)*L$8 -> 0.03613013695 | M84: =(Z84/$AB84) -> 0.03125255428 | N84: =(AA84/$AB84) -> 0.000263356124 | O84: 1 | P84: =IF(O84=1,"OK","NO MATCH!!!") -> OK | Q84: =Q78+Q80 -> 3054680035 | R84: =R78+R80 -> 0 | S84: 0 | T84: 0 | U84: 19069523.22 | V84: =V78+V80 -> 1222593.791 | W84: =W78+W80 -> 98103982.85 | X84: =X78+X80 -> 108083447 | Y84: 127149935.6 | Z84: =Z78+Z80 -> 109984644.4 | AA84: =AA78+AA80 -> 926808.3943 | AB84: =SUM(U84:AA84)+Q84 -> 3519220970
A86: Taxes | C86: Taxes | D86: =(Q86/$AB86)*D$8 -> 0.8991815311 | E86: =(R86/$AB86)*E$8 -> 0 | F86: =(S86/$AB86)*F$8 -> 0 | G86: =(T86/$AB86) -> 0 | H86: =(U86/$AB86) -> 0.009734107534 | I86: =(V86/$AB86)*I$8 -> -0.0001299350672 | J86: =(W86/$AB86)*J$8 -> 0.01054705914 | K86: =(X86/$AB86)*K$8 -> 0.03557419377 | L86: =(Y86/$AB86)*L$8 -> 0.05844794118 | M86: =(Z86/$AB86) -> -0.01821788273 | N86: =(AA86/$AB86) -> 0.004862985049 | O86: 1 | P86: =IF(O86=1,"OK","NO MATCH!!!") -> OK | Q86: =(Taxes!$P$20*(1-Taxes!$P$18)+Taxes!$P$18)*(('COS Sum'!G21-'COS Sum'!G26-'COS Sum'!G35-'COS Sum'!G38-'COS Sum'!G39)-'ALLOCATIONS&PRETAX'!$G$9*'COS Sum'!G76)*Q8 -> 27621559.97 | R86: =(Taxes!$P$15*(1-Taxes!$P$13)+Taxes!$P$13)*(('COS Sum'!H21-'COS Sum'!H26-'COS Sum'!H35-'COS Sum'!H38-'COS Sum'!H39)-'ALLOCATIONS&PRETAX'!$G$9*'COS Sum'!H76) -> 0 | S86: =(Taxes!$P$15*(1-Taxes!$P$13)+Taxes!$P$13)*(('COS Sum'!I21-'COS Sum'!I26-'COS Sum'!I35-'COS Sum'!I38-'COS Sum'!I39)-'ALLOCATIONS&PRETAX'!$G$9*'COS Sum'!I76) -> 0 | T86: =(Taxes!$P$15*(1-Taxes!$P$13)+Taxes!$P$13)*(('COS Sum'!J21-'COS Sum'!J26-'COS Sum'!J35-'COS Sum'!J38-'COS Sum'!J39)-'ALLOCATIONS&PRETAX'!$G$9*'COS Sum'!J76) -> 0 | U86: =(Taxes!$P$20*(1-Taxes!$P$18)+Taxes!$P$18)*(('COS Sum'!K21-'COS Sum'!K26-'COS Sum'!K35-'COS Sum'!K38-'COS Sum'!K39)-'ALLOCATIONS&PRETAX'!$G$9*'COS Sum'!K76) -> 299017.7464 | V86: =(Taxes!$P$20*(1-Taxes!$P$18)+Taxes!$P$18)*(('COS Sum'!L21-'COS Sum'!L26-'COS Sum'!L35-'COS Sum'!L38-'COS Sum'!L39)-'ALLOCATIONS&PRETAX'!$G$9*'COS Sum'!L76) -> -3991.417891 | W86: =(Taxes!$P$20*(1-Taxes!$P$18)+Taxes!$P$18)*(('COS Sum'!M21-'COS Sum'!M26-'COS Sum'!M35-'COS Sum'!M38-'COS Sum'!M39)-'ALLOCATIONS&PRETAX'!$G$9*'COS Sum'!M76) -> 323990.4475 | X86: =(Taxes!$P$20*(1-Taxes!$P$18)+Taxes!$P$18)*(('COS Sum'!N21-'COS Sum'!N26-'COS Sum'!N35-'COS Sum'!N38-'COS Sum'!N39)-'ALLOCATIONS&PRETAX'!$G$9*'COS Sum'!N76) -> 1092787.933 | Y86: =(Taxes!$P$20*(1-Taxes!$P$18)+Taxes!$P$18)*(('COS Sum'!O21-'COS Sum'!O26-'COS Sum'!O35-'COS Sum'!O38-'COS Sum'!O39)-'ALLOCATIONS&PRETAX'!$G$9*'COS Sum'!O76) -> 1795436.468 | Z86: =(Taxes!$P$20*(1-Taxes!$P$18)+Taxes!$P$18)*(('COS Sum'!P21-'COS Sum'!P26-'COS Sum'!P35-'COS Sum'!P38-'COS Sum'!P39)-'ALLOCATIONS&PRETAX'!$G$9*'COS Sum'!P76) -> -559627.0863 | AA86: =(Taxes!$P$20*(1-Taxes!$P$18)+Taxes!$P$18)*(('COS Sum'!Q21-'COS Sum'!Q26-'COS Sum'!Q35-'COS Sum'!Q38-'COS Sum'!Q39)-'ALLOCATIONS&PRETAX'!$G$9*'COS Sum'!Q76) -> 149383.888 | AB86: =SUM(U86:AA86)+Q86 -> 30718557.95
C88: Net Income | D88: =Q88/$AB$88 -> 0.8868433704 | E88: =R88/$AB$88 -> 0 | F88: =S88/$AB$88 -> 0 | G88: 0 | H88: 0.008333438887 | I88: =(V88/$AB$88)*I$8 -> 0.0001061351484 | J88: =(W88/$AB$88)*J$8 -> 0.01711789232 | K88: =(X88/$AB$88)*K$8 -> 0.03378463914 | L88: =(Y88/$AB$88)*L$8 -> 0.0481236458 | M88: =Z88/$AB$88 -> 0.0004055108591 | N88: =AA88/$AB$88 -> 0.005285367419 | O88: 1 | P88: =IF(O88=1,"OK","NO MATCH!!!") -> OK | Q88: ='COS Sum'!G47*Q8 -> 141285563.8 | R88: ='COS Sum'!H47 -> 0 | S88: ='COS Sum'!I47 -> 0 | T88: ='COS Sum'!J47 -> 0 | U88: ='COS Sum'!K47 -> 1327624.078 | V88: ='COS Sum'!L47 -> 16908.69524 | W88: ='COS Sum'!M47 -> 2727100.578 | X88: ='COS Sum'!N47 -> 5382327.871 | Y88: ='COS Sum'!O47 -> 7666716.195 | Z88: ='COS Sum'!P47 -> 64603.09936 | AA88: ='COS Sum'!Q47 -> 842027.0599 | AB88: =SUM(U88:AA88)+Q88 -> 159312871.4
B94: Design Day/Throughput Contribution by Class for Sum/Win & Firm Demand Charge
C95: Design Day Contribution | D95: =D30*'COS Input'!$M$9 -> 0.4722822271 | E95: =E30*'COS Input'!$M$9 -> 0 | F95: =F30*'COS Input'!$M$9 -> 0 | G95: =G30*'COS Input'!$M$9 -> 0 | H95: =H30*'COS Input'!$M$9 -> 0.004309449123 | I95: =I30*'COS Input'!$M$9 -> 0 | J95: =J30*'COS Input'!$M$9 -> 0.02859548248 | K95: =K30*'COS Input'!$M$9 -> 0.0259629595 | L95: =L30*'COS Input'!$M$9 -> 0.02814074985 | M95: =M30*'COS Input'!$M$9 -> 0.04055911903 | N95: =N30*'COS Input'!$M$9 -> 0.0001500128719 | O95: =O30*'COS Input'!$M$9 -> 0.6
C96: Throughput Contribution | D96: =D34*'COS Input'!$N$9 -> 0.2466890188 | E96: =E34*'COS Input'!$N$9 -> 0 | F96: =F34*'COS Input'!$N$9 -> 0 | G96: =G34*'COS Input'!$N$9 -> 0 | H96: =H34*'COS Input'!$N$9 -> 0.004689884518 | I96: =I34*'COS Input'!$N$9 -> 0.0004604661294 | J96: =J34*'COS Input'!$N$9 -> 0.0177031947 | K96: =K34*'COS Input'!$N$9 -> 0.03353250329 | L96: =L34*'COS Input'!$N$9 -> 0.05800878568 | M96: =M34*'COS Input'!$N$9 -> 0.03861054288 | N96: =N34*'COS Input'!$N$9 -> 0.0003056039782 | O96: =O34*'COS Input'!$N$9 -> 0.4
C97: Design Day Proportion | D97: =IFERROR(D95/(D95+D96),0) -> 0.656886113 | E97: =IFERROR(E95/(E95+E96),0) -> 0 | F97: 0 | G97: 0 | H97: =IFERROR(H95/(H95+H96),0) -> 0.4788631353 | I97: =IFERROR(I95/(I95+I96),0) -> 0 | J97: 0.6176306587 | K97: =IFERROR(K95/(K95+K96),0) -> 0.4363855374 | L97: =IFERROR(L95/(L95+L96),0) -> 0.3266500473 | M97: 0.5123063312 | N97: =IFERROR(N95/(N95+N96),0) -> 0.3292522475 | O97: =IFERROR(O95/(O95+O96),0) -> 0.6
C98: Throughput Proportion | D98: =IFERROR(D96/(D95+D96),0) -> 0.343113887 | E98: =IFERROR(E96/(E95+E96),0) -> 0 | F98: 0 | G98: 0 | H98: =IFERROR(H96/(H95+H96),0) -> 0.5211368647 | I98: 1 | J98: 0.3823693413 | K98: 0.5636144626 | L98: 0.6733499527 | M98: 0.4876936688 | N98: 0.6707477525 | O98: =IFERROR(O96/(O95+O96),0) -> 0.4

Sheet Proposed Block Out 10yr
A1: year | B1: month | C1: state | D1: rate_schedule | E1: customer_count | F1: total_dth | G1: block_1_dth | H1: block_2_dth | I1: block_3_dth | J1: block_4_dth | K1: total_demand_dth | L1: total_class_1_meters | M1: total_class_2_meters | N1: total_class_3_meters | O1: total_class_4_meters | P1: total_primary_admins | Q1: total_secondary_admins | R1: Winter
A2: 2026 | B2: 1 | C2: UT | D2: UTGS | E2: 1209391 | F2: 21267214 | G2: 16534730 | H2: 4732484 | I2: 0 | J2: 0 | K2: 0 | L2: 1152914 | M2: 54801 | N2: 1606 | O2: 174 | P2: 0 | Q2: 0 | R2: =IF(OR(B2=1,B2=2,B2=3,B2=11,B2=12),1,0) -> 1
A3: 2026 | B3: 2 | C3: UT | D3: UTGS | E3: 1210275 | F3: 17374562 | G3: 13863503 | H3: 3511059 | I3: 0 | J3: 0 | K3: 0 | L3: 1153756 | M3: 54841 | N3: 1608 | O3: 174 | P3: 0 | Q3: 0 | R3: =IF(OR(B3=1,B3=2,B3=3,B3=11,B3=12),1,0) -> 1
A4: 2026 | B4: 3 | C4: UT | D4: UTGS | E4: 1212285 | F4: 13834282 | G4: 11296512 | H4: 2537770 | I4: 0 | J4: 0 | K4: 0 | L4: 1155672 | M4: 54932 | N4: 1610 | O4: 174 | P4: 0 | Q4: 0 | R4: 1
A5: 2026 | B5: 4 | C5: UT | D5: UTGS | E5: 1214423 | F5: 9531772 | G5: 7998270 | H5: 1533502 | I5: 0 | J5: 0 | K5: 0 | L5: 1157711 | M5: 55029 | N5: 1613 | O5: 175 | P5: 0 | Q5: 0 | R5: 0
A6: 2026 | B6: 5 | C6: UT | D6: UTGS | E6: 1215490 | F6: 5474098 | G6: 4709343 | H6: 764755 | I6: 0 | J6: 0 | K6: 0 | L6: 1158728 | M6: 55077 | N6: 1614 | O6: 175 | P6: 0 | Q6: 0 | R6: 0
A7: 2026 | B7: 6 | C7: UT | D7: UTGS | E7: 1217523 | F7: 3013097 | G7: 2630857 | H7: 382240 | I7: 0 | J7: 0 | K7: 0 | L7: 1160666 | M7: 55169 | N7: 1617 | O7: 175 | P7: 0 | Q7: 0 | R7: 0
A8: 2026 | B8: 7 | C8: UT | D8: UTGS | E8: 1217961 | F8: 2763562 | G8: 2416578 | H8: 346984 | I8: 0 | J8: 0 | K8: 0 | L8: 1161083 | M8: 55189 | N8: 1618 | O8: 175 | P8: 0 | Q8: 0 | R8: 0
A9: 2026 | B9: 8 | C9: UT | D9: UTGS | E9: 1218969 | F9: 2514371 | G9: 2201959 | H9: 312412 | I9: 0 | J9: 0 | K9: 0 | L9: 1162044 | M9: 55235 | N9: 1619 | O9: 175 | P9: 0 | Q9: 0 | R9: 0
A10: 2026 | B10: 9 | C10: UT | D10: UTGS | E10: 1221394 | F10: 2768711 | G10: 2421119 | H10: 347592 | I10: 0 | J10: 0 | K10: 0 | L10: 1164356 | M10: 55345 | N10: 1622 | O10: 176 | P10: 0 | Q10: 0 | R10: 0
A11: 2026 | B11: 10 | C11: UT | D11: UTGS | E11: 1221430 | F11: 6042450 | G11: 5181330 | H11: 861120 | I11: 0 | J11: 0 | K11: 0 | L11: 1164390 | M11: 55346 | N11: 1622 | O11: 176 | P11: 0 | Q11: 0 | R11: 0
A12: 2026 | B12: 11 | C12: UT | D12: UTGS | E12: 1224409 | F12: 12980877 | G12: 10666224 | H12: 2314653 | I12: 0 | J12: 0 | K12: 0 | L12: 1167230 | M12: 55481 | N12: 1626 | O12: 176 | P12: 0 | Q12: 0 | R12: 1
A13: 2026 | B13: 12 | C13: UT | D13: UTGS | E13: 1227910 | F13: 20141912 | G13: 15810521 | H13: 4331391 | I13: 0 | J13: 0 | K13: 0 | L13: 1170568 | M13: 55640 | N13: 1631 | O13: 177 | P13: 0 | Q13: 0 | R13: 1
A14: 2026 | B14: 1 | C14: UT | D14: UTGSS | E14: 0 | F14: 0 | G14: 0 | H14: 0 | I14: 0 | J14: 0 | K14: 0 | L14: 0 | M14: 0 | N14: 0 | O14: 0 | P14: 0 | Q14: 0 | R14: 1
A15: 2026 | B15: 2 | C15: UT | D15: UTGSS | E15: 0 | F15: 0 | G15: 0 | H15: 0 | I15: 0 | J15: 0 | K15: 0 | L15: 0 | M15: 0 | N15: 0 | O15: 0 | P15: 0 | Q15: 0 | R15: 1
A16: 2026 | B16: 3 | C16: UT | D16: UTGSS | E16: 0 | F16: 0 | G16: 0 | H16: 0 | I16: 0 | J16: 0 | K16: 0 | L16: 0 | M16: 0 | N16: 0 | O16: 0 | P16: 0 | Q16: 0 | R16: 1
A17: 2026 | B17: 4 | C17: UT | D17: UTGSS | E17: 0 | F17: 0 | G17: 0 | H17: 0 | I17: 0 | J17: 0 | K17: 0 | L17: 0 | M17: 0 | N17: 0 | O17: 0 | P17: 0 | Q17: 0 | R17: 0
A18: 2026 | B18: 5 | C18: UT | D18: UTGSS | E18: 0 | F18: 0 | G18: 0 | H18: 0 | I18: 0 | J18: 0 | K18: 0 | L18: 0 | M18: 0 | N18: 0 | O18: 0 | P18: 0 | Q18: 0 | R18: 0
A19: 2026 | B19: 6 | C19: UT | D19: UTGSS | E19: 0 | F19: 0 | G19: 0 | H19: 0 | I19: 0 | J19: 0 | K19: 0 | L19: 0 | M19: 0 | N19: 0 | O19: 0 | P19: 0 | Q19: 0 | R19: 0
A20: 2026 | B20: 7 | C20: UT | D20: UTGSS | E20: 0 | F20: 0 | G20: 0 | H20: 0 | I20: 0 | J20: 0 | K20: 0 | L20: 0 | M20: 0 | N20: 0 | O20: 0 | P20: 0 | Q20: 0 | R20: 0
A21: 2026 | B21: 8 | C21: UT | D21: UTGSS | E21: 0 | F21: 0 | G21: 0 | H21: 0 | I21: 0 | J21: 0 | K21: 0 | L21: 0 | M21: 0 | N21: 0 | O21: 0 | P21: 0 | Q21: 0 | R21: 0
A22: 2026 | B22: 9 | C22: UT | D22: UTGSS | E22: 0 | F22: 0 | G22: 0 | H22: 0 | I22: 0 | J22: 0 | K22: 0 | L22: 0 | M22: 0 | N22: 0 | O22: 0 | P22: 0 | Q22: 0 | R22: 0
A23: 2026 | B23: 10 | C23: UT | D23: UTGSS | E23: 0 | F23: 0 | G23: 0 | H23: 0 | I23: 0 | J23: 0 | K23: 0 | L23: 0 | M23: 0 | N23: 0 | O23: 0 | P23: 0 | Q23: 0 | R23: 0
A24: 2026 | B24: 11 | C24: UT | D24: UTGSS | E24: 0 | F24: 0 | G24: 0 | H24: 0 | I24: 0 | J24: 0 | K24: 0 | L24: 0 | M24: 0 | N24: 0 | O24: 0 | P24: 0 | Q24: 0 | R24: 1
A25: 2026 | B25: 12 | C25: UT | D25: UTGSS | E25: 0 | F25: 0 | G25: 0 | H25: 0 | I25: 0 | J25: 0 | K25: 0 | L25: 0 | M25: 0 | N25: 0 | O25: 0 | P25: 0 | Q25: 0 | R25: 1
A26: 2026 | B26: 1 | C26: UT | D26: UTGSM | E26: 0 | F26: 0 | G26: 0 | H26: 0 | I26: 0 | J26: 0 | K26: 0 | L26: 0 | M26: 0 | N26: 0 | O26: 0 | P26: 0 | Q26: 0 | R26: 1
A27: 2026 | B27: 2 | C27: UT | D27: UTGSM | E27: 0 | F27: 0 | G27: 0 | H27: 0 | I27: 0 | J27: 0 | K27: 0 | L27: 0 | M27: 0 | N27: 0 | O27: 0 | P27: 0 | Q27: 0 | R27: 1
A28: 2026 | B28: 3 | C28: UT | D28: UTGSM | E28: 0 | F28: 0 | G28: 0 | H28: 0 | I28: 0 | J28: 0 | K28: 0 | L28: 0 | M28: 0 | N28: 0 | O28: 0 | P28: 0 | Q28: 0 | R28: 1
A29: 2026 | B29: 4 | C29: UT | D29: UTGSM | E29: 0 | F29: 0 | G29: 0 | H29: 0 | I29: 0 | J29: 0 | K29: 0 | L29: 0 | M29: 0 | N29: 0 | O29: 0 | P29: 0 | Q29: 0 | R29: 0
A30: 2026 | B30: 5 | C30: UT | D30: UTGSM | E30: 0 | F30: 0 | G30: 0 | H30: 0 | I30: 0 | J30: 0 | K30: 0 | L30: 0 | M30: 0 | N30: 0 | O30: 0 | P30: 0 | Q30: 0 | R30: 0
A31: 2026 | B31: 6 | C31: UT | D31: UTGSM | E31: 0 | F31: 0 | G31: 0 | H31: 0 | I31: 0 | J31: 0 | K31: 0 | L31: 0 | M31: 0 | N31: 0 | O31: 0 | P31: 0 | Q31: 0 | R31: 0
A32: 2026 | B32: 7 | C32: UT | D32: UTGSM | E32: 0 | F32: 0 | G32: 0 | H32: 0 | I32: 0 | J32: 0 | K32: 0 | L32: 0 | M32: 0 | N32: 0 | O32: 0 | P32: 0 | Q32: 0 | R32: 0
A33: 2026 | B33: 8 | C33: UT | D33: UTGSM | E33: 0 | F33: 0 | G33: 0 | H33: 0 | I33: 0 | J33: 0 | K33: 0 | L33: 0 | M33: 0 | N33: 0 | O33: 0 | P33: 0 | Q33: 0 | R33: 0
A34: 2026 | B34: 9 | C34: UT | D34: UTGSM | E34: 0 | F34: 0 | G34: 0 | H34: 0 | I34: 0 | J34: 0 | K34: 0 | L34: 0 | M34: 0 | N34: 0 | O34: 0 | P34: 0 | Q34: 0 | R34: 0
A35: 2026 | B35: 10 | C35: UT | D35: UTGSM | E35: 0 | F35: 0 | G35: 0 | H35: 0 | I35: 0 | J35: 0 | K35: 0 | L35: 0 | M35: 0 | N35: 0 | O35: 0 | P35: 0 | Q35: 0 | R35: 0
A36: 2026 | B36: 11 | C36: UT | D36: UTGSM | E36: 0 | F36: 0 | G36: 0 | H36: 0 | I36: 0 | J36: 0 | K36: 0 | L36: 0 | M36: 0 | N36: 0 | O36: 0 | P36: 0 | Q36: 0 | R36: 1
A37: 2026 | B37: 12 | C37: UT | D37: UTGSM | E37: 0 | F37: 0 | G37: 0 | H37: 0 | I37: 0 | J37: 0 | K37: 0 | L37: 0 | M37: 0 | N37: 0 | O37: 0 | P37: 0 | Q37: 0 | R37: 1
A38: 2026 | B38: 1 | C38: UT | D38: UTGSL | E38: 0 | F38: 0 | G38: 0 | H38: 0 | I38: 0 | J38: 0 | K38: 0 | L38: 0 | M38: 0 | N38: 0 | O38: 0 | P38: 0 | Q38: 0 | R38: 1
A39: 2026 | B39: 2 | C39: UT | D39: UTGSL | E39: 0 | F39: 0 | G39: 0 | H39: 0 | I39: 0 | J39: 0 | K39: 0 | L39: 0 | M39: 0 | N39: 0 | O39: 0 | P39: 0 | Q39: 0 | R39: 1
A40: 2026 | B40: 3 | C40: UT | D40: UTGSL | E40: 0 | F40: 0 | G40: 0 | H40: 0 | I40: 0 | J40: 0 | K40: 0 | L40: 0 | M40: 0 | N40: 0 | O40: 0 | P40: 0 | Q40: 0 | R40: 1
A41: 2026 | B41: 4 | C41: UT | D41: UTGSL | E41: 0 | F41: 0 | G41: 0 | H41: 0 | I41: 0 | J41: 0 | K41: 0 | L41: 0 | M41: 0 | N41: 0 | O41: 0 | P41: 0 | Q41: 0 | R41: 0
A42: 2026 | B42: 5 | C42: UT | D42: UTGSL | E42: 0 | F42: 0 | G42: 0 | H42: 0 | I42: 0 | J42: 0 | K42: 0 | L42: 0 | M42: 0 | N42: 0 | O42: 0 | P42: 0 | Q42: 0 | R42: 0
A43: 2026 | B43: 6 | C43: UT | D43: UTGSL | E43: 0 | F43: 0 | G43: 0 | H43: 0 | I43: 0 | J43: 0 | K43: 0 | L43: 0 | M43: 0 | N43: 0 | O43: 0 | P43: 0 | Q43: 0 | R43: 0
A44: 2026 | B44: 7 | C44: UT | D44: UTGSL | E44: 0 | F44: 0 | G44: 0 | H44: 0 | I44: 0 | J44: 0 | K44: 0 | L44: 0 | M44: 0 | N44: 0 | O44: 0 | P44: 0 | Q44: 0 | R44: 0
A45: 2026 | B45: 8 | C45: UT | D45: UTGSL | E45: 0 | F45: 0 | G45: 0 | H45: 0 | I45: 0 | J45: 0 | K45: 0 | L45: 0 | M45: 0 | N45: 0 | O45: 0 | P45: 0 | Q45: 0 | R45: 0
A46: 2026 | B46: 9 | C46: UT | D46: UTGSL | E46: 0 | F46: 0 | G46: 0 | H46: 0 | I46: 0 | J46: 0 | K46: 0 | L46: 0 | M46: 0 | N46: 0 | O46: 0 | P46: 0 | Q46: 0 | R46: 0
A47: 2026 | B47: 10 | C47: UT | D47: UTGSL | E47: 0 | F47: 0 | G47: 0 | H47: 0 | I47: 0 | J47: 0 | K47: 0 | L47: 0 | M47: 0 | N47: 0 | O47: 0 | P47: 0 | Q47: 0 | R47: 0
A48: 2026 | B48: 11 | C48: UT | D48: UTGSL | E48: 0 | F48: 0 | G48: 0 | H48: 0 | I48: 0 | J48: 0 | K48: 0 | L48: 0 | M48: 0 | N48: 0 | O48: 0 | P48: 0 | Q48: 0 | R48: 1
A49: 2026 | B49: 12 | C49: UT | D49: UTGSL | E49: 0 | F49: 0 | G49: 0 | H49: 0 | I49: 0 | J49: 0 | K49: 0 | L49: 0 | M49: 0 | N49: 0 | O49: 0 | P49: 0 | Q49: 0 | R49: 1
A50: 2026 | B50: 1 | C50: UT | D50: UTFS | E50: 435 | F50: 249682 | G50: 79732 | H50: 136000 | I50: 33950 | J50: 0 | K50: 0 | L50: 6 | M50: 329 | N50: 91 | O50: 14 | P50: 0 | Q50: 0 | R50: 1
A51: 2026 | B51: 2 | C51: UT | D51: UTFS | E51: 435 | F51: 221977 | G51: 73851 | H51: 118517 | I51: 29609 | J51: 0 | K51: 0 | L51: 6 | M51: 329 | N51: 91 | O51: 14 | P51: 0 | Q51: 0 | R51: 1
A52: 2026 | B52: 3 | C52: UT | D52: UTFS | E52: 435 | F52: 203586 | G52: 75395 | H52: 101903 | I52: 26288 | J52: 0 | K52: 0 | L52: 6 | M52: 329 | N52: 91 | O52: 14 | P52: 0 | Q52: 0 | R52: 1
A53: 2026 | B53: 4 | C53: UT | D53: UTFS | E53: 435 | F53: 177326 | G53: 73374 | H53: 80844 | I53: 23107 | J53: 0 | K53: 0 | L53: 6 | M53: 329 | N53: 91 | O53: 14 | P53: 0 | Q53: 0 | R53: 0
A54: 2026 | B54: 5 | C54: UT | D54: UTFS | E54: 435 | F54: 164871 | G54: 69014 | H54: 74685 | I54: 21171 | J54: 0 | K54: 0 | L54: 6 | M54: 329 | N54: 91 | O54: 14 | P54: 0 | Q54: 0 | R54: 0
A55: 2026 | B55: 6 | C55: UT | D55: UTFS | E55: 435 | F55: 141570 | G55: 61747 | H55: 61767 | I55: 18056 | J55: 0 | K55: 0 | L55: 6 | M55: 329 | N55: 91 | O55: 14 | P55: 0 | Q55: 0 | R55: 0
A56: 2026 | B56: 7 | C56: UT | D56: UTFS | E56: 435 | F56: 139418 | G56: 69106 | H56: 52309 | I56: 18003 | J56: 0 | K56: 0 | L56: 6 | M56: 329 | N56: 91 | O56: 14 | P56: 0 | Q56: 0 | R56: 0
A57: 2026 | B57: 8 | C57: UT | D57: UTFS | E57: 435 | F57: 131084 | G57: 63989 | H57: 48881 | I57: 18214 | J57: 0 | K57: 0 | L57: 6 | M57: 329 | N57: 91 | O57: 14 | P57: 0 | Q57: 0 | R57: 0
A58: 2026 | B58: 9 | C58: UT | D58: UTFS | E58: 435 | F58: 150860 | G58: 69900 | H58: 59990 | I58: 20970 | J58: 0 | K58: 0 | L58: 6 | M58: 329 | N58: 91 | O58: 14 | P58: 0 | Q58: 0 | R58: 0
A59: 2026 | B59: 10 | C59: UT | D59: UTFS | E59: 435 | F59: 209973 | G59: 95887 | H59: 85460 | I59: 28626 | J59: 0 | K59: 0 | L59: 6 | M59: 329 | N59: 91 | O59: 14 | P59: 0 | Q59: 0 | R59: 0
A60: 2026 | B60: 11 | C60: UT | D60: UTFS | E60: 435 | F60: 210373 | G60: 84595 | H60: 96034 | I60: 29744 | J60: 0 | K60: 0 | L60: 6 | M60: 329 | N60: 91 | O60: 14 | P60: 0 | Q60: 0 | R60: 1
A61: 2026 | B61: 12 | C61: UT | D61: UTFS | E61: 435 | F61: 237044 | G61: 88123 | H61: 113504 | I61: 35416 | J61: 0 | K61: 0 | L61: 6 | M61: 329 | N61: 91 | O61: 14 | P61: 0 | Q61: 0 | R61: 1
A62: 2026 | B62: 1 | C62: UT | D62: UTNGV | E62: 1 | F62: 14998 | G62: 14998 | H62: 0 | I62: 0 | J62: 0 | K62: 0 | L62: 0 | M62: 0 | N62: 0 | O62: 0 | P62: 0 | Q62: 0 | R62: 1
A63: 2026 | B63: 2 | C63: UT | D63: UTNGV | E63: 1 | F63: 12295 | G63: 12295 | H63: 0 | I63: 0 | J63: 0 | K63: 0 | L63: 0 | M63: 0 | N63: 0 | O63: 0 | P63: 0 | Q63: 0 | R63: 1
A64: 2026 | B64: 3 | C64: UT | D64: UTNGV | E64: 1 | F64: 10748 | G64: 10748 | H64: 0 | I64: 0 | J64: 0 | K64: 0 | L64: 0 | M64: 0 | N64: 0 | O64: 0 | P64: 0 | Q64: 0 | R64: 1
A65: 2026 | B65: 4 | C65: UT | D65: UTNGV | E65: 1 | F65: 11906 | G65: 11906 | H65: 0 | I65: 0 | J65: 0 | K65: 0 | L65: 0 | M65: 0 | N65: 0 | O65: 0 | P65: 0 | Q65: 0 | R65: 0
A66: 2026 | B66: 5 | C66: UT | D66: UTNGV | E66: 1 | F66: 11756 | G66: 11756 | H66: 0 | I66: 0 | J66: 0 | K66: 0 | L66: 0 | M66: 0 | N66: 0 | O66: 0 | P66: 0 | Q66: 0 | R66: 0
A67: 2026 | B67: 6 | C67: UT | D67: UTNGV | E67: 1 | F67: 10389 | G67: 10389 | H67: 0 | I67: 0 | J67: 0 | K67: 0 | L67: 0 | M67: 0 | N67: 0 | O67: 0 | P67: 0 | Q67: 0 | R67: =IF(OR(B67=1,B67=2,B67=3,B67=11,B67=12),1,0) -> 0
A68: 2026 | B68: 7 | C68: UT | D68: UTNGV | E68: 1 | F68: 12129 | G68: 12129 | H68: 0 | I68: 0 | J68: 0 | K68: 0 | L68: 0 | M68: 0 | N68: 0 | O68: 0 | P68: 0 | Q68: 0 | R68: 0
A69: 2026 | B69: 8 | C69: UT | D69: UTNGV | E69: 1 | F69: 13968 | G69: 13968 | H69: 0 | I69: 0 | J69: 0 | K69: 0 | L69: 0 | M69: 0 | N69: 0 | O69: 0 | P69: 0 | Q69: 0 | R69: 0
A70: 2026 | B70: 9 | C70: UT | D70: UTNGV | E70: 1 | F70: 12182 | G70: 12182 | H70: 0 | I70: 0 | J70: 0 | K70: 0 | L70: 0 | M70: 0 | N70: 0 | O70: 0 | P70: 0 | Q70: 0 | R70: 0
A71: 2026 | B71: 10 | C71: UT | D71: UTNGV | E71: 1 | F71: 11487 | G71: 11487 | H71: 0 | I71: 0 | J71: 0 | K71: 0 | L71: 0 | M71: 0 | N71: 0 | O71: 0 | P71: 0 | Q71: 0 | R71: 0
A72: 2026 | B72: 11 | C72: UT | D72: UTNGV | E72: 1 | F72: 11907 | G72: 11907 | H72: 0 | I72: 0 | J72: 0 | K72: 0 | L72: 0 | M72: 0 | N72: 0 | O72: 0 | P72: 0 | Q72: 0 | R72: 1
A73: 2026 | B73: 12 | C73: UT | D73: UTNGV | E73: 1 | F73: 12053 | G73: 12053 | H73: 0 | I73: 0 | J73: 0 | K73: 0 | L73: 0 | M73: 0 | N73: 0 | O73: 0 | P73: 0 | Q73: 0 | R73: 1
A74: 2026 | B74: 1 | C74: UT | D74: UTIS | E74: 15 | F74: 32734 | G74: 19615 | H74: 13119 | I74: 0 | J74: 0 | K74: 0 | L74: 0 | M74: 3 | N74: 9 | O74: 5 | P74: 0 | Q74: 0 | R74: 1
A75: 2026 | B75: 2 | C75: UT | D75: UTIS | E75: 15 | F75: 29634 | G75: 18867 | H75: 10767 | I75: 0 | J75: 0 | K75: 0 | L75: 0 | M75: 3 | N75: 9 | O75: 5 | P75: 0 | Q75: 0 | R75: 1
A76: 2026 | B76: 3 | C76: UT | D76: UTIS | E76: 15 | F76: 28577 | G76: 18190 | H76: 10387 | I76: 0 | J76: 0 | K76: 0 | L76: 0 | M76: 3 | N76: 9 | O76: 5 | P76: 0 | Q76: 0 | R76: 1
A77: 2026 | B77: 4 | C77: UT | D77: UTIS | E77: 15 | F77: 20662 | G77: 17740 | H77: 2922 | I77: 0 | J77: 0 | K77: 0 | L77: 0 | M77: 3 | N77: 9 | O77: 5 | P77: 0 | Q77: 0 | R77: 0
A78: 2026 | B78: 5 | C78: UT | D78: UTIS | E78: 15 | F78: 14873 | G78: 14172 | H78: 701 | I78: 0 | J78: 0 | K78: 0 | L78: 0 | M78: 3 | N78: 9 | O78: 5 | P78: 0 | Q78: 0 | R78: 0
A79: 2026 | B79: 6 | C79: UT | D79: UTIS | E79: 15 | F79: 10104 | G79: 10104 | H79: 0 | I79: 0 | J79: 0 | K79: 0 | L79: 0 | M79: 3 | N79: 9 | O79: 5 | P79: 0 | Q79: 0 | R79: 0
A80: 2026 | B80: 7 | C80: UT | D80: UTIS | E80: 15 | F80: 7789 | G80: 7789 | H80: 0 | I80: 0 | J80: 0 | K80: 0 | L80: 0 | M80: 3 | N80: 9 | O80: 5 | P80: 0 | Q80: 0 | R80: 0
A81: 2026 | B81: 8 | C81: UT | D81: UTIS | E81: 15 | F81: 8138 | G81: 8138 | H81: 0 | I81: 0 | J81: 0 | K81: 0 | L81: 0 | M81: 3 | N81: 9 | O81: 5 | P81: 0 | Q81: 0 | R81: 0
A82: 2026 | B82: 9 | C82: UT | D82: UTIS | E82: 15 | F82: 9973 | G82: 9973 | H82: 0 | I82: 0 | J82: 0 | K82: 0 | L82: 0 | M82: 3 | N82: 9 | O82: 5 | P82: 0 | Q82: 0 | R82: 0
A83: 2026 | B83: 10 | C83: UT | D83: UTIS | E83: 15 | F83: 12718 | G83: 11826 | H83: 892 | I83: 0 | J83: 0 | K83: 0 | L83: 0 | M83: 3 | N83: 9 | O83: 5 | P83: 0 | Q83: 0 | R83: 0
A84: 2026 | B84: 11 | C84: UT | D84: UTIS | E84: 15 | F84: 20143 | G84: 15787 | H84: 4356 | I84: 0 | J84: 0 | K84: 0 | L84: 0 | M84: 3 | N84: 9 | O84: 5 | P84: 0 | Q84: 0 | R84: 1
A85: 2026 | B85: 12 | C85: UT | D85: UTIS | E85: 15 | F85: 24365 | G85: 17467 | H85: 6898 | I85: 0 | J85: 0 | K85: 0 | L85: 0 | M85: 3 | N85: 9 | O85: 5 | P85: 0 | Q85: 0 | R85: 1
A86: 2026 | B86: 1 | C86: UT | D86: UTFT1C | E86: 1 | F86: 4483894 | G86: 0 | H86: 0 | I86: 0 | J86: 0 | K86: 120000 | L86: 0 | M86: 0 | N86: 0 | O86: 3 | P86: 1 | Q86: 0 | R86: 1
A87: 2026 | B87: 2 | C87: UT | D87: UTFT1C | E87: 1 | F87: 4068671 | G87: 0 | H87: 0 | I87: 0 | J87: 0 | K87: 120000 | L87: 0 | M87: 0 | N87: 0 | O87: 3 | P87: 1 | Q87: 0 | R87: 1
A88: 2026 | B88: 3 | C88: UT | D88: UTFT1C | E88: 1 | F88: 3843295 | G88: 0 | H88: 0 | I88: 0 | J88: 0 | K88: 120000 | L88: 0 | M88: 0 | N88: 0 | O88: 3 | P88: 1 | Q88: 0 | R88: 1
A89: 2026 | B89: 4 | C89: UT | D89: UTFT1C | E89: 1 | F89: 2967197 | G89: 0 | H89: 0 | I89: 0 | J89: 0 | K89: 120000 | L89: 0 | M89: 0 | N89: 0 | O89: 3 | P89: 1 | Q89: 0 | R89: 0
A90: 2026 | B90: 5 | C90: UT | D90: UTFT1C | E90: 1 | F90: 3574691 | G90: 0 | H90: 0 | I90: 0 | J90: 0 | K90: 120000 | L90: 0 | M90: 0 | N90: 0 | O90: 3 | P90: 1 | Q90: 0 | R90: 0
A91: 2026 | B91: 6 | C91: UT | D91: UTFT1C | E91: 1 | F91: 3723257 | G91: 0 | H91: 0 | I91: 0 | J91: 0 | K91: 120000 | L91: 0 | M91: 0 | N91: 0 | O91: 3 | P91: 1 | Q91: 0 | R91: 0
A92: 2026 | B92: 7 | C92: UT | D92: UTFT1C | E92: 1 | F92: 4153120 | G92: 0 | H92: 0 | I92: 0 | J92: 0 | K92: 120000 | L92: 0 | M92: 0 | N92: 0 | O92: 3 | P92: 1 | Q92: 0 | R92: 0
A93: 2026 | B93: 8 | C93: UT | D93: UTFT1C | E93: 1 | F93: 4321657 | G93: 0 | H93: 0 | I93: 0 | J93: 0 | K93: 120000 | L93: 0 | M93: 0 | N93: 0 | O93: 3 | P93: 1 | Q93: 0 | R93: 0
A94: 2026 | B94: 9 | C94: UT | D94: UTFT1C | E94: 1 | F94: 3823681 | G94: 0 | H94: 0 | I94: 0 | J94: 0 | K94: 120000 | L94: 0 | M94: 0 | N94: 0 | O94: 3 | P94: 1 | Q94: 0 | R94: 0
A95: 2026 | B95: 10 | C95: UT | D95: UTFT1C | E95: 1 | F95: 3084746 | G95: 0 | H95: 0 | I95: 0 | J95: 0 | K95: 120000 | L95: 0 | M95: 0 | N95: 0 | O95: 3 | P95: 1 | Q95: 0 | R95: 0
A96: 2026 | B96: 11 | C96: UT | D96: UTFT1C | E96: 1 | F96: 3198979 | G96: 0 | H96: 0 | I96: 0 | J96: 0 | K96: 120000 | L96: 0 | M96: 0 | N96: 0 | O96: 3 | P96: 1 | Q96: 0 | R96: 1
A97: 2026 | B97: 12 | C97: UT | D97: UTFT1C | E97: 1 | F97: 4324084 | G97: 0 | H97: 0 | I97: 0 | J97: 0 | K97: 120000 | L97: 0 | M97: 0 | N97: 0 | O97: 3 | P97: 1 | Q97: 0 | R97: 1
A98: 2026 | B98: 1 | C98: UT | D98: UTFT1 | E98: 8 | F98: 804329 | G98: 69988 | H98: 324313 | I98: 410028 | J98: 0 | K98: 57732 | L98: 0 | M98: 0 | N98: 1 | O98: 7 | P98: 3 | Q98: 5 | R98: 1
A99: 2026 | B99: 2 | C99: UT | D99: UTFT1 | E99: 8 | F99: 732505 | G99: 66286 | H99: 306289 | I99: 359930 | J99: 0 | K99: 57732 | L99: 0 | M99: 0 | N99: 1 | O99: 7 | P99: 3 | Q99: 5 | R99: 1
A100: 2026 | B100: 3 | C100: UT | D100: UTFT1 | E100: 8 | F100: 746393 | G100: 64993 | H100: 310888 | I100: 370512 | J100: 0 | K100: 57732 | L100: 0 | M100: 0 | N100: 1 | O100: 7 | P100: 3 | Q100: 5 | R100: 1
A101: 2026 | B101: 4 | C101: UT | D101: UTFT1 | E101: 8 | F101: 665297 | G101: 69916 | H101: 289347 | I101: 306034 | J101: 0 | K101: 57732 | L101: 0 | M101: 0 | N101: 1 | O101: 7 | P101: 3 | Q101: 5 | R101: 0
A102: 2026 | B102: 5 | C102: UT | D102: UTFT1 | E102: 8 | F102: 718181 | G102: 62693 | H102: 280579 | I102: 374909 | J102: 0 | K102: 57732 | L102: 0 | M102: 0 | N102: 1 | O102: 7 | P102: 3 | Q102: 5 | R102: 0
A103: 2026 | B103: 6 | C103: UT | D103: UTFT1 | E103: 8 | F103: 1925405 | G103: 66626 | H103: 272099 | I103: 709240 | J103: 877440 | K103: 107032 | L103: 0 | M103: 0 | N103: 1 | O103: 7 | P103: 3 | Q103: 5 | R103: 0
A104: 2026 | B104: 7 | C104: UT | D104: UTFT1 | E104: 8 | F104: 2156629 | G104: 67663 | H104: 270227 | I104: 892051 | J104: 926688 | K104: 107032 | L104: 0 | M104: 0 | N104: 1 | O104: 7 | P104: 3 | Q104: 5 | R104: 0
A105: 2026 | B105: 8 | C105: UT | D105: UTFT1 | E105: 8 | F105: 2199062 | G105: 70054 | H105: 276263 | I105: 926057 | J105: 926688 | K105: 107032 | L105: 0 | M105: 0 | N105: 1 | O105: 7 | P105: 3 | Q105: 5 | R105: 0
A106: 2026 | B106: 9 | C106: UT | D106: UTFT1 | E106: 8 | F106: 2065929 | G106: 69921 | H106: 273639 | I106: 844929 | J106: 877440 | K106: 107032 | L106: 0 | M106: 0 | N106: 1 | O106: 7 | P106: 3 | Q106: 5 | R106: 0
A107: 2026 | B107: 10 | C107: UT | D107: UTFT1 | E107: 8 | F107: 2204773 | G107: 69474 | H107: 281975 | I107: 926636 | J107: 926688 | K107: 107032 | L107: 0 | M107: 0 | N107: 1 | O107: 7 | P107: 3 | Q107: 5 | R107: 0
A108: 2026 | B108: 11 | C108: UT | D108: UTFT1 | E108: 8 | F108: 2074420 | G108: 70421 | H108: 298367 | I108: 828192 | J108: 877440 | K108: 107032 | L108: 0 | M108: 0 | N108: 1 | O108: 7 | P108: 3 | Q108: 5 | R108: 1
A109: 2026 | B109: 12 | C109: UT | D109: UTFT1 | E109: 8 | F109: 2129979 | G109: 68734 | H109: 310136 | I109: 824421 | J109: 926688 | K109: 107032 | L109: 0 | M109: 0 | N109: 1 | O109: 7 | P109: 3 | Q109: 5 | R109: 1
A110: 2026 | B110: 1 | C110: UT | D110: UTMT | E110: 1 | F110: 8769 | G110: 8769 | H110: 0 | I110: 0 | J110: 0 | K110: 0 | L110: 0 | M110: 0 | N110: 1 | O110: 0 | P110: 1 | Q110: 0 | R110: 1
A111: 2026 | B111: 2 | C111: UT | D111: UTMT | E111: 1 | F111: 6953 | G111: 6953 | H111: 0 | I111: 0 | J111: 0 | K111: 0 | L111: 0 | M111: 0 | N111: 1 | O111: 0 | P111: 1 | Q111: 0 | R111: 1
A112: 2026 | B112: 3 | C112: UT | D112: UTMT | E112: 1 | F112: 5792 | G112: 5792 | H112: 0 | I112: 0 | J112: 0 | K112: 0 | L112: 0 | M112: 0 | N112: 1 | O112: 0 | P112: 1 | Q112: 0 | R112: 1
A113: 2026 | B113: 4 | C113: UT | D113: UTMT | E113: 1 | F113: 3324 | G113: 3324 | H113: 0 | I113: 0 | J113: 0 | K113: 0 | L113: 0 | M113: 0 | N113: 1 | O113: 0 | P113: 1 | Q113: 0 | R113: 0
A114: 2026 | B114: 5 | C114: UT | D114: UTMT | E114: 1 | F114: 1916 | G114: 1916 | H114: 0 | I114: 0 | J114: 0 | K114: 0 | L114: 0 | M114: 0 | N114: 1 | O114: 0 | P114: 1 | Q114: 0 | R114: 0
A115: 2026 | B115: 6 | C115: UT | D115: UTMT | E115: 1 | F115: 1194 | G115: 1194 | H115: 0 | I115: 0 | J115: 0 | K115: 0 | L115: 0 | M115: 0 | N115: 1 | O115: 0 | P115: 1 | Q115: 0 | R115: 0
A116: 2026 | B116: 7 | C116: UT | D116: UTMT | E116: 1 | F116: 1115 | G116: 1115 | H116: 0 | I116: 0 | J116: 0 | K116: 0 | L116: 0 | M116: 0 | N116: 1 | O116: 0 | P116: 1 | Q116: 0 | R116: 0
A117: 2026 | B117: 8 | C117: UT | D117: UTMT | E117: 1 | F117: 1275 | G117: 1275 | H117: 0 | I117: 0 | J117: 0 | K117: 0 | L117: 0 | M117: 0 | N117: 1 | O117: 0 | P117: 1 | Q117: 0 | R117: 0
A118: 2026 | B118: 9 | C118: UT | D118: UTMT | E118: 1 | F118: 1441 | G118: 1441 | H118: 0 | I118: 0 | J118: 0 | K118: 0 | L118: 0 | M118: 0 | N118: 1 | O118: 0 | P118: 1 | Q118: 0 | R118: 0
A119: 2026 | B119: 10 | C119: UT | D119: UTMT | E119: 1 | F119: 2210 | G119: 2210 | H119: 0 | I119: 0 | J119: 0 | K119: 0 | L119: 0 | M119: 0 | N119: 1 | O119: 0 | P119: 1 | Q119: 0 | R119: 0
A120: 2026 | B120: 11 | C120: UT | D120: UTMT | E120: 1 | F120: 6288 | G120: 6288 | H120: 0 | I120: 0 | J120: 0 | K120: 0 | L120: 0 | M120: 0 | N120: 1 | O120: 0 | P120: 1 | Q120: 0 | R120: 1
A121: 2026 | B121: 12 | C121: UT | D121: UTMT | E121: 1 | F121: 7297 | G121: 7297 | H121: 0 | I121: 0 | J121: 0 | K121: 0 | L121: 0 | M121: 0 | N121: 1 | O121: 0 | P121: 1 | Q121: 0 | R121: 1
A122: 2026 | B122: 1 | C122: UT | D122: UTTSS | E122: 975 | F122: 1241112 | G122: 190403 | H122: 896103 | I122: 154606 | J122: 0 | K122: 75461 | L122: 1 | M122: 335 | N122: 503 | O122: 150 | P122: 859 | Q122: 116 | R122: 1
A123: 2026 | B123: 2 | C123: UT | D123: UTTSS | E123: 975 | F123: 1106385 | G123: 189617 | H123: 799058 | I123: 117711 | J123: 0 | K123: 75461 | L123: 1 | M123: 335 | N123: 503 | O123: 150 | P123: 859 | Q123: 116 | R123: 1
A124: 2026 | B124: 3 | C124: UT | D124: UTTSS | E124: 975 | F124: 1045441 | G124: 189244 | H124: 743021 | I124: 113177 | J124: 0 | K124: 75461 | L124: 1 | M124: 335 | N124: 503 | O124: 150 | P124: 859 | Q124: 116 | R124: 1
A125: 2026 | B125: 4 | C125: UT | D125: UTTSS | E125: 975 | F125: 716209 | G125: 186511 | H125: 482712 | I125: 46986 | J125: 0 | K125: 75461 | L125: 1 | M125: 335 | N125: 503 | O125: 150 | P125: 859 | Q125: 116 | R125: 0
A126: 2026 | B126: 5 | C126: UT | D126: UTTSS | E126: 975 | F126: 483308 | G126: 163279 | H126: 289236 | I126: 30794 | J126: 0 | K126: 75461 | L126: 1 | M126: 335 | N126: 503 | O126: 150 | P126: 859 | Q126: 116 | R126: 0
A127: 2026 | B127: 6 | C127: UT | D127: UTTSS | E127: 975 | F127: 343731 | G127: 121479 | H127: 188422 | I127: 33830 | J127: 0 | K127: 75461 | L127: 1 | M127: 335 | N127: 503 | O127: 150 | P127: 859 | Q127: 116 | R127: 0
A128: 2026 | B128: 7 | C128: UT | D128: UTTSS | E128: 975 | F128: 298819 | G128: 103444 | H128: 154260 | I128: 41115 | J128: 0 | K128: 75461 | L128: 1 | M128: 335 | N128: 503 | O128: 150 | P128: 859 | Q128: 116 | R128: 0
A129: 2026 | B129: 8 | C129: UT | D129: UTTSS | E129: 975 | F129: 299876 | G129: 104635 | H129: 165928 | I129: 29314 | J129: 0 | K129: 75461 | L129: 1 | M129: 335 | N129: 503 | O129: 150 | P129: 859 | Q129: 116 | R129: 0
A130: 2026 | B130: 9 | C130: UT | D130: UTTSS | E130: 975 | F130: 321900 | G130: 122096 | H130: 182145 | I130: 17658 | J130: 0 | K130: 75461 | L130: 1 | M130: 335 | N130: 503 | O130: 150 | P130: 859 | Q130: 116 | R130: 0
A131: 2026 | B131: 10 | C131: UT | D131: UTTSS | E131: 975 | F131: 540483 | G131: 170176 | H131: 330955 | I131: 39352 | J131: 0 | K131: 75461 | L131: 1 | M131: 335 | N131: 503 | O131: 150 | P131: 859 | Q131: 116 | R131: =IF(OR(B131=1,B131=2,B131=3,B131=11,B131=12),1,0) -> 0
A132: 2026 | B132: 11 | C132: UT | D132: UTTSS | E132: 975 | F132: 933672 | G132: 188771 | H132: 658487 | I132: 86414 | J132: 0 | K132: 75461 | L132: 1 | M132: 335 | N132: 503 | O132: 150 | P132: 859 | Q132: 116 | R132: 1
A133: 2026 | B133: 12 | C133: UT | D133: UTTSS | E133: 975 | F133: 1116089 | G133: 190445 | H133: 805136 | I133: 120508 | J133: 0 | K133: 75461 | L133: 1 | M133: 335 | N133: 503 | O133: 150 | P133: 859 | Q133: 116 | R133: 1
A134: 2026 | B134: 1 | C134: UT | D134: UTTSM | E134: 237 | F134: 1623411 | G134: 438024 | H134: 1185387 | I134: 0 | J134: 0 | K134: 68514 | L134: 0 | M134: 11 | N134: 57 | O134: 202 | P134: 203 | Q134: 34 | R134: 1
A135: 2026 | B135: 2 | C135: UT | D135: UTTSM | E135: 237 | F135: 1487650 | G135: 436076 | H135: 1051574 | I135: 0 | J135: 0 | K135: 68514 | L135: 0 | M135: 11 | N135: 57 | O135: 202 | P135: 203 | Q135: 34 | R135: 1
A136: 2026 | B136: 3 | C136: UT | D136: UTTSM | E136: 237 | F136: 1506028 | G136: 438881 | H136: 1067147 | I136: 0 | J136: 0 | K136: 68514 | L136: 0 | M136: 11 | N136: 57 | O136: 202 | P136: 203 | Q136: 34 | R136: 1
A137: 2026 | B137: 4 | C137: UT | D137: UTTSM | E137: 237 | F137: 1271625 | G137: 457153 | H137: 814472 | I137: 0 | J137: 0 | K137: 68514 | L137: 0 | M137: 11 | N137: 57 | O137: 202 | P137: 203 | Q137: 34 | R137: 0
A138: 2026 | B138: 5 | C138: UT | D138: UTTSM | E138: 237 | F138: 1135325 | G138: 435673 | H138: 699652 | I138: 0 | J138: 0 | K138: 68514 | L138: 0 | M138: 11 | N138: 57 | O138: 202 | P138: 203 | Q138: 34 | R138: 0
A139: 2026 | B139: 6 | C139: UT | D139: UTTSM | E139: 237 | F139: 1063906 | G139: 409810 | H139: 654096 | I139: 0 | J139: 0 | K139: 68514 | L139: 0 | M139: 11 | N139: 57 | O139: 202 | P139: 203 | Q139: 34 | R139: 0
A140: 2026 | B140: 7 | C140: UT | D140: UTTSM | E140: 237 | F140: 1169036 | G140: 396022 | H140: 773014 | I140: 0 | J140: 0 | K140: 68514 | L140: 0 | M140: 11 | N140: 57 | O140: 202 | P140: 203 | Q140: 34 | R140: 0
A141: 2026 | B141: 8 | C141: UT | D141: UTTSM | E141: 237 | F141: 1199248 | G141: 401783 | H141: 797465 | I141: 0 | J141: 0 | K141: 68514 | L141: 0 | M141: 11 | N141: 57 | O141: 202 | P141: 203 | Q141: 34 | R141: 0
A142: 2026 | B142: 9 | C142: UT | D142: UTTSM | E142: 237 | F142: 1135891 | G142: 417250 | H142: 718641 | I142: 0 | J142: 0 | K142: 68514 | L142: 0 | M142: 11 | N142: 57 | O142: 202 | P142: 203 | Q142: 34 | R142: 0
A143: 2026 | B143: 10 | C143: UT | D143: UTTSM | E143: 237 | F143: 1301428 | G143: 458731 | H143: 842697 | I143: 0 | J143: 0 | K143: 68514 | L143: 0 | M143: 11 | N143: 57 | O143: 202 | P143: 203 | Q143: 34 | R143: 0
A144: 2026 | B144: 11 | C144: UT | D144: UTTSM | E144: 237 | F144: 1521458 | G144: 461774 | H144: 1059684 | I144: 0 | J144: 0 | K144: 68514 | L144: 0 | M144: 11 | N144: 57 | O144: 202 | P144: 203 | Q144: 34 | R144: 1
A145: 2026 | B145: 12 | C145: UT | D145: UTTSM | E145: 237 | F145: 1537351 | G145: 449785 | H145: 1087566 | I145: 0 | J145: 0 | K145: 68514 | L145: 0 | M145: 11 | N145: 57 | O145: 202 | P145: 203 | Q145: 34 | R145: 1
A146: 2026 | B146: 1 | C146: UT | D146: UTTSL | E146: 36 | F146: 2550719 | G146: 340068 | H146: 1684184 | I146: 526467 | J146: 0 | K146: 74261 | L146: 0 | M146: 1 | N146: 3 | O146: 36 | P146: 29 | Q146: 7 | R146: 1
A147: 2026 | B147: 2 | C147: UT | D147: UTTSL | E147: 36 | F147: 2196771 | G147: 329336 | H147: 1543795 | I147: 323640 | J147: 0 | K147: 74261 | L147: 0 | M147: 1 | N147: 3 | O147: 36 | P147: 29 | Q147: 7 | R147: 1
A148: 2026 | B148: 3 | C148: UT | D148: UTTSL | E148: 36 | F148: 2230049 | G148: 332602 | H148: 1605392 | I148: 292055 | J148: 0 | K148: 74261 | L148: 0 | M148: 1 | N148: 3 | O148: 36 | P148: 29 | Q148: 7 | R148: 1
A149: 2026 | B149: 4 | C149: UT | D149: UTTSL | E149: 36 | F149: 2240824 | G149: 339066 | H149: 1563206 | I149: 338552 | J149: 0 | K149: 74261 | L149: 0 | M149: 1 | N149: 3 | O149: 36 | P149: 29 | Q149: 7 | R149: 0
A150: 2026 | B150: 5 | C150: UT | D150: UTTSL | E150: 36 | F150: 2281927 | G150: 337034 | H150: 1593073 | I150: 351820 | J150: 0 | K150: 74261 | L150: 0 | M150: 1 | N150: 3 | O150: 36 | P150: 29 | Q150: 7 | R150: 0
A151: 2026 | B151: 6 | C151: UT | D151: UTTSL | E151: 36 | F151: 2303339 | G151: 358843 | H151: 1572311 | I151: 372185 | J151: 0 | K151: 74261 | L151: 0 | M151: 1 | N151: 3 | O151: 36 | P151: 29 | Q151: 7 | R151: 0
A152: 2026 | B152: 7 | C152: UT | D152: UTTSL | E152: 36 | F152: 2434691 | G152: 360000 | H152: 1570072 | I152: 504619 | J152: 0 | K152: 74261 | L152: 0 | M152: 1 | N152: 3 | O152: 36 | P152: 29 | Q152: 7 | R152: 0
A153: 2026 | B153: 8 | C153: UT | D153: UTTSL | E153: 36 | F153: 2288960 | G153: 360000 | H153: 1508473 | I153: 420487 | J153: 0 | K153: 74261 | L153: 0 | M153: 1 | N153: 3 | O153: 36 | P153: 29 | Q153: 7 | R153: 0
A154: 2026 | B154: 9 | C154: UT | D154: UTTSL | E154: 36 | F154: 2137117 | G154: 360000 | H154: 1515765 | I154: 261352 | J154: 0 | K154: 74261 | L154: 0 | M154: 1 | N154: 3 | O154: 36 | P154: 29 | Q154: 7 | R154: 0
A155: 2026 | B155: 10 | C155: UT | D155: UTTSL | E155: 36 | F155: 2243906 | G155: 350000 | H155: 1542576 | I155: 351330 | J155: 0 | K155: 74261 | L155: 0 | M155: 1 | N155: 3 | O155: 36 | P155: 29 | Q155: 7 | R155: 0
A156: 2026 | B156: 11 | C156: UT | D156: UTTSL | E156: 36 | F156: 2270309 | G156: 333631 | H156: 1560937 | I156: 375741 | J156: 0 | K156: 74261 | L156: 0 | M156: 1 | N156: 3 | O156: 36 | P156: 29 | Q156: 7 | R156: 1
A157: 2026 | B157: 12 | C157: UT | D157: UTTSL | E157: 36 | F157: 2500102 | G157: 334070 | H157: 1692472 | I157: 473560 | J157: 0 | K157: 74261 | L157: 0 | M157: 1 | N157: 3 | O157: 36 | P157: 29 | Q157: 7 | R157: 1

Sheet Control Panel
A1: 1 | B1: Enbridge Gas Utah | F1: DEFICIENCY
B2: =F11&" - "&F16 -> Utah - DEC 2026 Adjusted Avg Results CET | F2: =Report!K13 -> 114669748.9 | J2: 114669748.9
B3: ="12 Months Ended"&" : "&TEXT(F12,"mmm-yyyy") -> 12 Months Ended : Dec-2026 | F3: ROE
B4: ="Capital Structure"&" : "&F69 -> Capital Structure : AVG CAP STR DEC 26 | F4: =+Report!J80 -> 0.05550684268
B9: REPORT CHECK: MUST BE (0) ======> | C9: =IF((SUM(Report!F13:H75)-SUM(Report!I13:I75))<1,"0","ERROR") -> 0 | H9: Dec 2024 Unadjusted Avg Results | J9: DEC 2024 Adjusted Avg Results | L9: DEC 2025 Adjusted Avg Results CET | N9: DEC 2026 Adjusted Avg Results | P9: DEC 2026 Adjusted Avg Results CET | R9: COMMISSION ORDER | V9: Line #
E10: =F10&" - "&"A" -> 5 - A | F10: 5 | H10: 1 | I10: =H10&" - "&"A" -> 1 - A | J10: 2 | K10: =J10&" - "&"A" -> 2 - A | L10: 3 | M10: =L10&" - "&"A" -> 3 - A | N10: 4 | O10: =N10&" - "&"A" -> 4 - A | P10: 5 | Q10: =P10&" - "&"A" -> 5 - A | R10: 6 | S10: =R10&" - "&"A" -> 6 - A | V10: 1
B11: Jurisdiction | F11: =HLOOKUP($F$10,Scenarios,V11,FALSE) -> Utah | H11: Utah | J11: Utah | L11: Utah | N11: Utah | P11: Utah | R11: Utah | V11: =V10+1 -> 2
B12: Scenario Title 1 | F12: =HLOOKUP($F$10,Scenarios,V12,FALSE) -> 2026-12-31 | H12: 2024-12-31 | J12: 2024-12-31 | L12: 2025-12-31 | N12: 2026-12-31 | P12: 2026-12-31 | R12: 2023-12-31 | V12: =V11+1 -> 3
V13: 4
V14: 5
V15: 6
B16: Scenario Title 2 | F16: =HLOOKUP($F$10,Scenarios,V16,FALSE) -> DEC 2026 Adjusted Avg Results CET | H16: =+H9 -> Dec 2024 Unadjusted Avg Results | J16: =+J9 -> DEC 2024 Adjusted Avg Results | L16: =+L9 -> DEC 2025 Adjusted Avg Results CET | N16: =+N9 -> DEC 2026 Adjusted Avg Results | P16: =+P9 -> DEC 2026 Adjusted Avg Results CET | R16: =+R9 -> COMMISSION ORDER | V16: 7
B17: Required Inputs and Factors | V17: 8
V18: 9
B19: Return On Equity | F19: =HLOOKUP($F$10,Scenarios,V19,FALSE) -> 0.106 | H19: 0.096 | J19: 0.096 | L19: 0.106 | N19: 0.106 | P19: 0.106 | R19: 0.096 | V19: 10
V20: 11
B21: Lead-Lag Factor | F21: =HLOOKUP($F$10,Scenarios,V21,FALSE) -> 7.513 | H21: 8.35 | J21: 8.35 | L21: 7.513 | N21: 7.513 | P21: 7.513 | R21: 8.35 | V21: 12
B22: Bad Debt Ratio | F22: =HLOOKUP($F$10,Scenarios,V22,FALSE) -> 0.002835898826 | H22: =+'Utah Bad Debt'!$G$17 -> 0.002835898826 | J22: =+'Utah Bad Debt'!$G$17 -> 0.002835898826 | L22: ='Utah Bad Debt'!$G$17 -> 0.002835898826 | N22: ='Utah Bad Debt'!$G$17 -> 0.002835898826 | P22: ='Utah Bad Debt'!$G$17 -> 0.002835898826 | R22: ='Utah Bad Debt'!$G$17 -> 0.002835898826 | V22: 13
V23: 14
V24: 15
B25: Adjustments | C25: Go To Adjustment | V25: 16
V26: 17
A27: 1 | B27: =+F27 -> AVG RB DEC 2026 | C27: RATE BASE | E27: =HLOOKUP($E$10,Scenarios,V27,FALSE) -> Y | F27: =HLOOKUP($F$10,Scenarios,V27,FALSE) -> AVG RB DEC 2026 | H27: AVG RB DEC 2024 | I27: Y | J27: AVG RB DEC 2024 | K27: Y | L27: AVG RB DEC 2025 | M27: Y | N27: AVG RB DEC 2026 | O27: Y | P27: AVG RB DEC 2026 | Q27: Y | R27: AVG RB DEC 2023 | S27: Y | V27: 18
A28: =+A27+1 -> 2 | B28: Expense Dec 2026 | C28: Expense Adjustment | E28: Y | F28: Expense Dec 2026 | H28: Expense Dec 2024 | I28: Y | J28: Expense Dec 2024 | K28: N | L28: Expense Dec 2025 | M28: Y | N28: Expense Dec 2026 | O28: Y | P28: Expense Dec 2026 | Q28: Y | R28: Expense Dec 2024 | S28: Y | V28: 19
A29: =+A28+1 -> 3 | B29: =+F29 -> AVG Projected Rev 2026 with CET adj HDD | C29: REVENUE ADJUSTMENT | E29: Y | F29: AVG Projected Rev 2026 with CET adj HDD | H29: Booked Rev DEC 2024 | I29: Y | J29: Booked Rev DEC 2024 | K29: Y | L29: AVG Projected Rev 2025 CET adj HDD | M29: Y | N29: AVG Projected Rev 2026 adj HDD | O29: Y | P29: AVG Projected Rev 2026 with CET adj HDD | Q29: Y | R29: AVG Projected Rev 2023 with CET | S29: Y | V29: 20
A30: =+A29+1 -> 4 | B30: Underground Storage | C30: Underground Storage | E30: Y | F30: Underground Storage | H30: Underground Storage | I30: Y | J30: Underground Storage | K30: Y | L30: Underground Storage | M30: Y | N30: Underground Storage | O30: Y | P30: Underground Storage | Q30: Y | R30: Underground Storage | S30: Y | V30: 21
A31: 5 | B31: Wexpro | C31: Wexpro | E31: Y | F31: Wexpro | H31: Wexpro | I31: Y | J31: Wexpro | K31: Y | L31: Wexpro | M31: Y | N31: Wexpro | O31: Y | P31: Wexpro | Q31: Y | R31: Wexpro | S31: Y | V31: 22
A32: 6 | B32: =+F32 -> Energy Efficiency & STEP 2026 | C32: Energy Efficiency | E32: =HLOOKUP($E$10,Scenarios,V32,FALSE) -> Y | F32: Energy Efficiency & STEP 2026 | H32: Energy Efficiency & STEP 2024 | I32: Y | J32: Energy Efficiency & STEP 2024 | K32: Y | L32: Energy Efficiency & STEP 2025 | M32: Y | N32: Energy Efficiency & STEP 2026 | O32: Y | P32: Energy Efficiency & STEP 2026 | Q32: Y | R32: Energy Efficiency & STEP 2024 | S32: Y | V32: 23
A33: 7 | B33: Utah Bad Debt 2026 | C33: Utah Bad Debt | E33: Y | F33: Utah Bad Debt 2026 | H33: Utah Bad Debt 2024 | I33: N | J33: Utah Bad Debt 2024 | K33: Y | L33: Utah Bad Debt 2025 | M33: Y | N33: Utah Bad Debt 2026 | O33: Y | P33: Utah Bad Debt 2026 | Q33: Y | R33: Utah Bad Debt 2026 | S33: Y | V33: 24
A34: 8 | B34: Incentives 2026 | C34: Incentives | E34: N | F34: Incentives 2026 | H34: Incentives 2024 | I34: N | J34: Incentives 2024 | K34: Y | L34: Incentives 2025 | M34: N | N34: Incentives 2026 | O34: N | P34: Incentives 2026 | Q34: N | R34: Incentives 2023 | S34: Y | V34: 25
A35: 9 | B35: Sporting Events DEC 2026 | C35: Sporting Events | E35: Y | F35: Sporting Events DEC 2026 | H35: Sporting Events DEC 2024 | I35: N | J35: Sporting Events DEC 2024 | K35: Y | L35: Sporting Events DEC 2025 | M35: Y | N35: Sporting Events DEC 2026 | O35: Y | P35: Sporting Events DEC 2026 | Q35: Y | R35: Sporting Events DEC 2023 | S35: Y | V35: 26
A36: 10 | B36: Advertising DEC 2026 | C36: Advertising | E36: Y | F36: Advertising DEC 2026 | H36: Advertising DEC 2024 | I36: N | J36: Advertising DEC 2024 | K36: Y | L36: Advertising DEC 2025 | M36: Y | N36: Advertising DEC 2026 | O36: Y | P36: Advertising DEC 2026 | Q36: Y | R36: Advertising DEC 2023 | S36: Y | V36: 27
A37: 11 | B37: Don & Membership DEC 2026 | C37: Donations | E37: Y | F37: Don & Membership DEC 2026 | H37: Don & Membership DEC 2024 | I37: N | J37: Don & Membership DEC 2024 | K37: Y | L37: Don & Membership DEC 2025 | M37: Y | N37: Don & Membership DEC 2026 | O37: Y | P37: Don & Membership DEC 2026 | Q37: Y | R37: Don & Membership DEC 2023 | S37: Y | V37: 28
A38: 12 | B38: Reserve Accrual Dec 2026 | C38: RESERVE ACCRUAL | E38: Y | F38: Reserve Accrual Dec 2026 | H38: Reserve Accrual Dec 2024 | I38: N | J38: Reserve Accrual Dec 2024 | K38: Y | L38: Reserve Accrual Dec 2025 | M38: Y | N38: Reserve Accrual Dec 2026 | O38: Y | P38: Reserve Accrual Dec 2026 | Q38: Y | R38: Reserve Accrual Dec 2024 | S38: Y | V38: 29
A39: 13 | B39: Pipeline Integrity 2026 | C39: Pipeline Integrity | E39: Y | F39: Pipeline Integrity 2026 | H39: Pipeline Integrity 2024 | I39: N | J39: Pipeline Integrity 2024 | K39: N | L39: Pipeline Integrity 2025 | M39: Y | N39: Pipeline Integrity 2026 | O39: Y | P39: Pipeline Integrity 2026 | Q39: Y | R39: Pipeline Integrity 2024 | S39: Y | V39: 30
A40: 14 | B40: =F40 -> 2026 EDIT Adjustment | C40: Edit Amort 2020 | E40: Y | F40: 2026 EDIT Adjustment | H40: 2025 EDIT Adjustment | I40: N | J40: 2025 EDIT Adjustment | K40: N | L40: 2025 EDIT Adjustment | M40: Y | N40: 2026 EDIT Adjustment | O40: Y | P40: 2026 EDIT Adjustment | Q40: Y | R40: 2023 EDIT Adjustment | S40: Y | V40: 31
A41: =+A40+1 -> 15 | B41: =F41 -> Pension 2026 | C41: Pension | E41: Y | F41: Pension 2026 | H41: Pension 2024 | I41: N | J41: Pension 2024 | K41: Y | L41: Pension 2025 | M41: Y | N41: Pension 2026 | O41: Y | P41: Pension 2026 | Q41: Y | R41: Pension 2026 | S41: Y | V41: 32
A42: =+A41+1 -> 16 | B42: Optional Adjustment 1 | C42: PHFFU!A1 | E42: N | F42: Optional Adjustment 1 | H42: Optional Adjustment 1 | I42: N | J42: Optional Adjustment 1 | K42: N | L42: Optional Adjustment 1 | M42: Y | N42: Optional Adjustment 1 | O42: N | P42: Optional Adjustment 1 | Q42: N | R42: OCS Plant Held for Future Use | S42: Y | V42: 33
A43: =+A42+1 -> 17 | B43: Optional Adjustment 2 | C43: Late Fees' | E43: N | F43: Optional Adjustment 2 | H43: Optional Adjustment 2 | I43: N | J43: Optional Adjustment 2 | K43: N | L43: Optional Adjustment 2 | M43: N | N43: Optional Adjustment 2 | O43: N | P43: Optional Adjustment 2 | Q43: N | R43: OCS Late Fees in Other Revenues | S43: Y | V43: 34
A44: 18 | B44: Optional Adjustment 3 | C44: Lobbying | E44: N | F44: Optional Adjustment 3 | H44: Optional Adjustment 3 | I44: N | J44: Optional Adjustment 3 | K44: N | L44: Optional Adjustment 3 | M44: N | N44: Optional Adjustment 3 | O44: N | P44: Optional Adjustment 3 | Q44: N | R44: OCS Lobbying | S44: Y | V44: 35
A45: 19 | B45: Optional Adjustment 4 | C45: Labor correction | E45: N | F45: Optional Adjustment 4 | H45: Optional Adjustment 4 | I45: N | J45: Optional Adjustment 4 | K45: N | L45: Optional Adjustment 4 | M45: N | N45: Optional Adjustment 4 | O45: N | P45: Optional Adjustment 4 | Q45: N | R45: UAE Labor Correction | S45: Y | V45: 36
A46: 20 | B46: Optional Adjustment 5 | C46: Bluffdale Gain | E46: N | F46: Optional Adjustment 5 | H46: Optional Adjustment 5 | I46: N | J46: Optional Adjustment 5 | K46: N | L46: Optional Adjustment 5 | M46: N | N46: Optional Adjustment 5 | O46: N | P46: Optional Adjustment 5 | Q46: N | R46: UAE Bluffdale Gain | S46: Y | V46: 37
A47: 21 | B47: Optional Adjustment 6 | C47: DPU LNG O&M | E47: N | F47: Optional Adjustment 6 | H47: Optional Adjustment 6 | I47: N | J47: Optional Adjustment 6 | K47: N | L47: Optional Adjustment 6 | M47: N | N47: Optional Adjustment 6 | O47: N | P47: Optional Adjustment 6 | Q47: N | R47: DPU LNG O&M | S47: Y | V47: 38
A48: 22 | B48: Optional Adjustment 7 | C48: Optional Adjustment 7 | E48: N | F48: Optional Adjustment 7 | H48: Optional Adjustment 7 | I48: N | J48: Optional Adjustment 7 | K48: N | L48: Optional Adjustment 7 | M48: N | N48: Optional Adjustment 7 | O48: N | P48: Optional Adjustment 7 | Q48: N | R48: Labor Adjustment - ORDER | S48: Y | V48: 39
A49: 23 | B49: Optional Adjustment 8 | C49: Optional Adjustment 8 | E49: N | F49: Optional Adjustment 8 | H49: Optional Adjustment 8 | I49: N | J49: Optional Adjustment 8 | K49: N | L49: Optional Adjustment 8 | M49: N | N49: Optional Adjustment 8 | O49: N | P49: Optional Adjustment 8 | Q49: N | R49: Capitalized Incentive - ORDER | S49: Y | V49: 40
A50: 24 | B50: Optional Adjustment 9 | C50: Optional Adjustment 9 | E50: N | F50: Optional Adjustment 9 | H50: Optional Adjustment 9 | I50: N | J50: Optional Adjustment 9 | K50: N | L50: Optional Adjustment 9 | M50: N | N50: Optional Adjustment 9 | O50: N | P50: Optional Adjustment 9 | Q50: N | R50: Other Insurance and Workman's Comp | S50: Y | V50: 41
A51: 25 | B51: Optional Adjustment 10 | C51: Optional Adjustment 10 | E51: N | F51: Optional Adjustment 10 | H51: Optional Adjustment 10 | I51: N | J51: Optional Adjustment 10 | K51: N | L51: Optional Adjustment 10 | M51: N | N51: Optional Adjustment 10 | O51: N | P51: Optional Adjustment 10 | Q51: N | R51: Optional Adjustment 10 | S51: Y | V51: 42
A52: 26 | B52: Optional Adjustment 11 | C52: Optional Adjustment 11 | E52: N | F52: Optional Adjustment 11 | H52: Optional Adjustment 11 | I52: N | J52: Optional Adjustment 11 | K52: N | L52: Optional Adjustment 11 | M52: N | N52: Optional Adjustment 11 | O52: N | P52: Optional Adjustment 11 | Q52: N | R52: Optional Adjustment 11 | S52: Y | V52: 43
A53: 27 | B53: =F53 -> Optional Adjustment 12 | C53: Optional Adjustment 12 | E53: =HLOOKUP($E$10,Scenarios,V53,FALSE) -> N | F53: =HLOOKUP($F$10,Scenarios,V53,FALSE) -> Optional Adjustment 12 | H53: Optional Adjustment 12 | I53: N | J53: Optional Adjustment 12 | K53: N | L53: Optional Adjustment 12 | M53: N | N53: Optional Adjustment 12 | O53: N | P53: Optional Adjustment 12 | Q53: N | R53: Optional Adjustment 12 | S53: Y | V53: 44
A54: 28 | B54: Optional Adjustment 13 | C54: Optional Adjustment 13 | E54: N | F54: Optional Adjustment 13 | H54: Optional Adjustment 13 | I54: N | J54: Optional Adjustment 13 | K54: N | L54: Optional Adjustment 13 | M54: N | N54: Optional Adjustment 13 | O54: N | P54: Optional Adjustment 13 | Q54: N | R54: Optional Adjustment 13 | S54: Y | V54: 45
A55: 29 | B55: Optional Adjustment 14 | C55: Optional Adjustment 14 | E55: N | F55: Optional Adjustment 14 | H55: Optional Adjustment 14 | I55: N | J55: Optional Adjustment 14 | K55: N | L55: Optional Adjustment 14 | M55: N | N55: Optional Adjustment 14 | O55: N | P55: Optional Adjustment 14 | Q55: N | R55: Optional Adjustment 14 | S55: Y | V55: 46
A56: 30 | B56: Optional Adjustment 15 | C56: Optional Adjustment 15 | E56: N | F56: Optional Adjustment 15 | H56: Optional Adjustment 15 | I56: N | J56: Optional Adjustment 15 | K56: N | L56: Optional Adjustment 15 | M56: N | N56: Optional Adjustment 15 | O56: N | P56: Optional Adjustment 15 | Q56: N | R56: Optional Adjustment 15 | S56: Y | V56: 47
A57: 31 | B57: Optional Adjustment 16 | C57: Optional Adjustment 16 | E57: N | F57: Optional Adjustment 16 | H57: Optional Adjustment 16 | I57: N | J57: Optional Adjustment 16 | K57: N | L57: Optional Adjustment 16 | M57: N | N57: Optional Adjustment 16 | O57: N | P57: Optional Adjustment 16 | Q57: N | R57: Optional Adjustment 16 | S57: Y | V57: 48
A58: 32 | B58: Optional Adjustment 17 | C58: Optional Adjustment 17 | E58: N | F58: Optional Adjustment 17 | H58: Optional Adjustment 17 | I58: N | J58: Optional Adjustment 17 | K58: N | L58: Optional Adjustment 17 | M58: N | N58: Optional Adjustment 17 | O58: N | P58: Optional Adjustment 17 | Q58: N | R58: Optional Adjustment 17 | S58: Y | V58: 49
A59: 33 | B59: Optional Adjustment 18 | C59: Optional Adjustment 18 | E59: N | F59: Optional Adjustment 18 | H59: Optional Adjustment 18 | I59: N | J59: Optional Adjustment 18 | K59: N | L59: Optional Adjustment 18 | M59: N | N59: Optional Adjustment 18 | O59: N | P59: Optional Adjustment 18 | Q59: N | R59: Optional Adjustment 18 | S59: Y | V59: 50
A60: 34 | B60: Optional Adjustment 19 | C60: Optional Adjustment 19 | E60: N | F60: Optional Adjustment 19 | H60: Optional Adjustment 19 | I60: N | J60: Optional Adjustment 19 | K60: N | L60: Optional Adjustment 19 | M60: N | N60: Optional Adjustment 19 | O60: N | P60: Optional Adjustment 19 | Q60: N | R60: Optional Adjustment 19 | S60: Y | V60: 51
A61: 35 | B61: Optional Adjustment 20 | C61: Optional Adjustment 20 | E61: N | F61: Optional Adjustment 20 | H61: Optional Adjustment 20 | I61: N | J61: Optional Adjustment 20 | K61: N | L61: Optional Adjustment 20 | M61: N | N61: Optional Adjustment 20 | O61: N | P61: Optional Adjustment 20 | Q61: N | R61: Optional Adjustment 20 | S61: Y | V61: 52
A62: 36 | B62: Optional Adjustment 21 | C62: Optional Adjustment 21 | E62: N | F62: Optional Adjustment 21 | H62: Optional Adjustment 21 | I62: N | J62: Optional Adjustment 21 | K62: N | L62: Optional Adjustment 21 | M62: N | N62: Optional Adjustment 21 | O62: N | P62: Optional Adjustment 21 | Q62: N | R62: Optional Adjustment 21 | S62: Y | V62: 53
A63: 37 | B63: Optional Adjustment 22 | C63: Optional Adjustment 22 | E63: N | F63: Optional Adjustment 22 | H63: Optional Adjustment 22 | I63: N | J63: Optional Adjustment 22 | K63: N | L63: Optional Adjustment 22 | M63: N | N63: Optional Adjustment 22 | O63: N | P63: Optional Adjustment 22 | Q63: N | R63: Optional Adjustment 22 | S63: Y | V63: 54
A64: 38 | B64: =F64 -> Optional Adjustment 23 | C64: Envision Tomorrow Savings | E64: =HLOOKUP($E$10,Scenarios,V64,FALSE) -> N | F64: =HLOOKUP($F$10,Scenarios,V64,FALSE) -> Optional Adjustment 23 | H64: Optional Adjustment 23 | I64: N | J64: Optional Adjustment 23 | K64: N | L64: Optional Adjustment 23 | M64: N | N64: Optional Adjustment 23 | O64: N | P64: Optional Adjustment 23 | Q64: N | R64: Optional Adjustment 23 | S64: Y | V64: 55
A65: 39 | B65: Corp Charges 2026 | C65: LNG O&M | E65: Y | F65: Corp Charges 2026 | H65: Corp Charges 2026 | I65: N | J65: Corp Charges 2026 | K65: N | L65: Corp Charges 2025 | M65: Y | N65: Corp Charges 2026 | O65: Y | P65: Corp Charges 2026 | Q65: Y | R65: LNG O&M 2025 | S65: Y | V65: 56
A66: 40 | B66: Labor Adjustment-ROO | C66: Labor Adjustment ROO | E66: N | F66: Labor Adjustment-ROO | H66: Labor Adjustment-ROO | I66: N | J66: Labor Adjustment-ROO | K66: Y | L66: Labor Adjustment-ROO | M66: N | N66: Labor Adjustment-ROO | O66: N | P66: Labor Adjustment-ROO | Q66: N | R66: Labor Adjustment-ROO | S66: N | V66: 57
A67: 41 | V67: 58
A68: 42 | V68: 59
A69: 43 | B69: =+F69 -> AVG CAP STR DEC 26 | C69: Capital Structure | F69: =HLOOKUP($F$10,Scenarios,V69,FALSE) -> AVG CAP STR DEC 26 | H69: AVG CAP STR DEC 24 | J69: YE CAP STR DEC 24 | L69: AVG CAP STR DEC 25 | N69: AVG CAP STR DEC 26 | P69: AVG CAP STR DEC 26 | R69: ORDERED CAP STR 22-057-03 | V69: 60
A70: 44

Sheet Report
A1: ='Control Panel'!$B$1 -> Enbridge Gas Utah
A2: ='Control Panel'!$B$2 -> Utah - DEC 2026 Adjusted Avg Results CET
A3: ='Control Panel'!$B$3 -> 12 Months Ended : Dec-2026 | F3: =+'Control Panel'!$B$3 -> 12 Months Ended : Dec-2026
A4: =+'Control Panel'!B19 -> Return On Equity | D4: =+'Control Panel'!F19 -> 0.106
B5: (A) | F5: (B) | G5: (C) | H5: (D) | I5: (E) | J5: (F) | K5: (G) | L5: (H)
F6: =+'ROR-Model'!F7 -> Historical | H6: =+'ROR-Model'!H7 -> Imputed | I6: =+'ROR-Model'!I7 -> Adjusted | J6: =+'ROR-Model'!W9 -> Utah | L6: =+J6 -> Utah
E7: CHECKS MUST BE (0) | F7: =+'ROR-Model'!F8 -> 12 Months | G7: Adjustments | H7: =+'ROR-Model'!H8 -> Tax | I7: =+'ROR-Model'!I8 -> System | J7: Jurisdiction | L7: Jurisdiction | M7: CHECKS MUST BE (0)
B8: Description | F8: 2024-12-31 | G8: Total | H8: =+'ROR-Model'!H9 -> Adjustment | I8: =+'ROR-Model'!I9 -> Total | J8: DNG Related | K8: Deficiency | L8: Total
A10: 1 | B10: NET INCOME SUMMARY
A12: =+A10+1 -> 2 | B12: Utility Operating Revenue
A13: =+A12+1 -> 3 | D13: System Distribution Non-Gas Revenue | E13: =+F13+G13+H13-I13 -> 0 | F13: =+'ROR-Model'!F363+'ROR-Model'!F365 -> 537770699.2 | G13: =+'ROR-Model'!G363+'ROR-Model'!G365 -> 17917425.57 | H13: =+'ROR-Model'!H363+'ROR-Model'!H365 -> 0 | I13: =+'ROR-Model'!I363+'ROR-Model'!I365 -> 555688124.7 | J13: ='ROR-Model'!W368 -> 541975207.8 | K13: ='ROR-Model'!$F$1394*(J45-'Capital Str'!$F$10*J75) -> 114669748.9 | L13: =SUM(J13:K13) -> 656644956.7 | M13: =+N13-I13 -> 0 | N13: =SUM(F13:H13) -> 555688124.7
A14: 4 | D14: System Supplier Non-Gas Revenue | E14: 0 | F14: =+'ROR-Model'!F364 -> 74579277.97 | G14: =+'ROR-Model'!G364 -> 35796397.52 | H14: =+'ROR-Model'!H364 -> 0 | I14: =+'ROR-Model'!I364 -> 110375675.5 | L14: =SUM(J14:K14) -> 0 | M14: =+N14-I14 -> 0 | N14: =SUM(F14:H14) -> 110375675.5
A15: 5 | D15: System Commodity Revenue | E15: 0 | F15: =+'ROR-Model'!F366 -> 776542364.1 | G15: =+'ROR-Model'!G366 -> -41564593.12 | H15: =+'ROR-Model'!H366 -> 0 | I15: =+'ROR-Model'!I366 -> 734977771 | L15: =SUM(J15:K15) -> 0 | M15: 0 | N15: 734977771
A16: 6 | D16: Pass-Through Related Other Revenue | E16: 0 | F16: ='ROR-Model'!F501+'ROR-Model'!F505 -> 21502829.53 | G16: ='ROR-Model'!G501+'ROR-Model'!G505 -> 0 | H16: ='ROR-Model'!H501+'ROR-Model'!H505 -> 0 | I16: ='ROR-Model'!I501+'ROR-Model'!I505 -> 21502829.53 | L16: =SUM(J16:K16) -> 0 | M16: 0 | N16: 21502829.53
A17: 7 | D17: General Related Other Revenue | E17: 0 | F17: ='ROR-Model'!F502+'ROR-Model'!F506 -> 7648087.825 | G17: ='ROR-Model'!G502+'ROR-Model'!G506 -> 5130731 | H17: ='ROR-Model'!H502+'ROR-Model'!H506 -> 0 | I17: ='ROR-Model'!I502+'ROR-Model'!I506 -> 12778818.82 | J17: ='ROR-Model'!W509 -> 12504032.64 | L17: =SUM(J17:K17) -> 12504032.64 | M17: 0 | N17: 12778818.82
A18: 8 | C18: Total Utility Operating Revenue | E18: 0 | F18: =SUM(F13:F17) -> 1418043259 | G18: 17279960.96 | H18: 0 | I18: =SUM(I13:I17) -> 1435323220 | J18: =SUM(J13:J17) -> 554479240.5 | K18: 114669748.9 | L18: 669148989.4 | M18: 0 | N18: 1435323220
M19: 0 | N19: 0
A20: =+A18+1 -> 9 | B20: Utility Operating Expenses | M20: 0 | N20: 0
A21: =+A20+1 -> 10 | C21: Gas Purchase Expenses | M21: 0 | N21: 0
A22: =+A21+1 -> 11 | D22: Utah | E22: =+F22+G22+H22-I22 -> 0 | F22: ='ROR-Model'!F633+'ROR-Model'!F636 -> 839548577.5 | G22: ='ROR-Model'!G633+'ROR-Model'!G636 -> 0 | H22: ='ROR-Model'!H633+'ROR-Model'!H636 -> 0 | I22: ='ROR-Model'!I633+'ROR-Model'!I636 -> 839548577.5 | L22: =SUM(J22:K22) -> 0 | M22: 0 | N22: 839548577.5
A23: =+A22+1 -> 12 | D23: Wyoming | E23: =+F23+G23+H23-I23 -> 0 | F23: ='ROR-Model'!F635+'ROR-Model'!F637 -> 27262226.11 | G23: ='ROR-Model'!G635+'ROR-Model'!G637 -> 0 | H23: ='ROR-Model'!H635+'ROR-Model'!H637 -> 0 | I23: ='ROR-Model'!I635+'ROR-Model'!I637 -> 27262226.11 | L23: =SUM(J23:K23) -> 0 | M23: 0 | N23: 27262226.11
A24: =+A23+1 -> 13 | D24: Total | E24: =+F24+G24+H24-I24 -> 0 | F24: =SUM(F22:F23) -> 866810803.6 | G24: 0 | H24: 0 | I24: 866810803.6 | J24: 0 | K24: 0 | L24: 0 | M24: 0 | N24: 866810803.6
E25: =+F25+G25+H25-I25 -> 0 | M25: 0 | N25: =SUM(F25:H25) -> 0
A26: =A24+1 -> 14 | C26: O&M Expenses | M26: 0 | N26: 0
A27: =+A26+1 -> 15 | D27: Production | E27: =+F27+G27+H27-I27 -> 0 | F27: ='ROR-Model'!F650 -> -411386.65 | G27: ='ROR-Model'!G650 -> -104084.1135 | H27: ='ROR-Model'!H650 -> 0 | I27: ='ROR-Model'!I650 -> -515470.7635 | J27: ='ROR-Model'!W650 -> -502193.8192 | L27: =SUM(J27:K27) -> -502193.8192 | M27: 0 | N27: =SUM(F27:H27) -> -515470.7635
A28: 16 | D28: Storage | F28: ='ROR-Model'!F668 -> 1631584.78 | G28: ='ROR-Model'!G668 -> 339929.7421 | H28: ='ROR-Model'!H668 -> 0 | I28: ='ROR-Model'!I668 -> 1971514.522 | J28: ='ROR-Model'!W668 -> 1971514.522 | L28: 1971514.522
A29: =A27+1 -> 16 | D29: Distribution | E29: =+F29+G29+H29-I29 -> 0 | F29: ='ROR-Model'!F771 -> 81134087.71 | G29: ='ROR-Model'!G771 -> 6563194.786 | H29: ='ROR-Model'!H771 -> 0 | I29: ='ROR-Model'!I771 -> 87697282.5 | J29: ='ROR-Model'!W771 -> 84124137.96 | L29: 84124137.96 | M29: 0 | N29: 87697282.5
A30: 17 | D30: Customer Accounts | E30: 0 | F30: ='ROR-Model'!F824 -> 24564621.39 | G30: ='ROR-Model'!G824 -> -2045268.205 | H30: ='ROR-Model'!H824 -> 0 | I30: ='ROR-Model'!I824 -> 22519353.18 | J30: ='ROR-Model'!W824 -> 21197740.14 | K30: =+K13*'Control Panel'!F22 -> 325191.8063 | L30: 21522931.95 | M30: 0 | N30: 22519353.18
A31: 17 | D31: Customer Service & Information | E31: 0 | F31: ='ROR-Model'!F852 -> 25034206.62 | G31: ='ROR-Model'!G852 -> -21404271.57 | H31: ='ROR-Model'!H852 -> 0 | I31: ='ROR-Model'!I852 -> 3629935.052 | J31: ='ROR-Model'!W852 -> 3531755.186 | L31: 3531755.186 | M31: 0 | N31: 3629935.052
A32: =A30+1 -> 18 | D32: Administrative & General | E32: 0 | F32: ='ROR-Model'!F920 -> 47087198.25 | G32: ='ROR-Model'!G920 -> 15368585.37 | H32: ='ROR-Model'!H920 -> 0 | I32: ='ROR-Model'!I920 -> 62455783.62 | J32: ='ROR-Model'!W920 -> 60364028.28 | L32: 60364028.28 | M32: 0 | N32: 62455783.62
A33: 19 | D33: Total O&M Expense | E33: 0 | F33: =SUM(F27:F32) -> 179040312.1 | G33: =SUM(G27:G32) -> -1281913.986 | H33: =SUM(H27:H32) -> 0 | I33: 177758398.1 | J33: =SUM(J27:J32) -> 170686982.3 | K33: 325191.8063 | L33: 171012174.1 | M33: 0 | N33: 177758398.1
M34: 0 | N34: 0
A35: =+A33+1 -> 20 | C35: Other Operating Expenses | M35: 0 | N35: 0
A36: =+A35+1 -> 21 | D36: Depreciation, Depletion, Amortization | E36: =+F36+G36+H36-I36 -> 0 | F36: ='ROR-Model'!F946 -> 115191923.6 | G36: ='ROR-Model'!G946 -> 46351638.39 | H36: ='ROR-Model'!H946 -> 0 | I36: ='ROR-Model'!I946 -> 161543561.9 | J36: ='ROR-Model'!W946 -> 156963213.9 | L36: =SUM(J36:K36) -> 156963213.9 | M36: 0 | N36: 161543561.9
A37: =+A36+1 -> 22 | D37: Taxes Other Than Income Taxes | E37: =+F37+G37+H37-I37 -> 0 | F37: ='ROR-Model'!F955 -> 32655593.34 | G37: ='ROR-Model'!G955 -> 5548305.666 | H37: ='ROR-Model'!H955 -> 0 | I37: ='ROR-Model'!I955 -> 38203899.01 | J37: ='ROR-Model'!W955 -> 36797614.97 | L37: =SUM(J37:K37) -> 36797614.97 | M37: 0 | N37: 38203899.01
A38: =+A37+1 -> 23 | D38: Income Taxes | E38: =+F38+G38+H38-I38 -> 0 | F38: ='ROR-Model'!F957+'ROR-Model'!F959+'ROR-Model'!F961+'ROR-Model'!F963 -> 35847528.51 | G38: ='ROR-Model'!G957+'ROR-Model'!G959+'ROR-Model'!G961+'ROR-Model'!G963 -> 53096185.6 | H38: ='ROR-Model'!H957+'ROR-Model'!H959+'ROR-Model'!H961+'ROR-Model'!H963 -> -58386931.57 | I38: ='ROR-Model'!I957+'ROR-Model'!I959+'ROR-Model'!I961+'ROR-Model'!I963 -> 30556782.54 | J38: ='ROR-Model'!W957+'ROR-Model'!W959+'ROR-Model'!W961+'ROR-Model'!W963 -> 30718557.95 | K38: =(K13-K30)*Taxes!P23 -> 27957311.41 | L38: =SUM(J38:K38) -> 58675869.36 | M38: 0 | N38: 30556782.54
A39: =+A38+1 -> 24 | D39: Total Other Operating Expenses | E39: =+F39+G39+H39-I39 -> 0 | F39: =SUM(F36:F38) -> 183695045.4 | G39: 104996129.7 | H39: -58386931.57 | I39: =SUM(I36:I38) -> 230304243.5 | J39: =SUM(J36:J38) -> 224479386.8 | K39: 27957311.41 | L39: 252436698.2 | M39: 0 | N39: 230304243.5
M40: 0 | N40: 0
M41: 0 | N41: 0
A42: =+A39+1 -> 25 | C42: Total Utility Operating Expenses | E42: =+F42+G42+H42-I42 -> 0 | F42: =+F24+F33+F39 -> 1229546161 | G42: =+G24+G33+G39 -> 103714215.7 | H42: -58386931.57 | I42: =+I24+I33+I39 -> 1274873445 | J42: =+J24+J33+J39 -> 395166369.1 | K42: 28282503.22 | L42: 423448872.3 | M42: 0 | N42: 1274873445
M43: 0 | N43: 0
M44: 0 | N44: 0
A45: =+A42+1 -> 26 | B45: NET OPERATING INCOME | E45: =+F45+G45+H45-I45 -> 0 | F45: =+F18-F42 -> 188497097.4 | G45: =+G18-G42 -> -86434254.7 | H45: =+H18-H42 -> 58386931.57 | I45: =+I18-I42 -> 160449774.3 | J45: =+J18-J42 -> 159312871.4 | K45: =+L45-J45 -> 86390090.55 | L45: =L75*L78 -> 245702962 | M45: 0 | N45: 160449774.3
M46: 0
A48: =+A45+1 -> 27 | B48: RATE BASE SUMMARY
A50: =+A48+1 -> 28 | B50: Net Utility Plant
A51: =+A50+1 -> 29 | C51: 101 | D51: Gas Plant In Service | E51: =+F51+G51+H51-I51 -> 0 | F51: ='ROR-Model'!F1135 -> 4701318788 | G51: ='ROR-Model'!G1135 -> 618279508.7 | H51: ='ROR-Model'!H1135 -> 0 | I51: ='ROR-Model'!I1135 -> 5319598297 | J51: ='ROR-Model'!W1135 -> 5160274005 | L51: =SUM(J51:K51) -> 5160274005 | M51: =+N51-I51 -> 0 | N51: =SUM(F51:H51) -> 5319598297
A52: 30 | C52: 105 | D52: Gas Plant Held For Future Use | E52: 0 | F52: ='ROR-Model'!F1139 -> 0 | G52: ='ROR-Model'!G1139 -> 0 | H52: ='ROR-Model'!H1139 -> 0 | I52: ='ROR-Model'!I1139 -> 0 | J52: ='ROR-Model'!W1139 -> 0 | L52: 0 | M52: 0 | N52: 0
A53: 31 | C53: 106 | D53: Completed Construction Not Classified | E53: 0 | F53: ='ROR-Model'!F1146 -> 116883693.2 | G53: ='ROR-Model'!G1146 -> -116883693.2 | H53: ='ROR-Model'!H1146 -> 0 | I53: ='ROR-Model'!I1146 -> 0 | J53: ='ROR-Model'!W1146 -> 0 | L53: 0 | M53: 0 | N53: 0
A54: 32 | C54: 108 | D54: Accumulated Depreciation | E54: 0 | F54: ='ROR-Model'!F1154 -> -1084039776 | G54: ='ROR-Model'!G1154 -> -224568743.4 | H54: ='ROR-Model'!H1154 -> 0 | I54: ='ROR-Model'!I1154 -> -1308608520 | J54: ='ROR-Model'!W1154 -> -1253240257 | L54: -1253240257 | M54: 0 | N54: -1308608520
A55: 33 | C55: 111 | D55: Accumulated Amort & Depletion | E55: 0 | F55: ='ROR-Model'!F1161 -> -26193692.01 | G55: ='ROR-Model'!G1161 -> 387467.4296 | H55: ='ROR-Model'!H1161 -> 0 | I55: ='ROR-Model'!I1161 -> -25806224.58 | J55: ='ROR-Model'!W1161 -> -25100020.32 | L55: -25100020.32 | M55: 0 | N55: -25806224.58
A56: 34 | C56: 254 | D56: Other Regulatory Liabilities ARC | F56: ='ROR-Model'!F1168 -> -423654633.7 | G56: ='ROR-Model'!G1168 -> -24615868.87 | H56: ='ROR-Model'!H1168 -> 0 | I56: ='ROR-Model'!I1168 -> -448270502.5 | J56: ='ROR-Model'!W1168 -> -432939410.5 | L56: -432939410.5
A57: 35 | C57: Total Net Utility Plant | E57: 0 | F57: =SUM(F51:F56) -> 3284314380 | G57: =SUM(G51:G56) -> 252598670.7 | H57: =SUM(H51:H56) -> 0 | I57: =SUM(I51:I56) -> 3536913050 | J57: =SUM(J51:J56) -> 3448994317 | K57: =SUM(K51:K55) -> 0 | L57: =SUM(L51:L56) -> 3448994317 | M57: 0 | N57: 3536913050
M58: 0
A59: =+A57+1 -> 36 | B59: Other Rate Base Accounts | M59: 0
A60: =+A59+1 -> 37 | C60: 154 | D60: Materials & Supplies | E60: =+F60+G60+H60-I60 -> 0 | F60: ='ROR-Model'!F1187 -> 42574823.26 | G60: ='ROR-Model'!G1187 -> -2349941.857 | H60: ='ROR-Model'!H1187 -> 0 | I60: ='ROR-Model'!I1187 -> 40224881.4 | J60: ='ROR-Model'!W1187 -> 39098520.36 | L60: =SUM(J60:K60) -> 39098520.36 | M60: 0 | N60: =SUM(F60:H60) -> 40224881.4
A61: 38 | C61: 164-1 | D61: Gas Stored Underground | E61: 0 | F61: ='ROR-Model'!F1191 -> 53358201.61 | G61: ='ROR-Model'!G1191 -> -53358201.61 | H61: ='ROR-Model'!H1191 -> 0 | I61: ='ROR-Model'!I1191 -> 0 | J61: ='ROR-Model'!W1191 -> 0 | L61: 0 | M61: 0 | N61: 0
A62: 39 | C62: 165 | D62: Prepayments | E62: 0 | F62: ='ROR-Model'!F1195 -> 6327648.83 | G62: ='ROR-Model'!G1195 -> -1362585.638 | H62: ='ROR-Model'!H1195 -> 0 | I62: ='ROR-Model'!I1195 -> 4965063.192 | J62: ='ROR-Model'!W1195 -> 4829118.133 | L62: 4829118.133 | M62: 0 | N62: 4965063.192
A63: 40 | C63: 190008 | D63: Accum Deferred Income Tax Federal | E63: 0 | F63: =+'ROR-Model'!F1202 -> 50747593.5 | G63: =+'ROR-Model'!G1202 -> 0 | H63: ='ROR-Model'!H1202 -> 0 | I63: =+'ROR-Model'!I1202 -> 50747593.5 | J63: =+'ROR-Model'!W1202 -> 49358107.74 | L63: 49358107.74 | M63: 0 | N63: 50747593.5
A64: 41 | C64: 190009 | D64: Accum Deferred Income Tax State | E64: 0 | F64: =+'ROR-Model'!F1209 -> 11037520.59 | G64: =+'ROR-Model'!G1209 -> 0 | H64: ='ROR-Model'!H1209 -> 0 | I64: =+'ROR-Model'!I1209 -> 11037520.59 | J64: =+'ROR-Model'!W1209 -> 10735309.66 | L64: 10735309.66 | M64: 0 | N64: 11037520.59
A65: 42 | C65: 235-1 | D65: Customer Deposits | E65: 0 | F65: ='ROR-Model'!F1214 -> -3903178.96 | G65: ='ROR-Model'!G1214 -> 70790.17 | H65: ='ROR-Model'!H1214 -> 0 | I65: ='ROR-Model'!I1214 -> -3832388.79 | J65: ='ROR-Model'!W1214 -> -3704161.943 | L65: -3704161.943 | M65: 0 | N65: -3832388.79
A66: 43 | C66: 252 | D66: Contributions in Aid of Construction | E66: 0 | F66: =+'ROR-Model'!F1219 -> 0 | G66: ='ROR-Model'!G1219 -> 0 | H66: ='ROR-Model'!H1219 -> 0 | I66: ='ROR-Model'!I1219 -> 0 | J66: ='ROR-Model'!W1219 -> 0 | L66: 0 | M66: 0 | N66: 0
A67: 44 | C67: 253-1 | D67: Unclaimed Customer Deposits | E67: 0 | F67: ='ROR-Model'!F1223 -> -126945.45 | G67: ='ROR-Model'!G1223 -> 594.7658333 | H67: ='ROR-Model'!H1223 -> 0 | I67: ='ROR-Model'!I1223 -> -126350.6842 | J67: ='ROR-Model'!W1223 -> -122891.161 | L67: -122891.161 | M67: 0 | N67: -126350.6842
A68: 45 | C68: 255 | D68: Deferred Investment Tax Credits | E68: 0 | F68: ='ROR-Model'!F1230 -> 0 | G68: ='ROR-Model'!G1230 -> 0 | H68: ='ROR-Model'!H1230 -> 0 | I68: ='ROR-Model'!I1230 -> 0 | J68: ='ROR-Model'!W1230 -> 0 | L68: 0 | M68: 0 | N68: 0
A69: 46 | C69: 282 | D69: Accum Deferred Income Taxes | E69: 0 | F69: ='ROR-Model'!F1238+'ROR-Model'!F1246 -> -345406792.2 | G69: ='ROR-Model'!G1238+'ROR-Model'!G1246 -> -10707269.87 | H69: ='ROR-Model'!H1238+'ROR-Model'!H1246 -> 0 | I69: ='ROR-Model'!I1238+'ROR-Model'!I1246 -> -356114062.1 | J69: ='ROR-Model'!W1238+'ROR-Model'!W1246 -> -346626799 | L69: -346626799 | M69: 0 | N69: -356114062.1
A70: 48 | C70: 186-7 | D70: Deferred Pension Asset | E70: =+F70+G70+H70-I70 -> 0 | F70: ='ROR-Model'!F1250 -> 8380.36 | G70: ='ROR-Model'!G1250 -> -8380.36 | H70: ='ROR-Model'!H1250 -> 0 | I70: ='ROR-Model'!I1250 -> 0 | J70: ='ROR-Model'!W1250 -> 0 | L70: =SUM(J70:K70) -> 0
A71: 49 | D71: Working Capital - Cash | F71: ='ROR-Model'!F1292 -> 24741706.21 | G71: ='ROR-Model'!G1292 -> 1180726.145 | H71: ='ROR-Model'!H1292 -> -1201811.005 | I71: ='ROR-Model'!I1292 -> 24720621.35 | J71: ='ROR-Model'!W1292 -> 23961097.31 | K71: ='Control Panel'!$F$21/365*(K24+K33+K37+K38) -> 582154.6484 | L71: =SUM(J71:K71) -> 24543251.96 | M71: 0 | N71: 24720621.35
A72: 50 | C72: Total Other Rate Base Accounts | F72: =SUM(F60:F71) -> -160641042.3 | G72: =SUM(G60:G71) -> -66534268.26 | H72: -1201811.005 | I72: =SUM(I60:I71) -> -228377121.5 | J72: =SUM(J60:J71) -> -222471698.9 | K72: 582154.6484 | L72: -221889544.2 | M72: 0 | N72: -228377121.5
M73: 0 | N73: 0
M74: 0 | N74: 0
A75: =+A72+1 -> 51 | B75: TOTAL RATE BASE | F75: =+F57+F72 -> 3123673337 | G75: =+G57+G72 -> 186064402.4 | H75: =+H57+H72 -> -1201811.005 | I75: =+I57+I72 -> 3308535929 | J75: =+J57+J72 -> 3226522619 | L75: =+L57+L72 -> 3227104773 | M75: 0 | N75: 3308535929
M76: 0
E77: =SUM(E13:E75) -> 0 | M77: 0 | N77: =SUM(F77:H77) -> 0
A78: =+A75+1 -> 52 | B78: RETURN ON RATE BASE | F78: =F45/F75 -> 0.06034468943 | I78: =I45/I75 -> 0.04849570256 | J78: =J45/J75 -> 0.04937602808 | L78: ='Capital Str'!F10 -> 0.0761372745 | M78: =+N78-I78 -> 0.01184898688 | N78: =SUM(F78:H78) -> 0.06034468943
N79: =SUM(F79:H79) -> 0
A80: =+A78+1 -> 53 | B80: RETURN ON EQUITY | F80: =(F78-'Capital Str'!$F$7)/'Capital Str'!$D$9 -> 0.07620252832 | I80: =(I78-'Capital Str'!$F$7)/'Capital Str'!$D$9 -> 0.05384584324 | J80: =(J78-'Capital Str'!$F$7)/'Capital Str'!$D$9 -> 0.05550684268 | L80: ='Capital Str'!E9 -> 0.106 | M80: =+N80-I80 -> 0.02235668508 | N80: =SUM(F80:H80) -> 0.07620252832
B82: EBITDA | J82: =J45+J36+J38+(J75*'Capital Str'!$F$7) -> 411388100.8 | L82: =L45+L36+L38+(L75*'Capital Str'!$F$7) -> 525747121.1

Sheet Adjustments
A1: ='Control Panel'!$B$1 -> Enbridge Gas Utah | F1: =IF(F8="Y",1,0) -> 1 | G1: 1 | H1: 1 | I1: 1 | J1: 1 | K1: 1 | L1: 1 | M1: 0 | N1: 1 | O1: 1 | P1: 1 | Q1: 1 | R1: 1 | S1: 1 | T1: =IF(T8="Y",1,0) -> 1 | U1: =IF(U8="Y",1,0) -> 0 | V1: 0 | W1: 0 | X1: 0 | Y1: 0 | Z1: 0 | AA1: 0 | AB1: 0 | AC1: 0 | AD1: 0 | AE1: 0 | AF1: 0 | AG1: 0 | AH1: 0 | AI1: 0 | AJ1: 0 | AK1: 0 | AL1: 0 | AM1: 0 | AN1: 0 | AO1: 0 | AP1: 0 | AQ1: 0 | AR1: 1 | AS1: 0 | AT1: =IF(AT8="Y",1,0) -> 0 | AU1: =IF(AU8="Y",1,0) -> 0 | AV1: =IF(AV8="Y",1,0) -> 0 | AW1: =IF(AW8="Y",1,0) -> 0 | AX1: =IF(AX8="Y",1,0) -> 1
A2: ='Control Panel'!$B$2 -> Utah - DEC 2026 Adjusted Avg Results CET
A3: ='Control Panel'!$B$3 -> 12 Months Ended : Dec-2026
A4: FILLED AND EXTERNAL PARTY ADJUSTMENTS | AS4: Utah | AT4: =('ROR-Model'!F201+'ROR-Model'!F202+'ROR-Model'!F501+SUM(F201:S202)+SUM(F501:S501))/('ROR-Model'!F633+SUM(F633:S633))-1 -> -0.2934730306 | AU4: =((1-'Control Panel'!$F$22)*('ROR-Model'!F201+SUM(E201:S201)+'ROR-Model'!F202+SUM(E202:S202))+'ROR-Model'!F501+SUM(E501:S501))/('ROR-Model'!F633+SUM(E634:S634))-1 -> -0.2954062503 | AV4: ='ROR-Model'!$F$1394*('ROR-Model'!R1416-'Capital Str'!$F$10*('ROR-Model'!R1411+'ROR-Model'!R1414))/(SUM('ROR-Model'!$F201:$F202)+SUM(Adjustments!$F201:$S202)) -> 0.4374378483 | AW4: ='ROR-Model'!$F$1394*((SUM('ROR-Model'!R1402:R1403)-SUM('ROR-Model'!R1404:R1405,'ROR-Model'!R1407))*(1-Taxes!$T$23)-('Capital Str'!$H$10-Taxes!$T$23*'Capital Str'!$H$7)*'ROR-Model'!R1411)/(SUM('ROR-Model'!$F201:$F202)+SUM(Adjustments!$F201:$S202)) -> 0.575488976 | AX4: =(('ROR-Model'!R1404-'ROR-Model'!R1403)/((1-'Control Panel'!$F$22)*(SUM('ROR-Model'!$F201:$F202)+SUM($F201:$S202)))-1) -> 0.4345728229
AS5: Wyoming | AT5: =(SUM('ROR-Model'!F324,'ROR-Model'!F326)+'ROR-Model'!F505+SUM(F324,S326)+SUM(F505:S505))/('ROR-Model'!F635+SUM(F636:S636))-1 -> 0.3500228985 | AU5: =((1-'Control Panel'!$F$22)*('ROR-Model'!F324+'ROR-Model'!F325+'ROR-Model'!F326+SUM(E324:S326))+'ROR-Model'!F505+SUM(E505:S505)-'ROR-Model'!N4*'ROR-Model'!F931)/('ROR-Model'!F635+SUM(E636:R636))-1 -> -0.01290334332 | AV5: ='ROR-Model'!$F$1394*('ROR-Model'!U1416-'Capital Str'!$F$10*('ROR-Model'!U1411+'ROR-Model'!U1414))/(SUM('ROR-Model'!$F324:$F326)+SUM(Adjustments!$F324:$S326)) -> 0.3992739231 | AW5: ='ROR-Model'!$F$1394*((SUM('ROR-Model'!U1402:U1403)-SUM('ROR-Model'!U1404:U1405,'ROR-Model'!U1407))*(1-Taxes!$T$23)-('Capital Str'!$F$10-Taxes!$T$23*'Capital Str'!$F$7)*'ROR-Model'!U1411)/(SUM('ROR-Model'!$F324:$F326)+SUM(Adjustments!$F324:$S326)) -> 0.5250252226 | AX5: =((('ROR-Model'!U1404+'ROR-Model'!U1407-'ROR-Model'!U1403)/((1-'Control Panel'!$F$22)*(SUM('ROR-Model'!$F324:$F326)+SUM(Adjustments!$F324:$S326)))-1)+('Capital Str'!$F$10-Taxes!$T$23*'Capital Str'!$F$7)*'ROR-Model'!U1411/((1-Taxes!$T$23)*(1-'Control Panel'!$F$22)*(SUM('ROR-Model'!$F324:$F326)+SUM(Adjustments!$F324:$S326)))) -> 0.3964657927
F6: 1 | G6: =+F6+1 -> 2 | H6: =+G6+1 -> 3 | I6: =+H6+1 -> 4 | J6: =+I6+1 -> 5 | K6: =+J6+1 -> 6 | L6: 7 | M6: 8 | N6: 9 | O6: 10 | P6: 11 | Q6: 12 | R6: 13 | S6: 14 | T6: =+S6+1 -> 15 | U6: 16 | V6: =+U6+1 -> 17 | W6: =+V6+1 -> 18 | X6: =+W6+1 -> 19 | Y6: =+X6+1 -> 20 | Z6: =+Y6+1 -> 21 | AA6: =+Z6+1 -> 22 | AB6: =+AA6+1 -> 23 | AC6: =+AB6+1 -> 24 | AD6: =+AC6+1 -> 25 | AE6: =+AD6+1 -> 26 | AF6: =+AE6+1 -> 27 | AG6: =+AF6+1 -> 28 | AH6: =+AG6+1 -> 29 | AI6: =+AH6+1 -> 30 | AJ6: =+AI6+1 -> 31 | AK6: =+AJ6+1 -> 32 | AL6: =+AK6+1 -> 33 | AM6: =+AL6+1 -> 34 | AN6: =+AM6+1 -> 35 | AO6: =+AN6+1 -> 36 | AP6: =+AO6+1 -> 37 | AQ6: =+AP6+1 -> 38 | AR6: =+AQ6+1 -> 39 | AS6: =+AR6+1 -> 40 | AT6: =+AS6+1 -> 41 | AU6: =+AT6+1 -> 42 | AV6: =+AU6+1 -> 43 | AW6: =+AV6+1 -> 44 | AX6: =+AW6+1 -> 45
F8: =VLOOKUP(F$6,'Control Panel'!$A$8:$F$83,5) -> Y | G8: =VLOOKUP(G$6,'Control Panel'!$A$8:$F$83,5) -> Y | H8: =VLOOKUP(H$6,'Control Panel'!$A$8:$F$83,5) -> Y | I8: =VLOOKUP(I$6,'Control Panel'!$A$8:$F$83,5) -> Y | J8: =VLOOKUP(J$6,'Control Panel'!$A$8:$F$83,5) -> Y | K8: =VLOOKUP(K$6,'Control Panel'!$A$8:$F$83,5) -> Y | L8: =VLOOKUP(L$6,'Control Panel'!$A$8:$F$83,5) -> Y | M8: =VLOOKUP(M$6,'Control Panel'!$A$8:$F$83,5) -> N | N8: =VLOOKUP(N$6,'Control Panel'!$A$8:$F$83,5) -> Y | O8: =VLOOKUP(O$6,'Control Panel'!$A$8:$F$83,5) -> Y | P8: =VLOOKUP(P$6,'Control Panel'!$A$8:$F$83,5) -> Y | Q8: =VLOOKUP(Q$6,'Control Panel'!$A$8:$F$83,5) -> Y | R8: =VLOOKUP(R$6,'Control Panel'!$A$8:$F$83,5) -> Y | S8: =VLOOKUP(S$6,'Control Panel'!$A$8:$F$83,5) -> Y | T8: =VLOOKUP(T$6,'Control Panel'!$A$8:$F$83,5) -> Y | U8: =VLOOKUP(U$6,'Control Panel'!$A$8:$F$83,5) -> N | V8: =VLOOKUP(V$6,'Control Panel'!$A$8:$F$83,5) -> N | W8: =VLOOKUP(W$6,'Control Panel'!$A$8:$F$83,5) -> N | X8: =VLOOKUP(X$6,'Control Panel'!$A$8:$F$83,5) -> N | Y8: =VLOOKUP(Y$6,'Control Panel'!$A$8:$F$83,5) -> N | Z8: =VLOOKUP(Z$6,'Control Panel'!$A$8:$F$83,5) -> N | AA8: =VLOOKUP(AA$6,'Control Panel'!$A$8:$F$83,5) -> N | AB8: =VLOOKUP(AB$6,'Control Panel'!$A$8:$F$83,5) -> N | AC8: =VLOOKUP(AC$6,'Control Panel'!$A$8:$F$83,5) -> N | AD8: =VLOOKUP(AD$6,'Control Panel'!$A$8:$F$83,5) -> N | AE8: =VLOOKUP(AE$6,'Control Panel'!$A$8:$F$83,5) -> N | AF8: =VLOOKUP(AF$6,'Control Panel'!$A$8:$F$83,5) -> N | AG8: =VLOOKUP(AG$6,'Control Panel'!$A$8:$F$83,5) -> N | AH8: =VLOOKUP(AH$6,'Control Panel'!$A$8:$F$83,5) -> N | AI8: =VLOOKUP(AI$6,'Control Panel'!$A$8:$F$83,5) -> N | AJ8: =VLOOKUP(AJ$6,'Control Panel'!$A$8:$F$83,5) -> N | AK8: =VLOOKUP(AK$6,'Control Panel'!$A$8:$F$83,5) -> N | AL8: =VLOOKUP(AL$6,'Control Panel'!$A$8:$F$83,5) -> N | AM8: =VLOOKUP(AM$6,'Control Panel'!$A$8:$F$83,5) -> N | AN8: =VLOOKUP(AN$6,'Control Panel'!$A$8:$F$83,5) -> N | AO8: =VLOOKUP(AO$6,'Control Panel'!$A$8:$F$83,5) -> N | AP8: =VLOOKUP(AP$6,'Control Panel'!$A$8:$F$83,5) -> N | AQ8: =VLOOKUP(AQ$6,'Control Panel'!$A$8:$F$83,5) -> N | AR8: =VLOOKUP(AR$6,'Control Panel'!$A$8:$F$83,5) -> Y | AS8: =VLOOKUP(AS$6,'Control Panel'!$A$8:$F$83,5) -> N | AT8: N | AU8: N | AV8: N | AW8: N | AX8: Y
A9: FERC Acct | C9: Description | F9: =VLOOKUP(F$6,Adjustments,2) -> AVG RB DEC 2026 | G9: Expense Dec 2026 | H9: AVG Projected Rev 2026 with CET adj HDD | I9: Underground Storage | J9: Wexpro | K9: Energy Efficiency & STEP 2026 | L9: Utah Bad Debt 2026 | M9: Incentives 2026 | N9: Sporting Events DEC 2026 | O9: Advertising DEC 2026 | P9: Don & Membership DEC 2026 | Q9: Reserve Accrual Dec 2026 | R9: Pipeline Integrity 2026 | S9: 2026 EDIT Adjustment | T9: Pension 2026 | U9: Optional Adjustment 1 | V9: Optional Adjustment 2 | W9: Optional Adjustment 3 | X9: Optional Adjustment 4 | Y9: Optional Adjustment 5 | Z9: Optional Adjustment 6 | AA9: Optional Adjustment 7 | AB9: Optional Adjustment 8 | AC9: =VLOOKUP(AC$6,Adjustments,2) -> Optional Adjustment 9 | AD9: Optional Adjustment 9 | AE9: Optional Adjustment 11 | AF9: Optional Adjustment 12 | AG9: Optional Adjustment 13 | AH9: Optional Adjustment 14 | AI9: Optional Adjustment 15 | AJ9: Optional Adjustment 16 | AK9: Optional Adjustment 17 | AL9: Optional Adjustment 18 | AM9: Optional Adjustment 19 | AN9: Optional Adjustment 20 | AO9: Optional Adjustment 21 | AP9: Optional Adjustment 22 | AQ9: Optional Adjustment 23 | AR9: Corp Charges 2026 | AS9: Labor Adjustment-ROO | AT9: Adjust Gas Exp = PT Rev excl Bad Debt | AU9: Adjust Gas Exp = PT Rev incl Bad Debt | AV9: Adjust PT Rev = ROR Revenue Requirement | AW9: Adjust PT Rev = Gas Exp incl Bad Debt | AX9: Adjust PT Rev = Gas Exp incl Bad Debt | AY9: TOTAL QGC ADJUSTMENTS | BA9: RESULTING TOTAL | BB9: CHECKS MUST BE (0)
A10: UTILITY OPERATING REVENUE
A11: TARIFF DTH SALES AND REVENUE
A15: Utah
B16: GS-R | C16: Distribution Non-Gas Rev | H16: =H1*Revenue!$X$15 -> 26838285.69 | K16: 0 | S16: ='EDIT Amort Adj'!G16*$S$1 -> 0 | T16: =Pension!G16*$T$1 -> 0 | U16: ='Optional Adjustment 1'!G16*$U$1 -> 0 | V16: ='Optional Adjustment 2'!G16*$V$1 -> 0 | W16: ='Optional Adjustment 3'!G16*$W$1 -> 0 | X16: ='Optional Adjustment 4'!G16*$X$1 -> 0 | Y16: ='Optional Adjustment 5'!G16*$Y$1 -> 0 | Z16: ='Optional Adjustment 6'!G16*$Z$1 -> 0 | AA16: ='Optional Adjustment 7'!G16*$AA$1 -> 0 | AB16: ='Optional Adjustment 8'!G16*$AB$1 -> 0 | AC16: ='Optional Adjustment 9'!G16*$AC$1 -> 0 | AD16: ='Optional Adjustment 10'!G16*$AD$1 -> 0 | AE16: ='Optional Adjustment 11'!G16*$AE$1 -> 0 | AF16: ='Optional Adjustment 12'!G16*$AF$1 -> 0 | AG16: ='Optional Adjustment 13'!G16*$AG$1 -> 0 | AH16: ='Optional Adjustment 14'!G16*$AH$1 -> 0 | AI16: ='Optional Adjustment 15'!G16*$AI$1 -> 0 | AJ16: ='Optional Adjustment 16'!G16*$AJ$1 -> 0 | AK16: ='Optional Adjustment 17'!G16*$AK$1 -> 0 | AL16: ='Optional Adjustment 18'!G16*$AL$1 -> 0 | AM16: ='Optional Adjustment 19'!G16*$AM$1 -> 0 | AN16: ='Optional Adjustment 20'!G16*$AN$1 -> 0 | AO16: ='Optional Adjustment 21'!G16*$AO$1 -> 0 | AP16: ='Optional Adjustment 22'!G16*$AP$1 -> 0 | AQ16: ='Optional Adjustment 23'!G16*$AQ$1 -> 0 | AR16: ='Corp Charges '!G16*$AR$1 -> 0 | AT16: 0 | AU16: 0 | AV16: 0 | AW16: 0 | AX16: 0 | AY16: =SUM(F16:AX16) -> 26838285.69 | BA16: =SUM(AY16:AY16) -> 26838285.69 | BB16: =+BA16-'ROR-Model'!G16 -> 0
BB17: =+BA17-'ROR-Model'!G17 -> 0
C18: Supplier Non-Gas Revenue | H18: =H1*Revenue!$X$17 -> 3189937.019 | S18: ='EDIT Amort Adj'!G18*$S$1 -> 0 | T18: =Pension!G18*$T$1 -> 0 | U18: ='Optional Adjustment 1'!G18*$U$1 -> 0 | V18: ='Optional Adjustment 2'!G18*$V$1 -> 0 | W18: ='Optional Adjustment 3'!G18*$W$1 -> 0 | X18: ='Optional Adjustment 4'!G18*$X$1 -> 0 | Y18: ='Optional Adjustment 5'!G18*$Y$1 -> 0 | Z18: ='Optional Adjustment 6'!G18*$Z$1 -> 0 | AA18: ='Optional Adjustment 7'!G18*$AA$1 -> 0 | AB18: ='Optional Adjustment 8'!G18*$AB$1 -> 0 | AC18: ='Optional Adjustment 9'!G18*$AC$1 -> 0 | AD18: ='Optional Adjustment 10'!G18*$AD$1 -> 0 | AE18: ='Optional Adjustment 11'!G18*$AE$1 -> 0 | AF18: ='Optional Adjustment 12'!G18*$AF$1 -> 0 | AG18: ='Optional Adjustment 13'!G18*$AG$1 -> 0 | AH18: ='Optional Adjustment 14'!G18*$AH$1 -> 0 | AI18: ='Optional Adjustment 15'!G18*$AI$1 -> 0 | AJ18: ='Optional Adjustment 16'!G18*$AJ$1 -> 0 | AK18: ='Optional Adjustment 17'!G18*$AK$1 -> 0 | AL18: ='Optional Adjustment 18'!G18*$AL$1 -> 0 | AM18: ='Optional Adjustment 19'!G18*$AM$1 -> 0 | AN18: ='Optional Adjustment 20'!G18*$AN$1 -> 0 | AO18: ='Optional Adjustment 21'!G18*$AO$1 -> 0 | AP18: ='Optional Adjustment 22'!G18*$AP$1 -> 0 | AQ18: ='Optional Adjustment 23'!G18*$AQ$1 -> 0 | AR18: ='Corp Charges '!G18*$AR$1 -> 0 | AV18: 0 | AW18: 0 | AX18: =AX$4*('ROR-Model'!F18+SUM(F18:AS18))*AX$1 -> 32480203.13 | AY18: =SUM(F18:AX18) -> 35670140.14 | BA18: =SUM(AY18:AY18) -> 35670140.14 | BB18: =+BA18-'ROR-Model'!G18 -> 0
BB19: =+BA19-'ROR-Model'!G19 -> 0
C20: Commodity Revenue | H20: =H1*Revenue!$X$19 -> -247220557.6 | S20: ='EDIT Amort Adj'!G20*$S$1 -> 0 | T20: =Pension!G20*$T$1 -> 0 | U20: ='Optional Adjustment 1'!G20*$U$1 -> 0 | V20: ='Optional Adjustment 2'!G20*$V$1 -> 0 | W20: ='Optional Adjustment 3'!G20*$W$1 -> 0 | X20: ='Optional Adjustment 4'!G20*$X$1 -> 0 | Y20: ='Optional Adjustment 5'!G20*$Y$1 -> 0 | Z20: ='Optional Adjustment 6'!G20*$Z$1 -> 0 | AA20: ='Optional Adjustment 7'!G20*$AA$1 -> 0 | AB20: ='Optional Adjustment 8'!G20*$AB$1 -> 0 | AC20: ='Optional Adjustment 9'!G20*$AC$1 -> 0 | AD20: ='Optional Adjustment 10'!G20*$AD$1 -> 0 | AE20: ='Optional Adjustment 11'!G20*$AE$1 -> 0 | AF20: ='Optional Adjustment 12'!G20*$AF$1 -> 0 | AG20: ='Optional Adjustment 13'!G20*$AG$1 -> 0 | AH20: ='Optional Adjustment 14'!G20*$AH$1 -> 0 | AI20: ='Optional Adjustment 15'!G20*$AI$1 -> 0 | AJ20: ='Optional Adjustment 16'!G20*$AJ$1 -> 0 | AK20: ='Optional Adjustment 17'!G20*$AK$1 -> 0 | AL20: ='Optional Adjustment 18'!G20*$AL$1 -> 0 | AM20: ='Optional Adjustment 19'!G20*$AM$1 -> 0 | AN20: ='Optional Adjustment 20'!G20*$AN$1 -> 0 | AO20: ='Optional Adjustment 21'!G20*$AO$1 -> 0 | AP20: ='Optional Adjustment 22'!G20*$AP$1 -> 0 | AQ20: ='Optional Adjustment 23'!G20*$AQ$1 -> 0 | AR20: ='Corp Charges '!G20*$AR$1 -> 0 | AV20: 0 | AW20: 0 | AX20: =AX$4*('ROR-Model'!F20+SUM(F20:AS20))*AX$1 -> 210672989.2 | AY20: =SUM(F20:AX20) -> -36547568.42 | BA20: =SUM(AY20:AY20) -> -36547568.42 | BB20: =+BA20-'ROR-Model'!G20 -> 0
C21: Total Revenue | F21: =SUM(F16:F20) -> 0 | H21: =H1*SUM(H16:H20) -> -217192334.9 | I21: =SUM(I16:I20) -> 0 | J21: =SUM(J16:J20) -> 0 | K21: 0 | L21: 0 | M21: 0 | N21: 0 | O21: 0 | P21: 0 | Q21: =SUM(Q16:Q20) -> 0 | R21: 0 | S21: =SUM(S16:S20) -> 0 | T21: 0 | U21: =SUM(U16:U20) -> 0 | V21: 0 | W21: 0 | X21: 0 | Y21: 0 | Z21: 0 | AA21: 0 | AB21: 0 | AC21: 0 | AD21: 0 | AE21: =SUM(AE16:AE20) -> 0 | AF21: 0 | AG21: 0 | AH21: 0 | AI21: =SUM(AI16:AI20) -> 0 | AJ21: 0 | AK21: 0 | AL21: 0 | AM21: 0 | AN21: =SUM(AN16:AN20) -> 0 | AO21: 0 | AP21: 0 | AQ21: =SUM(AQ16:AQ20) -> 0 | AR21: =SUM(AR16:AR20) -> 0 | AT21: =SUM(AT16:AT20) -> 0 | AU21: =SUM(AU16:AU20) -> 0 | AV21: 0 | AW21: 0 | AX21: 243153192.3 | AY21: =SUM(F21:AX21) -> 25960857.41 | BA21: =SUM(AY21:AY21) -> 25960857.41 | BB21: =+BA21-'ROR-Model'!G21 -> 0
BB22: =+BA22-'ROR-Model'!G22 -> 0
C23: Total Dth | H23: =H1*Revenue!$X$22 -> 10987075.54 | AY23: =SUM(F23:AS23) -> 10987075.54 | BA23: =SUM(AY23:AY23) -> 10987075.54 | BB23: =+BA23-'ROR-Model'!G23 -> 0
BB24: =+BA24-'ROR-Model'!G24 -> 0
B25: GS-C | C25: Distribution Non-Gas Rev | H25: =H1*Revenue!$X$24 -> 0 | S25: ='EDIT Amort Adj'!G25*$S$1 -> 0 | T25: =Pension!G25*$T$1 -> 0 | U25: ='Optional Adjustment 1'!G25*$U$1 -> 0 | V25: ='Optional Adjustment 2'!G25*$V$1 -> 0 | W25: ='Optional Adjustment 3'!G25*$W$1 -> 0 | X25: ='Optional Adjustment 4'!G25*$X$1 -> 0 | Y25: ='Optional Adjustment 5'!G25*$Y$1 -> 0 | Z25: ='Optional Adjustment 6'!G25*$Z$1 -> 0 | AA25: ='Optional Adjustment 7'!G25*$AA$1 -> 0 | AB25: ='Optional Adjustment 8'!G25*$AB$1 -> 0 | AC25: ='Optional Adjustment 9'!G25*$AC$1 -> 0 | AD25: ='Optional Adjustment 10'!G25*$AD$1 -> 0 | AE25: ='Optional Adjustment 11'!G25*$AE$1 -> 0 | AF25: ='Optional Adjustment 12'!G25*$AF$1 -> 0 | AG25: ='Optional Adjustment 13'!G25*$AG$1 -> 0 | AH25: ='Optional Adjustment 14'!G25*$AH$1 -> 0 | AI25: ='Optional Adjustment 15'!G25*$AI$1 -> 0 | AJ25: ='Optional Adjustment 16'!G25*$AJ$1 -> 0 | AK25: ='Optional Adjustment 17'!G25*$AK$1 -> 0 | AL25: ='Optional Adjustment 18'!G25*$AL$1 -> 0 | AM25: ='Optional Adjustment 19'!G25*$AM$1 -> 0 | AN25: ='Optional Adjustment 20'!G25*$AN$1 -> 0 | AO25: ='Optional Adjustment 21'!G25*$AO$1 -> 0 | AP25: ='Optional Adjustment 22'!G25*$AP$1 -> 0 | AQ25: ='Optional Adjustment 23'!G25*$AQ$1 -> 0 | AR25: ='Corp Charges '!G25*$AR$1 -> 0 | AY25: =SUM(F25:AS25) -> 0 | BA25: =SUM(AY25:AY25) -> 0 | BB25: =+BA25-'ROR-Model'!G25 -> 0
BB26: =+BA26-'ROR-Model'!G26 -> 0
C27: Supplier Non-Gas Revenue | H27: =H1*Revenue!$X$26 -> 0 | S27: ='EDIT Amort Adj'!G27*$S$1 -> 0 | T27: =Pension!G27*$T$1 -> 0 | U27: ='Optional Adjustment 1'!G27*$U$1 -> 0 | V27: ='Optional Adjustment 2'!G27*$V$1 -> 0 | W27: ='Optional Adjustment 3'!G27*$W$1 -> 0 | X27: ='Optional Adjustment 4'!G27*$X$1 -> 0 | Y27: ='Optional Adjustment 5'!G27*$Y$1 -> 0 | Z27: ='Optional Adjustment 6'!G27*$Z$1 -> 0 | AA27: ='Optional Adjustment 7'!G27*$AA$1 -> 0 | AB27: ='Optional Adjustment 8'!G27*$AB$1 -> 0 | AC27: ='Optional Adjustment 9'!G27*$AC$1 -> 0 | AD27: ='Optional Adjustment 10'!G27*$AD$1 -> 0 | AE27: ='Optional Adjustment 11'!G27*$AE$1 -> 0 | AF27: ='Optional Adjustment 12'!G27*$AF$1 -> 0 | AG27: ='Optional Adjustment 13'!G27*$AG$1 -> 0 | AH27: ='Optional Adjustment 14'!G27*$AH$1 -> 0 | AI27: ='Optional Adjustment 15'!G27*$AI$1 -> 0 | AJ27: ='Optional Adjustment 16'!G27*$AJ$1 -> 0 | AK27: ='Optional Adjustment 17'!G27*$AK$1 -> 0 | AL27: ='Optional Adjustment 18'!G27*$AL$1 -> 0 | AM27: ='Optional Adjustment 19'!G27*$AM$1 -> 0 | AN27: ='Optional Adjustment 20'!G27*$AN$1 -> 0 | AO27: ='Optional Adjustment 21'!G27*$AO$1 -> 0 | AP27: ='Optional Adjustment 22'!G27*$AP$1 -> 0 | AQ27: ='Optional Adjustment 23'!G27*$AQ$1 -> 0 | AR27: ='Corp Charges '!G27*$AR$1 -> 0 | AY27: =SUM(F27:AS27) -> 0 | BA27: =SUM(AY27:AY27) -> 0 | BB27: =+BA27-'ROR-Model'!G27 -> 0
BB28: =+BA28-'ROR-Model'!G28 -> 0
C29: Commodity Revenue | H29: =H1*Revenue!$X$28 -> 0 | S29: ='EDIT Amort Adj'!G29*$S$1 -> 0 | T29: =Pension!G29*$T$1 -> 0 | U29: ='Optional Adjustment 1'!G29*$U$1 -> 0 | V29: ='Optional Adjustment 2'!G29*$V$1 -> 0 | W29: ='Optional Adjustment 3'!G29*$W$1 -> 0 | X29: ='Optional Adjustment 4'!G29*$X$1 -> 0 | Y29: ='Optional Adjustment 5'!G29*$Y$1 -> 0 | Z29: ='Optional Adjustment 6'!G29*$Z$1 -> 0 | AA29: ='Optional Adjustment 7'!G29*$AA$1 -> 0 | AB29: ='Optional Adjustment 8'!G29*$AB$1 -> 0 | AC29: ='Optional Adjustment 9'!G29*$AC$1 -> 0 | AD29: ='Optional Adjustment 10'!G29*$AD$1 -> 0 | AE29: ='Optional Adjustment 11'!G29*$AE$1 -> 0 | AF29: ='Optional Adjustment 12'!G29*$AF$1 -> 0 | AG29: ='Optional Adjustment 13'!G29*$AG$1 -> 0 | AH29: ='Optional Adjustment 14'!G29*$AH$1 -> 0 | AI29: ='Optional Adjustment 15'!G29*$AI$1 -> 0 | AJ29: ='Optional Adjustment 16'!G29*$AJ$1 -> 0 | AK29: ='Optional Adjustment 17'!G29*$AK$1 -> 0 | AL29: ='Optional Adjustment 18'!G29*$AL$1 -> 0 | AM29: ='Optional Adjustment 19'!G29*$AM$1 -> 0 | AN29: ='Optional Adjustment 20'!G29*$AN$1 -> 0 | AO29: ='Optional Adjustment 21'!G29*$AO$1 -> 0 | AP29: ='Optional Adjustment 22'!G29*$AP$1 -> 0 | AQ29: ='Optional Adjustment 23'!G29*$AQ$1 -> 0 | AR29: ='Corp Charges '!G29*$AR$1 -> 0 | AY29: =SUM(F29:AS29) -> 0 | BA29: =SUM(AY29:AY29) -> 0 | BB29: =+BA29-'ROR-Model'!G29 -> 0
C30: Total Revenue | F30: =SUM(F25:F29) -> 0 | H30: =H1*SUM(H25:H29) -> 0 | I30: =SUM(I25:I29) -> 0 | J30: =SUM(J25:J29) -> 0 | K30: 0 | L30: 0 | M30: 0 | N30: 0 | O30: 0 | P30: 0 | Q30: =SUM(Q25:Q29) -> 0 | R30: 0 | S30: =SUM(S25:S29) -> 0 | T30: 0 | U30: =SUM(U25:U29) -> 0 | V30: 0 | W30: 0 | X30: 0 | Y30: 0 | Z30: 0 | AA30: 0 | AB30: 0 | AC30: 0 | AD30: 0 | AE30: =SUM(AE25:AE29) -> 0 | AF30: 0 | AG30: 0 | AH30: 0 | AI30: =SUM(AI25:AI29) -> 0 | AJ30: 0 | AK30: 0 | AL30: 0 | AM30: 0 | AN30: =SUM(AN25:AN29) -> 0 | AO30: 0 | AP30: 0 | AQ30: =SUM(AQ25:AQ29) -> 0 | AR30: =SUM(AR25:AR29) -> 0 | AS30: =SUM(AS25:AS29) -> 0 | AT30: 0 | AU30: 0 | AV30: 0 | AW30: 0 | AX30: 0 | AY30: =SUM(F30:AS30) -> 0 | BA30: =SUM(AY30:AY30) -> 0 | BB30: =+BA30-'ROR-Model'!G30 -> 0
BB31: =+BA31-'ROR-Model'!G31 -> 0
C32: Total Dth | H32: =H1*Revenue!$X$31 -> 0 | AY32: =SUM(F32:AS32) -> 0 | BA32: =SUM(AY32:AY32) -> 0 | BB32: =+BA32-'ROR-Model'!G32 -> 0
BB33: =+BA33-'ROR-Model'!G33 -> 0
B34: GSS | C34: Distribution Non-Gas Rev | H34: =H1*Revenue!$X$33 -> 0 | S34: ='EDIT Amort Adj'!G34*$S$1 -> 0 | T34: =Pension!G34*$T$1 -> 0 | U34: ='Optional Adjustment 1'!G34*$U$1 -> 0 | V34: ='Optional Adjustment 2'!G34*$V$1 -> 0 | W34: ='Optional Adjustment 3'!G34*$W$1 -> 0 | X34: ='Optional Adjustment 4'!G34*$X$1 -> 0 | Y34: ='Optional Adjustment 5'!G34*$Y$1 -> 0 | Z34: ='Optional Adjustment 6'!G34*$Z$1 -> 0 | AA34: ='Optional Adjustment 7'!G34*$AA$1 -> 0 | AB34: ='Optional Adjustment 8'!G34*$AB$1 -> 0 | AC34: ='Optional Adjustment 9'!G34*$AC$1 -> 0 | AD34: ='Optional Adjustment 10'!G34*$AD$1 -> 0 | AE34: ='Optional Adjustment 11'!G34*$AE$1 -> 0 | AF34: ='Optional Adjustment 12'!G34*$AF$1 -> 0 | AG34: ='Optional Adjustment 13'!G34*$AG$1 -> 0 | AH34: ='Optional Adjustment 14'!G34*$AH$1 -> 0 | AI34: ='Optional Adjustment 15'!G34*$AI$1 -> 0 | AJ34: ='Optional Adjustment 16'!G34*$AJ$1 -> 0 | AK34: ='Optional Adjustment 17'!G34*$AK$1 -> 0 | AL34: ='Optional Adjustment 18'!G34*$AL$1 -> 0 | AM34: ='Optional Adjustment 19'!G34*$AM$1 -> 0 | AN34: ='Optional Adjustment 20'!G34*$AN$1 -> 0 | AO34: ='Optional Adjustment 21'!G34*$AO$1 -> 0 | AP34: ='Optional Adjustment 22'!G34*$AP$1 -> 0 | AQ34: ='Optional Adjustment 23'!G34*$AQ$1 -> 0 | AR34: ='Corp Charges '!G34*$AR$1 -> 0 | AY34: =SUM(F34:AS34) -> 0 | BA34: =SUM(AY34:AY34) -> 0 | BB34: =+BA34-'ROR-Model'!G34 -> 0
BB35: =+BA35-'ROR-Model'!G35 -> 0
C36: Supplier Non-Gas Revenue | H36: =H1*Revenue!$X$35 -> 0 | S36: ='EDIT Amort Adj'!G36*$S$1 -> 0 | T36: =Pension!G36*$T$1 -> 0 | U36: ='Optional Adjustment 1'!G36*$U$1 -> 0 | V36: ='Optional Adjustment 2'!G36*$V$1 -> 0 | W36: ='Optional Adjustment 3'!G36*$W$1 -> 0 | X36: ='Optional Adjustment 4'!G36*$X$1 -> 0 | Y36: ='Optional Adjustment 5'!G36*$Y$1 -> 0 | Z36: ='Optional Adjustment 6'!G36*$Z$1 -> 0 | AA36: ='Optional Adjustment 7'!G36*$AA$1 -> 0 | AB36: ='Optional Adjustment 8'!G36*$AB$1 -> 0 | AC36: ='Optional Adjustment 9'!G36*$AC$1 -> 0 | AD36: ='Optional Adjustment 10'!G36*$AD$1 -> 0 | AE36: ='Optional Adjustment 11'!G36*$AE$1 -> 0 | AF36: ='Optional Adjustment 12'!G36*$AF$1 -> 0 | AG36: ='Optional Adjustment 13'!G36*$AG$1 -> 0 | AH36: ='Optional Adjustment 14'!G36*$AH$1 -> 0 | AI36: ='Optional Adjustment 15'!G36*$AI$1 -> 0 | AJ36: ='Optional Adjustment 16'!G36*$AJ$1 -> 0 | AK36: ='Optional Adjustment 17'!G36*$AK$1 -> 0 | AL36: ='Optional Adjustment 18'!G36*$AL$1 -> 0 | AM36: ='Optional Adjustment 19'!G36*$AM$1 -> 0 | AN36: ='Optional Adjustment 20'!G36*$AN$1 -> 0 | AO36: ='Optional Adjustment 21'!G36*$AO$1 -> 0 | AP36: ='Optional Adjustment 22'!G36*$AP$1 -> 0 | AQ36: ='Optional Adjustment 23'!G36*$AQ$1 -> 0 | AR36: ='Corp Charges '!G36*$AR$1 -> 0 | AY36: =SUM(F36:AS36) -> 0 | BA36: =SUM(AY36:AY36) -> 0 | BB36: =+BA36-'ROR-Model'!G36 -> 0
BB37: =+BA37-'ROR-Model'!G37 -> 0
C38: Commodity Revenue | H38: =H1*Revenue!$X$37 -> 0 | S38: ='EDIT Amort Adj'!G38*$S$1 -> 0 | T38: =Pension!G38*$T$1 -> 0 | U38: ='Optional Adjustment 1'!G38*$U$1 -> 0 | V38: ='Optional Adjustment 2'!G38*$V$1 -> 0 | W38: ='Optional Adjustment 3'!G38*$W$1 -> 0 | X38: ='Optional Adjustment 4'!G38*$X$1 -> 0 | Y38: ='Optional Adjustment 5'!G38*$Y$1 -> 0 | Z38: ='Optional Adjustment 6'!G38*$Z$1 -> 0 | AA38: ='Optional Adjustment 7'!G38*$AA$1 -> 0 | AB38: ='Optional Adjustment 8'!G38*$AB$1 -> 0 | AC38: ='Optional Adjustment 9'!G38*$AC$1 -> 0 | AD38: ='Optional Adjustment 10'!G38*$AD$1 -> 0 | AE38: ='Optional Adjustment 11'!G38*$AE$1 -> 0 | AF38: ='Optional Adjustment 12'!G38*$AF$1 -> 0 | AG38: ='Optional Adjustment 13'!G38*$AG$1 -> 0 | AH38: ='Optional Adjustment 14'!G38*$AH$1 -> 0 | AI38: ='Optional Adjustment 15'!G38*$AI$1 -> 0 | AJ38: ='Optional Adjustment 16'!G38*$AJ$1 -> 0 | AK38: ='Optional Adjustment 17'!G38*$AK$1 -> 0 | AL38: ='Optional Adjustment 18'!G38*$AL$1 -> 0 | AM38: ='Optional Adjustment 19'!G38*$AM$1 -> 0 | AN38: ='Optional Adjustment 20'!G38*$AN$1 -> 0 | AO38: ='Optional Adjustment 21'!G38*$AO$1 -> 0 | AP38: ='Optional Adjustment 22'!G38*$AP$1 -> 0 | AQ38: ='Optional Adjustment 23'!G38*$AQ$1 -> 0 | AR38: ='Corp Charges '!G38*$AR$1 -> 0 | AY38: =SUM(F38:AS38) -> 0 | BA38: =SUM(AY38:AY38) -> 0 | BB38: =+BA38-'ROR-Model'!G38 -> 0
C39: Total Revenue | F39: =SUM(F34:F38) -> 0 | H39: =H1*SUM(H34:H38) -> 0 | I39: =SUM(I34:I38) -> 0 | J39: =SUM(J34:J38) -> 0 | K39: 0 | L39: 0 | M39: 0 | N39: 0 | O39: 0 | P39: 0 | Q39: =SUM(Q34:Q38) -> 0 | R39: 0 | S39: =SUM(S34:S38) -> 0 | T39: 0 | U39: =SUM(U34:U38) -> 0 | V39: 0 | W39: 0 | X39: 0 | Y39: 0 | Z39: 0 | AA39: 0 | AB39: 0 | AC39: 0 | AD39: 0 | AE39: =SUM(AE34:AE38) -> 0 | AF39: 0 | AG39: 0 | AH39: 0 | AI39: =SUM(AI34:AI38) -> 0 | AJ39: 0 | AK39: 0 | AL39: 0 | AM39: 0 | AN39: =SUM(AN34:AN38) -> 0 | AO39: 0 | AP39: 0 | AQ39: =SUM(AQ34:AQ38) -> 0 | AR39: =SUM(AR34:AR38) -> 0 | AS39: =SUM(AS34:AS38) -> 0 | AT39: 0 | AU39: 0 | AV39: 0 | AW39: 0 | AX39: 0 | AY39: =SUM(F39:AS39) -> 0 | BA39: =SUM(AY39:AY39) -> 0 | BB39: =+BA39-'ROR-Model'!G39 -> 0
BB40: =+BA40-'ROR-Model'!G40 -> 0
C41: Total Dth | H41: =H1*Revenue!$X$40 -> 0 | AY41: =SUM(F41:AS41) -> 0 | BA41: =SUM(AY41:AY41) -> 0 | BB41: =+BA41-'ROR-Model'!G41 -> 0
BB42: =+BA42-'ROR-Model'!G42 -> 0
B43: F1 | C43: Distribution Non-Gas Rev | H43: =H1*Revenue!$X$42 -> -80266.43111 | S43: ='EDIT Amort Adj'!G43*$S$1 -> 0 | T43: =Pension!G43*$T$1 -> 0 | U43: ='Optional Adjustment 1'!G43*$U$1 -> 0 | V43: ='Optional Adjustment 2'!G43*$V$1 -> 0 | W43: ='Optional Adjustment 3'!G43*$W$1 -> 0 | X43: ='Optional Adjustment 4'!G43*$X$1 -> 0 | Y43: ='Optional Adjustment 5'!G43*$Y$1 -> 0 | Z43: ='Optional Adjustment 6'!G43*$Z$1 -> 0 | AA43: ='Optional Adjustment 7'!G43*$AA$1 -> 0 | AB43: ='Optional Adjustment 8'!G43*$AB$1 -> 0 | AC43: ='Optional Adjustment 9'!G43*$AC$1 -> 0 | AD43: ='Optional Adjustment 10'!G43*$AD$1 -> 0 | AE43: ='Optional Adjustment 11'!G43*$AE$1 -> 0 | AF43: ='Optional Adjustment 12'!G43*$AF$1 -> 0 | AG43: ='Optional Adjustment 13'!G43*$AG$1 -> 0 | AH43: ='Optional Adjustment 14'!G43*$AH$1 -> 0 | AI43: ='Optional Adjustment 15'!G43*$AI$1 -> 0 | AJ43: ='Optional Adjustment 16'!G43*$AJ$1 -> 0 | AK43: ='Optional Adjustment 17'!G43*$AK$1 -> 0 | AL43: ='Optional Adjustment 18'!G43*$AL$1 -> 0 | AM43: ='Optional Adjustment 19'!G43*$AM$1 -> 0 | AN43: ='Optional Adjustment 20'!G43*$AN$1 -> 0 | AO43: ='Optional Adjustment 21'!G43*$AO$1 -> 0 | AP43: ='Optional Adjustment 22'!G43*$AP$1 -> 0 | AQ43: ='Optional Adjustment 23'!G43*$AQ$1 -> 0 | AR43: ='Corp Charges '!G43*$AR$1 -> 0 | AY43: =SUM(F43:AX43) -> -80266.43111 | BA43: =SUM(AY43:AY43) -> -80266.43111 | BB43: =+BA43-'ROR-Model'!G43 -> 0
BB44: =+BA44-'ROR-Model'!G44 -> 0
C45: Supplier Non-Gas Revenue | H45: =H1*Revenue!$X$44 -> 30549.01846 | S45: ='EDIT Amort Adj'!G45*$S$1 -> 0 | T45: =Pension!G45*$T$1 -> 0 | U45: ='Optional Adjustment 1'!G45*$U$1 -> 0 | V45: ='Optional Adjustment 2'!G45*$V$1 -> 0 | W45: ='Optional Adjustment 3'!G45*$W$1 -> 0 | X45: ='Optional Adjustment 4'!G45*$X$1 -> 0 | Y45: ='Optional Adjustment 5'!G45*$Y$1 -> 0 | Z45: ='Optional Adjustment 6'!G45*$Z$1 -> 0 | AA45: ='Optional Adjustment 7'!G45*$AA$1 -> 0 | AB45: ='Optional Adjustment 8'!G45*$AB$1 -> 0 | AC45: ='Optional Adjustment 9'!G45*$AC$1 -> 0 | AD45: ='Optional Adjustment 10'!G45*$AD$1 -> 0 | AE45: ='Optional Adjustment 11'!G45*$AE$1 -> 0 | AF45: ='Optional Adjustment 12'!G45*$AF$1 -> 0 | AG45: ='Optional Adjustment 13'!G45*$AG$1 -> 0 | AH45: ='Optional Adjustment 14'!G45*$AH$1 -> 0 | AI45: ='Optional Adjustment 15'!G45*$AI$1 -> 0 | AJ45: ='Optional Adjustment 16'!G45*$AJ$1 -> 0 | AK45: ='Optional Adjustment 17'!G45*$AK$1 -> 0 | AL45: ='Optional Adjustment 18'!G45*$AL$1 -> 0 | AM45: ='Optional Adjustment 19'!G45*$AM$1 -> 0 | AN45: ='Optional Adjustment 20'!G45*$AN$1 -> 0 | AO45: ='Optional Adjustment 21'!G45*$AO$1 -> 0 | AP45: ='Optional Adjustment 22'!G45*$AP$1 -> 0 | AQ45: ='Optional Adjustment 23'!G45*$AQ$1 -> 0 | AR45: ='Corp Charges '!G45*$AR$1 -> 0 | AV45: =AV$4*('ROR-Model'!F45+SUM(F45:S45))*AV$1 -> 0 | AW45: =AW$4*('ROR-Model'!F45+SUM(F45:S45))*AW$1 -> 0 | AX45: =AX$4*('ROR-Model'!F45+SUM(F45:S45))*AX$1 -> 709075.4914 | AY45: =SUM(F45:AX45) -> 739624.5098 | BA45: =SUM(AY45:AY45) -> 739624.5098 | BB45: =+BA45-'ROR-Model'!G45 -> 0
BB46: =+BA46-'ROR-Model'!G46 -> 0
C47: Commodity Revenue | H47: =H1*Revenue!$X$46 -> -6007323.003 | S47: ='EDIT Amort Adj'!G47*$S$1 -> 0 | T47: =Pension!G47*$T$1 -> 0 | U47: ='Optional Adjustment 1'!G47*$U$1 -> 0 | V47: ='Optional Adjustment 2'!G47*$V$1 -> 0 | W47: ='Optional Adjustment 3'!G47*$W$1 -> 0 | X47: ='Optional Adjustment 4'!G47*$X$1 -> 0 | Y47: ='Optional Adjustment 5'!G47*$Y$1 -> 0 | Z47: ='Optional Adjustment 6'!G47*$Z$1 -> 0 | AA47: ='Optional Adjustment 7'!G47*$AA$1 -> 0 | AB47: ='Optional Adjustment 8'!G47*$AB$1 -> 0 | AC47: ='Optional Adjustment 9'!G47*$AC$1 -> 0 | AD47: ='Optional Adjustment 10'!G47*$AD$1 -> 0 | AE47: ='Optional Adjustment 11'!G47*$AE$1 -> 0 | AF47: ='Optional Adjustment 12'!G47*$AF$1 -> 0 | AG47: ='Optional Adjustment 13'!G47*$AG$1 -> 0 | AH47: ='Optional Adjustment 14'!G47*$AH$1 -> 0 | AI47: ='Optional Adjustment 15'!G47*$AI$1 -> 0 | AJ47: ='Optional Adjustment 16'!G47*$AJ$1 -> 0 | AK47: ='Optional Adjustment 17'!G47*$AK$1 -> 0 | AL47: ='Optional Adjustment 18'!G47*$AL$1 -> 0 | AM47: ='Optional Adjustment 19'!G47*$AM$1 -> 0 | AN47: ='Optional Adjustment 20'!G47*$AN$1 -> 0 | AO47: ='Optional Adjustment 21'!G47*$AO$1 -> 0 | AP47: ='Optional Adjustment 22'!G47*$AP$1 -> 0 | AQ47: ='Optional Adjustment 23'!G47*$AQ$1 -> 0 | AR47: ='Corp Charges '!G47*$AR$1 -> 0 | AV47: =AV$4*('ROR-Model'!F47+SUM(F47:S47))*AV$1 -> 0 | AW47: =AW$4*('ROR-Model'!F47+SUM(F47:S47))*AW$1 -> 0 | AX47: =AX$4*('ROR-Model'!F47+SUM(F47:S47))*AX$1 -> 4005166.791 | AY47: =SUM(F47:AX47) -> -2002156.212 | BA47: =SUM(AY47:AY47) -> -2002156.212 | BB47: =+BA47-'ROR-Model'!G47 -> 0
C48: Total Revenue | F48: =SUM(F43:F47) -> 0 | H48: =H1*SUM(H43:H47) -> -6057040.416 | I48: =SUM(I43:I47) -> 0 | J48: =SUM(J43:J47) -> 0 | K48: 0 | L48: 0 | M48: 0 | N48: 0 | O48: 0 | P48: 0 | Q48: =SUM(Q43:Q47) -> 0 | R48: 0 | S48: =SUM(S43:S47) -> 0 | T48: 0 | U48: =SUM(U43:U47) -> 0 | V48: 0 | W48: 0 | X48: 0 | Y48: 0 | Z48: 0 | AA48: 0 | AB48: 0 | AC48: 0 | AD48: 0 | AE48: =SUM(AE43:AE47) -> 0 | AF48: 0 | AG48: 0 | AH48: 0 | AI48: =SUM(AI43:AI47) -> 0 | AJ48: 0 | AK48: 0 | AL48: 0 | AM48: 0 | AN48: =SUM(AN43:AN47) -> 0 | AO48: 0 | AP48: 0 | AQ48: =SUM(AQ43:AQ47) -> 0 | AR48: =SUM(AR43:AR47) -> 0 | AS48: =SUM(AS43:AS47) -> 0 | AT48: 0 | AU48: 0 | AV48: 0 | AW48: 0 | AX48: 4714242.283 | AY48: =SUM(AY43:AY47) -> -1342798.134 | BA48: =SUM(BA43:BA47) -> -1342798.134 | BB48: =+BA48-'ROR-Model'!G48 -> 0
BB49: =+BA49-'ROR-Model'!G49 -> 0
C50: Total Dth | H50: =H1*Revenue!$X$49 -> -47685.782 | AY50: =SUM(F50:AX50) -> -47685.782 | BA50: =SUM(AY50:AY50) -> -47685.782 | BB50: =+BA50-'ROR-Model'!G50 -> 0
BB51: =+BA51-'ROR-Model'!G51 -> 0
B52: F-3 | C52: Distribution Non-Gas Rev | H52: =H1*Revenue!$X$51 -> 0 | S52: ='EDIT Amort Adj'!G52*$S$1 -> 0 | T52: =Pension!G52*$T$1 -> 0 | U52: ='Optional Adjustment 1'!G52*$U$1 -> 0 | V52: ='Optional Adjustment 2'!G52*$V$1 -> 0 | W52: ='Optional Adjustment 3'!G52*$W$1 -> 0 | X52: ='Optional Adjustment 4'!G52*$X$1 -> 0 | Y52: ='Optional Adjustment 5'!G52*$Y$1 -> 0 | Z52: ='Optional Adjustment 6'!G52*$Z$1 -> 0 | AA52: ='Optional Adjustment 7'!G52*$AA$1 -> 0 | AB52: ='Optional Adjustment 8'!G52*$AB$1 -> 0 | AC52: ='Optional Adjustment 9'!G52*$AC$1 -> 0 | AD52: ='Optional Adjustment 10'!G52*$AD$1 -> 0 | AE52: ='Optional Adjustment 11'!G52*$AE$1 -> 0 | AF52: ='Optional Adjustment 12'!G52*$AF$1 -> 0 | AG52: ='Optional Adjustment 13'!G52*$AG$1 -> 0 | AH52: ='Optional Adjustment 14'!G52*$AH$1 -> 0 | AI52: ='Optional Adjustment 15'!G52*$AI$1 -> 0 | AJ52: ='Optional Adjustment 16'!G52*$AJ$1 -> 0 | AK52: ='Optional Adjustment 17'!G52*$AK$1 -> 0 | AL52: ='Optional Adjustment 18'!G52*$AL$1 -> 0 | AM52: ='Optional Adjustment 19'!G52*$AM$1 -> 0 | AN52: ='Optional Adjustment 20'!G52*$AN$1 -> 0 | AO52: ='Optional Adjustment 21'!G52*$AO$1 -> 0 | AP52: ='Optional Adjustment 22'!G52*$AP$1 -> 0 | AQ52: ='Optional Adjustment 23'!G52*$AQ$1 -> 0 | AR52: ='Corp Charges '!G52*$AR$1 -> 0 | AY52: =SUM(F52:AX52) -> 0 | BA52: =SUM(AY52:AY52) -> 0 | BB52: =+BA52-'ROR-Model'!G52 -> 0
C53: Supplier Non-Gas Revenue | S53: ='EDIT Amort Adj'!G53*$S$1 -> 0 | T53: =Pension!G53*$T$1 -> 0 | U53: ='Optional Adjustment 1'!G53*$U$1 -> 0 | V53: ='Optional Adjustment 2'!G53*$V$1 -> 0 | W53: ='Optional Adjustment 3'!G53*$W$1 -> 0 | X53: ='Optional Adjustment 4'!G53*$X$1 -> 0 | Y53: ='Optional Adjustment 5'!G53*$Y$1 -> 0 | Z53: ='Optional Adjustment 6'!G53*$Z$1 -> 0 | AA53: ='Optional Adjustment 7'!G53*$AA$1 -> 0 | AB53: ='Optional Adjustment 8'!G53*$AB$1 -> 0 | AC53: ='Optional Adjustment 9'!G53*$AC$1 -> 0 | AD53: ='Optional Adjustment 10'!G53*$AD$1 -> 0 | AE53: ='Optional Adjustment 11'!G53*$AE$1 -> 0 | AF53: ='Optional Adjustment 12'!G53*$AF$1 -> 0 | AG53: ='Optional Adjustment 13'!G53*$AG$1 -> 0 | AH53: ='Optional Adjustment 14'!G53*$AH$1 -> 0 | AI53: ='Optional Adjustment 15'!G53*$AI$1 -> 0 | AJ53: ='Optional Adjustment 16'!G53*$AJ$1 -> 0 | AK53: ='Optional Adjustment 17'!G53*$AK$1 -> 0 | AL53: ='Optional Adjustment 18'!G53*$AL$1 -> 0 | AM53: ='Optional Adjustment 19'!G53*$AM$1 -> 0 | AN53: ='Optional Adjustment 20'!G53*$AN$1 -> 0 | AO53: ='Optional Adjustment 21'!G53*$AO$1 -> 0 | AP53: ='Optional Adjustment 22'!G53*$AP$1 -> 0 | AQ53: ='Optional Adjustment 23'!G53*$AQ$1 -> 0 | AR53: ='Corp Charges '!G53*$AR$1 -> 0 | AY53: =SUM(F53:AX53) -> 0 | BA53: =SUM(AY53:AY53) -> 0 | BB53: =+BA53-'ROR-Model'!G53 -> 0
C54: Supplier Non-Gas Demand Revenue | H54: =H1*Revenue!$X$53 -> 0 | S54: ='EDIT Amort Adj'!G54*$S$1 -> 0 | T54: =Pension!G54*$T$1 -> 0 | U54: ='Optional Adjustment 1'!G54*$U$1 -> 0 | V54: ='Optional Adjustment 2'!G54*$V$1 -> 0 | W54: ='Optional Adjustment 3'!G54*$W$1 -> 0 | X54: ='Optional Adjustment 4'!G54*$X$1 -> 0 | Y54: ='Optional Adjustment 5'!G54*$Y$1 -> 0 | Z54: ='Optional Adjustment 6'!G54*$Z$1 -> 0 | AA54: ='Optional Adjustment 7'!G54*$AA$1 -> 0 | AB54: ='Optional Adjustment 8'!G54*$AB$1 -> 0 | AC54: ='Optional Adjustment 9'!G54*$AC$1 -> 0 | AD54: ='Optional Adjustment 10'!G54*$AD$1 -> 0 | AE54: ='Optional Adjustment 11'!G54*$AE$1 -> 0 | AF54: ='Optional Adjustment 12'!G54*$AF$1 -> 0 | AG54: ='Optional Adjustment 13'!G54*$AG$1 -> 0 | AH54: ='Optional Adjustment 14'!G54*$AH$1 -> 0 | AI54: ='Optional Adjustment 15'!G54*$AI$1 -> 0 | AJ54: ='Optional Adjustment 16'!G54*$AJ$1 -> 0 | AK54: ='Optional Adjustment 17'!G54*$AK$1 -> 0 | AL54: ='Optional Adjustment 18'!G54*$AL$1 -> 0 | AM54: ='Optional Adjustment 19'!G54*$AM$1 -> 0 | AN54: ='Optional Adjustment 20'!G54*$AN$1 -> 0 | AO54: ='Optional Adjustment 21'!G54*$AO$1 -> 0 | AP54: ='Optional Adjustment 22'!G54*$AP$1 -> 0 | AQ54: ='Optional Adjustment 23'!G54*$AQ$1 -> 0 | AR54: ='Corp Charges '!G54*$AR$1 -> 0 | AY54: =SUM(F54:AX54) -> 0 | BA54: =SUM(AY54:AY54) -> 0 | BB54: =+BA54-'ROR-Model'!G54 -> 0
C55: Commodity Tariff Revenue | S55: ='EDIT Amort Adj'!G55*$S$1 -> 0 | T55: =Pension!G55*$T$1 -> 0 | U55: ='Optional Adjustment 1'!G55*$U$1 -> 0 | V55: ='Optional Adjustment 2'!G55*$V$1 -> 0 | W55: ='Optional Adjustment 3'!G55*$W$1 -> 0 | X55: ='Optional Adjustment 4'!G55*$X$1 -> 0 | Y55: ='Optional Adjustment 5'!G55*$Y$1 -> 0 | Z55: ='Optional Adjustment 6'!G55*$Z$1 -> 0 | AA55: ='Optional Adjustment 7'!G55*$AA$1 -> 0 | AB55: ='Optional Adjustment 8'!G55*$AB$1 -> 0 | AC55: ='Optional Adjustment 9'!G55*$AC$1 -> 0 | AD55: ='Optional Adjustment 10'!G55*$AD$1 -> 0 | AE55: ='Optional Adjustment 11'!G55*$AE$1 -> 0 | AF55: ='Optional Adjustment 12'!G55*$AF$1 -> 0 | AG55: ='Optional Adjustment 13'!G55*$AG$1 -> 0 | AH55: ='Optional Adjustment 14'!G55*$AH$1 -> 0 | AI55: ='Optional Adjustment 15'!G55*$AI$1 -> 0 | AJ55: ='Optional Adjustment 16'!G55*$AJ$1 -> 0 | AK55: ='Optional Adjustment 17'!G55*$AK$1 -> 0 | AL55: ='Optional Adjustment 18'!G55*$AL$1 -> 0 | AM55: ='Optional Adjustment 19'!G55*$AM$1 -> 0 | AN55: ='Optional Adjustment 20'!G55*$AN$1 -> 0 | AO55: ='Optional Adjustment 21'!G55*$AO$1 -> 0 | AP55: ='Optional Adjustment 22'!G55*$AP$1 -> 0 | AQ55: ='Optional Adjustment 23'!G55*$AQ$1 -> 0 | AR55: ='Corp Charges '!G55*$AR$1 -> 0 | AY55: =SUM(F55:AX55) -> 0 | BA55: =SUM(AY55:AY55) -> 0 | BB55: =+BA55-'ROR-Model'!G55 -> 0
C56: Commodity Demand Revenue | H56: =H1*Revenue!$X$55 -> 0 | S56: ='EDIT Amort Adj'!G56*$S$1 -> 0 | T56: =Pension!G56*$T$1 -> 0 | U56: ='Optional Adjustment 1'!G56*$U$1 -> 0 | V56: ='Optional Adjustment 2'!G56*$V$1 -> 0 | W56: ='Optional Adjustment 3'!G56*$W$1 -> 0 | X56: ='Optional Adjustment 4'!G56*$X$1 -> 0 | Y56: ='Optional Adjustment 5'!G56*$Y$1 -> 0 | Z56: ='Optional Adjustment 6'!G56*$Z$1 -> 0 | AA56: ='Optional Adjustment 7'!G56*$AA$1 -> 0 | AB56: ='Optional Adjustment 8'!G56*$AB$1 -> 0 | AC56: ='Optional Adjustment 9'!G56*$AC$1 -> 0 | AD56: ='Optional Adjustment 10'!G56*$AD$1 -> 0 | AE56: ='Optional Adjustment 11'!G56*$AE$1 -> 0 | AF56: ='Optional Adjustment 12'!G56*$AF$1 -> 0 | AG56: ='Optional Adjustment 13'!G56*$AG$1 -> 0 | AH56: ='Optional Adjustment 14'!G56*$AH$1 -> 0 | AI56: ='Optional Adjustment 15'!G56*$AI$1 -> 0 | AJ56: ='Optional Adjustment 16'!G56*$AJ$1 -> 0 | AK56: ='Optional Adjustment 17'!G56*$AK$1 -> 0 | AL56: ='Optional Adjustment 18'!G56*$AL$1 -> 0 | AM56: ='Optional Adjustment 19'!G56*$AM$1 -> 0 | AN56: ='Optional Adjustment 20'!G56*$AN$1 -> 0 | AO56: ='Optional Adjustment 21'!G56*$AO$1 -> 0 | AP56: ='Optional Adjustment 22'!G56*$AP$1 -> 0 | AQ56: ='Optional Adjustment 23'!G56*$AQ$1 -> 0 | AR56: ='Corp Charges '!G56*$AR$1 -> 0 | AY56: =SUM(F56:AX56) -> 0 | BA56: =SUM(AY56:AY56) -> 0 | BB56: =+BA56-'ROR-Model'!G56 -> 0
C57: Total Revenue | F57: =SUM(F52:F56) -> 0 | H57: =H1*SUM(H52:H56) -> 0 | I57: =SUM(I52:I56) -> 0 | J57: =SUM(J52:J56) -> 0 | K57: 0 | L57: 0 | M57: 0 | N57: 0 | O57: 0 | P57: 0 | Q57: =SUM(Q52:Q56) -> 0 | R57: 0 | S57: =SUM(S52:S56) -> 0 | T57: 0 | U57: =SUM(U52:U56) -> 0 | V57: 0 | W57: 0 | X57: 0 | Y57: 0 | Z57: 0 | AA57: 0 | AB57: 0 | AC57: 0 | AD57: 0 | AE57: =SUM(AE52:AE56) -> 0 | AF57: 0 | AG57: 0 | AH57: 0 | AI57: =SUM(AI52:AI56) -> 0 | AJ57: 0 | AK57: 0 | AL57: 0 | AM57: 0 | AN57: =SUM(AN52:AN56) -> 0 | AO57: 0 | AP57: 0 | AQ57: =SUM(AQ52:AQ56) -> 0 | AR57: =SUM(AR52:AR56) -> 0 | AS57: =SUM(AS52:AS56) -> 0 | AT57: 0 | AU57: 0 | AV57: 0 | AW57: 0 | AX57: 0 | AY57: =SUM(AY52:AY56) -> 0 | BA57: =SUM(BA52:BA56) -> 0 | BB57: =+BA57-'ROR-Model'!G57 -> 0
BB58: =+BA58-'ROR-Model'!G58 -> 0
C59: Total Sales Dth | H59: =H1*Revenue!$X$58 -> 0 | AY59: =SUM(F59:AS59) -> 0 | BA59: =SUM(AY59:AY59) -> 0 | BB59: =+BA59-'ROR-Model'!G59 -> 0
BB60: =+BA60-'ROR-Model'!G60 -> 0
B61: NGV | C61: Distribution Non-Gas Rev | H61: =H1*Revenue!$X$60 -> 438928.8158 | S61: ='EDIT Amort Adj'!G61*$S$1 -> 0 | T61: =Pension!G61*$T$1 -> 0 | U61: ='Optional Adjustment 1'!G61*$U$1 -> 0 | V61: ='Optional Adjustment 2'!G61*$V$1 -> 0 | W61: ='Optional Adjustment 3'!G61*$W$1 -> 0 | X61: ='Optional Adjustment 4'!G61*$X$1 -> 0 | Y61: ='Optional Adjustment 5'!G61*$Y$1 -> 0 | Z61: ='Optional Adjustment 6'!G61*$Z$1 -> 0 | AA61: ='Optional Adjustment 7'!G61*$AA$1 -> 0 | AB61: ='Optional Adjustment 8'!G61*$AB$1 -> 0 | AC61: ='Optional Adjustment 9'!G61*$AC$1 -> 0 | AD61: ='Optional Adjustment 10'!G61*$AD$1 -> 0 | AE61: ='Optional Adjustment 11'!G61*$AE$1 -> 0 | AF61: ='Optional Adjustment 12'!G61*$AF$1 -> 0 | AG61: ='Optional Adjustment 13'!G61*$AG$1 -> 0 | AH61: ='Optional Adjustment 14'!G61*$AH$1 -> 0 | AI61: ='Optional Adjustment 15'!G61*$AI$1 -> 0 | AJ61: ='Optional Adjustment 16'!G61*$AJ$1 -> 0 | AK61: ='Optional Adjustment 17'!G61*$AK$1 -> 0 | AL61: ='Optional Adjustment 18'!G61*$AL$1 -> 0 | AM61: ='Optional Adjustment 19'!G61*$AM$1 -> 0 | AN61: ='Optional Adjustment 20'!G61*$AN$1 -> 0 | AO61: ='Optional Adjustment 21'!G61*$AO$1 -> 0 | AP61: ='Optional Adjustment 22'!G61*$AP$1 -> 0 | AQ61: ='Optional Adjustment 23'!G61*$AQ$1 -> 0 | AR61: ='Corp Charges '!G61*$AR$1 -> 0 | AY61: =SUM(F61:AX61) -> 438928.8158 | BA61: =SUM(AY61:AY61) -> 438928.8158 | BB61: =+BA61-'ROR-Model'!G61 -> 0
BB62: =+BA62-'ROR-Model'!G62 -> 0
C63: Supplier Non-Gas Revenue | H63: =H1*Revenue!$X$62 -> -33859.71696 | S63: ='EDIT Amort Adj'!G63*$S$1 -> 0 | T63: =Pension!G63*$T$1 -> 0 | U63: ='Optional Adjustment 1'!G63*$U$1 -> 0 | V63: ='Optional Adjustment 2'!G63*$V$1 -> 0 | W63: ='Optional Adjustment 3'!G63*$W$1 -> 0 | X63: ='Optional Adjustment 4'!G63*$X$1 -> 0 | Y63: ='Optional Adjustment 5'!G63*$Y$1 -> 0 | Z63: ='Optional Adjustment 6'!G63*$Z$1 -> 0 | AA63: ='Optional Adjustment 7'!G63*$AA$1 -> 0 | AB63: ='Optional Adjustment 8'!G63*$AB$1 -> 0 | AC63: ='Optional Adjustment 9'!G63*$AC$1 -> 0 | AD63: ='Optional Adjustment 10'!G63*$AD$1 -> 0 | AE63: ='Optional Adjustment 11'!G63*$AE$1 -> 0 | AF63: ='Optional Adjustment 12'!G63*$AF$1 -> 0 | AG63: ='Optional Adjustment 13'!G63*$AG$1 -> 0 | AH63: ='Optional Adjustment 14'!G63*$AH$1 -> 0 | AI63: ='Optional Adjustment 15'!G63*$AI$1 -> 0 | AJ63: ='Optional Adjustment 16'!G63*$AJ$1 -> 0 | AK63: ='Optional Adjustment 17'!G63*$AK$1 -> 0 | AL63: ='Optional Adjustment 18'!G63*$AL$1 -> 0 | AM63: ='Optional Adjustment 19'!G63*$AM$1 -> 0 | AN63: ='Optional Adjustment 20'!G63*$AN$1 -> 0 | AO63: ='Optional Adjustment 21'!G63*$AO$1 -> 0 | AP63: ='Optional Adjustment 22'!G63*$AP$1 -> 0 | AQ63: ='Optional Adjustment 23'!G63*$AQ$1 -> 0 | AR63: ='Corp Charges '!G63*$AR$1 -> 0 | AV63: =AV$4*('ROR-Model'!F63+SUM(F63:S63))*AV$1 -> 0 | AW63: =AW$4*('ROR-Model'!F63+SUM(F63:S63))*AW$1 -> 0 | AX63: =AX$4*('ROR-Model'!F63+SUM(F63:S63))*AX$1 -> 59563.89276 | AY63: =SUM(F63:AX63) -> 25704.1758 | BA63: =SUM(AY63:AY63) -> 25704.1758 | BB63: =+BA63-'ROR-Model'!G63 -> 0
BB64: =+BA64-'ROR-Model'!G64 -> 0
C65: Commodity Revenue | H65: =H1*Revenue!$X$64 -> -771232.5438 | S65: ='EDIT Amort Adj'!G65*$S$1 -> 0 | T65: =Pension!G65*$T$1 -> 0 | U65: ='Optional Adjustment 1'!G65*$U$1 -> 0 | V65: ='Optional Adjustment 2'!G65*$V$1 -> 0 | W65: ='Optional Adjustment 3'!G65*$W$1 -> 0 | X65: ='Optional Adjustment 4'!G65*$X$1 -> 0 | Y65: ='Optional Adjustment 5'!G65*$Y$1 -> 0 | Z65: ='Optional Adjustment 6'!G65*$Z$1 -> 0 | AA65: ='Optional Adjustment 7'!G65*$AA$1 -> 0 | AB65: ='Optional Adjustment 8'!G65*$AB$1 -> 0 | AC65: ='Optional Adjustment 9'!G65*$AC$1 -> 0 | AD65: ='Optional Adjustment 10'!G65*$AD$1 -> 0 | AE65: ='Optional Adjustment 11'!G65*$AE$1 -> 0 | AF65: ='Optional Adjustment 12'!G65*$AF$1 -> 0 | AG65: ='Optional Adjustment 13'!G65*$AG$1 -> 0 | AH65: ='Optional Adjustment 14'!G65*$AH$1 -> 0 | AI65: ='Optional Adjustment 15'!G65*$AI$1 -> 0 | AJ65: ='Optional Adjustment 16'!G65*$AJ$1 -> 0 | AK65: ='Optional Adjustment 17'!G65*$AK$1 -> 0 | AL65: ='Optional Adjustment 18'!G65*$AL$1 -> 0 | AM65: ='Optional Adjustment 19'!G65*$AM$1 -> 0 | AN65: ='Optional Adjustment 20'!G65*$AN$1 -> 0 | AO65: ='Optional Adjustment 21'!G65*$AO$1 -> 0 | AP65: ='Optional Adjustment 22'!G65*$AP$1 -> 0 | AQ65: ='Optional Adjustment 23'!G65*$AQ$1 -> 0 | AR65: ='Corp Charges '!G65*$AR$1 -> 0 | AV65: =AV$4*('ROR-Model'!F65+SUM(F65:S65))*AV$1 -> 0 | AW65: =AW$4*('ROR-Model'!F65+SUM(F65:S65))*AW$1 -> 0 | AX65: =AX$4*('ROR-Model'!F65+SUM(F65:S65))*AX$1 -> 184231.356 | AY65: =SUM(F65:AX65) -> -587001.1878 | BA65: =SUM(AY65:AY65) -> -587001.1878 | BB65: =+BA65-'ROR-Model'!G65 -> 0
C66: Total Revenue | F66: =SUM(F61:F65) -> 0 | H66: =H1*SUM(H61:H65) -> -366163.445 | I66: =SUM(I61:I65) -> 0 | J66: =SUM(J61:J65) -> 0 | K66: 0 | L66: 0 | M66: 0 | N66: 0 | O66: 0 | P66: 0 | Q66: =SUM(Q61:Q65) -> 0 | R66: 0 | S66: =SUM(S61:S65) -> 0 | T66: 0 | U66: =SUM(U61:U65) -> 0 | V66: 0 | W66: 0 | X66: 0 | Y66: 0 | Z66: 0 | AA66: 0 | AB66: 0 | AC66: 0 | AD66: 0 | AE66: =SUM(AE61:AE65) -> 0 | AF66: 0 | AG66: 0 | AH66: 0 | AI66: =SUM(AI61:AI65) -> 0 | AJ66: 0 | AK66: 0 | AL66: 0 | AM66: 0 | AN66: =SUM(AN61:AN65) -> 0 | AO66: 0 | AP66: 0 | AQ66: =SUM(AQ61:AQ65) -> 0 | AR66: =SUM(AR61:AR65) -> 0 | AS66: =SUM(AS61:AS65) -> 0 | AT66: 0 | AU66: 0 | AV66: 0 | AW66: 0 | AX66: 243795.2488 | AY66: =SUM(AY61:AY65) -> -122368.1962 | BA66: =SUM(BA61:BA65) -> -122368.1962 | BB66: =+BA66-'ROR-Model'!G66 -> 0
BB67: =+BA67-'ROR-Model'!G67 -> 0
C68: Total Dth | H68: =H1*Revenue!$X$67 -> -2619.616 | AY68: =SUM(F68:AX68) -> -2619.616 | BA68: =SUM(AY68:AY68) -> -2619.616 | BB68: =+BA68-'ROR-Model'!G68 -> 0
BB69: =+BA69-'ROR-Model'!G69 -> 0
B70: F-4 | C70: Distribution Non-Gas Rev | S70: ='EDIT Amort Adj'!G70*$S$1 -> 0 | T70: =Pension!G70*$T$1 -> 0 | U70: ='Optional Adjustment 1'!G70*$U$1 -> 0 | V70: ='Optional Adjustment 2'!G70*$V$1 -> 0 | W70: ='Optional Adjustment 3'!G70*$W$1 -> 0 | X70: ='Optional Adjustment 4'!G70*$X$1 -> 0 | Y70: ='Optional Adjustment 5'!G70*$Y$1 -> 0 | Z70: ='Optional Adjustment 6'!G70*$Z$1 -> 0 | AA70: ='Optional Adjustment 7'!G70*$AA$1 -> 0 | AB70: ='Optional Adjustment 8'!G70*$AB$1 -> 0 | AC70: ='Optional Adjustment 9'!G70*$AC$1 -> 0 | AD70: ='Optional Adjustment 10'!G70*$AD$1 -> 0 | AE70: ='Optional Adjustment 11'!G70*$AE$1 -> 0 | AF70: ='Optional Adjustment 12'!G70*$AF$1 -> 0 | AG70: ='Optional Adjustment 13'!G70*$AG$1 -> 0 | AH70: ='Optional Adjustment 14'!G70*$AH$1 -> 0 | AI70: ='Optional Adjustment 15'!G70*$AI$1 -> 0 | AJ70: ='Optional Adjustment 16'!G70*$AJ$1 -> 0 | AK70: ='Optional Adjustment 17'!G70*$AK$1 -> 0 | AL70: ='Optional Adjustment 18'!G70*$AL$1 -> 0 | AM70: ='Optional Adjustment 19'!G70*$AM$1 -> 0 | AN70: ='Optional Adjustment 20'!G70*$AN$1 -> 0 | AO70: ='Optional Adjustment 21'!G70*$AO$1 -> 0 | AP70: ='Optional Adjustment 22'!G70*$AP$1 -> 0 | AQ70: ='Optional Adjustment 23'!G70*$AQ$1 -> 0 | AR70: ='Corp Charges '!G70*$AR$1 -> 0 | AY70: =SUM(F70:AX70) -> 0 | BA70: =SUM(AY70:AY70) -> 0 | BB70: =+BA70-'ROR-Model'!G70 -> 0
BB71: =+BA71-'ROR-Model'!G71 -> 0
C72: Supplier Non-Gas Revenue | S72: ='EDIT Amort Adj'!G72*$S$1 -> 0 | T72: =Pension!G72*$T$1 -> 0 | U72: ='Optional Adjustment 1'!G72*$U$1 -> 0 | V72: ='Optional Adjustment 2'!G72*$V$1 -> 0 | W72: ='Optional Adjustment 3'!G72*$W$1 -> 0 | X72: ='Optional Adjustment 4'!G72*$X$1 -> 0 | Y72: ='Optional Adjustment 5'!G72*$Y$1 -> 0 | Z72: ='Optional Adjustment 6'!G72*$Z$1 -> 0 | AA72: ='Optional Adjustment 7'!G72*$AA$1 -> 0 | AB72: ='Optional Adjustment 8'!G72*$AB$1 -> 0 | AC72: ='Optional Adjustment 9'!G72*$AC$1 -> 0 | AD72: ='Optional Adjustment 10'!G72*$AD$1 -> 0 | AE72: ='Optional Adjustment 11'!G72*$AE$1 -> 0 | AF72: ='Optional Adjustment 12'!G72*$AF$1 -> 0 | AG72: ='Optional Adjustment 13'!G72*$AG$1 -> 0 | AH72: ='Optional Adjustment 14'!G72*$AH$1 -> 0 | AI72: ='Optional Adjustment 15'!G72*$AI$1 -> 0 | AJ72: ='Optional Adjustment 16'!G72*$AJ$1 -> 0 | AK72: ='Optional Adjustment 17'!G72*$AK$1 -> 0 | AL72: ='Optional Adjustment 18'!G72*$AL$1 -> 0 | AM72: ='Optional Adjustment 19'!G72*$AM$1 -> 0 | AN72: ='Optional Adjustment 20'!G72*$AN$1 -> 0 | AO72: ='Optional Adjustment 21'!G72*$AO$1 -> 0 | AP72: ='Optional Adjustment 22'!G72*$AP$1 -> 0 | AQ72: ='Optional Adjustment 23'!G72*$AQ$1 -> 0 | AR72: ='Corp Charges '!G72*$AR$1 -> 0 | AY72: =SUM(F72:AX72) -> 0 | BA72: =SUM(AY72:AY72) -> 0 | BB72: =+BA72-'ROR-Model'!G72 -> 0
BB73: =+BA73-'ROR-Model'!G73 -> 0
C74: Commodity Revenue | S74: ='EDIT Amort Adj'!G74*$S$1 -> 0 | T74: =Pension!G74*$T$1 -> 0 | U74: ='Optional Adjustment 1'!G74*$U$1 -> 0 | V74: ='Optional Adjustment 2'!G74*$V$1 -> 0 | W74: ='Optional Adjustment 3'!G74*$W$1 -> 0 | X74: ='Optional Adjustment 4'!G74*$X$1 -> 0 | Y74: ='Optional Adjustment 5'!G74*$Y$1 -> 0 | Z74: ='Optional Adjustment 6'!G74*$Z$1 -> 0 | AA74: ='Optional Adjustment 7'!G74*$AA$1 -> 0 | AB74: ='Optional Adjustment 8'!G74*$AB$1 -> 0 | AC74: ='Optional Adjustment 9'!G74*$AC$1 -> 0 | AD74: ='Optional Adjustment 10'!G74*$AD$1 -> 0 | AE74: ='Optional Adjustment 11'!G74*$AE$1 -> 0 | AF74: ='Optional Adjustment 12'!G74*$AF$1 -> 0 | AG74: ='Optional Adjustment 13'!G74*$AG$1 -> 0 | AH74: ='Optional Adjustment 14'!G74*$AH$1 -> 0 | AI74: ='Optional Adjustment 15'!G74*$AI$1 -> 0 | AJ74: ='Optional Adjustment 16'!G74*$AJ$1 -> 0 | AK74: ='Optional Adjustment 17'!G74*$AK$1 -> 0 | AL74: ='Optional Adjustment 18'!G74*$AL$1 -> 0 | AM74: ='Optional Adjustment 19'!G74*$AM$1 -> 0 | AN74: ='Optional Adjustment 20'!G74*$AN$1 -> 0 | AO74: ='Optional Adjustment 21'!G74*$AO$1 -> 0 | AP74: ='Optional Adjustment 22'!G74*$AP$1 -> 0 | AQ74: ='Optional Adjustment 23'!G74*$AQ$1 -> 0 | AR74: ='Corp Charges '!G74*$AR$1 -> 0 | AY74: =SUM(F74:AX74) -> 0 | BA74: =SUM(AY74:AY74) -> 0 | BB74: =+BA74-'ROR-Model'!G74 -> 0
C75: Total Revenue | F75: =SUM(F70:F74) -> 0 | H75: =H1*SUM(H70:H74) -> 0 | I75: =SUM(I70:I74) -> 0 | J75: =SUM(J70:J74) -> 0 | K75: 0 | L75: 0 | M75: 0 | N75: 0 | O75: 0 | P75: 0 | Q75: =SUM(Q70:Q74) -> 0 | R75: 0 | S75: =SUM(S70:S74) -> 0 | T75: 0 | U75: =SUM(U70:U74) -> 0 | V75: 0 | W75: 0 | X75: 0 | Y75: 0 | Z75: 0 | AA75: 0 | AB75: 0 | AC75: 0 | AD75: 0 | AE75: =SUM(AE70:AE74) -> 0 | AF75: 0 | AG75: 0 | AH75: 0 | AI75: =SUM(AI70:AI74) -> 0 | AJ75: 0 | AK75: 0 | AL75: 0 | AM75: 0 | AN75: =SUM(AN70:AN74) -> 0 | AO75: 0 | AP75: 0 | AQ75: =SUM(AQ70:AQ74) -> 0 | AR75: =SUM(AR70:AR74) -> 0 | AS75: =SUM(AS70:AS74) -> 0 | AT75: 0 | AU75: 0 | AV75: 0 | AW75: 0 | AX75: 0 | AY75: =SUM(AY70:AY74) -> 0 | BA75: =SUM(BA70:BA74) -> 0 | BB75: =+BA75-'ROR-Model'!G75 -> 0
BB76: =+BA76-'ROR-Model'!G76 -> 0
C77: Total Dth | H77: =H1*Revenue!$X$76 -> 0 | AY77: =SUM(F77:AX77) -> 0 | BA77: =SUM(AY77:AY77) -> 0 | BB77: =+BA77-'ROR-Model'!G77 -> 0
BB78: =+BA78-'ROR-Model'!G78 -> 0
B79: I-2 | C79: Distribution Non-Gas Rev | H79: =H1*Revenue!$X$78 -> 0 | S79: ='EDIT Amort Adj'!G79*$S$1 -> 0 | T79: =Pension!G79*$T$1 -> 0 | U79: ='Optional Adjustment 1'!G79*$U$1 -> 0 | V79: ='Optional Adjustment 2'!G79*$V$1 -> 0 | W79: ='Optional Adjustment 3'!G79*$W$1 -> 0 | X79: ='Optional Adjustment 4'!G79*$X$1 -> 0 | Y79: ='Optional Adjustment 5'!G79*$Y$1 -> 0 | Z79: ='Optional Adjustment 6'!G79*$Z$1 -> 0 | AA79: ='Optional Adjustment 7'!G79*$AA$1 -> 0 | AB79: ='Optional Adjustment 8'!G79*$AB$1 -> 0 | AC79: ='Optional Adjustment 9'!G79*$AC$1 -> 0 | AD79: ='Optional Adjustment 10'!G79*$AD$1 -> 0 | AE79: ='Optional Adjustment 11'!G79*$AE$1 -> 0 | AF79: ='Optional Adjustment 12'!G79*$AF$1 -> 0 | AG79: ='Optional Adjustment 13'!G79*$AG$1 -> 0 | AH79: ='Optional Adjustment 14'!G79*$AH$1 -> 0 | AI79: ='Optional Adjustment 15'!G79*$AI$1 -> 0 | AJ79: ='Optional Adjustment 16'!G79*$AJ$1 -> 0 | AK79: ='Optional Adjustment 17'!G79*$AK$1 -> 0 | AL79: ='Optional Adjustment 18'!G79*$AL$1 -> 0 | AM79: ='Optional Adjustment 19'!G79*$AM$1 -> 0 | AN79: ='Optional Adjustment 20'!G79*$AN$1 -> 0 | AO79: ='Optional Adjustment 21'!G79*$AO$1 -> 0 | AP79: ='Optional Adjustment 22'!G79*$AP$1 -> 0 | AQ79: ='Optional Adjustment 23'!G79*$AQ$1 -> 0 | AR79: ='Corp Charges '!G79*$AR$1 -> 0 | AY79: =SUM(F79:AX79) -> 0 | BA79: =SUM(AY79:AY79) -> 0 | BB79: =+BA79-'ROR-Model'!G79 -> 0
BB80: =+BA80-'ROR-Model'!G80 -> 0
C81: Supplier Non-Gas Revenue | H81: =H1*Revenue!$X$80 -> 0 | S81: ='EDIT Amort Adj'!G81*$S$1 -> 0 | T81: =Pension!G81*$T$1 -> 0 | U81: ='Optional Adjustment 1'!G81*$U$1 -> 0 | V81: ='Optional Adjustment 2'!G81*$V$1 -> 0 | W81: ='Optional Adjustment 3'!G81*$W$1 -> 0 | X81: ='Optional Adjustment 4'!G81*$X$1 -> 0 | Y81: ='Optional Adjustment 5'!G81*$Y$1 -> 0 | Z81: ='Optional Adjustment 6'!G81*$Z$1 -> 0 | AA81: ='Optional Adjustment 7'!G81*$AA$1 -> 0 | AB81: ='Optional Adjustment 8'!G81*$AB$1 -> 0 | AC81: ='Optional Adjustment 9'!G81*$AC$1 -> 0 | AD81: ='Optional Adjustment 10'!G81*$AD$1 -> 0 | AE81: ='Optional Adjustment 11'!G81*$AE$1 -> 0 | AF81: ='Optional Adjustment 12'!G81*$AF$1 -> 0 | AG81: ='Optional Adjustment 13'!G81*$AG$1 -> 0 | AH81: ='Optional Adjustment 14'!G81*$AH$1 -> 0 | AI81: ='Optional Adjustment 15'!G81*$AI$1 -> 0 | AJ81: ='Optional Adjustment 16'!G81*$AJ$1 -> 0 | AK81: ='Optional Adjustment 17'!G81*$AK$1 -> 0 | AL81: ='Optional Adjustment 18'!G81*$AL$1 -> 0 | AM81: ='Optional Adjustment 19'!G81*$AM$1 -> 0 | AN81: ='Optional Adjustment 20'!G81*$AN$1 -> 0 | AO81: ='Optional Adjustment 21'!G81*$AO$1 -> 0 | AP81: ='Optional Adjustment 22'!G81*$AP$1 -> 0 | AQ81: ='Optional Adjustment 23'!G81*$AQ$1 -> 0 | AR81: ='Corp Charges '!G81*$AR$1 -> 0 | AY81: =SUM(F81:AX81) -> 0 | BA81: =SUM(AY81:AY81) -> 0 | BB81: =+BA81-'ROR-Model'!G81 -> 0
BB82: =+BA82-'ROR-Model'!G82 -> 0
C83: Commodity Revenue | H83: =H1*Revenue!$X$82 -> 0 | S83: ='EDIT Amort Adj'!G83*$S$1 -> 0 | T83: =Pension!G83*$T$1 -> 0 | U83: ='Optional Adjustment 1'!G83*$U$1 -> 0 | V83: ='Optional Adjustment 2'!G83*$V$1 -> 0 | W83: ='Optional Adjustment 3'!G83*$W$1 -> 0 | X83: ='Optional Adjustment 4'!G83*$X$1 -> 0 | Y83: ='Optional Adjustment 5'!G83*$Y$1 -> 0 | Z83: ='Optional Adjustment 6'!G83*$Z$1 -> 0 | AA83: ='Optional Adjustment 7'!G83*$AA$1 -> 0 | AB83: ='Optional Adjustment 8'!G83*$AB$1 -> 0 | AC83: ='Optional Adjustment 9'!G83*$AC$1 -> 0 | AD83: ='Optional Adjustment 10'!G83*$AD$1 -> 0 | AE83: ='Optional Adjustment 11'!G83*$AE$1 -> 0 | AF83: ='Optional Adjustment 12'!G83*$AF$1 -> 0 | AG83: ='Optional Adjustment 13'!G83*$AG$1 -> 0 | AH83: ='Optional Adjustment 14'!G83*$AH$1 -> 0 | AI83: ='Optional Adjustment 15'!G83*$AI$1 -> 0 | AJ83: ='Optional Adjustment 16'!G83*$AJ$1 -> 0 | AK83: ='Optional Adjustment 17'!G83*$AK$1 -> 0 | AL83: ='Optional Adjustment 18'!G83*$AL$1 -> 0 | AM83: ='Optional Adjustment 19'!G83*$AM$1 -> 0 | AN83: ='Optional Adjustment 20'!G83*$AN$1 -> 0 | AO83: ='Optional Adjustment 21'!G83*$AO$1 -> 0 | AP83: ='Optional Adjustment 22'!G83*$AP$1 -> 0 | AQ83: ='Optional Adjustment 23'!G83*$AQ$1 -> 0 | AR83: ='Corp Charges '!G83*$AR$1 -> 0 | AY83: =SUM(F83:AX83) -> 0 | BA83: =SUM(AY83:AY83) -> 0 | BB83: =+BA83-'ROR-Model'!G83 -> 0
C84: Total Revenue | F84: =SUM(F79:F83) -> 0 | H84: =H1*SUM(H79:H83) -> 0 | I84: =SUM(I79:I83) -> 0 | J84: =SUM(J79:J83) -> 0 | K84: 0 | L84: 0 | M84: 0 | N84: 0 | O84: 0 | P84: 0 | Q84: =SUM(Q79:Q83) -> 0 | R84: 0 | S84: =SUM(S79:S83) -> 0 | T84: 0 | U84: =SUM(U79:U83) -> 0 | V84: 0 | W84: 0 | X84: 0 | Y84: 0 | Z84: 0 | AA84: 0 | AB84: 0 | AC84: 0 | AD84: 0 | AE84: =SUM(AE79:AE83) -> 0 | AF84: 0 | AG84: 0 | AH84: 0 | AI84: =SUM(AI79:AI83) -> 0 | AJ84: 0 | AK84: 0 | AL84: 0 | AM84: 0 | AN84: =SUM(AN79:AN83) -> 0 | AO84: 0 | AP84: 0 | AQ84: =SUM(AQ79:AQ83) -> 0 | AR84: =SUM(AR79:AR83) -> 0 | AS84: =SUM(AS79:AS83) -> 0 | AT84: 0 | AU84: 0 | AV84: 0 | AW84: 0 | AX84: 0 | AY84: =SUM(AY79:AY83) -> 0 | BA84: =SUM(BA79:BA83) -> 0 | BB84: =+BA84-'ROR-Model'!G84 -> 0
BB85: =+BA85-'ROR-Model'!G85 -> 0
C86: Total Dth | H86: =H1*Revenue!$X$85 -> 0 | AY86: =SUM(F86:AX86) -> 0 | BA86: =SUM(AY86:AY86) -> 0 | BB86: =+BA86-'ROR-Model'!G86 -> 0
BB87: =+BA87-'ROR-Model'!G87 -> 0
B88: I-4 | C88: Distribution Non-Gas Rev | H88: =H1*Revenue!$X$87 -> 0 | S88: ='EDIT Amort Adj'!G88*$S$1 -> 0 | T88: =Pension!G88*$T$1 -> 0 | U88: ='Optional Adjustment 1'!G88*$U$1 -> 0 | V88: ='Optional Adjustment 2'!G88*$V$1 -> 0 | W88: ='Optional Adjustment 3'!G88*$W$1 -> 0 | X88: ='Optional Adjustment 4'!G88*$X$1 -> 0 | Y88: ='Optional Adjustment 5'!G88*$Y$1 -> 0 | Z88: ='Optional Adjustment 6'!G88*$Z$1 -> 0 | AA88: ='Optional Adjustment 7'!G88*$AA$1 -> 0 | AB88: ='Optional Adjustment 8'!G88*$AB$1 -> 0 | AC88: ='Optional Adjustment 9'!G88*$AC$1 -> 0 | AD88: ='Optional Adjustment 10'!G88*$AD$1 -> 0 | AE88: ='Optional Adjustment 11'!G88*$AE$1 -> 0 | AF88: ='Optional Adjustment 12'!G88*$AF$1 -> 0 | AG88: ='Optional Adjustment 13'!G88*$AG$1 -> 0 | AH88: ='Optional Adjustment 14'!G88*$AH$1 -> 0 | AI88: ='Optional Adjustment 15'!G88*$AI$1 -> 0 | AJ88: ='Optional Adjustment 16'!G88*$AJ$1 -> 0 | AK88: ='Optional Adjustment 17'!G88*$AK$1 -> 0 | AL88: ='Optional Adjustment 18'!G88*$AL$1 -> 0 | AM88: ='Optional Adjustment 19'!G88*$AM$1 -> 0 | AN88: ='Optional Adjustment 20'!G88*$AN$1 -> 0 | AO88: ='Optional Adjustment 21'!G88*$AO$1 -> 0 | AP88: ='Optional Adjustment 22'!G88*$AP$1 -> 0 | AQ88: ='Optional Adjustment 23'!G88*$AQ$1 -> 0 | AR88: ='Corp Charges '!G88*$AR$1 -> 0 | AY88: =SUM(F88:AX88) -> 0 | BA88: =SUM(AY88:AY88) -> 0 | BB88: =+BA88-'ROR-Model'!G88 -> 0
BB89: =+BA89-'ROR-Model'!G89 -> 0
C90: Supplier Non-Gas Revenue | H90: =H1*Revenue!$X$89 -> 0 | S90: ='EDIT Amort Adj'!G90*$S$1 -> 0 | T90: =Pension!G90*$T$1 -> 0 | U90: ='Optional Adjustment 1'!G90*$U$1 -> 0 | V90: ='Optional Adjustment 2'!G90*$V$1 -> 0 | W90: ='Optional Adjustment 3'!G90*$W$1 -> 0 | X90: ='Optional Adjustment 4'!G90*$X$1 -> 0 | Y90: ='Optional Adjustment 5'!G90*$Y$1 -> 0 | Z90: ='Optional Adjustment 6'!G90*$Z$1 -> 0 | AA90: ='Optional Adjustment 7'!G90*$AA$1 -> 0 | AB90: ='Optional Adjustment 8'!G90*$AB$1 -> 0 | AC90: ='Optional Adjustment 9'!G90*$AC$1 -> 0 | AD90: ='Optional Adjustment 10'!G90*$AD$1 -> 0 | AE90: ='Optional Adjustment 11'!G90*$AE$1 -> 0 | AF90: ='Optional Adjustment 12'!G90*$AF$1 -> 0 | AG90: ='Optional Adjustment 13'!G90*$AG$1 -> 0 | AH90: ='Optional Adjustment 14'!G90*$AH$1 -> 0 | AI90: ='Optional Adjustment 15'!G90*$AI$1 -> 0 | AJ90: ='Optional Adjustment 16'!G90*$AJ$1 -> 0 | AK90: ='Optional Adjustment 17'!G90*$AK$1 -> 0 | AL90: ='Optional Adjustment 18'!G90*$AL$1 -> 0 | AM90: ='Optional Adjustment 19'!G90*$AM$1 -> 0 | AN90: ='Optional Adjustment 20'!G90*$AN$1 -> 0 | AO90: ='Optional Adjustment 21'!G90*$AO$1 -> 0 | AP90: ='Optional Adjustment 22'!G90*$AP$1 -> 0 | AQ90: ='Optional Adjustment 23'!G90*$AQ$1 -> 0 | AR90: ='Corp Charges '!G90*$AR$1 -> 0 | AY90: =SUM(F90:AX90) -> 0 | BA90: =SUM(AY90:AY90) -> 0 | BB90: =+BA90-'ROR-Model'!G90 -> 0
BB91: =+BA91-'ROR-Model'!G91 -> 0
C92: Commodity Revenue | H92: =H1*Revenue!$X$91 -> 0 | S92: ='EDIT Amort Adj'!G92*$S$1 -> 0 | T92: =Pension!G92*$T$1 -> 0 | U92: ='Optional Adjustment 1'!G92*$U$1 -> 0 | V92: ='Optional Adjustment 2'!G92*$V$1 -> 0 | W92: ='Optional Adjustment 3'!G92*$W$1 -> 0 | X92: ='Optional Adjustment 4'!G92*$X$1 -> 0 | Y92: ='Optional Adjustment 5'!G92*$Y$1 -> 0 | Z92: ='Optional Adjustment 6'!G92*$Z$1 -> 0 | AA92: ='Optional Adjustment 7'!G92*$AA$1 -> 0 | AB92: ='Optional Adjustment 8'!G92*$AB$1 -> 0 | AC92: ='Optional Adjustment 9'!G92*$AC$1 -> 0 | AD92: ='Optional Adjustment 10'!G92*$AD$1 -> 0 | AE92: ='Optional Adjustment 11'!G92*$AE$1 -> 0 | AF92: ='Optional Adjustment 12'!G92*$AF$1 -> 0 | AG92: ='Optional Adjustment 13'!G92*$AG$1 -> 0 | AH92: ='Optional Adjustment 14'!G92*$AH$1 -> 0 | AI92: ='Optional Adjustment 15'!G92*$AI$1 -> 0 | AJ92: ='Optional Adjustment 16'!G92*$AJ$1 -> 0 | AK92: ='Optional Adjustment 17'!G92*$AK$1 -> 0 | AL92: ='Optional Adjustment 18'!G92*$AL$1 -> 0 | AM92: ='Optional Adjustment 19'!G92*$AM$1 -> 0 | AN92: ='Optional Adjustment 20'!G92*$AN$1 -> 0 | AO92: ='Optional Adjustment 21'!G92*$AO$1 -> 0 | AP92: ='Optional Adjustment 22'!G92*$AP$1 -> 0 | AQ92: ='Optional Adjustment 23'!G92*$AQ$1 -> 0 | AR92: ='Corp Charges '!G92*$AR$1 -> 0 | AY92: =SUM(F92:AX92) -> 0 | BA92: =SUM(AY92:AY92) -> 0 | BB92: =+BA92-'ROR-Model'!G92 -> 0
C93: Total Revenue | F93: =SUM(F88:F92) -> 0 | H93: =H1*SUM(H88:H92) -> 0 | I93: =SUM(I88:I92) -> 0 | J93: =SUM(J88:J92) -> 0 | K93: 0 | L93: 0 | M93: 0 | N93: 0 | O93: 0 | P93: 0 | Q93: =SUM(Q88:Q92) -> 0 | R93: 0 | S93: =SUM(S88:S92) -> 0 | T93: 0 | U93: =SUM(U88:U92) -> 0 | V93: 0 | W93: 0 | X93: 0 | Y93: 0 | Z93: 0 | AA93: 0 | AB93: 0 | AC93: 0 | AD93: 0 | AE93: =SUM(AE88:AE92) -> 0 | AF93: 0 | AG93: 0 | AH93: 0 | AI93: =SUM(AI88:AI92) -> 0 | AJ93: 0 | AK93: 0 | AL93: 0 | AM93: 0 | AN93: =SUM(AN88:AN92) -> 0 | AO93: 0 | AP93: 0 | AQ93: =SUM(AQ88:AQ92) -> 0 | AR93: =SUM(AR88:AR92) -> 0 | AS93: =SUM(AS88:AS92) -> 0 | AT93: 0 | AU93: 0 | AV93: 0 | AW93: 0 | AX93: 0 | AY93: =SUM(AY88:AY92) -> 0 | BA93: =SUM(BA88:BA92) -> 0 | BB93: =+BA93-'ROR-Model'!G93 -> 0
BB94: =+BA94-'ROR-Model'!G94 -> 0
C95: Total Dth | H95: =H1*Revenue!$X$94 -> 0 | AY95: =SUM(F95:AX95) -> 0 | BA95: =SUM(AY95:AY95) -> 0 | BB95: =+BA95-'ROR-Model'!G95 -> 0
BB96: =+BA96-'ROR-Model'!G96 -> 0
